Workbook

Sheet 2018 (hidden)
B1: Forbrug | C1: Naturgas | D1: Kul | E1: Affald (ikke-bionedbrydeligt) | F1: Biobrændsler | G1: Ikke-brændsel VE | H1: Sol | I1: Vind | J1: Vand | K1: Geotermisk | L1: Varmepumpe - omgivelsesvarme | M1: Bioolie, biodiesel og bioethanol | N1: Olieprodukter | O1: El | P1: Fjernvarme | Q1: Overskudsvarme | R1: Energitjenester | S1: Total energiforbrug | T1: Brutto brændsel | U1: =#REF! ->  | X1: Faktor | Y1: Brutto produktion | Z1: Virkningsgrad | AA1: Produktion | AB1: Naturgas | AC1: Kul | AD1: Affald (ikke-bionedbrydeligt) | AE1: Biobrændsler | AF1: Ikke-brændsel VE | AG1: Sol | AH1: Vind | AI1: Vand | AJ1: Geotermisk | AK1: Varmepumpe - omgivelsesvarme | AL1: Bioolie, biodiesel og bioethanol | AM1: Olieprodukter | AN1: El | AO1: Fjernvarme | AP1: Nyttiggjort overskudsvarme | AQ1: Energitjenester | AR1: Total energiforbrug | AS1: Tab | AT1: CO2-udledning
A2: ID | B2: F | C2: FN | D2: FK | E2: FMA | F2: FVB | G2: FLVE | H2: FLVE1 | I2: FLVE2 | J2: FLVE3 | K2: FLVE4 | L2: FLVE5 | M2: FS | N2: FOO | O2: FE | P2: FF | Q2: FOV | R2: FWEN | S2: FTOTAL | T2: fbrbr | V2: ID | W2: ID Parent | X2: factor | Y2: pbrpr | Z2: pvrkg | AA2: P | AB2: PN | AC2: PK | AD2: PMA | AE2: PVB | AF2: PLVE | AG2: PLVE1 | AH2: PLVE2 | AI2: PLVE3 | AJ2: PLVE4 | AK2: PLVE5 | AL2: PS | AM2: POO | AN2: PE | AO2: PF | AP2: POV | AQ2: PWEN | AR2: PTOTAL | AS2: PTAB | AT2: PCO2
A3: ID Parent | C3: F | D3: F | E3: F | F3: F | G3: F | H3: FLVE | I3: FLVE | J3: FLVE | K3: FLVE | L3: FLVE | M3: F | N3: F | O3: F | P3: F | Q3: F | R3: F | S3: F | U3: Structures | AB3: P | AC3: P | AD3: P | AE3: P | AF3: P | AG3: PLVE | AH3: PLVE | AI3: PLVE | AJ3: PLVE | AK3: PLVE | AL3: P | AM3: P | AN3: P | AO3: P | AP3: P | AQ3: P | AR3: P
S5: 0 | T5: =SUM(C5:F5,G5,M5,N5,O5:Q5) -> 0 | U5: Indgang for brændsler (bio, kul mv.) | V5: TP | Y5: =SUM(AB5:AE5,AF5,AL5,AM5,AN5:AQ5) -> 348956 | AB5: =-C6 -> 92253 | AC5: =-D6 -> 67590 | AD5: =-E6 -> 17307 | AE5: =-F6 -> 171806 | AF5: =AG5+AH5+AI5+AJ5+AK5 -> 0
C6: =-AB6 -> -92253 | D6: =-AC6 -> -67590 | E6: =-AD6 -> -17307 | F6: =-AE6 -> -171806 | G6: =H6+I6+J6+K6+L6 -> 0 | S6: 0 | T6: -348956 | U6: Transport af brændsler | V6: TRAP | Y6: 348956 | AB6: =-1*(C8+C18) -> 92253 | AC6: =-1*(D8+D18) -> 67590 | AD6: =-1*(E8+E18) -> 17307 | AE6: =-1*(F8+F18) -> 171806 | AF6: 0
S7: 0 | T7: 0 | U7: Indgang nettilsluttet VE | V7: TLP1 | Y7: 55628 | AF7: 55628 | AG7: =H8*-1 -> 5592 | AH7: =I11*-1 -> 50036
C8: =SUM(C9:C11,C12:C15) -> -30775 | D8: =SUM(D9:D11,D12:D15) -> -61990 | E8: =SUM(E9:E11,E12:E15) -> -16310 | F8: =SUM(F9:F11,F12:F15) -> -108036 | G8: =H8+I8+J8+K8+L8 -> -55738 | H8: =SUM(H9:H11,H12:H15) -> -5592 | I8: -50036 | J8: 0 | K8: 0 | L8: -110 | M8: -234 | N8: -18254 | O8: -7084 | P8: -855 | Q8: 0 | R8: 0 | S8: 0 | T8: -299276 | U8: Indgang el, varme og olieprodukter | V8: TS | Y8: 506023.15 | AB8: =SUM(AB9:AB11,AB12:AB15) -> 0 | AC8: =SUM(AC9:AC11,AC12:AC15) -> 0 | AD8: =SUM(AD9:AD11,AD12:AD15) -> 0 | AF8: 0 | AG8: =SUM(AG9:AG11,AG12:AG15) -> 0 | AI8: =SUM(AI9:AI11,AI12:AI15) -> 0 | AJ8: =SUM(AJ9:AJ11,AJ12:AJ15) -> 0 | AK8: =SUM(AK9:AK11,AK12:AK15) -> 0 | AL8: =-M18 -> 8956.13 | AM8: =(N16+N8)*-1 -> 234873.96 | AN8: =(O16+O8)*-1 -> 127146.06 | AO8: =SUM(AO9:AO15) -> 135047 | AP8: =SUM(AP9:AP11,AP12:AP15) -> 0 | AQ8: =SUM(AQ9:AQ11,AQ12:AQ15) -> 0 | AR8: =SUM(AR9:AR11,AR12:AR15) -> 0 | AS8: =SUM(AS9:AS11,AS12:AS15) -> -245768 | AT8: =SUM(AT9:AT11,AT12:AT15) -> 9908.50662
G9: =H9+I9+J9+K9+L9 -> 0 | S9: 0 | T9: 0 | U9: Netto import/lager | V9: IMP | W9: TS | Y9: 27878.13 | AF9: 0 | AL9: =IF(AL15-AL8<0,(AL15-AL8)*-1,0) -> 8956.13 | AM9: =IF(AM8-AM15>0,AM8-AM15,0) -> 0 | AN9: =IF('BF20 2018'!AB7>0,'BF20 2018'!AB7,0) -> 18808 | AO9: =IF('BF20 2018'!AC7>0,'BF20 2018'!AC7,0) -> 114 | AT9: =AN9*Elproduktion!J10+AL9*PtX!J9/1000 -> 737.98562
C10: ='BF20 2018'!N18+'BF20 2018'!N20+'BF20 2018'!N22 -> -18100 | D10: ='BF20 2018'!C18+'BF20 2018'!C20+'BF20 2018'!C22 -> -61880 | E10: ='BF20 2018'!O18+'BF20 2018'!O20+'BF20 2018'!O22 -> -16074 | F10: =SUM('BF20 2018'!P18:T18)+SUM('BF20 2018'!V18:W18)+SUM('BF20 2018'!P20:T20)+SUM('BF20 2018'!V20:W20)+SUM('BF20 2018'!P22:T22)+SUM('BF20 2018'!V22:W22) -> -85958 | G10: 0 | M10: ='BF20 2018'!U18+'BF20 2018'!U20+'BF20 2018'!U22 -> -13 | N10: =SUM('BF20 2018'!E18:M18)+SUM('BF20 2018'!E20:M20)+SUM('BF20 2018'!E22:M22) -> -2996 | O10: ='BF20 2018'!AB24 -> -3795 | P10: ='BF20 2018'!AC24 -> -855 | S10: 0 | T10: -189671 | U10: El og varmeproduktion | V10: ELOGVARME | W10: TS | Y10: 148334 | AF10: 0 | AN10: ='BF20 2018'!AB18+'BF20 2018'!AB20+'BF20 2018'!AB22+'BF20 2018'!X22 -> 55775 | AO10: ='BF20 2018'!AC18+'BF20 2018'!AC20+'BF20 2018'!AC22+'BF20 2018'!X22 -> 92559 | AS10: =(Y10+T10)*-1 -> 41337 | AT10: =-(C10*Emissionsfaktorer!$B$5+D10*Emissionsfaktorer!$B$7+E10*Emissionsfaktorer!$B$8+N10*Emissionsfaktorer!$B$6)*(1-'CO2-rensning '!J4)+F10*Emissionsfaktorer!B10*'CO2-rensning '!J4 -> 8359.62
G11: -50036 | I11: ='BF20 2018'!Z19 -> -50036 | S11: 0 | T11: -50036 | U11: Vindmøller | V11: VIND | W11: TS | Y11: 50089 | AF11: 0 | AN11: ='BF20 2018'!AB19 -> 50089 | AS11: 0 | AT11: =-('2018'!C11*Emissionsfaktorer!$B$5+'2018'!D11*Emissionsfaktorer!$B$7+'2018'!E11*Emissionsfaktorer!$B$8+N11*Emissionsfaktorer!$B$6) -> 0
G12: -3431 | H12: ='BF20 2018'!X22 -> -3431 | S12: 0 | T12: -3431 | U12: Solceller | V12: SOLSTR | W12: TS | Y12: 3431 | AF12: =AG12+AH12+AI12+AJ12+AK12 -> 0 | AN12: ='BF20 2018'!X22*-1 -> 3431 | AS12: =(Y12+T12)*-1 -> 0 | AT12: =-('2018'!C12*Emissionsfaktorer!$B$5+'2018'!D12*Emissionsfaktorer!$B$7+'2018'!E12*Emissionsfaktorer!$B$8+N12*Emissionsfaktorer!$B$6) -> 0
C13: ='BF20 2018'!N21 -> -12675 | D13: ='BF20 2018'!C21 -> -110 | E13: ='BF20 2018'!O21 -> -236 | F13: =SUM('BF20 2018'!P21:T21)+'BF20 2018'!V21+'BF20 2018'!W21 -> -22078 | G13: 0 | M13: ='BF20 2018'!U21 -> -221 | N13: =SUM('BF20 2018'!F21:M21) -> -790 | O13: ='BF20 2018'!AB21 -> -1059 | S13: 0 | T13: -37169 | U13: Fjernvarmekedler | V13: KEDLER | W13: TS | Y13: 36628 | AF13: 0 | AO13: ='BF20 2018'!AC21+('BF20 2018'!Y21*(1+1/(Fjernvarmeproduktion!B24-1))+'BF20 2018'!X21) -> 36628 | AS13: =(Y13+T13)*-1 -> 541 | AT13: =-(C13*Emissionsfaktorer!$B$5+D13*Emissionsfaktorer!$B$7+E13*Emissionsfaktorer!$B$8+N13*Emissionsfaktorer!$B$6)*(1-'CO2-rensning '!J5)+'CO2-rensning '!J5*Emissionsfaktorer!B10*F13 -> 810.901
G14: -2271 | H14: ='BF20 2018'!X21 -> -2161 | L14: ='BF20 2018'!Y21 -> -110 | O14: ='BF20 2018'!Y21/(Fjernvarmeproduktion!B24-1) -> -44 | S14: 0 | T14: -2315 | U14: Anden varmeproduktion | V14: ANDENV | W14: TS | Y14: 5746 | AF14: 0 | AO14: =('BF20 2018'!Y21*(1+1/(Fjernvarmeproduktion!B24-1))+'BF20 2018'!X21+'BF20 2018'!X22)*-1 -> 5746 | AS14: =(Y14+T14)*-1 -> -3431 | AT14: =-('2018'!C14*Emissionsfaktorer!$B$5+'2018'!D14*Emissionsfaktorer!$B$7+'2018'!E14*Emissionsfaktorer!$B$8+N14*Emissionsfaktorer!$B$6) -> 0
F15: ='BF20 2018'!AA16 -> 0 | G15: 0 | N15: =SUM('BF20 2018'!G14:M14) -> -14468 | O15: ='BF20 2018'!AB16+'BF20 2018'!AB14+'BF20 2018'!AB14 -> -2186 | S15: 0 | T15: -16654 | U15: Raffinaderi og PtX | V15: RAF | W15: TS | Y15: 300869 | AF15: 0 | AL15: =PtX!J3 -> 0 | AM15: =SUM('BF20 2018'!F13:M13) -> 300869 | AO15: ='BF20 2018'!AC16 -> 0 | AS15: =(Y15+T15)*-1 -> -284215
N16: =AM16*-1 -> -216619.96 | O16: =-AN16+'BF20 2018'!AB25 -> -120062.06 | P16: =-AO16+'BF20 2018'!AC25 -> -136830 | S16: 0 | T16: -473512.02 | U16: Transport af el, fjernvarme, mv. | V16: TRAS | Y16: 438743.02 | AF16: 0 | AM16: =N18*-1 -> 216619.96 | AN16: =O18*-1 -> 112131.06 | AO16: =P18*-1 -> 109992 | AS16: =(Y16+T16)*-1 -> 34769
S17: 0 | T17: 0 | U17: Indgang ikke-nettilsluttet VE | V17: TLP2 | Y17: 11064 | AF17: 11064 | AG17: =H18*-1 -> 604 | AH17: =I18*-1 -> 0 | AI17: 0 | AJ17: 0 | AK17: 10460
C18: =C19+C20+C30+C31+C32 -> -61478 | D18: -5600 | E18: -997 | F18: -63770 | G18: -11064 | H18: -604 | J18: =J19+J20+J30+J31+J32 -> 0 | K18: =K19+K20+K30+K31+K32 -> 0 | L18: =L19+L20+L30+L31+L32 -> -10460 | M18: =M20+M30+M31+M32 -> -8956.13 | N18: =N20+N30+N31+N32 -> -216619.96 | O18: =O20+O30+O31+O32 -> -112131.06 | P18: =P19+P20+P30+P31+P32 -> -109992 | Q18: =Q19+Q20+Q30+Q31+Q32 -> 0 | R18: =R19+R20+R30+R31+R32 -> 0 | S18: 0 | T18: -590608.15 | U18: Afgang fra energisystemet | V18: A | Y18: 464766.245 | AB18: =SUM(AB19:AB20,AB30,AB31,AB32) -> 0 | AC18: 0 | AD18: 0 | AE18: 0 | AF18: 0 | AG18: 0 | AH18: 0 | AI18: 0 | AJ18: 0 | AK18: 0 | AL18: 0 | AM18: 0 | AN18: 0 | AO18: 0 | AP18: 0 | AQ18: 464766.245 | AR18: 0 | AS18: 191836.945 | AT18: 20575.13496
G19: =H19+I19+J19+K19+L19 -> 0 | M19: =IF(M20+M30+M31+M32+AL15>0,(M20+M30+M31+M32+AL15)*-1,0) -> 0 | N19: =IF(AM8-AM15<0,AM8-AM15,0) -> -65995.04 | O19: =IF('BF20 2018'!AB7<0,'BF20 2018'!AB7,0) -> 0 | P19: =IF('BF20 2018'!AC7<0,'BF20 2018'!AC7,0) -> 0 | S19: 0 | T19: -65995.04 | U19: Netto eksport/lager | V19: AES | W19: A | Y19: 0 | AF19: =AG19+AH19+AI19+AJ19+AK19 -> 0 | AS19: =(Y19+T19)*-1 -> 65995.04 | AT19: =O19*Elproduktion!J10+M19*PtX!J9/1000 -> 0
C20: =C21+SUM(C26:C29) -> -306 | D20: =D21+SUM(D26:D29) -> 0 | E20: 0 | F20: 0 | G20: 0 | H20: 0 | I20: 0 | J20: 0 | K20: 0 | L20: 0 | M20: -8956.13 | N20: -169060.96 | O20: -1451.06 | P20: 0 | Q20: 0 | R20: 0 | S20: 0 | T20: -179774.15 | U20: Transport | V20: AT | W20: A | Y20: 53932.245 | Z20: 0.3 | AB20: =AB21+SUM(AB26:AB29) -> 0 | AC20: 0 | AD20: 0 | AE20: 0 | AF20: 0 | AG20: 0 | AH20: 0 | AI20: 0 | AJ20: 0 | AK20: 0 | AL20: 0 | AM20: 0 | AN20: 0 | AO20: 0 | AP20: 0 | AQ20: 53932.245 | AR20: 0 | AS20: 125841.905 | AT20: =-('2018'!C20*Emissionsfaktorer!$B$5+'2018'!D20*Emissionsfaktorer!$B$7+'2018'!E20*Emissionsfaktorer!$B$8+N20*Emissionsfaktorer!$B$6) -> 12866.07496
C21: ='BF20 2018'!N28 -> -306 | G21: =SUM(G22:G25) -> 0 | M21: =('ENS Transport'!AX28+'ENS Transport'!AX29)*-1 -> -8956.13 | N21: =SUM('ENS Transport'!AX21:AX24)*-1 -> -156834.52 | S21: 0 | T21: -166096.65 | U21: Vejtrafik | V21: ATV | W21: AT | Y21: 49828.995 | Z21: 0.3 | AB21: =SUM(AB22:AB25) -> 0 | AC21: =SUM(AC22:AC25) -> 0 | AD21: =SUM(AD22:AD25) -> 0 | AE21: =SUM(AE22:AE25) -> 0 | AF21: 0 | AG21: =SUM(AG22:AG25) -> 0 | AH21: 0 | AI21: 0 | AJ21: 0 | AK21: 0 | AL21: 0 | AN21: =SUM(AN22:AN25) -> 0 | AO21: =SUM(AO22:AO25) -> 0 | AP21: =SUM(AP22:AP25) -> 0 | AQ21: =T21*Z21*-1 -> 49828.995 | AR21: =SUM(AR22:AR25) -> 0 | AS21: 116267.655 | AT21: =-('2018'!C21*Emissionsfaktorer!$B$5+'2018'!D21*Emissionsfaktorer!$B$7+'2018'!E21*Emissionsfaktorer!$B$8+N21*Emissionsfaktorer!$B$6) -> 11936.86552
G22: =SUM(H22:L22) -> 0 | S22: 0 | T22: 0 | U22: Personbil | V22: PERSON | W22: ATV | Y22: 0 | Z22: 0.3 | AF22: 0 | AQ22: 0 | AS22: 0 | AT22: =-('2018'!C22*Emissionsfaktorer!$B$5+'2018'!D22*Emissionsfaktorer!$B$7+'2018'!E22*Emissionsfaktorer!$B$8+N22*Emissionsfaktorer!$B$6) -> 0
G23: =SUM(H23:L23) -> 0 | S23: 0 | T23: 0 | U23: Lastbil | V23: LAST | W23: ATV | Y23: 0 | Z23: 0.3 | AF23: 0 | AQ23: 0 | AS23: 0 | AT23: =-('2018'!C23*Emissionsfaktorer!$B$5+'2018'!D23*Emissionsfaktorer!$B$7+'2018'!E23*Emissionsfaktorer!$B$8+N23*Emissionsfaktorer!$B$6) -> 0
G24: 0 | S24: 0 | T24: 0 | U24: Varebil | V24: VARE | W24: ATV | Y24: 0 | Z24: 0.3 | AF24: 0 | AQ24: 0 | AS24: 0 | AT24: =-('2018'!C24*Emissionsfaktorer!$B$5+'2018'!D24*Emissionsfaktorer!$B$7+'2018'!E24*Emissionsfaktorer!$B$8+N24*Emissionsfaktorer!$B$6) -> 0
G25: 0 | S25: 0 | T25: 0 | U25: Bus | V25: BUS | W25: ATV | Y25: 0 | Z25: 0.3 | AF25: 0 | AQ25: 0 | AS25: 0 | AT25: =-('2018'!C25*Emissionsfaktorer!$B$5+'2018'!D25*Emissionsfaktorer!$B$7+'2018'!E25*Emissionsfaktorer!$B$8+N25*Emissionsfaktorer!$B$6) -> 0
G26: =SUM(H26:L26) -> 0 | N26: =SUM('ENS Transport'!AX32:AX34)*-1 -> -3027.61 | O26: ='ENS Transport'!AX35*-1 -> -1451.06 | S26: 0 | T26: -4478.67 | U26: Tog | V26: ATT | W26: AT | Y26: 1343.601 | Z26: 0.3 | AB26: 0 | AC26: 0 | AD26: 0 | AE26: 0 | AF26: 0 | AG26: 0 | AH26: 0 | AI26: 0 | AJ26: 0 | AK26: 0 | AL26: 0 | AM26: 0 | AN26: 0 | AO26: 0 | AP26: 0 | AQ26: 1343.601 | AR26: 0 | AS26: 3135.069 | AT26: =-('2018'!C26*Emissionsfaktorer!$B$5+'2018'!D26*Emissionsfaktorer!$B$7+'2018'!E26*Emissionsfaktorer!$B$8+N26*Emissionsfaktorer!$B$6) -> 230.09836
G27: =SUM(H27:L27) -> 0 | N27: =SUM('ENS Transport'!AX44:AX48)*-1 -> -1201.99 | S27: 0 | T27: -1201.99 | U27: Fly (indenrigs) | V27: ATF | W27: AT | Y27: 360.597 | Z27: 0.3 | AB27: 0 | AC27: 0 | AD27: 0 | AE27: 0 | AF27: 0 | AG27: 0 | AH27: 0 | AI27: 0 | AJ27: 0 | AK27: 0 | AL27: 0 | AM27: 0 | AN27: 0 | AO27: 0 | AP27: 0 | AQ27: 360.597 | AR27: 0 | AS27: 841.393 | AT27: =-('2018'!C27*Emissionsfaktorer!$B$5+'2018'!D27*Emissionsfaktorer!$B$7+'2018'!E27*Emissionsfaktorer!$B$8+N27*Emissionsfaktorer!$B$6) -> 91.35124
G28: 0 | N28: =SUM('ENS Transport'!AX38:AX41)*-1 -> -6390.93 | S28: 0 | T28: -6390.93 | U28: Søtransport | V28: ATFÆRGE | W28: AT | Y28: 1917.279 | Z28: 0.3 | AF28: 0 | AQ28: 1917.279 | AS28: 4473.651 | AT28: =-('2018'!C28*Emissionsfaktorer!$B$5+'2018'!D28*Emissionsfaktorer!$B$7+'2018'!E28*Emissionsfaktorer!$B$8+N28*Emissionsfaktorer!$B$6) -> 485.71068
G29: 0 | N29: =SUM('ENS Transport'!AX55:AX59)*-1 -> -1605.91 | S29: 0 | T29: -1605.91 | U29: Forsvaret | V29: ATNONR | W29: AT | Y29: 481.773 | Z29: 0.3 | AB29: 0 | AC29: 0 | AD29: 0 | AE29: 0 | AF29: 0 | AG29: 0 | AH29: 0 | AI29: 0 | AJ29: 0 | AK29: 0 | AL29: 0 | AM29: 0 | AN29: 0 | AO29: 0 | AP29: 0 | AQ29: 481.773 | AR29: 0 | AS29: 1124.137 | AT29: =-('2018'!C29*Emissionsfaktorer!$B$5+'2018'!D29*Emissionsfaktorer!$B$7+'2018'!E29*Emissionsfaktorer!$B$8+N29*Emissionsfaktorer!$B$6) -> 122.04916
C30: ='BF20 2018'!N34 -> -24300 | D30: ='BF20 2018'!C34 -> 0 | E30: ='BF20 2018'!O34 -> 0 | F30: =SUM('BF20 2018'!P34:T34)+'BF20 2018'!V34+'BF20 2018'!W34 -> -47249 | G30: =H30+I30+J30+K30+L30 -> -7998 | H30: ='BF20 2018'!X34 -> -513 | L30: ='BF20 2018'!Y34 -> -7485 | M30: ='BF20 2018'!U34 -> 0 | N30: =SUM('BF20 2018'!D34:M34) -> -10207 | O30: ='BF20 2018'!AB34 -> -35342 | P30: ='BF20 2018'!AC34 -> -71757 | S30: 0 | T30: -196853 | U30: Husholdninger | V30: AH | W30: A | Y30: 196853 | Z30: 1 | AQ30: =T30/Z30*-1 -> 196853 | AS30: 0 | AT30: =-('2018'!C30*Emissionsfaktorer!$B$5+'2018'!D30*Emissionsfaktorer!$B$7+'2018'!E30*Emissionsfaktorer!$B$8+N30*Emissionsfaktorer!$B$6) -> 2160.832
C31: ='BF20 2018'!N33 -> -2554 | D31: ='BF20 2018'!C33 -> 0 | E31: ='BF20 2018'!O33 -> 0 | F31: =SUM('BF20 2018'!P33:T33)+'BF20 2018'!V33+'BF20 2018'!W33 -> -1725 | G31: -91 | H31: ='BF20 2018'!X33 -> -91 | L31: ='BF20 2018'!Y33 -> 0 | M31: ='BF20 2018'!U33 -> 0 | N31: =SUM('BF20 2018'!D33:M33) -> -1358 | O31: ='BF20 2018'!AB33 -> -8661 | P31: ='BF20 2018'!AC33 -> -10866 | S31: 0 | T31: -25255 | U31: Offentlig | V31: AO | W31: A | Y31: 25255 | Z31: 1 | AQ31: =T31/Z31*-1 -> 25255 | AS31: 0 | AT31: =-('2018'!C31*Emissionsfaktorer!$B$5+'2018'!D31*Emissionsfaktorer!$B$7+'2018'!E31*Emissionsfaktorer!$B$8+N31*Emissionsfaktorer!$B$6) -> 248.786
C32: =SUM('BF20 2018'!N29:N32) -> -34318 | D32: =SUM('BF20 2018'!C29:C32) -> -5600 | E32: =SUM('BF20 2018'!O29:O32) -> -997 | F32: =SUM('BF20 2018'!P29:T32)+SUM('BF20 2018'!V29:W32) -> -14796 | G32: -2975 | H32: =SUM('BF20 2018'!X29:X32) -> 0 | I32: =SUM('BF20 2018'!Z29:Z32) -> 0 | L32: =SUM('BF20 2018'!Y29:Y32) -> -2975 | M32: =SUM('BF20 2018'!U29:U32) -> 0 | N32: =SUM('BF20 2018'!E29:M32) -> -35994 | O32: =SUM('BF20 2018'!AB29:AB32) -> -66677 | P32: =SUM('BF20 2018'!AC29:AC32) -> -27369 | S32: 0 | T32: -188726 | U32: Erhverv | V32: AE | W32: A | Y32: 188726 | Z32: 1 | AQ32: =T32/Z32*-1 -> 188726 | AS32: 0 | AT32: =-('2018'!C32*Emissionsfaktorer!$B$5+'2018'!D32*Emissionsfaktorer!$B$7+'2018'!E32*Emissionsfaktorer!$B$8+N32*Emissionsfaktorer!$B$6) -> 5299.442
U33: Energitjenester | V33: EN
C34: =C18-'BF20 2018'!N26 -> 0 | D34: =D6-'BF20 2018'!C17-'BF20 2018'!C26 -> 1 | E34: =E6-'BF20 2018'!O17-'BF20 2018'!O26 -> 0 | F34: =F18-SUM('BF20 2018'!P26:T26)-'BF20 2018'!V26-'BF20 2018'!W26 -> 26 | H34: =H8+H18-'BF20 2018'!X17-'BF20 2018'!X26 -> -2 | I34: =I8+I18-'BF20 2018'!Z17-'BF20 2018'!Z26 -> 0 | L34: =L8+L18-'BF20 2018'!Y17-'BF20 2018'!Y26 -> 0 | M34: =M8+M18-'BF20 2018'!U17-'BF20 2018'!U26 -> -0.13 | N34: =N8+N20+N30+N31+N32-SUM('BF20 2018'!D17:M17)-SUM('BF20 2018'!D26:M26)-SUM('BF20 2018'!G14:M14)-'ENS Transport'!AX50 -> 10270.16 | O34: =O20+O30+O31+O32-'BF20 2018'!AB26 -> -1.06 | P34: =P18-'BF20 2018'!AC26 -> 1
C35: =C6-'BF20 2018'!N26-'BF20 2018'!N17 -> 543 | F35: =F8-SUM('BF20 2018'!P17:T17)-'BF20 2018'!V17-'BF20 2018'!W17 -> 160 | O35: =AN9+AN10+AN11+AN12+O8+O16 -> 956.94 | P35: =AO9+AO10+AO13+AO14+AO15+P8+P16 -> -2638

Sheet 2015 (hidden)
B1: Forbrug | C1: Naturgas | D1: Kul | E1: Affald (ikke-bionedbrydeligt) | F1: Biobrændsler | G1: Ikke-brændsel VE | H1: Sol | I1: Vind | J1: Vand | K1: Geotermisk | L1: Varmepumpe - omgivelsesvarme | M1: Bioolie, biodiesel og bioethanol | N1: Olieprodukter | O1: El | P1: Fjernvarme | Q1: Overskudsvarme | R1: Energitjenester | S1: Total energiforbrug | T1: Brutto brændsel | U1: =#REF! ->  | X1: Faktor | Y1: Brutto produktion | Z1: Virkningsgrad | AA1: Produktion | AB1: Naturgas | AC1: Kul | AD1: Affald (ikke-bionedbrydeligt) | AE1: Biobrændsler | AF1: Ikke-brændsel VE | AG1: Sol | AH1: Vind | AI1: Vand | AJ1: Geotermisk | AK1: Varmepumpe - omgivelsesvarme | AL1: Bioolie, biodiesel og bioethanol | AM1: Olieprodukter | AN1: El | AO1: Fjernvarme | AP1: Nyttiggjort overskudsvarme | AQ1: Energitjenester | AR1: Total energiforbrug | AS1: Tab | AT1: CO2-udledning
A2: ID | B2: F | C2: FN | D2: FK | E2: FMA | F2: FVB | G2: FLVE | H2: FLVE1 | I2: FLVE2 | J2: FLVE3 | K2: FLVE4 | L2: FLVE5 | M2: FS | N2: FOO | O2: FE | P2: FF | Q2: FOV | R2: FWEN | S2: FTOTAL | T2: fbrbr | V2: ID | W2: ID Parent | X2: factor | Y2: pbrpr | Z2: pvrkg | AA2: P | AB2: PN | AC2: PK | AD2: PMA | AE2: PVB | AF2: PLVE | AG2: PLVE1 | AH2: PLVE2 | AI2: PLVE3 | AJ2: PLVE4 | AK2: PLVE5 | AL2: PS | AM2: POO | AN2: PE | AO2: PF | AP2: POV | AQ2: PWEN | AR2: PTOTAL | AS2: PTAB | AT2: PCO2
A3: ID Parent | C3: F | D3: F | E3: F | F3: F | G3: F | H3: FLVE | I3: FLVE | J3: FLVE | K3: FLVE | L3: FLVE | M3: F | N3: F | O3: F | P3: F | Q3: F | R3: F | S3: F | U3: Structures | AB3: P | AC3: P | AD3: P | AE3: P | AF3: P | AG3: PLVE | AH3: PLVE | AI3: PLVE | AJ3: PLVE | AK3: PLVE | AL3: P | AM3: P | AN3: P | AO3: P | AP3: P | AQ3: P | AR3: P
S5: 0 | T5: =SUM(C5:F5,G5,M5,N5,O5:Q5) -> 0 | U5: Indgang for brændsler (bio, kul mv.) | V5: TP | Y5: =SUM(AB5:AE5,AF5,AL5,AM5,AN5:AQ5) -> 330977 | AB5: =-C6 -> 96798 | AC5: =-D6 -> 76481 | AD5: =-E6 -> 17868 | AE5: =-F6 -> 139830 | AF5: =AG5+AH5+AI5+AJ5+AK5 -> 0
C6: =-AB6 -> -96798 | D6: =-AC6 -> -76481 | E6: =-AD6 -> -17868 | F6: =-AE6 -> -139830 | G6: =H6+I6+J6+K6+L6 -> 0 | S6: 0 | T6: -330977 | U6: Transport af brændsler | V6: TRAP | Y6: 330977 | AB6: =-1*(C8+C18) -> 96798 | AC6: =-1*(D8+D18) -> 76481 | AD6: =-1*(E8+E18) -> 17868 | AE6: =-1*(F8+F18) -> 139830 | AF6: 0
S7: 0 | T7: 0 | U7: Indgang nettilsluttet VE | V7: TLP1 | Y7: 54010 | AF7: 54010 | AG7: =H8*-1 -> 3131 | AH7: =I11*-1 -> 50879
C8: =SUM(C9:C11,C12:C15) -> -34440 | D8: =SUM(D9:D11,D12:D15) -> -71527 | E8: =SUM(E9:E11,E12:E15) -> -17062 | F8: =SUM(F9:F11,F12:F15) -> -84778 | G8: =H8+I8+J8+K8+L8 -> -54150 | H8: =SUM(H9:H11,H12:H15) -> -3131 | I8: -50879 | J8: 0 | K8: 0 | L8: -140 | M8: -636 | N8: -19749 | O8: -7077 | P8: -623 | Q8: 0 | R8: 0 | S8: 0 | T8: -290042 | U8: Indgang el, varme og olieprodukter | V8: TS | Y8: 494904.47 | AB8: =SUM(AB9:AB11,AB12:AB15) -> 0 | AC8: =SUM(AC9:AC11,AC12:AC15) -> 0 | AD8: =SUM(AD9:AD11,AD12:AD15) -> 0 | AF8: 0 | AG8: =SUM(AG9:AG11,AG12:AG15) -> 0 | AI8: =SUM(AI9:AI11,AI12:AI15) -> 0 | AJ8: =SUM(AJ9:AJ11,AJ12:AJ15) -> 0 | AK8: =SUM(AK9:AK11,AK12:AK15) -> 0 | AL8: =-M18 -> 8975.7 | AM8: =(N16+N8)*-1 -> 231091.57 | AN8: =(O16+O8)*-1 -> 124650.2 | AO8: =SUM(AO9:AO15) -> 130187 | AP8: =SUM(AP9:AP11,AP12:AP15) -> 0 | AQ8: =SUM(AQ9:AQ11,AQ12:AQ15) -> 0 | AR8: =SUM(AR9:AR11,AR12:AR15) -> 0 | AS8: =SUM(AS9:AS11,AS12:AS15) -> -250973 | AT8: =SUM(AT9:AT11,AT12:AT15) -> 11119.5108
G9: =H9+I9+J9+K9+L9 -> 0 | S9: 0 | T9: 0 | U9: Netto import/lager | V9: IMP | W9: TS | Y9: 30408.7 | AF9: 0 | AL9: =IF(AL15-AL8<0,(AL15-AL8)*-1,0) -> 8975.7 | AM9: =IF(AM8-AM15>0,AM8-AM15,0) -> 0 | AN9: =IF('BF20 2015'!AB7>0,'BF20 2015'!AB7,0) -> 21282 | AO9: =IF('BF20 2015'!AC7>0,'BF20 2015'!AC7,0) -> 151 | AT9: =AN9*Elproduktion!J10+AL9*PtX!J9/1000 -> 749.3298
C10: ='BF20 2015'!N18+'BF20 2015'!N20+'BF20 2015'!N22 -> -18213 | D10: ='BF20 2015'!C18+'BF20 2015'!C20+'BF20 2015'!C22 -> -71439 | E10: ='BF20 2015'!O18+'BF20 2015'!O20+'BF20 2015'!O22 -> -16837 | F10: =SUM('BF20 2015'!P18:T18)+SUM('BF20 2015'!V18:W18)+SUM('BF20 2015'!P20:T20)+SUM('BF20 2015'!V20:W20)+SUM('BF20 2015'!P22:T22)+SUM('BF20 2015'!V22:W22) -> -65564 | G10: 0 | M10: ='BF20 2015'!U18+'BF20 2015'!U20+'BF20 2015'!U22 -> -107 | N10: =SUM('BF20 2015'!E18:M18)+SUM('BF20 2015'!E20:M20)+SUM('BF20 2015'!E22:M22) -> -3529 | O10: ='BF20 2015'!AB24 -> -3670 | P10: ='BF20 2015'!AC24 -> -623 | S10: 0 | T10: -179982 | U10: El og varmeproduktion | V10: ELOGVARME | W10: TS | Y10: 140640 | AF10: 0 | AN10: ='BF20 2015'!AB18+'BF20 2015'!AB20+'BF20 2015'!AB22+'BF20 2015'!X22 -> 50997 | AO10: ='BF20 2015'!AC18+'BF20 2015'!AC20+'BF20 2015'!AC22+'BF20 2015'!X22 -> 89643 | AS10: =(Y10+T10)*-1 -> 39342 | AT10: =-(C10*Emissionsfaktorer!$B$5+D10*Emissionsfaktorer!$B$7+E10*Emissionsfaktorer!$B$8+N10*Emissionsfaktorer!$B$6)*(1-'CO2-rensning '!J4)+F10*Emissionsfaktorer!B10*'CO2-rensning '!J4 -> 9372.662
G11: -50879 | I11: ='BF20 2015'!Z19 -> -50879 | S11: 0 | T11: -50879 | U11: Vindmøller | V11: VIND | W11: TS | Y11: 50944 | AF11: 0 | AN11: ='BF20 2015'!AB19 -> 50944 | AS11: 0 | AT11: =-('2015'!C11*Emissionsfaktorer!$B$5+'2015'!D11*Emissionsfaktorer!$B$7+'2015'!E11*Emissionsfaktorer!$B$8+N11*Emissionsfaktorer!$B$6) -> 0
G12: -2175 | H12: ='BF20 2015'!X22 -> -2175 | S12: 0 | T12: -2175 | U12: Solceller | V12: SOLSTR | W12: TS | Y12: 2175 | AF12: =AG12+AH12+AI12+AJ12+AK12 -> 0 | AN12: ='BF20 2015'!X22*-1 -> 2175 | AS12: =(Y12+T12)*-1 -> 0 | AT12: =-('2015'!C12*Emissionsfaktorer!$B$5+'2015'!D12*Emissionsfaktorer!$B$7+'2015'!E12*Emissionsfaktorer!$B$8+N12*Emissionsfaktorer!$B$6) -> 0
C13: ='BF20 2015'!N21 -> -16227 | D13: ='BF20 2015'!C21 -> -88 | E13: ='BF20 2015'!O21 -> -225 | F13: =SUM('BF20 2015'!P21:T21)+'BF20 2015'!V21+'BF20 2015'!W21 -> -19214 | G13: 0 | M13: ='BF20 2015'!U21 -> -529 | N13: =SUM('BF20 2015'!F21:M21) -> -620 | O13: ='BF20 2015'!AB21 -> -1073 | S13: 0 | T13: -37976 | U13: Fjernvarmekedler | V13: KEDLER | W13: TS | Y13: 37066 | AF13: 0 | AO13: ='BF20 2015'!AC21+('BF20 2015'!Y21*(1+1/(Fjernvarmeproduktion!B24-1))+'BF20 2015'!X21) -> 37066 | AS13: =(Y13+T13)*-1 -> 910 | AT13: =-(C13*Emissionsfaktorer!$B$5+D13*Emissionsfaktorer!$B$7+E13*Emissionsfaktorer!$B$8+N13*Emissionsfaktorer!$B$6)*(1-'CO2-rensning '!J5)+'CO2-rensning '!J5*Emissionsfaktorer!B10*F13 -> 997.519
G14: -1096 | H14: ='BF20 2015'!X21 -> -956 | L14: ='BF20 2015'!Y21 -> -140 | O14: ='BF20 2015'!Y21/(Fjernvarmeproduktion!B24-1) -> -56 | S14: 0 | T14: -1152 | U14: Anden varmeproduktion | V14: ANDENV | W14: TS | Y14: 3327 | AF14: 0 | AO14: =('BF20 2015'!Y21*(1+1/(Fjernvarmeproduktion!B24-1))+'BF20 2015'!X21+'BF20 2015'!X22)*-1 -> 3327 | AS14: =(Y14+T14)*-1 -> -2175 | AT14: =-('2015'!C14*Emissionsfaktorer!$B$5+'2015'!D14*Emissionsfaktorer!$B$7+'2015'!E14*Emissionsfaktorer!$B$8+N14*Emissionsfaktorer!$B$6) -> 0
F15: ='BF20 2015'!AA16 -> 0 | G15: 0 | N15: =SUM('BF20 2015'!G14:M14) -> -15600 | O15: ='BF20 2015'!AB16+'BF20 2015'!AB14+'BF20 2015'!AB14 -> -2278 | S15: 0 | T15: -17878 | U15: Raffinaderi og PtX | V15: RAF | W15: TS | Y15: 306928 | AF15: 0 | AL15: =PtX!J3 -> 0 | AM15: =SUM('BF20 2015'!F13:M13) -> 306928 | AO15: ='BF20 2015'!AC16 -> 0 | AS15: =(Y15+T15)*-1 -> -289050
N16: =AM16*-1 -> -211342.57 | O16: =-AN16+'BF20 2015'!AB25 -> -117573.2 | P16: =-AO16+'BF20 2015'!AC25 -> -133312 | S16: 0 | T16: -462227.77 | U16: Transport af el, fjernvarme, mv. | V16: TRAS | Y16: 429959.77 | AF16: 0 | AM16: =N18*-1 -> 211342.57 | AN16: =O18*-1 -> 111218.2 | AO16: =P18*-1 -> 107399 | AS16: =(Y16+T16)*-1 -> 32268
S17: 0 | T17: 0 | U17: Indgang ikke-nettilsluttet VE | V17: TLP2 | Y17: 8811 | AF17: 8811 | AG17: =H18*-1 -> 581 | AH17: =I18*-1 -> 0 | AI17: 0 | AJ17: 0 | AK17: 8230
C18: =C19+C20+C30+C31+C32 -> -62358 | D18: -4954 | E18: -806 | F18: -55052 | G18: -8811 | H18: -581 | J18: =J19+J20+J30+J31+J32 -> 0 | K18: =K19+K20+K30+K31+K32 -> 0 | L18: =L19+L20+L30+L31+L32 -> -8230 | M18: =M20+M30+M31+M32 -> -8975.7 | N18: =N20+N30+N31+N32 -> -211342.57 | O18: =O20+O30+O31+O32 -> -111218.2 | P18: =P19+P20+P30+P31+P32 -> -107399 | Q18: =Q19+Q20+Q30+Q31+Q32 -> 0 | R18: =R19+R20+R30+R31+R32 -> 0 | S18: 0 | T18: -570916.47 | U18: Afgang fra energisystemet | V18: A | Y18: 450304.041 | AB18: =SUM(AB19:AB20,AB30,AB31,AB32) -> 0 | AC18: 0 | AD18: 0 | AE18: 0 | AF18: 0 | AG18: 0 | AH18: 0 | AI18: 0 | AJ18: 0 | AK18: 0 | AL18: 0 | AM18: 0 | AN18: 0 | AO18: 0 | AP18: 0 | AQ18: 450304.041 | AR18: 0 | AS18: 196448.859 | AT18: 20148.32732
G19: =H19+I19+J19+K19+L19 -> 0 | M19: =IF(M20+M30+M31+M32+AL15>0,(M20+M30+M31+M32+AL15)*-1,0) -> 0 | N19: =IF(AM8-AM15<0,AM8-AM15,0) -> -75836.43 | O19: =IF('BF20 2015'!AB7<0,'BF20 2015'!AB7,0) -> 0 | P19: =IF('BF20 2015'!AC7<0,'BF20 2015'!AC7,0) -> 0 | S19: 0 | T19: -75836.43 | U19: Netto eksport/lager | V19: AES | W19: A | Y19: 0 | AF19: =AG19+AH19+AI19+AJ19+AK19 -> 0 | AS19: =(Y19+T19)*-1 -> 75836.43 | AT19: =O19*Elproduktion!J10+M19*PtX!J9/1000 -> 0
C20: =C21+SUM(C26:C29) -> -76 | D20: =D21+SUM(D26:D29) -> 0 | E20: 0 | F20: 0 | G20: 0 | H20: 0 | I20: 0 | J20: 0 | K20: 0 | L20: 0 | M20: -8968.7 | N20: -161829.57 | O20: -1429.2 | P20: 0 | Q20: 0 | R20: 0 | S20: 0 | T20: -172303.47 | U20: Transport | V20: AT | W20: A | Y20: 51691.041 | Z20: 0.3 | AB20: =AB21+SUM(AB26:AB29) -> 0 | AC20: 0 | AD20: 0 | AE20: 0 | AF20: 0 | AG20: 0 | AH20: 0 | AI20: 0 | AJ20: 0 | AK20: 0 | AL20: 0 | AM20: 0 | AN20: 0 | AO20: 0 | AP20: 0 | AQ20: 51691.041 | AR20: 0 | AS20: 120612.429 | AT20: =-('2015'!C20*Emissionsfaktorer!$B$5+'2015'!D20*Emissionsfaktorer!$B$7+'2015'!E20*Emissionsfaktorer!$B$8+N20*Emissionsfaktorer!$B$6) -> 12303.37932
C21: ='BF20 2015'!N28 -> -76 | G21: =SUM(G22:G25) -> 0 | M21: =('ENS Transport'!AU28+'ENS Transport'!AU29)*-1 -> -8968.7 | N21: =SUM('ENS Transport'!AU21:AU24)*-1 -> -150199.96 | S21: 0 | T21: -159244.66 | U21: Vejtrafik | V21: ATV | W21: AT | Y21: 47773.398 | Z21: 0.3 | AB21: =SUM(AB22:AB25) -> 0 | AC21: =SUM(AC22:AC25) -> 0 | AD21: =SUM(AD22:AD25) -> 0 | AE21: =SUM(AE22:AE25) -> 0 | AF21: 0 | AG21: =SUM(AG22:AG25) -> 0 | AH21: 0 | AI21: 0 | AJ21: 0 | AK21: 0 | AL21: 0 | AN21: =SUM(AN22:AN25) -> 0 | AO21: =SUM(AO22:AO25) -> 0 | AP21: =SUM(AP22:AP25) -> 0 | AQ21: =T21*Z21*-1 -> 47773.398 | AR21: =SUM(AR22:AR25) -> 0 | AS21: 111471.262 | AT21: =-('2015'!C21*Emissionsfaktorer!$B$5+'2015'!D21*Emissionsfaktorer!$B$7+'2015'!E21*Emissionsfaktorer!$B$8+N21*Emissionsfaktorer!$B$6) -> 11419.52896
G22: =SUM(H22:L22) -> 0 | S22: 0 | T22: 0 | U22: Personbil | V22: PERSON | W22: ATV | Y22: 0 | Z22: 0.3 | AF22: 0 | AQ22: 0 | AS22: 0 | AT22: =-('2015'!C22*Emissionsfaktorer!$B$5+'2015'!D22*Emissionsfaktorer!$B$7+'2015'!E22*Emissionsfaktorer!$B$8+N22*Emissionsfaktorer!$B$6) -> 0
G23: =SUM(H23:L23) -> 0 | S23: 0 | T23: 0 | U23: Lastbil | V23: LAST | W23: ATV | Y23: 0 | Z23: 0.3 | AF23: 0 | AQ23: 0 | AS23: 0 | AT23: =-('2015'!C23*Emissionsfaktorer!$B$5+'2015'!D23*Emissionsfaktorer!$B$7+'2015'!E23*Emissionsfaktorer!$B$8+N23*Emissionsfaktorer!$B$6) -> 0
G24: 0 | S24: 0 | T24: 0 | U24: Varebil | V24: VARE | W24: ATV | Y24: 0 | Z24: 0.3 | AF24: 0 | AQ24: 0 | AS24: 0 | AT24: =-('2015'!C24*Emissionsfaktorer!$B$5+'2015'!D24*Emissionsfaktorer!$B$7+'2015'!E24*Emissionsfaktorer!$B$8+N24*Emissionsfaktorer!$B$6) -> 0
G25: 0 | S25: 0 | T25: 0 | U25: Bus | V25: BUS | W25: ATV | Y25: 0 | Z25: 0.3 | AF25: 0 | AQ25: 0 | AS25: 0 | AT25: =-('2015'!C25*Emissionsfaktorer!$B$5+'2015'!D25*Emissionsfaktorer!$B$7+'2015'!E25*Emissionsfaktorer!$B$8+N25*Emissionsfaktorer!$B$6) -> 0
G26: =SUM(H26:L26) -> 0 | N26: =SUM('ENS Transport'!AU32:AU34)*-1 -> -3355.5 | O26: ='ENS Transport'!AU35*-1 -> -1429.2 | S26: 0 | T26: -4784.7 | U26: Tog | V26: ATT | W26: AT | Y26: 1435.41 | Z26: 0.3 | AB26: 0 | AC26: 0 | AD26: 0 | AE26: 0 | AF26: 0 | AG26: 0 | AH26: 0 | AI26: 0 | AJ26: 0 | AK26: 0 | AL26: 0 | AM26: 0 | AN26: 0 | AO26: 0 | AP26: 0 | AQ26: 1435.41 | AR26: 0 | AS26: 3349.29 | AT26: =-('2015'!C26*Emissionsfaktorer!$B$5+'2015'!D26*Emissionsfaktorer!$B$7+'2015'!E26*Emissionsfaktorer!$B$8+N26*Emissionsfaktorer!$B$6) -> 255.018
G27: =SUM(H27:L27) -> 0 | N27: =SUM('ENS Transport'!AU44:AU48)*-1 -> -1284.68 | S27: 0 | T27: -1284.68 | U27: Fly (indenrigs) | V27: ATF | W27: AT | Y27: 385.404 | Z27: 0.3 | AB27: 0 | AC27: 0 | AD27: 0 | AE27: 0 | AF27: 0 | AG27: 0 | AH27: 0 | AI27: 0 | AJ27: 0 | AK27: 0 | AL27: 0 | AM27: 0 | AN27: 0 | AO27: 0 | AP27: 0 | AQ27: 385.404 | AR27: 0 | AS27: 899.276 | AT27: =-('2015'!C27*Emissionsfaktorer!$B$5+'2015'!D27*Emissionsfaktorer!$B$7+'2015'!E27*Emissionsfaktorer!$B$8+N27*Emissionsfaktorer!$B$6) -> 97.63568
G28: 0 | N28: =SUM('ENS Transport'!AU38:AU41)*-1 -> -5639.71 | S28: 0 | T28: -5639.71 | U28: Søtransport | V28: ATFÆRGE | W28: AT | Y28: 1691.913 | Z28: 0.3 | AF28: 0 | AQ28: 1691.913 | AS28: 3947.797 | AT28: =-('2015'!C28*Emissionsfaktorer!$B$5+'2015'!D28*Emissionsfaktorer!$B$7+'2015'!E28*Emissionsfaktorer!$B$8+N28*Emissionsfaktorer!$B$6) -> 428.61796
G29: 0 | N29: =SUM('ENS Transport'!AU55:AU59)*-1 -> -1349.72 | S29: 0 | T29: -1349.72 | U29: Forsvaret | V29: ATNONR | W29: AT | Y29: 404.916 | Z29: 0.3 | AB29: 0 | AC29: 0 | AD29: 0 | AE29: 0 | AF29: 0 | AG29: 0 | AH29: 0 | AI29: 0 | AJ29: 0 | AK29: 0 | AL29: 0 | AM29: 0 | AN29: 0 | AO29: 0 | AP29: 0 | AQ29: 404.916 | AR29: 0 | AS29: 944.804 | AT29: =-('2015'!C29*Emissionsfaktorer!$B$5+'2015'!D29*Emissionsfaktorer!$B$7+'2015'!E29*Emissionsfaktorer!$B$8+N29*Emissionsfaktorer!$B$6) -> 102.57872
C30: ='BF20 2015'!N34 -> -25497 | D30: ='BF20 2015'!C34 -> 0 | E30: ='BF20 2015'!O34 -> 0 | F30: =SUM('BF20 2015'!P34:T34)+'BF20 2015'!V34+'BF20 2015'!W34 -> -42468 | G30: =H30+I30+J30+K30+L30 -> -6247 | H30: ='BF20 2015'!X34 -> -494 | L30: ='BF20 2015'!Y34 -> -5753 | M30: ='BF20 2015'!U34 -> -7 | N30: =SUM('BF20 2015'!D34:M34) -> -11105 | O30: ='BF20 2015'!AB34 -> -36855 | P30: ='BF20 2015'!AC34 -> -70644 | S30: 0 | T30: -192823 | U30: Husholdninger | V30: AH | W30: A | Y30: 192823 | Z30: 1 | AQ30: =T30/Z30*-1 -> 192823 | AS30: 0 | AT30: =-('2015'!C30*Emissionsfaktorer!$B$5+'2015'!D30*Emissionsfaktorer!$B$7+'2015'!E30*Emissionsfaktorer!$B$8+N30*Emissionsfaktorer!$B$6) -> 2297.309
C31: ='BF20 2015'!N33 -> -2483 | D31: ='BF20 2015'!C33 -> 0 | E31: ='BF20 2015'!O33 -> 0 | F31: =SUM('BF20 2015'!P33:T33)+'BF20 2015'!V33+'BF20 2015'!W33 -> -1324 | G31: -87 | H31: ='BF20 2015'!X33 -> -87 | L31: ='BF20 2015'!Y33 -> 0 | M31: ='BF20 2015'!U33 -> 0 | N31: =SUM('BF20 2015'!D33:M33) -> -1360 | O31: ='BF20 2015'!AB33 -> -8555 | P31: ='BF20 2015'!AC33 -> -10698 | S31: 0 | T31: -24507 | U31: Offentlig | V31: AO | W31: A | Y31: 24507 | Z31: 1 | AQ31: =T31/Z31*-1 -> 24507 | AS31: 0 | AT31: =-('2015'!C31*Emissionsfaktorer!$B$5+'2015'!D31*Emissionsfaktorer!$B$7+'2015'!E31*Emissionsfaktorer!$B$8+N31*Emissionsfaktorer!$B$6) -> 244.891
C32: =SUM('BF20 2015'!N29:N32) -> -34302 | D32: =SUM('BF20 2015'!C29:C32) -> -4954 | E32: =SUM('BF20 2015'!O29:O32) -> -806 | F32: =SUM('BF20 2015'!P29:T32)+SUM('BF20 2015'!V29:W32) -> -11260 | G32: -2477 | H32: =SUM('BF20 2015'!X29:X32) -> 0 | I32: =SUM('BF20 2015'!Z29:Z32) -> 0 | L32: =SUM('BF20 2015'!Y29:Y32) -> -2477 | M32: =SUM('BF20 2015'!U29:U32) -> 0 | N32: =SUM('BF20 2015'!E29:M32) -> -37048 | O32: =SUM('BF20 2015'!AB29:AB32) -> -64379 | P32: =SUM('BF20 2015'!AC29:AC32) -> -26057 | S32: 0 | T32: -181283 | U32: Erhverv | V32: AE | W32: A | Y32: 181283 | Z32: 1 | AQ32: =T32/Z32*-1 -> 181283 | AS32: 0 | AT32: =-('2015'!C32*Emissionsfaktorer!$B$5+'2015'!D32*Emissionsfaktorer!$B$7+'2015'!E32*Emissionsfaktorer!$B$8+N32*Emissionsfaktorer!$B$6) -> 5302.748
U33: Energitjenester | V33: EN
C34: =C18-'BF20 2015'!N26 -> 0 | D34: =D6-'BF20 2015'!C17-'BF20 2015'!C26 -> 0 | E34: =E6-'BF20 2015'!O17-'BF20 2015'!O26 -> -1 | F34: =F18-SUM('BF20 2015'!P26:T26)-'BF20 2015'!V26-'BF20 2015'!W26 -> 2 | H34: =H8+H18-'BF20 2015'!X17-'BF20 2015'!X26 -> 1 | I34: =I8+I18-'BF20 2015'!Z17-'BF20 2015'!Z26 -> 0 | L34: =L8+L18-'BF20 2015'!Y17-'BF20 2015'!Y26 -> 0 | M34: =M8+M18-'BF20 2015'!U17-'BF20 2015'!U26 -> 0.3 | N34: =N8+N20+N30+N31+N32-SUM('BF20 2015'!D17:M17)-SUM('BF20 2015'!D26:M26)-SUM('BF20 2015'!G14:M14)-'ENS Transport'!AX50 -> 4559.55 | O34: =O20+O30+O31+O32-'BF20 2015'!AB26 -> -0.2 | P34: =P18-'BF20 2015'!AC26 -> -1
C35: =C6-'BF20 2015'!N26-'BF20 2015'!N17 -> 600 | F35: =F8-SUM('BF20 2015'!P17:T17)-'BF20 2015'!V17-'BF20 2015'!W17 -> 104 | O35: =AN9+AN10+AN11+AN12+O8+O16 -> 747.8 | P35: =AO9+AO10+AO13+AO14+AO15+P8+P16 -> -3748
H38: =(('2015'!$K$32+'2015'!$L$32)/(Fjernvarmeproduktion!F$24-1)+'2015'!$O$32*(1-Elapparater!F18))/('2015'!$C$32+'2015'!$D$32+'2015'!$E$32+'2015'!$F$32+'2015'!$H$32+'2015'!$M$32+'2015'!$N$32+'2015'!$O$32*(1-Elapparater!F$18)) -> 0.3752970548

Sheet 2010 (hidden)
B1: Forbrug | C1: Naturgas | D1: Kul | E1: Affald (ikke-bionedbrydeligt) | F1: Biobrændsler | G1: Ikke-brændsel VE | H1: Sol | I1: Vind | J1: Vand | K1: Geotermisk | L1: Varmepumpe - omgivelsesvarme | M1: Bioolie, biodiesel og bioethanol | N1: Olieprodukter | O1: El | P1: Fjernvarme | Q1: Overskudsvarme | R1: Energitjenester | S1: Total energiforbrug | T1: Brutto brændsel | U1: =#REF! ->  | X1: Faktor | Y1: Brutto produktion | Z1: Virkningsgrad | AA1: Produktion | AB1: Naturgas | AC1: Kul | AD1: Affald (ikke-bionedbrydeligt) | AE1: Biobrændsler | AF1: Ikke-brændsel VE | AG1: Sol | AH1: Vind | AI1: Vand | AJ1: Geotermisk | AK1: Varmepumpe - omgivelsesvarme | AL1: Bioolie, biodiesel og bioethanol | AM1: Olieprodukter | AN1: El | AO1: Fjernvarme | AP1: Nyttiggjort overskudsvarme | AQ1: Energitjenester | AR1: Total energiforbrug | AS1: Tab | AT1: CO2-udledning
A2: ID | B2: F | C2: FN | D2: FK | E2: FMA | F2: FVB | G2: FLVE | H2: FLVE1 | I2: FLVE2 | J2: FLVE3 | K2: FLVE4 | L2: FLVE5 | M2: FS | N2: FOO | O2: FE | P2: FF | Q2: FOV | R2: FWEN | S2: FTOTAL | T2: fbrbr | V2: ID | W2: ID Parent | X2: factor | Y2: pbrpr | Z2: pvrkg | AA2: P | AB2: PN | AC2: PK | AD2: PMA | AE2: PVB | AF2: PLVE | AG2: PLVE1 | AH2: PLVE2 | AI2: PLVE3 | AJ2: PLVE4 | AK2: PLVE5 | AL2: PS | AM2: POO | AN2: PE | AO2: PF | AP2: POV | AQ2: PWEN | AR2: PTOTAL | AS2: PTAB | AT2: PCO2
A3: ID Parent | C3: F | D3: F | E3: F | F3: F | G3: F | H3: FLVE | I3: FLVE | J3: FLVE | K3: FLVE | L3: FLVE | M3: F | N3: F | O3: F | P3: F | Q3: F | R3: F | S3: F | U3: Structures | AB3: P | AC3: P | AD3: P | AE3: P | AF3: P | AG3: PLVE | AH3: PLVE | AI3: PLVE | AJ3: PLVE | AK3: PLVE | AL3: P | AM3: P | AN3: P | AO3: P | AP3: P | AQ3: P | AR3: P
S5: 0 | T5: =SUM(C5:F5,G5,M5,N5,O5:Q5) -> 0 | U5: Indgang for brændsler (bio, kul mv.) | V5: TP | Y5: =SUM(AB5:AE5,AF5,AL5,AM5,AN5:AQ5) -> 459521 | AB5: =-C6 -> 153375 | AC5: =-D6 -> 163586 | AD5: =-E6 -> 17129 | AE5: =-F6 -> 125431 | AF5: =AG5+AH5+AI5+AJ5+AK5 -> 0
C6: =-AB6 -> -153375 | D6: =-AC6 -> -163586 | E6: =-AD6 -> -17129 | F6: =-AE6 -> -125431 | G6: =H6+I6+J6+K6+L6 -> 0 | S6: 0 | T6: -459521 | U6: Transport af brændsler | V6: TRAP | Y6: 459521 | AB6: =-1*(C8+C18) -> 153375 | AC6: =-1*(D8+D18) -> 163586 | AD6: =-1*(E8+E18) -> 17129 | AE6: =-1*(F8+F18) -> 125431 | AF6: 0
S7: 0 | T7: 0 | U7: Indgang nettilsluttet VE | V7: TLP1 | Y7: 28279 | AF7: 28279 | AG7: =H8*-1 -> 165 | AH7: =I11*-1 -> 28114
C8: =SUM(C9:C11,C12:C15) -> -85683 | D8: =SUM(D9:D11,D12:D15) -> -157959 | E8: =SUM(E9:E11,E12:E15) -> -16207 | F8: =SUM(F9:F11,F12:F15) -> -78739 | G8: =H8+I8+J8+K8+L8 -> -28491 | H8: =SUM(H9:H11,H12:H15) -> -165 | I8: -28114 | J8: 0 | K8: 0 | L8: -212 | M8: -1949 | N8: -25193 | O8: -9693.8 | P8: -1207 | Q8: 0 | R8: 0 | S8: 0 | T8: -405121.8 | U8: Indgang el, varme og olieprodukter | V8: TS | Y8: 549153.95 | AB8: =SUM(AB9:AB11,AB12:AB15) -> 0 | AC8: =SUM(AC9:AC11,AC12:AC15) -> 0 | AD8: =SUM(AD9:AD11,AD12:AD15) -> 0 | AF8: 0 | AG8: =SUM(AG9:AG11,AG12:AG15) -> 0 | AI8: =SUM(AI9:AI11,AI12:AI15) -> 0 | AJ8: =SUM(AJ9:AJ11,AJ12:AJ15) -> 0 | AK8: =SUM(AK9:AK11,AK12:AK15) -> 0 | AL8: =-M18 -> 1156 | AM8: =(N16+N8)*-1 -> 263930.03 | AN8: =(O16+O8)*-1 -> 133829.92 | AO8: =SUM(AO9:AO15) -> 150238 | AP8: =SUM(AP9:AP11,AP12:AP15) -> 0 | AQ8: =SUM(AQ9:AQ11,AQ12:AQ15) -> 0 | AR8: =SUM(AR9:AR11,AR12:AR15) -> 0 | AS8: =SUM(AS9:AS11,AS12:AS15) -> -185661.2 | AT8: =SUM(AT9:AT11,AT12:AT15) -> 22168.028
G9: =H9+I9+J9+K9+L9 -> 0 | S9: 0 | T9: 0 | U9: Netto import/lager | V9: IMP | W9: TS | Y9: 1330 | AF9: 0 | AL9: =IF(AL15-AL8<0,(AL15-AL8)*-1,0) -> 1156 | AM9: =IF(AM8-AM15>0,AM8-AM15,0) -> 0 | AN9: =IF('BF20 2010'!AB7>0,'BF20 2010'!AB7,0) -> 0 | AO9: =IF('BF20 2010'!AC7>0,'BF20 2010'!AC7,0) -> 174 | AT9: =AN9*Elproduktion!J10+AL9*PtX!J9/1000 -> 85.544
C10: ='BF20 2010'!N18+'BF20 2010'!N20+'BF20 2010'!N22 -> -76160 | D10: ='BF20 2010'!C18+'BF20 2010'!C20+'BF20 2010'!C22 -> -157825 | E10: ='BF20 2010'!O18+'BF20 2010'!O20+'BF20 2010'!O22 -> -15988 | F10: =SUM('BF20 2010'!P18:T18)+SUM('BF20 2010'!V18:W18)+SUM('BF20 2010'!P20:T20)+SUM('BF20 2010'!V20:W20)+SUM('BF20 2010'!P22:T22)+SUM('BF20 2010'!V22:W22) -> -63922 | G10: 0 | M10: ='BF20 2010'!U18+'BF20 2010'!U20+'BF20 2010'!U22 -> 0 | N10: =SUM('BF20 2010'!E18:M18)+SUM('BF20 2010'!E20:M20)+SUM('BF20 2010'!E22:M22) -> -9403 | O10: ='BF20 2010'!AB24 -> -7159 | P10: ='BF20 2010'!AC24 -> -1207 | S10: 0 | T10: -331664 | U10: El og varmeproduktion | V10: ELOGVARME | W10: TS | Y10: 232882 | AF10: 0 | AN10: ='BF20 2010'!AB18+'BF20 2010'!AB20+'BF20 2010'!AB22+'BF20 2010'!X22 -> 111656 | AO10: ='BF20 2010'!AC18+'BF20 2010'!AC20+'BF20 2010'!AC22+'BF20 2010'!X22 -> 121226 | AS10: =(Y10+T10)*-1 -> 98782 | AT10: =-(C10*Emissionsfaktorer!$B$5+D10*Emissionsfaktorer!$B$7+E10*Emissionsfaktorer!$B$8+N10*Emissionsfaktorer!$B$6)*(1-'CO2-rensning '!J4)+F10*Emissionsfaktorer!B10*'CO2-rensning '!J4 -> 21264.211
G11: -28114 | I11: ='BF20 2010'!Z19 -> -28114 | S11: 0 | T11: -28114 | U11: Vindmøller | V11: VIND | W11: TS | Y11: 28188 | AF11: 0 | AN11: ='BF20 2010'!AB19 -> 28188 | AS11: 0 | AT11: =-('2010'!C11*Emissionsfaktorer!$B$5+'2010'!D11*Emissionsfaktorer!$B$7+'2010'!E11*Emissionsfaktorer!$B$8+N11*Emissionsfaktorer!$B$6) -> 0
G12: -22 | H12: ='BF20 2010'!X22 -> -22 | S12: 0 | T12: -22 | U12: Solceller | V12: SOLSTR | W12: TS | Y12: 22 | AF12: =AG12+AH12+AI12+AJ12+AK12 -> 0 | AN12: ='BF20 2010'!X22*-1 -> 22 | AS12: =(Y12+T12)*-1 -> 0 | AT12: =-('2010'!C12*Emissionsfaktorer!$B$5+'2010'!D12*Emissionsfaktorer!$B$7+'2010'!E12*Emissionsfaktorer!$B$8+N12*Emissionsfaktorer!$B$6) -> 0
C13: ='BF20 2010'!N21 -> -9523 | D13: ='BF20 2010'!C21 -> -134 | E13: ='BF20 2010'!O21 -> -219 | F13: =SUM('BF20 2010'!P21:T21)+'BF20 2010'!V21+'BF20 2010'!W21 -> -14817 | G13: 0 | M13: ='BF20 2010'!U21 -> -1949 | N13: =SUM('BF20 2010'!F21:M21) -> -3238 | O13: ='BF20 2010'!AB21 -> -110 | S13: 0 | T13: -29990 | U13: Fjernvarmekedler | V13: KEDLER | W13: TS | Y13: 28376.2 | AF13: 0 | AO13: ='BF20 2010'!AC21+('BF20 2010'!Y21*(1+1/(Fjernvarmeproduktion!B24-1))+'BF20 2010'!X21) -> 28376.2 | AS13: =(Y13+T13)*-1 -> 1613.8 | AT13: =-(C13*Emissionsfaktorer!$B$5+D13*Emissionsfaktorer!$B$7+E13*Emissionsfaktorer!$B$8+N13*Emissionsfaktorer!$B$6)*(1-'CO2-rensning '!J5)+'CO2-rensning '!J5*Emissionsfaktorer!B10*F13 -> 818.273
G14: -355 | H14: ='BF20 2010'!X21 -> -143 | L14: ='BF20 2010'!Y21 -> -212 | O14: ='BF20 2010'!Y21/(Fjernvarmeproduktion!B24-1) -> -84.8 | S14: 0 | T14: -439.8 | U14: Anden varmeproduktion | V14: ANDENV | W14: TS | Y14: 461.8 | AF14: 0 | AO14: =('BF20 2010'!Y21*(1+1/(Fjernvarmeproduktion!B24-1))+'BF20 2010'!X21+'BF20 2010'!X22)*-1 -> 461.8 | AS14: =(Y14+T14)*-1 -> -22 | AT14: =-('2010'!C14*Emissionsfaktorer!$B$5+'2010'!D14*Emissionsfaktorer!$B$7+'2010'!E14*Emissionsfaktorer!$B$8+N14*Emissionsfaktorer!$B$6) -> 0
F15: ='BF20 2010'!AA16 -> 0 | G15: 0 | N15: =SUM('BF20 2010'!G14:M14) -> -12552 | O15: ='BF20 2010'!AB16+'BF20 2010'!AB14+'BF20 2010'!AB14 -> -2340 | S15: 0 | T15: -14892 | U15: Raffinaderi og PtX | V15: RAF | W15: TS | Y15: 300927 | AF15: 0 | AL15: =PtX!J3 -> 0 | AM15: =SUM('BF20 2010'!F13:M13) -> 300927 | AO15: ='BF20 2010'!AC16 -> 0 | AS15: =(Y15+T15)*-1 -> -286035
N16: =AM16*-1 -> -238737.03 | O16: =-AN16+'BF20 2010'!AB25 -> -124136.12 | P16: =-AO16+'BF20 2010'!AC25 -> -136597 | S16: 0 | T16: -499470.15 | U16: Transport af el, fjernvarme, mv. | V16: TRAS | Y16: 460155.15 | AF16: 0 | AM16: =N18*-1 -> 238737.03 | AN16: =O18*-1 -> 114693.12 | AO16: =P18*-1 -> 106725 | AS16: =(Y16+T16)*-1 -> 39315
S17: 0 | T17: 0 | U17: Indgang ikke-nettilsluttet VE | V17: TLP2 | Y17: 5743 | AF17: 5743 | AG17: =H18*-1 -> 493 | AH17: =I18*-1 -> 0 | AI17: 0 | AJ17: 0 | AK17: 5250
C18: =C19+C20+C30+C31+C32 -> -67692 | D18: -5627 | E18: -922 | F18: -46692 | G18: -5743 | H18: -493 | J18: =J19+J20+J30+J31+J32 -> 0 | K18: =K19+K20+K30+K31+K32 -> 0 | L18: =L19+L20+L30+L31+L32 -> -5250 | M18: =M20+M30+M31+M32 -> -1156 | N18: =N20+N30+N31+N32 -> -238737.03 | O18: =O20+O30+O31+O32 -> -114693.12 | P18: =P19+P20+P30+P31+P32 -> -106725 | Q18: =Q19+Q20+Q30+Q31+Q32 -> 0 | R18: =R19+R20+R30+R31+R32 -> 0 | S18: 0 | T18: -587987.15 | U18: Afgang fra energisystemet | V18: A | Y18: 464955.745 | AB18: =SUM(AB19:AB20,AB30,AB31,AB32) -> 0 | AC18: 0 | AD18: 0 | AE18: 0 | AF18: 0 | AG18: 0 | AH18: 0 | AI18: 0 | AJ18: 0 | AK18: 0 | AL18: 0 | AM18: 0 | AN18: 0 | AO18: 0 | AP18: 0 | AQ18: 464955.745 | AR18: 0 | AS18: 164114.375 | AT18: 22590.75128
G19: =H19+I19+J19+K19+L19 -> 0 | M19: =IF(M20+M30+M31+M32+AL15>0,(M20+M30+M31+M32+AL15)*-1,0) -> 0 | N19: =IF(AM8-AM15<0,AM8-AM15,0) -> -36996.97 | O19: =IF('BF20 2010'!AB7<0,'BF20 2010'!AB7,0) -> -4086 | P19: =IF('BF20 2010'!AC7<0,'BF20 2010'!AC7,0) -> 0 | S19: 0 | T19: -41082.97 | U19: Netto eksport/lager | V19: AES | W19: A | Y19: 0 | AF19: =AG19+AH19+AI19+AJ19+AK19 -> 0 | AS19: =(Y19+T19)*-1 -> 41082.97 | AT19: =O19*Elproduktion!J10+M19*PtX!J9/1000 -> -16.344
C20: =C21+SUM(C26:C29) -> 0 | D20: =D21+SUM(D26:D29) -> 0 | E20: 0 | F20: 0 | G20: 0 | H20: 0 | I20: 0 | J20: 0 | K20: 0 | L20: 0 | M20: -1134 | N20: -173170.03 | O20: -1455.12 | P20: 0 | Q20: 0 | R20: 0 | S20: 0 | T20: -175759.15 | U20: Transport | V20: AT | W20: A | Y20: 52727.745 | Z20: 0.3 | AB20: =AB21+SUM(AB26:AB29) -> 0 | AC20: 0 | AD20: 0 | AE20: 0 | AF20: 0 | AG20: 0 | AH20: 0 | AI20: 0 | AJ20: 0 | AK20: 0 | AL20: 0 | AM20: 0 | AN20: 0 | AO20: 0 | AP20: 0 | AQ20: 52727.745 | AR20: 0 | AS20: 123031.405 | AT20: =-('2010'!C20*Emissionsfaktorer!$B$5+'2010'!D20*Emissionsfaktorer!$B$7+'2010'!E20*Emissionsfaktorer!$B$8+N20*Emissionsfaktorer!$B$6) -> 13160.92228
C21: ='BF20 2010'!N28 -> 0 | G21: =SUM(G22:G25) -> 0 | M21: =('ENS Transport'!AP28+'ENS Transport'!AP29)*-1 -> -1134 | N21: =SUM('ENS Transport'!AP21:AP24)*-1 -> -160081.25 | S21: 0 | T21: -161215.25 | U21: Vejtrafik | V21: ATV | W21: AT | Y21: 48364.575 | Z21: 0.3 | AB21: =SUM(AB22:AB25) -> 0 | AC21: =SUM(AC22:AC25) -> 0 | AD21: =SUM(AD22:AD25) -> 0 | AE21: =SUM(AE22:AE25) -> 0 | AF21: 0 | AG21: =SUM(AG22:AG25) -> 0 | AH21: 0 | AI21: 0 | AJ21: 0 | AK21: 0 | AL21: 0 | AN21: =SUM(AN22:AN25) -> 0 | AO21: =SUM(AO22:AO25) -> 0 | AP21: =SUM(AP22:AP25) -> 0 | AQ21: =T21*Z21*-1 -> 48364.575 | AR21: =SUM(AR22:AR25) -> 0 | AS21: 112850.675 | AT21: =-('2010'!C21*Emissionsfaktorer!$B$5+'2010'!D21*Emissionsfaktorer!$B$7+'2010'!E21*Emissionsfaktorer!$B$8+N21*Emissionsfaktorer!$B$6) -> 12166.175
G22: =SUM(H22:L22) -> 0 | S22: 0 | T22: 0 | U22: Personbil | V22: PERSON | W22: ATV | Y22: 0 | Z22: 0.3 | AF22: 0 | AQ22: 0 | AS22: 0 | AT22: =-('2010'!C22*Emissionsfaktorer!$B$5+'2010'!D22*Emissionsfaktorer!$B$7+'2010'!E22*Emissionsfaktorer!$B$8+N22*Emissionsfaktorer!$B$6) -> 0
G23: =SUM(H23:L23) -> 0 | S23: 0 | T23: 0 | U23: Lastbil | V23: LAST | W23: ATV | Y23: 0 | Z23: 0.3 | AF23: 0 | AQ23: 0 | AS23: 0 | AT23: =-('2010'!C23*Emissionsfaktorer!$B$5+'2010'!D23*Emissionsfaktorer!$B$7+'2010'!E23*Emissionsfaktorer!$B$8+N23*Emissionsfaktorer!$B$6) -> 0
G24: 0 | S24: 0 | T24: 0 | U24: Varebil | V24: VARE | W24: ATV | Y24: 0 | Z24: 0.3 | AF24: 0 | AQ24: 0 | AS24: 0 | AT24: =-('2010'!C24*Emissionsfaktorer!$B$5+'2010'!D24*Emissionsfaktorer!$B$7+'2010'!E24*Emissionsfaktorer!$B$8+N24*Emissionsfaktorer!$B$6) -> 0
G25: 0 | S25: 0 | T25: 0 | U25: Bus | V25: BUS | W25: ATV | Y25: 0 | Z25: 0.3 | AF25: 0 | AQ25: 0 | AS25: 0 | AT25: =-('2010'!C25*Emissionsfaktorer!$B$5+'2010'!D25*Emissionsfaktorer!$B$7+'2010'!E25*Emissionsfaktorer!$B$8+N25*Emissionsfaktorer!$B$6) -> 0
G26: =SUM(H26:L26) -> 0 | N26: =SUM('ENS Transport'!AP32:AP34)*-1 -> -3272.91 | O26: ='ENS Transport'!AP35*-1 -> -1455.12 | S26: 0 | T26: -4728.03 | U26: Tog | V26: ATT | W26: AT | Y26: 1418.409 | Z26: 0.3 | AB26: 0 | AC26: 0 | AD26: 0 | AE26: 0 | AF26: 0 | AG26: 0 | AH26: 0 | AI26: 0 | AJ26: 0 | AK26: 0 | AL26: 0 | AM26: 0 | AN26: 0 | AO26: 0 | AP26: 0 | AQ26: 1418.409 | AR26: 0 | AS26: 3309.621 | AT26: =-('2010'!C26*Emissionsfaktorer!$B$5+'2010'!D26*Emissionsfaktorer!$B$7+'2010'!E26*Emissionsfaktorer!$B$8+N26*Emissionsfaktorer!$B$6) -> 248.74116
G27: =SUM(H27:L27) -> 0 | N27: =SUM('ENS Transport'!AP44:AP48)*-1 -> -1812.79 | S27: 0 | T27: -1812.79 | U27: Fly (indenrigs) | V27: ATF | W27: AT | Y27: 543.837 | Z27: 0.3 | AB27: 0 | AC27: 0 | AD27: 0 | AE27: 0 | AF27: 0 | AG27: 0 | AH27: 0 | AI27: 0 | AJ27: 0 | AK27: 0 | AL27: 0 | AM27: 0 | AN27: 0 | AO27: 0 | AP27: 0 | AQ27: 543.837 | AR27: 0 | AS27: 1268.953 | AT27: =-('2010'!C27*Emissionsfaktorer!$B$5+'2010'!D27*Emissionsfaktorer!$B$7+'2010'!E27*Emissionsfaktorer!$B$8+N27*Emissionsfaktorer!$B$6) -> 137.77204
G28: 0 | N28: =SUM('ENS Transport'!AP38:AP41)*-1 -> -6533.05 | S28: 0 | T28: -6533.05 | U28: Søtransport | V28: ATFÆRGE | W28: AT | Y28: 1959.915 | Z28: 0.3 | AF28: 0 | AQ28: 1959.915 | AS28: 4573.135 | AT28: =-('2010'!C28*Emissionsfaktorer!$B$5+'2010'!D28*Emissionsfaktorer!$B$7+'2010'!E28*Emissionsfaktorer!$B$8+N28*Emissionsfaktorer!$B$6) -> 496.5118
G29: 0 | N29: =SUM('ENS Transport'!AP55:AP59)*-1 -> -1470.03 | S29: 0 | T29: -1470.03 | U29: Forsvaret | V29: ATNONR | W29: AT | Y29: 441.009 | Z29: 0.3 | AB29: 0 | AC29: 0 | AD29: 0 | AE29: 0 | AF29: 0 | AG29: 0 | AH29: 0 | AI29: 0 | AJ29: 0 | AK29: 0 | AL29: 0 | AM29: 0 | AN29: 0 | AO29: 0 | AP29: 0 | AQ29: 441.009 | AR29: 0 | AS29: 1029.021 | AT29: =-('2010'!C29*Emissionsfaktorer!$B$5+'2010'!D29*Emissionsfaktorer!$B$7+'2010'!E29*Emissionsfaktorer!$B$8+N29*Emissionsfaktorer!$B$6) -> 111.72228
C30: ='BF20 2010'!N34 -> -27761 | D30: ='BF20 2010'!C34 -> -28 | E30: ='BF20 2010'!O34 -> 0 | F30: =SUM('BF20 2010'!P34:T34)+'BF20 2010'!V34+'BF20 2010'!W34 -> -35639 | G30: =H30+I30+J30+K30+L30 -> -3783 | H30: ='BF20 2010'!X34 -> -419 | L30: ='BF20 2010'!Y34 -> -3364 | M30: ='BF20 2010'!U34 -> -22 | N30: =SUM('BF20 2010'!D34:M34) -> -18594 | O30: ='BF20 2010'!AB34 -> -36738 | P30: ='BF20 2010'!AC34 -> -68612 | S30: 0 | T30: -191177 | U30: Husholdninger | V30: AH | W30: A | Y30: 191177 | Z30: 1 | AQ30: =T30/Z30*-1 -> 191177 | AS30: 0 | AT30: =-('2010'!C30*Emissionsfaktorer!$B$5+'2010'!D30*Emissionsfaktorer!$B$7+'2010'!E30*Emissionsfaktorer!$B$8+N30*Emissionsfaktorer!$B$6) -> 2998.181
C31: ='BF20 2010'!N33 -> -2856 | D31: ='BF20 2010'!C33 -> 0 | E31: ='BF20 2010'!O33 -> 0 | F31: =SUM('BF20 2010'!P33:T33)+'BF20 2010'!V33+'BF20 2010'!W33 -> -876 | G31: -74 | H31: ='BF20 2010'!X33 -> -74 | L31: ='BF20 2010'!Y33 -> 0 | M31: ='BF20 2010'!U33 -> 0 | N31: =SUM('BF20 2010'!D33:M33) -> -1219 | O31: ='BF20 2010'!AB33 -> -9266 | P31: ='BF20 2010'!AC33 -> -10495 | S31: 0 | T31: -24786 | U31: Offentlig | V31: AO | W31: A | Y31: 24786 | Z31: 1 | AQ31: =T31/Z31*-1 -> 24786 | AS31: 0 | AT31: =-('2010'!C31*Emissionsfaktorer!$B$5+'2010'!D31*Emissionsfaktorer!$B$7+'2010'!E31*Emissionsfaktorer!$B$8+N31*Emissionsfaktorer!$B$6) -> 255.436
C32: =SUM('BF20 2010'!N29:N32) -> -37075 | D32: =SUM('BF20 2010'!C29:C32) -> -5599 | E32: =SUM('BF20 2010'!O29:O32) -> -922 | F32: =SUM('BF20 2010'!P29:T32)+SUM('BF20 2010'!V29:W32) -> -10177 | G32: -1886 | H32: =SUM('BF20 2010'!X29:X32) -> 0 | I32: =SUM('BF20 2010'!Z29:Z32) -> 0 | L32: =SUM('BF20 2010'!Y29:Y32) -> -1886 | M32: =SUM('BF20 2010'!U29:U32) -> 0 | N32: =SUM('BF20 2010'!E29:M32) -> -45754 | O32: =SUM('BF20 2010'!AB29:AB32) -> -67234 | P32: =SUM('BF20 2010'!AC29:AC32) -> -27618 | S32: 0 | T32: -196265 | U32: Erhverv | V32: AE | W32: A | Y32: 196265 | Z32: 1 | AQ32: =T32/Z32*-1 -> 196265 | AS32: 0 | AT32: =-('2010'!C32*Emissionsfaktorer!$B$5+'2010'!D32*Emissionsfaktorer!$B$7+'2010'!E32*Emissionsfaktorer!$B$8+N32*Emissionsfaktorer!$B$6) -> 6192.556
U33: Energitjenester | V33: EN
C34: =C18-'BF20 2010'!N26 -> -1 | D34: =D6-'BF20 2010'!C17-'BF20 2010'!C26 -> 0 | E34: =E6-'BF20 2010'!O17-'BF20 2010'!O26 -> 0 | F34: =F18-SUM('BF20 2010'!P26:T26)-'BF20 2010'!V26-'BF20 2010'!W26 -> -2 | H34: =H8+H18-'BF20 2010'!X17-'BF20 2010'!X26 -> -1 | I34: =I8+I18-'BF20 2010'!Z17-'BF20 2010'!Z26 -> 0 | L34: =L8+L18-'BF20 2010'!Y17-'BF20 2010'!Y26 -> 0 | M34: =M8+M18-'BF20 2010'!U17-'BF20 2010'!U26 -> 0 | N34: =N8+N20+N30+N31+N32-SUM('BF20 2010'!D17:M17)-SUM('BF20 2010'!D26:M26)-SUM('BF20 2010'!G14:M14)-'ENS Transport'!AX50 -> 2058.09 | O34: =O20+O30+O31+O32-'BF20 2010'!AB26 -> -0.12 | P34: =P18-'BF20 2010'!AC26 -> 0
C35: =C6-'BF20 2010'!N26-'BF20 2010'!N17 -> 613 | F35: =F8-SUM('BF20 2010'!P17:T17)-'BF20 2010'!V17-'BF20 2010'!W17 -> 2 | O35: =AN9+AN10+AN11+AN12+O8+O16 -> 6036.08 | P35: =AO9+AO10+AO13+AO14+AO15+P8+P16 -> 12434

Sheet BF20 2010 (hidden)
A1: National energibalance - 2010
A2: Enhed: TJ
A3: year | C3: Kul & Koks | D3: Olie | E3: Olie | F3: Olie | G3: Olie | H3: Olie | I3: Olie | J3: Olie | K3: Olie | L3: Olie | M3: Olie | N3: Naturgas | O3: Affald, ikke bionedbrydeligt | P3: Vedvarende energi | Q3: Vedvarende energi | R3: Vedvarende energi | S3: Vedvarende energi | T3: Vedvarende energi | U3: Vedvarende energi | V3: Vedvarende energi | W3: Vedvarende energi | X3: Vedvarende energi | Y3: Vedvarende energi | Z3: Vedvarende energi | AA3: Vedvarende energi | AB3: Elektricitet | AC3: Fjernvarme | AD3: Bygas
C4: Kul & Koks | D4: Råolie | E4: Orimulsion | F4: Petrokoks | G4: Fuelolie og Spildolie | H4: Gas & Dieselolie | I4: Petroleum | J4: Benzin og LVN | K4: JP1 og JP4 | L4: LPG | M4: Raffinaderigas | N4: Naturgas | O4: Affald, ikke bionedbrydeligt | P4: Affald, bionedbrydeligt | Q4: Halm | R4: Træflis | S4: Træpiller | T4: Træ Øvrig | U4: Energiafgrøder | V4: Biogas | W4: Bionaturgas | X4: Solenergi | Y4: Omgivelsesvarme | Z4: Vindenergi | AA4: Anden VE | AB4: Elektricitet | AC4: Fjernvarme | AD4: Bygas
B5: Energiforbrug i alt | C5: 163699 | D5: 304900 | E5: 0 | F5: 5751 | G5: -27560 | H5: 30376 | I5: 436 | J5: -12421 | K5: 18889 | L5: -4475 | M5: 0 | N5: 184976 | O5: 17148 | P5: 20959 | Q5: 23323 | R5: 16217 | S5: 30082 | T5: 35218 | U5: 3107 | V5: 4337 | W5: 0 | X5: 657 | Y5: 5856 | Z5: 28114 | AA5: 74 | AB5: -4086 | AC5: 174 | AD5: 0
B6: Primær produktion | C6: 0 | D6: 522733 | E6: 0 | F6: 0 | G6: 39 | H6: 0 | I6: 0 | J6: 0 | K6: 0 | L6: 0 | M6: 0 | N6: 307425 | O6: 17148 | P6: 20959 | Q6: 23323 | R6: 11352 | S6: 2407 | T6: 32279 | U6: 1949 | V6: 4337 | W6: 0 | X6: 657 | Y6: 5856 | Z6: 28114 | AA6: 74 | AB6: 0 | AC6: 0 | AD6: 0
B7: Nettoimport | C7: 110648 | D7: -218464 | E7: 0 | F7: 3341 | G7: 77 | H7: 51086 | I7: 382 | J7: -12423 | K7: 20229 | L7: -4694 | M7: 0 | N7: -126513 | O7: 0 | P7: 0 | Q7: 0 | R7: 4865 | S7: 27675 | T7: 2939 | U7: 1158 | V7: 0 | W7: 0 | X7: 0 | Y7: 0 | Z7: 0 | AA7: 0 | AB7: -4086 | AC7: 174 | AD7: 0
B8: Grænsehandel | C8: 0 | D8: 0 | E8: 0 | F8: 628 | G8: 0 | H8: -8967 | I8: 0 | J8: 1807 | K8: 0 | L8: 0 | M8: 0 | N8: 0 | O8: 0 | P8: 0 | Q8: 0 | R8: 0 | S8: 0 | T8: 0 | U8: 0 | V8: 0 | W8: 0 | X8: 0 | Y8: 0 | Z8: 0 | AA8: 0 | AB8: 0 | AC8: 0 | AD8: 0
B9: Udenrigsbunkring | C9: 0 | D9: 0 | E9: 0 | F9: 0 | G9: -17594 | H9: -11493 | I9: 0 | J9: 0 | K9: 0 | L9: 0 | M9: 0 | N9: 0 | O9: 0 | P9: 0 | Q9: 0 | R9: 0 | S9: 0 | T9: 0 | U9: 0 | V9: 0 | W9: 0 | X9: 0 | Y9: 0 | Z9: 0 | AA9: 0 | AB9: 0 | AC9: 0 | AD9: 0
B10: Lagertræk og statistisk difference | C10: 53051 | D10: 631 | E10: 0 | F10: 1782 | G10: -10081 | H10: -249 | I10: 54 | J10: -1804 | K10: -1340 | L10: 219 | M10: 0 | N10: 4065 | O10: 0 | P10: 0 | Q10: 0 | R10: 0 | S10: 0 | T10: 0 | U10: 0 | V10: 0 | W10: 0 | X10: 0 | Y10: 0 | Z10: 0 | AA10: 0 | AB10: 0 | AC10: 0 | AD10: 0
B11: Energisektor | C11: 0 | D11: -304900 | E11: 0 | F11: 0 | G11: 51402 | H11: 129320 | I11: 0 | J11: 81394 | K11: 17687 | L11: 6977 | M11: 1594 | N11: -25963 | O11: 0 | P11: 0 | Q11: 0 | R11: 0 | S11: 0 | T11: 0 | U11: 0 | V11: 0 | W11: 0 | X11: 0 | Y11: 0 | Z11: 0 | AA11: 0 | AB11: -3445 | AC11: -584 | AD11: 0
B12: Udvinding og forgasning | C12: 0 | D12: 0 | E12: 0 | F12: 0 | G12: 0 | H12: 0 | I12: 0 | J12: 0 | K12: 0 | L12: 0 | M12: 0 | N12: -25963 | O12: 0 | P12: 0 | Q12: 0 | R12: 0 | S12: 0 | T12: 0 | U12: 0 | V12: 0 | W12: 0 | X12: 0 | Y12: 0 | Z12: 0 | AA12: 0 | AB12: 0 | AC12: 0 | AD12: 0
B13: Raffinaderiproduktion | C13: 0 | D13: 0 | E13: 0 | F13: 0 | G13: 51858 | H13: 129331 | I13: 0 | J13: 81394 | K13: 17687 | L13: 6977 | M13: 13680 | N13: 0 | O13: 0 | P13: 0 | Q13: 0 | R13: 0 | S13: 0 | T13: 0 | U13: 0 | V13: 0 | W13: 0 | X13: 0 | Y13: 0 | Z13: 0 | AA13: 0 | AB13: 0 | AC13: 0 | AD13: 0
B14: Forbrug ved raffinaderiprod. | C14: 0 | D14: -304900 | E14: 0 | F14: 0 | G14: -455 | H14: -11 | I14: 0 | J14: 0 | K14: 0 | L14: 0 | M14: -12086 | N14: 0 | O14: 0 | P14: 0 | Q14: 0 | R14: 0 | S14: 0 | T14: 0 | U14: 0 | V14: 0 | W14: 0 | X14: 0 | Y14: 0 | Z14: 0 | AA14: 0 | AB14: -1170 | AC14: -584 | AD14: 0
B15: Forbrug ved distribution | C15: 0 | D15: 0 | E15: 0 | F15: 0 | G15: 0 | H15: 0 | I15: 0 | J15: 0 | K15: 0 | L15: 0 | M15: 0 | N15: 0 | O15: 0 | P15: 0 | Q15: 0 | R15: 0 | S15: 0 | T15: 0 | U15: 0 | V15: 0 | W15: 0 | X15: 0 | Y15: 0 | Z15: 0 | AA15: 0 | AB15: -2275 | AC15: 0 | AD15: 0
B16: Power2X | C16: 0 | D16: 0 | E16: 0 | F16: 0 | G16: 0 | H16: 0 | I16: 0 | J16: 0 | K16: 0 | L16: 0 | M16: 0 | N16: 0 | O16: 0 | P16: 0 | Q16: 0 | R16: 0 | S16: 0 | T16: 0 | U16: 0 | V16: 0 | W16: 0 | X16: 0 | Y16: 0 | Z16: 0 | AA16: 0 | AB16: 0 | AC16: 0 | AD16: 0
B17: Konverteringssektor | C17: -157959 | D17: 0 | E17: 0 | F17: 0 | G17: -6641 | H17: -4341 | I17: 0 | J17: 0 | K17: 0 | L17: -67 | M17: -1594 | N17: -86297 | O17: -16207 | P17: -19809 | Q17: -18482 | R17: -14944 | S17: -18194 | T17: -3719 | U17: -1949 | V17: -3593 | W17: 0 | X17: -165 | Y17: -212 | Z17: -28114 | AA17: -74 | AB17: 132598 | AC17: 148856 | AD17: 546
B18: Centrale anlæg | C18: -157084 | D18: 0 | E18: 0 | F18: 0 | G18: -5337 | H18: -1422 | I18: 0 | J18: 0 | K18: 0 | L18: 0 | M18: 0 | N18: -32801 | O18: 0 | P18: 0 | Q18: -10287 | R18: -5105 | S18: -15179 | T18: -1043 | U18: 0 | V18: -32 | W18: 0 | X18: 0 | Y18: 0 | Z18: 0 | AA18: 0 | AB18: 84276 | AC18: 69624 | AD18: 0
B19: Vindmøller og vandkraftsanlæg | C19: 0 | D19: 0 | E19: 0 | F19: 0 | G19: 0 | H19: 0 | I19: 0 | J19: 0 | K19: 0 | L19: 0 | M19: 0 | N19: 0 | O19: 0 | P19: 0 | Q19: 0 | R19: 0 | S19: 0 | T19: 0 | U19: 0 | V19: 0 | W19: 0 | X19: 0 | Y19: 0 | Z19: -28114 | AA19: -74 | AB19: 28188 | AC19: 0 | AD19: 0
B20: Decentrale anlæg | C20: -565 | D20: 0 | E20: 0 | F20: 0 | G20: -4 | H20: -98 | I20: 0 | J20: 0 | K20: 0 | L20: 0 | M20: 0 | N20: -36435 | O20: -4202 | P20: -5136 | Q20: -3529 | R20: -2615 | S20: -153 | T20: -450 | U20: 0 | V20: -2220 | W20: 0 | X20: 0 | Y20: 0 | Z20: 0 | AA20: 0 | AB20: 19216 | AC20: 28462 | AD20: 0
B21: Fjernvarmeanlæg | C21: -134 | D21: 0 | E21: 0 | F21: 0 | G21: -514 | H21: -2724 | I21: 0 | J21: 0 | K21: 0 | L21: 0 | M21: 0 | N21: -9523 | O21: -219 | P21: -268 | Q21: -4621 | R21: -6385 | S21: -2861 | T21: -581 | U21: -1949 | V21: -101 | W21: 0 | X21: -143 | Y21: -212 | Z21: 0 | AA21: 0 | AB21: -110 | AC21: 28816 | AD21: 0
B22: Sekundære producenter | C22: -176 | D22: 0 | E22: 0 | F22: 0 | G22: -786 | H22: -96 | I22: 0 | J22: 0 | K22: 0 | L22: -66 | M22: -1594 | N22: -6924 | O22: -11786 | P22: -14405 | Q22: -44 | R22: -839 | S22: 0 | T22: -1646 | U22: 0 | V22: -1239 | W22: 0 | X22: -22 | Y22: 0 | Z22: 0 | AA22: 0 | AB22: 8186 | AC22: 23162 | AD22: 0
B23: Bygasværker | C23: 0 | D23: 0 | E23: 0 | F23: 0 | G23: 0 | H23: -1 | I23: 0 | J23: 0 | K23: 0 | L23: 0 | M23: 0 | N23: -614 | O23: 0 | P23: 0 | Q23: 0 | R23: 0 | S23: 0 | T23: 0 | U23: 0 | V23: 0 | W23: 0 | X23: 0 | Y23: 0 | Z23: 0 | AA23: 0 | AB23: 0 | AC23: 0 | AD23: 546
B24: Egetforbrug ved produktion | C24: 0 | D24: 0 | E24: 0 | F24: 0 | G24: 0 | H24: 0 | I24: 0 | J24: 0 | K24: 0 | L24: 0 | M24: 0 | N24: 0 | O24: 0 | P24: 0 | Q24: 0 | R24: 0 | S24: 0 | T24: 0 | U24: 0 | V24: 0 | W24: 0 | X24: 0 | Y24: 0 | Z24: 0 | AA24: 0 | AB24: -7159 | AC24: -1207 | AD24: 0
B25: Distributionstab m.m. | C25: 0 | D25: 0 | E25: 0 | F25: 0 | G25: 0 | H25: 0 | I25: 0 | J25: 0 | K25: 0 | L25: 0 | M25: 0 | N25: -118 | O25: 0 | P25: 0 | Q25: 0 | R25: 0 | S25: 0 | T25: 0 | U25: 0 | V25: 0 | W25: 0 | X25: 0 | Y25: 0 | Z25: 0 | AA25: 0 | AB25: -9443 | AC25: -29872 | AD25: -22
B26: Endeligt energiforbrug | C26: -5627 | D26: 0 | E26: 0 | F26: -5686 | G26: -17104 | H26: -152619 | I26: -431 | J26: -68973 | K26: -36577 | L26: -2347 | M26: 0 | N26: -67691 | O26: -922 | P26: -1127 | Q26: -4377 | R26: -1220 | S26: -10718 | T26: -28565 | U26: -1156 | V26: -683 | W26: 0 | X26: -492 | Y26: -5250 | Z26: 0 | AA26: 0 | AB26: -114693 | AC26: -106725 | AD26: -485
B27: Ikke energiformål | C27: 0 | D27: 0 | E27: 0 | F27: 0 | G27: -10644 | H27: 0 | I27: -382 | J27: 0 | K27: 0 | L27: 0 | M27: 0 | N27: 0 | O27: 0 | P27: 0 | Q27: 0 | R27: 0 | S27: 0 | T27: 0 | U27: 0 | V27: 0 | W27: 0 | X27: 0 | Y27: 0 | Z27: 0 | AA27: 0 | AB27: 0 | AC27: 0 | AD27: 0
B28: Transport | C28: 0 | D28: 0 | E28: 0 | F28: 0 | G28: -868 | H28: -101893 | I28: 0 | J28: -67802 | K28: -36577 | L28: -3 | M28: 0 | N28: 0 | O28: 0 | P28: 0 | Q28: 0 | R28: 0 | S28: 0 | T28: 0 | U28: -1134 | V28: 0 | W28: 0 | X28: 0 | Y28: 0 | Z28: 0 | AA28: 0 | AB28: -1455 | AC28: 0 | AD28: 0
B29: Landbrug, skovbrug, gartneri og fiskeri | C29: -1218 | D29: 0 | E29: 0 | F29: 0 | G29: -537 | H29: -20755 | I29: -2 | J29: -34 | K29: 0 | L29: -139 | M29: 0 | N29: -1610 | O29: 0 | P29: 0 | Q29: -1777 | R29: -25 | S29: 0 | T29: -163 | U29: 0 | V29: -178 | W29: 0 | X29: 0 | Y29: -433 | Z29: 0 | AA29: 0 | AB29: -6834 | AC29: -1708 | AD29: 0
B30: Fremstillingsvirksomhed | C30: -4381 | D30: 0 | E30: 0 | F30: -5122 | G30: -5019 | H30: -5973 | I30: -4 | J30: -84 | K30: 0 | L30: -1083 | M30: 0 | N30: -28986 | O30: -759 | P30: -928 | Q30: 0 | R30: -993 | S30: -926 | T30: -4482 | U30: 0 | V30: -163 | W30: 0 | X30: 0 | Y30: -1453 | Z30: 0 | AA30: 0 | AB30: -29638 | AC30: -4644 | AD30: -41
B31: Byggeri- og anlægsvirksomhed | C31: 0 | D31: 0 | E31: 0 | F31: 0 | G31: 0 | H31: -5294 | I31: -1 | J31: -22 | K31: 0 | L31: -94 | M31: 0 | N31: -358 | O31: 0 | P31: 0 | Q31: 0 | R31: 0 | S31: 0 | T31: 0 | U31: 0 | V31: 0 | W31: 0 | X31: 0 | Y31: 0 | Z31: 0 | AA31: 0 | AB31: -1372 | AC31: 0 | AD31: 0
B32: Privat service inkl. engros- og detailhandel | C32: 0 | D32: 0 | E32: 0 | F32: 0 | G32: -27 | H32: -1378 | I32: -5 | J32: 0 | K32: 0 | L32: -181 | M32: 0 | N32: -6121 | O32: -163 | P32: -199 | Q32: 0 | R32: 0 | S32: 0 | T32: -1 | U32: 0 | V32: -342 | W32: 0 | X32: 0 | Y32: 0 | Z32: 0 | AA32: 0 | AB32: -29390 | AC32: -21266 | AD32: -14
B33: Offentlig service | C33: 0 | D33: 0 | E33: 0 | F33: 0 | G33: -4 | H33: -1062 | I33: -4 | J33: 0 | K33: 0 | L33: -149 | M33: 0 | N33: -2856 | O33: 0 | P33: 0 | Q33: 0 | R33: -131 | S33: -745 | T33: 0 | U33: 0 | V33: 0 | W33: 0 | X33: -74 | Y33: 0 | Z33: 0 | AA33: 0 | AB33: -9266 | AC33: -10495 | AD33: -21
B34: Husholdninger | C34: -28 | D34: 0 | E34: 0 | F34: -563 | G34: -5 | H34: -16263 | I34: -33 | J34: -1031 | K34: 0 | L34: -699 | M34: 0 | N34: -27761 | O34: 0 | P34: 0 | Q34: -2601 | R34: -72 | S34: -9047 | T34: -23919 | U34: -22 | V34: 0 | W34: 0 | X34: -419 | Y34: -3364 | Z34: 0 | AA34: 0 | AB34: -36738 | AC34: -68612 | AD34: -408
B35: Øvrige energirelatede aktiviteter (ikke inkluderet ovenfor) | C35: 8908 | D35: 0 | E35: 0 | F35: 0 | G35: 409 | H35: 0 | I35: 0 | J35: 0 | K35: 0 | L35: 0 | M35: 0 | N35: -5161 | O35: 0 | P35: 0 | Q35: 0 | R35: 0 | S35: 0 | T35: 0 | U35: 0 | V35: 0 | W35: 0 | X35: 0 | Y35: 0 | Z35: 0 | AA35: 0 | AB35: 0 | AC35: 0 | AD35: 0
B36: Elhandelskorrektion | C36: 8908 | D36: 0 | E36: 0 | F36: 0 | G36: 409 | H36: 0 | I36: 0 | J36: 0 | K36: 0 | L36: 0 | M36: 0 | N36: 776 | O36: 0 | P36: 0 | Q36: 0 | R36: 0 | S36: 0 | T36: 0 | U36: 0 | V36: 0 | W36: 0 | X36: 0 | Y36: 0 | Z36: 0 | AA36: 0 | AB36: 0 | AC36: 0 | AD36: 0
B37: Flaring | C37: 0 | D37: 0 | E37: 0 | F37: 0 | G37: 0 | H37: 0 | I37: 0 | J37: 0 | K37: 0 | L37: 0 | M37: 0 | N37: -5937 | O37: 0 | P37: 0 | Q37: 0 | R37: 0 | S37: 0 | T37: 0 | U37: 0 | V37: 0 | W37: 0 | X37: 0 | Y37: 0 | Z37: 0 | AA37: 0 | AB37: 0 | AC37: 0 | AD37: 0
AC39: =AC5+AC11+AC17+AC25+AC26 -> 11849

Sheet Meta data (hidden)
A2: Culture | B2: da-DK
A3: Navn | B3: Fredericia 2017 E&C-regnskab til interface-beskrivelse
A4: Type | B4: Års
A5: Energi Enhed | B5: TJ
A6: CO2 Enhed | B6: kTon
A7: Tab Sum | B7: =#REF!+#REF!+#REF! -> 
A8: CO2 Sum | B8: =#REF!+#REF! -> 

Sheet Emissionsfaktorer (hidden)
B1: mio. ton/PJ
A2: El | B2: =Elproduktion!H10 -> 0
A3: Residualel (hvor bruges denne faktor?) | B3: 0
A4: Fjernvarme | B4: 0
A5: Naturgas | B5: 0.057
A6: Olie | B6: 0.076
A7: Kul | B7: 0.095
A8: Affald | B8: 0.076
A9: VE | B9: 0
A10: Renset biomasse | B10: 0.1 | C10: 3.6
A13: El år 2030 | B13: =Elproduktion!N10 -> 0.004
A14: El år 2025 | B14: =Elproduktion!L10 -> 0.017

Sheet Størrelse på strømme (hidden)
A3: Niveau 1
B4: Størrelse | C4: Energi | D4: Under kasser | E4: Energi/%
A5: Udgang transport af brændsel | B5: 50 | C5: =#REF! ->  | D5: 0 | E5: =(C5)/(B5-D5*4) -> 
A6: Indgang On-Grid VE | B6: 14 | C6: =#REF! ->  | E6: =(C6)/(B6-D6*4) -> 
A7: Indgang el, fjernvarme og olieprodukter | B7: 60 | C7: =#REF!*-1 ->  | D7: 7
A8: Udgang el, fjernvarme og olieprodukter | B8: 45 | C8: =#REF! ->  | D8: 8
A9: Under el, fjernvarme og olieprodukter | B9: 5 | C9: =(#REF!+#REF!+#REF!+#REF!+#REF!)*-1 -> 
A10: Indgang transport af el, fjernvarme og olieprodukter | B10: 50 | C10: =#REF!*-1 -> 
A11: Indgang Off-Grid VE | B11: 10 | C11: =#REF! -> 
A12: Exit Energy | B12: 60 | C12: =#REF!*-1 ->  | D12: 6
A13: Tab konvertering | B13: 24 | C13: =#REF! -> 
A14: Tab slutforbrug | B14: 24 | C14: =#REF! -> 
A15: Tab transport af el mv. | B15: 7.6 | C15: =#REF! -> 
A18: Lokal VE
A19: Udgang On-Grid VE | B19: 14 | C19: =#REF! ->  | D19: 1 | E19: =(C19)/(B19-D19*4) -> 
A20: Udgang Off-Grid VE | B20: 14 | C20: =#REF! -> 
A22: Transport | B22: 45 | C22: =#REF!*-1 ->  | D22: 6
A24: Vejtransport | B24: 45 | C24: =#REF!*-1 ->  | D24: 6
A26: Tog | B26: 45 | C26: =#REF!*-1 ->  | D26: 6
A28: Fly | B28: 45 | C28: =#REF!*-1 ->  | D28: 2
A30: Non-road | B30: 45 | C30: =#REF!*-1 ->  | D30: 5
A32: Indgang7udgang el, varme og olieprodukter | B32: 45 | C32: =#REF! ->  | D32: 8
A33: Tab indgang el, varme og olieprodukter | B33: 25 | C33: =#REF! -> 
A34: Udgang energi | B34: 60 | C34: =#REF!*-1 ->  | D34: 6
A35: Tab udgang | B35: 25 | C35: =#REF! -> 
A36: Transport brændsler | B36: 50 | C36: =#REF!*-1 -> 
A37: Tab transport af brændsler | B37: 25 | C37: =#REF! -> 
A38: Transport af el, varme og olieprodukter | B38: 50 | C38: =#REF!*-1 -> 
A39: Tab transport af el, varme og olieprodukter | B39: 25 | C39: =#REF! -> 
A41: CO2 | B41: 10 | C41: =#REF! -> 

Sheet BF20 2005 (hidden)
A1: National energibalance - 2005
A2: Enhed: TJ
A3: year | C3: Kul & Koks | D3: Olie | E3: Olie | F3: Olie | G3: Olie | H3: Olie | I3: Olie | J3: Olie | K3: Olie | L3: Olie | M3: Olie | N3: Naturgas | O3: Affald, ikke bionedbrydeligt | P3: Vedvarende energi | Q3: Vedvarende energi | R3: Vedvarende energi | S3: Vedvarende energi | T3: Vedvarende energi | U3: Vedvarende energi | V3: Vedvarende energi | W3: Vedvarende energi | X3: Vedvarende energi | Y3: Vedvarende energi | Z3: Vedvarende energi | AA3: Vedvarende energi | AB3: Elektricitet | AC3: Fjernvarme | AD3: Bygas
C4: Kul & Koks | D4: Råolie | E4: Orimulsion | F4: Petrokoks | G4: Fuelolie og Spildolie | H4: Gas & Dieselolie | I4: Petroleum | J4: Benzin og LVN | K4: JP1 og JP4 | L4: LPG | M4: Raffinaderigas | N4: Naturgas | O4: Affald, ikke bionedbrydeligt | P4: Affald, bionedbrydeligt | Q4: Halm | R4: Træflis | S4: Træpiller | T4: Træ Øvrig | U4: Energiafgrøder | V4: Biogas | W4: Bionaturgas | X4: Solenergi | Y4: Omgivelsesvarme | Z4: Vindenergi | AA4: Anden VE | AB4: Elektricitet | AC4: Fjernvarme | AD4: Bygas
B5: Energiforbrug i alt | C5: 154988 | D5: 329686 | E5: 0 | F5: 8713 | G5: -23294 | H5: 18241 | I5: 1131 | J5: -626 | K5: 17902 | L5: -3456 | M5: 0 | N5: 187542 | O5: 17006 | P5: 20786 | Q5: 18485 | R5: 7603 | S5: 16064 | T5: 26129 | U5: 761 | V5: 3830 | W5: 0 | X5: 419 | Y5: 3903 | Z5: 23810 | AA5: 81 | AB5: 4932 | AC5: 153 | AD5: 0
B6: Primær produktion | C6: 0 | D6: 796224 | E6: 0 | F6: 0 | G6: 304 | H6: 0 | I6: 0 | J6: 0 | K6: 0 | L6: 0 | M6: 0 | N6: 392868 | O6: 17006 | P6: 20786 | Q6: 18485 | R6: 6082 | S6: 3262 | T6: 24166 | U6: 761 | V6: 3830 | W6: 0 | X6: 419 | Y6: 3903 | Z6: 23810 | AA6: 81 | AB6: 0 | AC6: 0 | AD6: 0
B7: Nettoimport | C7: 146751 | D7: -471955 | E7: 0 | F7: 8710 | G7: -2507 | H7: 48561 | I7: 849 | J7: -1168 | K7: 25742 | L7: -3712 | M7: 0 | N7: -209777 | O7: 0 | P7: 0 | Q7: 0 | R7: 1521 | S7: 12802 | T7: 1963 | U7: 0 | V7: 0 | W7: 0 | X7: 0 | Y7: 0 | Z7: 0 | AA7: 0 | AB7: 4932 | AC7: 153 | AD7: 0
B8: Grænsehandel | C8: 0 | D8: 0 | E8: 0 | F8: 628 | G8: 0 | H8: -8788 | I8: 0 | J8: 1642 | K8: 0 | L8: 0 | M8: 0 | N8: 0 | O8: 0 | P8: 0 | Q8: 0 | R8: 0 | S8: 0 | T8: 0 | U8: 0 | V8: 0 | W8: 0 | X8: 0 | Y8: 0 | Z8: 0 | AA8: 0 | AB8: 0 | AC8: 0 | AD8: 0
B9: Udenrigsbunkring | C9: 0 | D9: 0 | E9: 0 | F9: 0 | G9: -20674 | H9: -11630 | I9: 0 | J9: 0 | K9: 0 | L9: 0 | M9: 0 | N9: 0 | O9: 0 | P9: 0 | Q9: 0 | R9: 0 | S9: 0 | T9: 0 | U9: 0 | V9: 0 | W9: 0 | X9: 0 | Y9: 0 | Z9: 0 | AA9: 0 | AB9: 0 | AC9: 0 | AD9: 0
B10: Lagertræk og statistisk difference | C10: 8237 | D10: 5417 | E10: 0 | F10: -625 | G10: -416 | H10: -9904 | I10: 282 | J10: -1100 | K10: -7840 | L10: 256 | M10: 0 | N10: 4451 | O10: 0 | P10: 0 | Q10: 0 | R10: 0 | S10: 0 | T10: 0 | U10: 0 | V10: 0 | W10: 0 | X10: 0 | Y10: 0 | Z10: 0 | AA10: 0 | AB10: 0 | AC10: 0 | AD10: 0
B11: Energisektor | C11: 0 | D11: -329686 | E11: 0 | F11: 0 | G11: 56446 | H11: 137683 | I11: 0 | J11: 84215 | K11: 22057 | L11: 6688 | M11: 1573 | N11: -27960 | O11: 0 | P11: 0 | Q11: 0 | R11: 0 | S11: 0 | T11: 0 | U11: 0 | V11: 0 | W11: 0 | X11: 0 | Y11: 0 | Z11: 0 | AA11: 0 | AB11: -2761 | AC11: -355 | AD11: 0
B12: Udvinding og forgasning | C12: 0 | D12: 0 | E12: 0 | F12: 0 | G12: 0 | H12: 0 | I12: 0 | J12: 0 | K12: 0 | L12: 0 | M12: 0 | N12: -27960 | O12: 0 | P12: 0 | Q12: 0 | R12: 0 | S12: 0 | T12: 0 | U12: 0 | V12: 0 | W12: 0 | X12: 0 | Y12: 0 | Z12: 0 | AA12: 0 | AB12: 0 | AC12: 0 | AD12: 0
B13: Raffinaderiproduktion | C13: 0 | D13: 0 | E13: 0 | F13: 0 | G13: 57126 | H13: 137685 | I13: 0 | J13: 84215 | K13: 22057 | L13: 6688 | M13: 15347 | N13: 0 | O13: 0 | P13: 0 | Q13: 0 | R13: 0 | S13: 0 | T13: 0 | U13: 0 | V13: 0 | W13: 0 | X13: 0 | Y13: 0 | Z13: 0 | AA13: 0 | AB13: 0 | AC13: 0 | AD13: 0
B14: Forbrug ved raffinaderiprod. | C14: 0 | D14: -329686 | E14: 0 | F14: 0 | G14: -680 | H14: -2 | I14: 0 | J14: 0 | K14: 0 | L14: 0 | M14: -13774 | N14: 0 | O14: 0 | P14: 0 | Q14: 0 | R14: 0 | S14: 0 | T14: 0 | U14: 0 | V14: 0 | W14: 0 | X14: 0 | Y14: 0 | Z14: 0 | AA14: 0 | AB14: -1069 | AC14: -355 | AD14: 0
B15: Forbrug ved distribution | C15: 0 | D15: 0 | E15: 0 | F15: 0 | G15: 0 | H15: 0 | I15: 0 | J15: 0 | K15: 0 | L15: 0 | M15: 0 | N15: 0 | O15: 0 | P15: 0 | Q15: 0 | R15: 0 | S15: 0 | T15: 0 | U15: 0 | V15: 0 | W15: 0 | X15: 0 | Y15: 0 | Z15: 0 | AA15: 0 | AB15: -1692 | AC15: 0 | AD15: 0
B16: Power2X | C16: 0 | D16: 0 | E16: 0 | F16: 0 | G16: 0 | H16: 0 | I16: 0 | J16: 0 | K16: 0 | L16: 0 | M16: 0 | N16: 0 | O16: 0 | P16: 0 | Q16: 0 | R16: 0 | S16: 0 | T16: 0 | U16: 0 | V16: 0 | W16: 0 | X16: 0 | Y16: 0 | Z16: 0 | AA16: 0 | AB16: 0 | AC16: 0 | AD16: 0
B17: Konverteringssektor | C17: -144240 | D17: 0 | E17: 0 | F17: 0 | G17: -13435 | H17: -1190 | I17: 0 | J17: 0 | K17: 0 | L17: -2 | M17: -1573 | N17: -88513 | O17: -15787 | P17: -19296 | Q17: -13649 | R17: -7349 | S17: -7557 | T17: -3982 | U17: -761 | V17: -3122 | W17: 0 | X17: -61 | Y17: -172 | Z17: -23810 | AA17: -81 | AB17: 123794 | AC17: 126694 | AD17: 557
B18: Centrale anlæg | C18: -142973 | D18: 0 | E18: 0 | F18: 0 | G18: -12011 | H18: -308 | I18: 0 | J18: 0 | K18: 0 | L18: 0 | M18: 0 | N18: -30138 | O18: 0 | P18: 0 | Q18: -6524 | R18: -2585 | S18: -5551 | T18: -781 | U18: 0 | V18: -17 | W18: 0 | X18: 0 | Y18: 0 | Z18: 0 | AA18: 0 | AB18: 74980 | AC18: 57864 | AD18: 0
B19: Vindmøller og vandkraftsanlæg | C19: 0 | D19: 0 | E19: 0 | F19: 0 | G19: 0 | H19: 0 | I19: 0 | J19: 0 | K19: 0 | L19: 0 | M19: 0 | N19: 0 | O19: 0 | P19: 0 | Q19: 0 | R19: 0 | S19: 0 | T19: 0 | U19: 0 | V19: 0 | W19: 0 | X19: 0 | Y19: 0 | Z19: -23810 | AA19: -81 | AB19: 23891 | AC19: 0 | AD19: 0
B20: Decentrale anlæg | C20: -1094 | D20: 0 | E20: 0 | F20: 0 | G20: -28 | H20: -75 | I20: 0 | J20: 0 | K20: 0 | L20: 0 | M20: 0 | N20: -41842 | O20: -5029 | P20: -6147 | Q20: -3416 | R20: -841 | S20: 0 | T20: -2252 | U20: 0 | V20: -1419 | W20: 0 | X20: 0 | Y20: 0 | Z20: 0 | AA20: 0 | AB20: 21254 | AC20: 32727 | AD20: 0
B21: Fjernvarmeanlæg | C21: -50 | D21: 0 | E21: 0 | F21: 0 | G21: -702 | H21: -730 | I21: 0 | J21: 0 | K21: 0 | L21: 0 | M21: 0 | N21: -4265 | O21: -408 | P21: -499 | Q21: -3703 | R21: -3923 | S21: -1999 | T21: -545 | U21: -761 | V21: -97 | W21: 0 | X21: -53 | Y21: -172 | Z21: 0 | AA21: 0 | AB21: 0 | AC21: 16621 | AD21: 0
B22: Sekundære producenter | C22: -124 | D22: 0 | E22: 0 | F22: 0 | G22: -694 | H22: -67 | I22: 0 | J22: 0 | K22: 0 | L22: 0 | M22: -1573 | N22: -11711 | O22: -10350 | P22: -12651 | Q22: -6 | R22: 0 | S22: -7 | T22: -404 | U22: 0 | V22: -1588 | W22: 0 | X22: -8 | Y22: 0 | Z22: 0 | AA22: 0 | AB22: 10267 | AC22: 20786 | AD22: 0
B23: Bygasværker | C23: 0 | D23: 0 | E23: 0 | F23: 0 | G23: 0 | H23: -9 | I23: 0 | J23: 0 | K23: 0 | L23: -2 | M23: 0 | N23: -558 | O23: 0 | P23: 0 | Q23: 0 | R23: 0 | S23: 0 | T23: 0 | U23: 0 | V23: 0 | W23: 0 | X23: 0 | Y23: 0 | Z23: 0 | AA23: 0 | AB23: 0 | AC23: 0 | AD23: 557
B24: Egetforbrug ved produktion | C24: 0 | D24: 0 | E24: 0 | F24: 0 | G24: 0 | H24: 0 | I24: 0 | J24: 0 | K24: 0 | L24: 0 | M24: 0 | N24: 0 | O24: 0 | P24: 0 | Q24: 0 | R24: 0 | S24: 0 | T24: 0 | U24: 0 | V24: 0 | W24: 0 | X24: 0 | Y24: 0 | Z24: 0 | AA24: 0 | AB24: -6599 | AC24: -1303 | AD24: 0
B25: Distributionstab m.m. | C25: 0 | D25: 0 | E25: 0 | F25: 0 | G25: 0 | H25: 0 | I25: 0 | J25: 0 | K25: 0 | L25: 0 | M25: 0 | N25: -119 | O25: 0 | P25: 0 | Q25: 0 | R25: 0 | S25: 0 | T25: 0 | U25: 0 | V25: 0 | W25: 0 | X25: 0 | Y25: 0 | Z25: 0 | AA25: 0 | AB25: -5497 | AC25: -25446 | AD25: -22
B26: Endeligt energiforbrug | C26: -10792 | D26: 0 | E26: 0 | F26: -8737 | G26: -19757 | H26: -155819 | I26: -1139 | J26: -83589 | K26: -39959 | L26: -3258 | M26: 0 | N26: -72387 | O26: -1239 | P26: -1515 | Q26: -4978 | R26: -262 | S26: -8755 | T26: -22804 | U26: 0 | V26: -726 | W26: 0 | X26: -359 | Y26: -3816 | Z26: 0 | AA26: 0 | AB26: -120733 | AC26: -104604 | AD26: -547
B27: Ikke energiformål | C27: 0 | D27: 0 | E27: 0 | F27: 0 | G27: -11215 | H27: 0 | I27: -849 | J27: 0 | K27: 0 | L27: 0 | M27: 0 | N27: 0 | O27: 0 | P27: 0 | Q27: 0 | R27: 0 | S27: 0 | T27: 0 | U27: 0 | V27: 0 | W27: 0 | X27: 0 | Y27: 0 | Z27: 0 | AA27: 0 | AB27: 0 | AC27: 0 | AD27: 0
B28: Transport | C28: 0 | D28: 0 | E28: 0 | F28: 0 | G28: -1379 | H28: -90529 | I28: -14 | J28: -82233 | K28: -39959 | L28: -323 | M28: 0 | N28: 0 | O28: 0 | P28: 0 | Q28: 0 | R28: 0 | S28: 0 | T28: 0 | U28: 0 | V28: 0 | W28: 0 | X28: 0 | Y28: 0 | Z28: 0 | AA28: 0 | AB28: -1351 | AC28: 0 | AD28: 0
B29: Landbrug, skovbrug, gartneri og fiskeri | C29: -1831 | D29: 0 | E29: 0 | F29: 0 | G29: -904 | H29: -20274 | I29: -8 | J29: -58 | K29: 0 | L29: -157 | M29: 0 | N29: -2304 | O29: 0 | P29: 0 | Q29: -1982 | R29: -28 | S29: 0 | T29: -61 | U29: 0 | V29: -87 | W29: 0 | X29: 0 | Y29: -71 | Z29: 0 | AA29: 0 | AB29: -6876 | AC29: -2075 | AD29: 0
B30: Fremstillingsvirksomhed | C30: -8952 | D30: 0 | E30: 0 | F30: -7961 | G30: -6084 | H30: -10145 | I30: -13 | J30: -21 | K30: 0 | L30: -1482 | M30: 0 | N30: -29829 | O30: -591 | P30: -723 | Q30: 0 | R30: 0 | S30: -1156 | T30: -2476 | U30: 0 | V30: -150 | W30: 0 | X30: 0 | Y30: -1024 | Z30: 0 | AA30: 0 | AB30: -35943 | AC30: -6712 | AD30: -19
B31: Byggeri- og anlægsvirksomhed | C31: 0 | D31: 0 | E31: 0 | F31: 0 | G31: 0 | H31: -6354 | I31: -1 | J31: -27 | K31: 0 | L31: -224 | M31: 0 | N31: -272 | O31: 0 | P31: 0 | Q31: 0 | R31: 0 | S31: 0 | T31: 0 | U31: 0 | V31: 0 | W31: 0 | X31: 0 | Y31: 0 | Z31: 0 | AA31: 0 | AB31: -1274 | AC31: 0 | AD31: 0
B32: Privat service inkl. engros- og detailhandel | C32: 0 | D32: 0 | E32: 0 | F32: -32 | G32: -92 | H32: -1816 | I32: -50 | J32: 0 | K32: 0 | L32: -234 | M32: 0 | N32: -6889 | O32: -648 | P32: -792 | Q32: 0 | R32: 0 | S32: 0 | T32: 0 | U32: 0 | V32: -489 | W32: 0 | X32: 0 | Y32: 0 | Z32: 0 | AA32: 0 | AB32: -28098 | AC32: -19978 | AD32: -16
B33: Offentlig service | C33: 0 | D33: 0 | E33: 0 | F33: -35 | G33: -33 | H33: -2062 | I33: -54 | J33: 0 | K33: 0 | L33: -19 | M33: 0 | N33: -3100 | O33: 0 | P33: 0 | Q33: 0 | R33: -151 | S33: -692 | T33: 0 | U33: 0 | V33: 0 | W33: 0 | X33: -54 | Y33: 0 | Z33: 0 | AA33: 0 | AB33: -9380 | AC33: -10303 | AD33: -26
B34: Husholdninger | C34: -8 | D34: 0 | E34: 0 | F34: -709 | G34: -50 | H34: -24639 | I34: -149 | J34: -1250 | K34: 0 | L34: -819 | M34: 0 | N34: -29993 | O34: 0 | P34: 0 | Q34: -2996 | R34: -83 | S34: -6907 | T34: -20268 | U34: 0 | V34: 0 | W34: 0 | X34: -305 | Y34: -2721 | Z34: 0 | AA34: 0 | AB34: -37810 | AC34: -65536 | AD34: -486
B35: Øvrige energirelatede aktiviteter (ikke inkluderet ovenfor) | C35: -8647 | D35: 0 | E35: 0 | F35: 0 | G35: -2187 | H35: 0 | I35: 0 | J35: 0 | K35: 0 | L35: 0 | M35: 0 | N35: -11691 | O35: 0 | P35: 0 | Q35: 0 | R35: 0 | S35: 0 | T35: 0 | U35: 0 | V35: 0 | W35: 0 | X35: 0 | Y35: 0 | Z35: 0 | AA35: 0 | AB35: 0 | AC35: 0 | AD35: 0
B36: Elhandelskorrektion | C36: -8647 | D36: 0 | E36: 0 | F36: 0 | G36: -2187 | H36: 0 | I36: 0 | J36: 0 | K36: 0 | L36: 0 | M36: 0 | N36: -2599 | O36: 0 | P36: 0 | Q36: 0 | R36: 0 | S36: 0 | T36: 0 | U36: 0 | V36: 0 | W36: 0 | X36: 0 | Y36: 0 | Z36: 0 | AA36: 0 | AB36: 0 | AC36: 0 | AD36: 0
B37: Flaring | C37: 0 | D37: 0 | E37: 0 | F37: 0 | G37: 0 | H37: 0 | I37: 0 | J37: 0 | K37: 0 | L37: 0 | M37: 0 | N37: -9092 | O37: 0 | P37: 0 | Q37: 0 | R37: 0 | S37: 0 | T37: 0 | U37: 0 | V37: 0 | W37: 0 | X37: 0 | Y37: 0 | Z37: 0 | AA37: 0 | AB37: 0 | AC37: 0 | AD37: 0

Sheet ENS Transport (hidden)
A1: Endeligt energiforbrug til transport | B1: Final Energy Consumption in Transport
A3: Direkte energiindhold [TJ] | B3: Direct Energy Contents [TJ] | D3: 1972 | E3: 1973 | F3: 1974 | G3: 1975 | H3: 1976 | I3: 1977 | J3: 1978 | K3: 1979 | L3: 1980 | M3: 1981 | N3: 1982 | O3: 1983 | P3: 1984 | Q3: 1985 | R3: 1986 | S3: 1987 | T3: 1988 | U3: 1989 | V3: 1990 | W3: 1991 | X3: 1992 | Y3: 1993 | Z3: 1994 | AA3: 1995 | AB3: 1996 | AC3: 1997 | AD3: 1998 | AE3: 1999 | AF3: 2000 | AG3: 2001 | AH3: 2002 | AI3: 2003 | AJ3: 2004 | AK3: 2005 | AL3: 2006 | AM3: 2007 | AN3: 2008 | AO3: 2009 | AP3: 2010 | AQ3: 2011 | AR3: 2012 | AS3: 2013 | AT3: 2014 | AU3: 2015 | AV3: 2016 | AW3: 2017 | AX3: 2018
A4: Faktisk forbrug | B4: Observed Consumption
A5: Transport i alt | B5: Transport | D5: 134082.41 | E5: 0 | F5: 0 | G5: 129520.91 | H5: 136957.1 | I5: 139656.7 | J5: 151000.36 | K5: 150549.29 | L5: 143336.5 | M5: 137294.44 | N5: 142153.89 | O5: 143802.7 | P5: 150302.74 | Q5: 152195.54 | R5: 159870.77 | S5: 164203.5 | T5: 165031.04 | U5: 169094.06 | V5: 170216.44 | W5: 175757.18 | X5: 173855.48 | Y5: 175503.4 | Z5: 180817.07 | AA5: 184357.9 | AB5: 188152.9 | AC5: 191036.27 | AD5: 193371.69 | AE5: 199098.39 | AF5: 201209.19 | AG5: 201143.08 | AH5: 197456.18 | AI5: 201904.02 | AJ5: 210679.54 | AK5: 215788.98 | AL5: 217725.27 | AM5: 224019.6 | AN5: 221553.75 | AO5: 208350.68 | AP5: 209731.45 | AQ5: 210225.87 | AR5: 207256.38 | AS5: 205259.34 | AT5: 207258.05 | AU5: 209265.15 | AV5: 213828.5 | AW5: 218252.95 | AX5: 222741.08
A6: LPG | B6: LPG | D6: 522.17 | E6: 0 | F6: 0 | G6: 448.6 | H6: 415.82 | I6: 396.05 | J6: 387.68 | K6: 493.11 | L6: 880.41 | M6: 1424.92 | N6: 1524.63 | O6: 1344.72 | P6: 1032.93 | Q6: 751.06 | R6: 520.67 | S6: 382.77 | T6: 277.66 | U6: 214.08 | V6: 463.59 | W6: 132.2 | X6: 101.84 | Y6: 93.43 | Z6: 54.51 | AA6: 41.03 | AB6: 36.39 | AC6: 96.42 | AD6: 256.86 | AE6: 332.67 | AF6: 425.13 | AG6: 446.52 | AH6: 516.3 | AI6: 409.54 | AJ6: 377.75 | AK6: 322.69 | AL6: 261.56 | AM6: 215.69 | AN6: 182.25 | AO6: 118.54 | AP6: 2.58 | AQ6: 0 | AR6: 0 | AS6: 0 | AT6: 0.05 | AU6: 0 | AV6: 0 | AW6: 0 | AX6: 0
A7: Flybenzin | B7: Aviation Gasoline | D7: 750.82 | E7: 0 | F7: 0 | G7: 446.36 | H7: 243.95 | I7: 242.51 | J7: 234.2 | K7: 218.08 | L7: 201.18 | M7: 190.65 | N7: 161.13 | O7: 163.38 | P7: 165.42 | Q7: 167.52 | R7: 173.25 | S7: 152.26 | T7: 161.43 | U7: 165.57 | V7: 154.77 | W7: 145.94 | X7: 140.28 | Y7: 141.5 | Z7: 139.38 | AA7: 153.38 | AB7: 138.45 | AC7: 135.8 | AD7: 123.33 | AE7: 117.95 | AF7: 119.2 | AG7: 114.91 | AH7: 114.94 | AI7: 106.7 | AJ7: 111.21 | AK7: 107.44 | AL7: 97.46 | AM7: 105.45 | AN7: 98.92 | AO7: 82.29 | AP7: 75.72 | AQ7: 64.99 | AR7: 67.39 | AS7: 69.19 | AT7: 47.77 | AU7: 57.06 | AV7: 48.89 | AW7: 30.97 | AX7: 49.23
A8: Motorbenzin | B8: Motor Gasoline | D8: 67307.29 | E8: 0 | F8: 0 | G8: 67001.58 | H8: 70459.89 | I8: 71263.6 | J8: 73392.47 | K8: 69050.12 | L8: 67829.96 | M8: 64187.46 | N8: 62382.47 | O8: 62904.77 | P8: 64629.82 | Q8: 66361.34 | R8: 68912.45 | S8: 70509.27 | T8: 73499.36 | U8: 74357.74 | V8: 74327.44 | W8: 75291.1 | X8: 76084.68 | Y8: 76697.59 | Z8: 78425.43 | AA8: 80998.31 | AB8: 82656.02 | AC8: 85341.53 | AD8: 86520.24 | AE8: 89161.2 | AF8: 88976.36 | AG8: 86474.28 | AH8: 86247.39 | AI8: 85615.17 | AJ8: 84635.85 | AK8: 82125.61 | AL8: 79828.55 | AM8: 78331.46 | AN8: 74556.86 | AO8: 70888.71 | AP8: 67726.06 | AQ8: 63091.32 | AR8: 59951.13 | AS8: 57439.62 | AT8: 57931.89 | AU8: 57442.69 | AV8: 56304.62 | AW8: 56582.47 | AX8: 56757.65
A9: JP4 | B9: JP4 | D9: 7367.13 | E9: 0 | F9: 0 | G9: 7322.08 | H9: 7617.19 | I9: 7096.65 | J9: 7008.12 | K9: 9524.32 | L9: 7499.79 | M9: 7696.31 | N9: 7506.58 | O9: 7207.93 | P9: 5519.81 | Q9: 3845.24 | R9: 2668.11 | S9: 4300.3 | T9: 97.41 | U9: 0 | V9: 0 | W9: 0 | X9: 0 | Y9: 0 | Z9: 0 | AA9: 0 | AB9: 0 | AC9: 0 | AD9: 0 | AE9: 0 | AF9: 0 | AG9: 0 | AH9: 0 | AI9: 0 | AJ9: 0 | AK9: 0 | AL9: 0 | AM9: 0 | AN9: 0 | AO9: 0 | AP9: 0 | AQ9: 0 | AR9: 0 | AS9: 0 | AT9: 0 | AU9: 0 | AV9: 0 | AW9: 0 | AX9: 0
A10: Petroleum | B10: Other Kerosene | D10: 67.86 | E10: 0 | F10: 0 | G10: 31.72 | H10: 30.84 | I10: 16.35 | J10: 33.58 | K10: 194.91 | L10: 129.35 | M10: 139.97 | N10: 234.76 | O10: 169.68 | P10: 187.33 | Q10: 378.38 | R10: 467.26 | S10: 756.45 | T10: 401.35 | U10: 247.53 | V10: 462.28 | W10: 115.15 | X10: 100.92 | Y10: 110.7 | Z10: 75.13 | AA10: 52.41 | AB10: 57.04 | AC10: 49.03 | AD10: 94.24 | AE10: 86.03 | AF10: 39.25 | AG10: 55.09 | AH10: 38.73 | AI10: 49.14 | AJ10: 18.83 | AK10: 14.44 | AL10: 5.5 | AM10: 18.76 | AN10: 2.23 | AO10: 0.42 | AP10: 0.28 | AQ10: 0.24 | AR10: 0.24 | AS10: 0.21 | AT10: 0 | AU10: 0 | AV10: 0 | AW10: 0 | AX10: 0
A11: JP1 | B11: JP1 | D11: 23382.61 | E11: 0 | F11: 0 | G11: 23128.99 | H11: 24509.72 | I11: 26300.32 | J11: 27686.36 | K11: 27545.63 | L11: 23472.95 | M11: 20900.81 | N11: 21221.04 | O11: 21686.04 | P11: 22519.78 | Q11: 22723.39 | R11: 24073.18 | S11: 26002.73 | T11: 29677.82 | U11: 30357.19 | V11: 28828.11 | W11: 27581.19 | X11: 26991.23 | Y11: 27902.54 | Z11: 30523.78 | AA11: 30188.9 | AB11: 31782.07 | AC11: 31758.79 | AD11: 33839.83 | AE11: 35584.32 | AF11: 35810.28 | AG11: 35686.81 | AH11: 31215.32 | AI11: 32211.61 | AJ11: 37517.92 | AK11: 39959.38 | AL11: 38842.12 | AM11: 40619.01 | AN11: 39753.19 | AO11: 35297.01 | AP11: 36576.51 | AQ11: 38177.79 | AR11: 37329.89 | AS11: 37284.02 | AT11: 40046.17 | AU11: 38926.97 | AV11: 41694.51 | AW11: 43567.72 | AX11: 44726.28
A12: Gas/dieselolie | B12: Gas-/Diesel Oil | D12: 31985.51 | E12: 0 | F12: 0 | G12: 29006.02 | H12: 31282.08 | I12: 32218.88 | J12: 39982.22 | K12: 41379.46 | L12: 41053.37 | M12: 40625.33 | N12: 45953.11 | O12: 47966.16 | P12: 54388.49 | Q12: 54961.68 | R12: 59139.88 | S12: 57719.5 | T12: 57620.01 | U12: 59036.41 | V12: 61684.59 | W12: 67458.09 | X12: 66319.99 | Y12: 67144.96 | Z12: 68631.2 | AA12: 70497.39 | AB12: 71399.88 | AC12: 71688.65 | AD12: 70027.46 | AE12: 71155.15 | AF12: 73077.36 | AG12: 75599.88 | AH12: 75947.41 | AI12: 80419.32 | AJ12: 85015.41 | AK12: 90529.36 | AL12: 95904.93 | AM12: 102098.23 | AN12: 104219.8 | AO12: 99153.26 | AP12: 101892.99 | AQ12: 101253.13 | AR12: 99255.04 | AS12: 99591.01 | AT12: 98363.61 | AU12: 102325 | AV12: 105040.53 | AW12: 107319.37 | AX12: 110467.13
A13: Fuelolie | B13: Fuel Oil | D13: 2342.62 | E13: 0 | F13: 0 | G13: 1775.56 | H13: 1987.21 | I13: 1701.14 | J13: 1854.52 | K13: 1715.26 | L13: 1790.69 | M13: 1646.58 | N13: 2687.77 | O13: 1884.82 | P13: 1391.17 | Q13: 2513.73 | R13: 3419.17 | S13: 3840.22 | T13: 2727.2 | U13: 3977.54 | V13: 3559.81 | W13: 4316.74 | X13: 3415.25 | Y13: 2651.29 | Z13: 2152.59 | AA13: 1572.93 | AB13: 1159.67 | AC13: 950.48 | AD13: 1340.07 | AE13: 1434.9 | AF13: 1508.81 | AG13: 1513.16 | AH13: 2064.25 | AI13: 1822.83 | AJ13: 1669.5 | AK13: 1379.34 | AL13: 1281.45 | AM13: 1097.14 | AN13: 1159.42 | AO13: 1045.23 | AP13: 868.2 | AQ13: 731.78 | AR13: 623.69 | AS13: 775.03 | AT13: 545.64 | AU13: 39.19 | AV13: 2.36 | AW13: 0 | AX13: 4.55
A14: Naturgas | B14: Natural Gas | AT14: 0 | AU14: 75.55 | AV14: 131.57 | AW14: 253.27 | AX14: 305.54
A15: Bionaturgas | B15: Bio Methane | AT15: 0 | AU15: 0.8 | AV15: 4.1 | AW15: 13.93 | AX15: 23.5
A16: Bioethanol | B16: Bioethanol | D16: 0 | G16: 0 | H16: 0 | I16: 0 | J16: 0 | K16: 0 | L16: 0 | M16: 0 | N16: 0 | O16: 0 | P16: 0 | Q16: 0 | R16: 0 | S16: 0 | T16: 0 | U16: 0 | V16: 0 | W16: 0 | X16: 0 | Y16: 0 | Z16: 0 | AA16: 0 | AB16: 0 | AC16: 0 | AD16: 0 | AE16: 0 | AF16: 0 | AG16: 0 | AH16: 0 | AI16: 0 | AJ16: 0 | AK16: 0 | AL16: 151.17 | AM16: 252.25 | AN16: 210.33 | AO16: 204.03 | AP16: 1117.93 | AQ16: 1985.97 | AR16: 2115.94 | AS16: 1926.59 | AT16: 1872.07 | AU16: 1840.2 | AV16: 1838.11 | AW16: 1825.3 | AX16: 1797.44
A17: Biodiesel | B17: Biodiesel | D17: 0 | G17: 0 | H17: 0 | I17: 0 | J17: 0 | K17: 0 | L17: 0 | M17: 0 | N17: 0 | O17: 0 | P17: 0 | Q17: 0 | R17: 0 | S17: 0 | T17: 0 | U17: 0 | V17: 0 | W17: 0 | X17: 0 | Y17: 0 | Z17: 0 | AA17: 0 | AB17: 0 | AC17: 0 | AD17: 0 | AE17: 0 | AF17: 0 | AG17: 0 | AH17: 0 | AI17: 0 | AJ17: 0 | AK17: 0 | AL17: 0 | AM17: 0 | AN17: 10.31 | AO17: 139.19 | AP17: 16.07 | AQ17: 3491.8 | AR17: 6525.61 | AS17: 6782.98 | AT17: 7063.42 | AU17: 7128.5 | AV17: 7262.61 | AW17: 7194.5 | AX17: 7158.69
A18: El | B18: Electricity | D18: 356.4 | G18: 360 | H18: 410.4 | I18: 421.2 | J18: 421.2 | K18: 428.4 | L18: 478.8 | M18: 482.4 | N18: 482.4 | O18: 475.2 | P18: 468 | Q18: 493.2 | R18: 496.8 | S18: 540 | T18: 568.8 | U18: 738 | V18: 735.84 | W18: 716.76 | X18: 701.28 | Y18: 761.4 | Z18: 815.04 | AA18: 853.56 | AB18: 923.4 | AC18: 1015.56 | AD18: 1169.64 | AE18: 1226.16 | AF18: 1252.8 | AG18: 1252.44 | AH18: 1311.84 | AI18: 1269.72 | AJ18: 1333.08 | AK18: 1350.72 | AL18: 1352.52 | AM18: 1281.6 | AN18: 1360.44 | AO18: 1422 | AP18: 1455.12 | AQ18: 1428.84 | AR18: 1387.44 | AS18: 1390.68 | AT18: 1387.44 | AU18: 1429.2 | AV18: 1501.2 | AW18: 1465.43 | AX18: 1451.06
A20: Vejtransport i alt | B20: Road | D20: 88931.8 | G20: 86417.89 | H20: 91855.99 | I20: 94078.09 | J20: 103061.55 | K20: 101532.77 | L20: 100944.88 | M20: 97042.1 | N20: 99027.97 | O20: 102357.81 | P20: 110039.77 | Q20: 112762.12 | R20: 119385.93 | S20: 121236.94 | T20: 123496.91 | U20: 126384.07 | V20: 129943.38 | W20: 133938.52 | X20: 133770.79 | Y20: 133673.55 | Z20: 137300.05 | AA20: 139607.07 | AB20: 142562.27 | AC20: 145987.02 | AD20: 147861.27 | AE20: 153072.97 | AF20: 153665.63 | AG20: 153172.88 | AH20: 153559.78 | AI20: 156895.41 | AJ20: 160418.43 | AK20: 161922.99 | AL20: 166461.85 | AM20: 171914.99 | AN20: 168385.8 | AO20: 159794.9 | AP20: 161215.23 | AQ20: 159752.5 | AR20: 158001.55 | AS20: 155997.03 | AT20: 156504.24 | AU20: 159245.01 | AV20: 159958.21 | AW20: 162214.46 | AX20: 166119.7
A21: LPG | B21: LPG | D21: 522.17 | G21: 448.6 | H21: 415.82 | I21: 396.05 | J21: 387.68 | K21: 492.68 | L21: 879.89 | M21: 1424.92 | N21: 1520.92 | O21: 1341.43 | P21: 1032.93 | Q21: 747.87 | R21: 519.52 | S21: 380.1 | T21: 277.66 | U21: 212.15 | V21: 461.79 | W21: 130.5 | X21: 98.72 | Y21: 77.69 | Z21: 53.08 | AA21: 38.73 | AB21: 35.24 | AC21: 94.9 | AD21: 254.15 | AE21: 331.89 | AF21: 424.99 | AG21: 446.52 | AH21: 516.3 | AI21: 409.31 | AJ21: 377.71 | AK21: 322.6 | AL21: 261.37 | AM21: 215.6 | AN21: 182.25 | AO21: 118.54 | AP21: 2.58 | AQ21: 0 | AR21: 0 | AS21: 0 | AT21: 0 | AU21: 0 | AV21: 0 | AW21: 0 | AX21: 0
A22: Motorbenzin | B22: Motor Gasoline | D22: 66973.62 | G22: 66648.09 | H22: 69861.65 | I22: 70911.49 | J22: 72856.44 | K22: 68549.92 | L22: 67368.45 | M22: 63877.52 | N22: 62256.47 | O22: 62658.88 | P22: 64411.46 | Q22: 66031.83 | R22: 68660.95 | S22: 70484.83 | T22: 73134.99 | U22: 74094.67 | V22: 74291.57 | W22: 75270.5 | X22: 76062.64 | Y22: 76690.89 | Z22: 78418.83 | AA22: 80956.4 | AB22: 82619.88 | AC22: 85315.71 | AD22: 86497.86 | AE22: 89107.78 | AF22: 88947.78 | AG22: 86456.15 | AH22: 86222.62 | AI22: 85592.01 | AJ22: 84610.2 | AK22: 82110.73 | AL22: 79821.26 | AM22: 78317.63 | AN22: 74543.55 | AO22: 70878.59 | AP22: 67719.36 | AQ22: 63089.97 | AR22: 59948.83 | AS22: 57435.19 | AT22: 57928.67 | AU22: 57440.65 | AV22: 56302.52 | AW22: 56580.66 | AX22: 56755.81
A23: Petroleum | B23: Other Kerosene | D23: 67.86 | G23: 31.62 | H23: 30.77 | I23: 16.12 | J23: 33.3 | K23: 194.57 | L23: 128.79 | M23: 139.76 | N23: 233.61 | O23: 168.99 | P23: 183.19 | Q23: 373.72 | R23: 467.26 | S23: 745.83 | T23: 397.97 | U23: 222.75 | V23: 443.98 | W23: 110.66 | X23: 98.52 | Y23: 108.68 | Z23: 73.22 | AA23: 50.88 | AB23: 56.03 | AC23: 48.62 | AD23: 36.99 | AE23: 14.48 | AF23: 10.44 | AG23: 16.63 | AH23: 7.24 | AI23: 19.38 | AJ23: 8.84 | AK23: 13.75 | AL23: 5.39 | AM23: 18.72 | AN23: 2.23 | AO23: 0.42 | AP23: 0.28 | AQ23: 0.24 | AR23: 0.24 | AS23: 0.21 | AT23: 0 | AU23: 0 | AV23: 0 | AW23: 0 | AX23: 0
A24: Gas/dieselolie | B24: Gas-/Diesel Oil | D24: 21368.14 | G24: 19289.58 | H24: 21547.74 | I24: 22754.44 | J24: 29784.12 | K24: 32295.6 | L24: 32567.75 | M24: 31599.91 | N24: 35016.96 | O24: 38188.51 | P24: 44412.2 | Q24: 45608.7 | R24: 49738.19 | S24: 49626.18 | T24: 49686.29 | U24: 51854.49 | V24: 54746.04 | W24: 58426.85 | X24: 57510.91 | Y24: 56796.29 | Z24: 58754.91 | AA24: 58561.06 | AB24: 59851.12 | AC24: 60527.79 | AD24: 61072.26 | AE24: 63618.82 | AF24: 64282.41 | AG24: 66253.58 | AH24: 66813.62 | AI24: 70874.7 | AJ24: 75421.69 | AK24: 79475.92 | AL24: 86222.65 | AM24: 93110.78 | AN24: 93437.13 | AO24: 88454.12 | AP24: 92359.03 | AQ24: 91184.52 | AR24: 89410.92 | AS24: 89852.06 | AT24: 89640.09 | AU24: 92759.31 | AV24: 94419.3 | AW24: 96346.81 | AX24: 100078.71
A25: Fuelolie | B25: Fuel Oil | D25: 0 | G25: 0 | H25: 0 | I25: 0 | J25: 0 | K25: 0 | L25: 0 | M25: 0 | N25: 0 | O25: 0 | P25: 0 | Q25: 0 | R25: 0 | S25: 0 | T25: 0 | U25: 0 | V25: 0 | W25: 0 | X25: 0 | Y25: 0 | Z25: 0 | AA25: 0 | AB25: 0 | AC25: 0 | AD25: 0 | AE25: 0 | AF25: 0 | AG25: 0 | AH25: 0 | AI25: 0 | AJ25: 0 | AK25: 0 | AL25: 0 | AM25: 0 | AN25: 0 | AO25: 0 | AP25: 0 | AQ25: 0 | AR25: 0 | AS25: 0 | AT25: 0 | AU25: 0 | AV25: 0 | AW25: 0 | AX25: 0
A26: Naturgas | B26: Natural Gas | AU26: 75.55 | AV26: 131.57 | AW26: 253.27 | AX26: 305.54
A27: Bionaturgas | B27: Bio Methane | AU27: 0.8 | AV27: 4.1 | AW27: 13.93 | AX27: 23.5
A28: Bioethanol | B28: Bioethanol | D28: 0 | G28: 0 | H28: 0 | I28: 0 | J28: 0 | K28: 0 | L28: 0 | M28: 0 | N28: 0 | O28: 0 | P28: 0 | Q28: 0 | R28: 0 | S28: 0 | T28: 0 | U28: 0 | V28: 0 | W28: 0 | X28: 0 | Y28: 0 | Z28: 0 | AA28: 0 | AB28: 0 | AC28: 0 | AD28: 0 | AE28: 0 | AF28: 0 | AG28: 0 | AH28: 0 | AI28: 0 | AJ28: 0 | AK28: 0 | AL28: 151.17 | AM28: 252.25 | AN28: 210.33 | AO28: 204.03 | AP28: 1117.93 | AQ28: 1985.97 | AR28: 2115.94 | AS28: 1926.59 | AT28: 1872.07 | AU28: 1840.2 | AV28: 1838.11 | AW28: 1825.3 | AX28: 1797.44
A29: Biodiesel | B29: Biodiesel | D29: 0 | G29: 0 | H29: 0 | I29: 0 | J29: 0 | K29: 0 | L29: 0 | M29: 0 | N29: 0 | O29: 0 | P29: 0 | Q29: 0 | R29: 0 | S29: 0 | T29: 0 | U29: 0 | V29: 0 | W29: 0 | X29: 0 | Y29: 0 | Z29: 0 | AA29: 0 | AB29: 0 | AC29: 0 | AD29: 0 | AE29: 0 | AF29: 0 | AG29: 0 | AH29: 0 | AI29: 0 | AJ29: 0 | AK29: 0 | AL29: 0 | AM29: 0 | AN29: 10.31 | AO29: 139.19 | AP29: 16.07 | AQ29: 3491.8 | AR29: 6525.61 | AS29: 6782.98 | AT29: 7063.42 | AU29: 7128.5 | AV29: 7262.61 | AW29: 7194.5 | AX29: 7158.69
A31: Jernbanetransport i alt | B31: Rail | D31: 5051.52 | G31: 4654.62 | H31: 4752.57 | I31: 4707.35 | J31: 4547.51 | K31: 4737.93 | L31: 5016.47 | M31: 5941.14 | N31: 6453.09 | O31: 5801.2 | P31: 5657.71 | Q31: 5410.7 | R31: 5445.79 | S31: 4945.41 | T31: 5131.01 | U31: 4956.71 | V31: 4764.87 | W31: 4811.14 | X31: 5029.57 | Y31: 5239.16 | Z31: 4873.16 | AA31: 4957.45 | AB31: 4995.15 | AC31: 4974.16 | AD31: 4507.98 | AE31: 4363.06 | AF31: 4339.25 | AG31: 4112.65 | AH31: 4162.44 | AI31: 4219.89 | AJ31: 4254.81 | AK31: 4487.52 | AL31: 4417.26 | AM31: 4363.15 | AN31: 4559 | AO31: 4532.83 | AP31: 4728.03 | AQ31: 4799.15 | AR31: 4756.73 | AS31: 4739.7 | AT31: 4794.56 | AU31: 4784.7 | AV31: 4926.69 | AW31: 4762.13 | AX31: 4478.68
A32: Motorbenzin | B32: Motor Gasoline | D32: 0 | G32: 0.33 | H32: 0.79 | I32: 0.13 | J32: 0.07 | K32: 0 | L32: 0.23 | M32: 0.13 | N32: 0 | O32: 0 | P32: 0 | Q32: 0 | R32: 0 | S32: 0.16 | T32: 0 | U32: 18.76 | V32: 18.95 | W32: 15.18 | X32: 14.13 | Y32: 0.03 | Z32: 0 | AA32: 10.22 | AB32: 9.07 | AC32: 3.12 | AD32: 0.72 | AE32: 1.57 | AF32: 7.72 | AG32: 6.37 | AH32: 6.01 | AI32: 0.07 | AJ32: 0.03 | AK32: 0.03 | AL32: 0.36 | AM32: 5.98 | AN32: 0 | AO32: 0 | AP32: 0.13 | AQ32: 0.3 | AR32: 0.03 | AS32: 0.49 | AT32: 0 | AU32: 0 | AV32: 0 | AW32: 0.03 | AX32: 0.03
A33: Petroleum | B33: Other Kerosene | D33: 0 | G33: 0 | H33: 0 | I33: 0.17 | J33: 0.21 | K33: 0.21 | L33: 0.21 | M33: 0 | N33: 0 | O33: 0 | P33: 0 | Q33: 0 | R33: 0 | S33: 5.5 | T33: 0.66 | U33: 0.49 | V33: 0.07 | W33: 2.19 | X33: 1.22 | Y33: 1.04 | Z33: 0.56 | AA33: 0.42 | AB33: 0.38 | AC33: 0.14 | AD33: 0.07 | AE33: 0 | AF33: 0 | AG33: 0 | AH33: 0 | AI33: 0.07 | AJ33: 0 | AK33: 0 | AL33: 0 | AM33: 0.03 | AN33: 0 | AO33: 0 | AP33: 0 | AQ33: 0 | AR33: 0 | AS33: 0 | AT33: 0 | AU33: 0 | AV33: 0 | AW33: 0 | AX33: 0
A34: Gas/dieselolie | B34: Gas-/Diesel Oil | D34: 4695.12 | G34: 4294.29 | H34: 4341.39 | I34: 4285.84 | J34: 4126.04 | K34: 4309.32 | L34: 4537.23 | M34: 5458.61 | N34: 5970.69 | O34: 5326 | P34: 5189.71 | Q34: 4917.5 | R34: 4948.99 | S34: 4399.75 | T34: 4561.55 | U34: 4199.46 | V34: 4010.01 | W34: 4077.01 | X34: 4312.95 | Y34: 4476.69 | Z34: 4057.57 | AA34: 4093.26 | AB34: 4062.3 | AC34: 3955.34 | AD34: 3337.55 | AE34: 3135.33 | AF34: 3078.73 | AG34: 2853.84 | AH34: 2844.58 | AI34: 2950.04 | AJ34: 2921.7 | AK34: 3136.76 | AL34: 3064.38 | AM34: 3075.54 | AN34: 3198.56 | AO34: 3110.83 | AP34: 3272.78 | AQ34: 3370.01 | AR34: 3369.26 | AS34: 3348.53 | AT34: 3407.12 | AU34: 3355.5 | AV34: 3425.49 | AW34: 3296.67 | AX34: 3027.58
A35: El | B35: Electricity | D35: 356.4 | G35: 360 | H35: 410.4 | I35: 421.2 | J35: 421.2 | K35: 428.4 | L35: 478.8 | M35: 482.4 | N35: 482.4 | O35: 475.2 | P35: 468 | Q35: 493.2 | R35: 496.8 | S35: 540 | T35: 568.8 | U35: 738 | V35: 735.84 | W35: 716.76 | X35: 701.28 | Y35: 761.4 | Z35: 815.04 | AA35: 853.56 | AB35: 923.4 | AC35: 1015.56 | AD35: 1169.64 | AE35: 1226.16 | AF35: 1252.8 | AG35: 1252.44 | AH35: 1311.84 | AI35: 1269.72 | AJ35: 1333.08 | AK35: 1350.72 | AL35: 1352.52 | AM35: 1281.6 | AN35: 1360.44 | AO35: 1422 | AP35: 1455.12 | AQ35: 1428.84 | AR35: 1387.44 | AS35: 1390.68 | AT35: 1387.44 | AU35: 1429.2 | AV35: 1501.2 | AW35: 1465.43 | AX35: 1451.06
A37: Søtransport, indenrigs i alt | B37: Domestic Sea Transport | D37: 7891.4 | G37: 6862.43 | H37: 6836.27 | I37: 6063.15 | J37: 7245.52 | K37: 5697.47 | L37: 5588.24 | M37: 4669.28 | N37: 6101.74 | O37: 5558.39 | P37: 4486.49 | Q37: 5595.54 | R37: 6465.23 | S37: 6880.21 | T37: 5959.83 | U37: 6649.95 | V37: 6344.44 | W37: 7633.8 | X37: 6920.58 | Y37: 7639.16 | Z37: 7189.64 | AA37: 7625.07 | AB37: 7925.86 | AC37: 6851.59 | AD37: 5457.24 | AE37: 4844.82 | AF37: 6857.27 | AG37: 7121.35 | AH37: 7919.46 | AI37: 7832.92 | AJ37: 6929.41 | AK37: 8026.03 | AL37: 7268.07 | AM37: 6330.2 | AN37: 8113.04 | AO37: 7534.51 | AP37: 6533.05 | AQ37: 6385.47 | AR37: 6218.85 | AS37: 6292.97 | AT37: 5023.92 | AU37: 5639.71 | AV37: 6398.64 | AW37: 6214.05 | AX37: 6390.93
A38: LPG | B38: LPG | D38: 0 | G38: 0 | H38: 0 | I38: 0 | J38: 0 | K38: 0 | L38: 0 | M38: 0 | N38: 3.71 | O38: 3.28 | P38: 0 | Q38: 3.19 | R38: 1.15 | S38: 2.67 | T38: 0 | U38: 1.93 | V38: 1.79 | W38: 1.7 | X38: 3.13 | Y38: 15.73 | Z38: 1.43 | AA38: 2.3 | AB38: 1.15 | AC38: 1.52 | AD38: 2.71 | AE38: 0.78 | AF38: 0.14 | AG38: 0 | AH38: 0 | AI38: 0.23 | AJ38: 0.05 | AK38: 0.09 | AL38: 0.18 | AM38: 0.09 | AN38: 0 | AO38: 0 | AP38: 0 | AQ38: 0 | AR38: 0 | AS38: 0 | AT38: 0 | AU38: 0 | AV38: 0 | AW38: 0 | AX38: 0
A39: Petroleum | B39: Other Kerosene | D39: 0 | G39: 0.1 | H39: 0.07 | I39: 0.07 | J39: 0.07 | K39: 0.07 | L39: 0.35 | M39: 0.21 | N39: 1.15 | O39: 0.63 | P39: 4.14 | Q39: 4.66 | R39: 0 | S39: 5.12 | T39: 2.71 | U39: 1.43 | V39: 0.45 | W39: 2.02 | X39: 0.9 | Y39: 0.84 | Z39: 1.04 | AA39: 0.77 | AB39: 0.59 | AC39: 0.28 | AD39: 1.15 | AE39: 0.38 | AF39: 0.63 | AG39: 0.52 | AH39: 0.7 | AI39: 1.08 | AJ39: 0.94 | AK39: 0.7 | AL39: 0.1 | AM39: 0 | AN39: 0 | AO39: 0 | AP39: 0 | AQ39: 0 | AR39: 0 | AS39: 0 | AT39: 0 | AU39: 0 | AV39: 0 | AW39: 0 | AX39: 0
A40: Gas/dieselolie | B40: Gas-/Diesel Oil | D40: 5548.78 | G40: 5086.77 | H40: 4848.99 | I40: 4361.95 | J40: 5390.92 | K40: 3982.14 | L40: 3797.2 | M40: 3022.49 | N40: 3409.11 | O40: 3669.66 | P40: 3091.18 | Q40: 3073.96 | R40: 3044.91 | S40: 3032.21 | T40: 3229.91 | U40: 2669.05 | V40: 2782.39 | W40: 3313.34 | X40: 3501.29 | Y40: 4971.3 | Z40: 5034.58 | AA40: 6049.07 | AB40: 6764.45 | AC40: 5899.32 | AD40: 4113.31 | AE40: 3408.75 | AF40: 5347.7 | AG40: 5607.67 | AH40: 5854.52 | AI40: 6008.79 | AJ40: 5258.93 | AK40: 6645.91 | AL40: 5986.33 | AM40: 5232.96 | AN40: 6953.62 | AO40: 6489.27 | AP40: 5664.85 | AQ40: 5653.69 | AR40: 5595.16 | AS40: 5517.93 | AT40: 4478.27 | AU40: 5600.52 | AV40: 6396.29 | AW40: 6214.05 | AX40: 6386.38
A41: Fuelolie | B41: Fuel Oil | D41: 2342.62 | G41: 1775.56 | H41: 1987.21 | I41: 1701.14 | J41: 1854.52 | K41: 1715.26 | L41: 1790.69 | M41: 1646.58 | N41: 2687.77 | O41: 1884.82 | P41: 1391.17 | Q41: 2513.73 | R41: 3419.17 | S41: 3840.22 | T41: 2727.2 | U41: 3977.54 | V41: 3559.81 | W41: 4316.74 | X41: 3415.25 | Y41: 2651.29 | Z41: 2152.59 | AA41: 1572.93 | AB41: 1159.67 | AC41: 950.48 | AD41: 1340.07 | AE41: 1434.9 | AF41: 1508.81 | AG41: 1513.16 | AH41: 2064.25 | AI41: 1822.83 | AJ41: 1669.5 | AK41: 1379.34 | AL41: 1281.45 | AM41: 1097.14 | AN41: 1159.42 | AO41: 1045.23 | AP41: 868.2 | AQ41: 731.78 | AR41: 623.69 | AS41: 775.03 | AT41: 545.64 | AU41: 39.19 | AV41: 2.36 | AW41: 0 | AX41: 4.55
A43: Lufttransport, indenrigs i alt | B43: Domestic Aviation | D43: 768 | G43: 898.09 | H43: 1027.76 | I43: 1165.63 | J43: 1313.87 | K43: 1458.9 | L43: 1606.64 | M43: 1731.58 | N43: 1855.95 | O43: 1996.72 | P43: 2137.54 | Q43: 2292.96 | R43: 2460.1 | S43: 2655.3 | T43: 2860.2 | U43: 2917.34 | V43: 2587.3 | W43: 2408.66 | X43: 2353.01 | Y43: 2300.37 | Z43: 2374.24 | AA43: 2470.14 | AB43: 2654.58 | AC43: 2655.9 | AD43: 2377.54 | AE43: 2111.88 | AF43: 1803.02 | AG43: 1831.95 | AH43: 1494.09 | AI43: 1468.07 | AJ43: 1225.37 | AK43: 1303.83 | AL43: 1362.94 | AM43: 1622.49 | AN43: 1696.41 | AO43: 1679.43 | AP43: 1812.79 | AQ43: 1722.63 | AR43: 1473.49 | AS43: 1443.93 | AT43: 1367.28 | AU43: 1284.68 | AV43: 1325.23 | AW43: 1262.04 | AX43: 1201.99
A44: LPG | B44: LPG | D44: 0 | G44: 0 | H44: 0 | I44: 0 | J44: 0 | K44: 0.42 | L44: 0.52 | M44: 0 | N44: 0 | O44: 0 | P44: 0 | Q44: 0 | R44: 0 | S44: 0 | T44: 0 | U44: 0 | V44: 0 | W44: 0 | X44: 0 | Y44: 0 | Z44: 0 | AA44: 0 | AB44: 0 | AC44: 0 | AD44: 0 | AE44: 0 | AF44: 0 | AG44: 0 | AH44: 0 | AI44: 0 | AJ44: 0 | AK44: 0 | AL44: 0 | AM44: 0 | AN44: 0 | AO44: 0 | AP44: 0 | AQ44: 0 | AR44: 0 | AS44: 0 | AT44: 0.05 | AU44: 0 | AV44: 0 | AW44: 0 | AX44: 0
A45: Flybenzin | B45: Aviation Gasoline | D45: 281.56 | G45: 176.16 | H45: 164.62 | I45: 161.27 | J45: 147.57 | K45: 146.55 | L45: 149.33 | M45: 153.41 | N45: 137.44 | O45: 136.26 | P45: 140.93 | Q45: 153.5 | R45: 148.12 | S45: 122.18 | T45: 139.04 | U45: 152.94 | V45: 144.17 | W45: 137.36 | X45: 131.33 | Y45: 124.24 | Z45: 126.23 | AA45: 134.03 | AB45: 121.72 | AC45: 118.27 | AD45: 106.88 | AE45: 107.94 | AF45: 105.05 | AG45: 90.93 | AH45: 81.32 | AI45: 82.44 | AJ45: 80.17 | AK45: 77.47 | AL45: 92.21 | AM45: 98.39 | AN45: 87.51 | AO45: 73.39 | AP45: 65.68 | AQ45: 57.44 | AR45: 62.76 | AS45: 64.87 | AT45: 38.87 | AU45: 46.4 | AV45: 46.99 | AW45: 30.97 | AX45: 49.23
A46: Motorbenzin | B46: Motor Gasoline | D46: 0 | G46: 0 | H46: 0 | I46: 0 | J46: 20.72 | K46: 25.06 | L46: 28.78 | M46: 8.94 | N46: 8.06 | O46: 8.71 | P46: 3.72 | Q46: 5.35 | R46: 8.97 | S46: 16.95 | T46: 16.06 | U46: 38.66 | V46: 15.93 | W46: 4.24 | X46: 6.93 | Y46: 6.11 | Z46: 6.08 | AA46: 31.37 | AB46: 26.74 | AC46: 22.4 | AD46: 21.67 | AE46: 19.38 | AF46: 19.97 | AG46: 11.76 | AH46: 18.69 | AI46: 19.12 | AJ46: 18.49 | AK46: 7.39 | AL46: 0.33 | AM46: 1.48 | AN46: 1.58 | AO46: 1.28 | AP46: 0.89 | AQ46: 1.05 | AR46: 0.76 | AS46: 0.33 | AT46: 0.23 | AU46: 0.13 | AV46: 0 | AW46: 0.1 | AX46: 0
A47: Petroleum | B47: Other Kerosene | D47: 0 | G47: 0 | H47: 0 | I47: 0 | J47: 0 | K47: 0.07 | L47: 0 | M47: 0 | N47: 0 | O47: 0.07 | P47: 0 | Q47: 0 | R47: 0 | S47: 0 | T47: 0 | U47: 22.86 | V47: 17.78 | W47: 0.28 | X47: 0.28 | Y47: 0.14 | Z47: 0.31 | AA47: 0.35 | AB47: 0.03 | AC47: 0 | AD47: 56.03 | AE47: 71.17 | AF47: 28.19 | AG47: 37.93 | AH47: 30.8 | AI47: 28.61 | AJ47: 9.05 | AK47: 0 | AL47: 0 | AM47: 0 | AN47: 0 | AO47: 0 | AP47: 0 | AQ47: 0 | AR47: 0 | AS47: 0 | AT47: 0 | AU47: 0 | AV47: 0 | AW47: 0 | AX47: 0
A48: JP1 | B48: JP1 | D48: 486.44 | G48: 721.93 | H48: 863.14 | I48: 1004.36 | J48: 1145.58 | K48: 1286.8 | L48: 1428.02 | M48: 1569.24 | N48: 1710.45 | O48: 1851.67 | P48: 1992.89 | Q48: 2134.11 | R48: 2303.01 | S48: 2516.16 | T48: 2705.1 | U48: 2702.88 | V48: 2409.42 | W48: 2266.79 | X48: 2214.47 | Y48: 2169.89 | Z48: 2241.62 | AA48: 2304.39 | AB48: 2506.09 | AC48: 2515.23 | AD48: 2192.96 | AE48: 1913.39 | AF48: 1649.81 | AG48: 1691.32 | AH48: 1363.28 | AI48: 1337.91 | AJ48: 1117.65 | AK48: 1218.98 | AL48: 1270.4 | AM48: 1522.62 | AN48: 1607.32 | AO48: 1604.76 | AP48: 1746.22 | AQ48: 1664.14 | AR48: 1409.98 | AS48: 1378.73 | AT48: 1328.13 | AU48: 1238.15 | AV48: 1278.24 | AW48: 1230.97 | AX48: 1152.76
A50: Lufttransport, udenrigs i alt | B50: International Aviation | D50: 23302.86 | G50: 22629.8 | H50: 23656.68 | I50: 25311.34 | J50: 26562.52 | K50: 26270.83 | L50: 22035.68 | M50: 19326.47 | N50: 19514.86 | O50: 19842.07 | P50: 20531.03 | Q50: 20587.78 | R50: 21773.37 | S50: 23483.62 | T50: 24867.87 | U50: 25907.86 | V50: 24927.6 | W50: 23028.94 | X50: 23853.85 | Y50: 23382.88 | Z50: 25601.75 | AA50: 26249.64 | AB50: 27591.88 | AC50: 28231.44 | AD50: 30375.86 | AE50: 32201.1 | AF50: 33019.28 | AG50: 33583.47 | AH50: 29099.57 | AI50: 30226.63 | AJ50: 34571.24 | AK50: 36323.03 | AL50: 36476.48 | AM50: 37379.06 | AN50: 37322.48 | AO50: 32617.59 | AP50: 33972.32 | AQ50: 34914.17 | AR50: 35222.83 | AS50: 34855.82 | AT50: 37757.87 | AU50: 36961.33 | AV50: 39740.44 | AW50: 41000.54 | AX50: 42943.88
A51: Flybenzin | B51: Aviation Gasoline | D51: 406.69 | G51: 237.73 | H51: 33.32 | I51: 32.75 | J51: 39.87 | K51: 29.68 | L51: 12.85 | M51: 13.4 | N51: 16.49 | O51: 18.31 | P51: 12.91 | Q51: 6.64 | R51: 16.95 | S51: 18.38 | T51: 15.86 | U51: 7.46 | V51: 5.69 | W51: 2.43 | X51: 4.17 | Y51: 7.87 | Z51: 6.47 | AA51: 11.35 | AB51: 9.05 | AC51: 7.9 | AD51: 7.37 | AE51: 3.95 | AF51: 5.26 | AG51: 17.07 | AH51: 25.34 | AI51: 18.16 | AJ51: 24.6 | AK51: 25.38 | AL51: 1.62 | AM51: 0.75 | AN51: 8.37 | AO51: 3.86 | AP51: 3.86 | AQ51: 3.86 | AR51: 0.9 | AS51: 1.83 | AT51: 2.99 | AU51: 6.93 | AV51: 0.65 | AW51: 0 | AX51: 0
A52: JP1 | B52: JP1 | D52: 22896.17 | G52: 22392.08 | H52: 23623.37 | I52: 25278.58 | J52: 26522.65 | K52: 26241.15 | L52: 22022.83 | M52: 19313.06 | N52: 19498.37 | O52: 19823.75 | P52: 20518.12 | Q52: 20581.14 | R52: 21756.42 | S52: 23465.24 | T52: 24852.01 | U52: 25900.39 | V52: 24921.91 | W52: 23026.51 | X52: 23849.68 | Y52: 23375.02 | Z52: 25595.28 | AA52: 26238.29 | AB52: 27582.83 | AC52: 28223.54 | AD52: 30368.49 | AE52: 32197.15 | AF52: 33014.02 | AG52: 33566.4 | AH52: 29074.23 | AI52: 30208.47 | AJ52: 34546.64 | AK52: 36297.65 | AL52: 36474.86 | AM52: 37378.32 | AN52: 37314.11 | AO52: 32613.73 | AP52: 33968.46 | AQ52: 34910.31 | AR52: 35221.93 | AS52: 34853.98 | AT52: 37754.88 | AU52: 36954.39 | AV52: 39739.79 | AW52: 41000.54 | AX52: 42943.88
A54: Forsvarets transport i alt | B54: Military Transport | D54: 8136.83 | G54: 8058.08 | H54: 8827.83 | I54: 8331.15 | J54: 8269.4 | K54: 10851.39 | L54: 8144.59 | M54: 8583.87 | N54: 9200.28 | O54: 8246.52 | P54: 7450.21 | Q54: 5546.44 | R54: 4340.35 | S54: 5002.02 | T54: 2715.21 | U54: 2278.14 | V54: 1648.84 | W54: 3936.12 | X54: 1927.68 | Y54: 3268.26 | Z54: 3478.23 | AA54: 3448.53 | AB54: 2423.17 | AC54: 2336.16 | AD54: 2791.8 | AE54: 2504.56 | AF54: 1524.74 | AG54: 1320.78 | AH54: 1220.84 | AI54: 1261.1 | AJ54: 3280.28 | AK54: 3725.58 | AL54: 1738.67 | AM54: 2409.71 | AN54: 1477.02 | AO54: 2191.43 | AP54: 1470.03 | AQ54: 2651.95 | AR54: 1582.93 | AS54: 1929.9 | AT54: 1810.18 | AU54: 1349.72 | AV54: 1479.29 | AW54: 2799.73 | AX54: 1605.9
A55: Flybenzin | B55: Aviation Gasoline | D55: 62.57 | G55: 32.47 | H55: 46.02 | I55: 48.49 | J55: 46.76 | K55: 41.85 | L55: 39.01 | M55: 23.84 | N55: 7.2 | O55: 8.8 | P55: 11.58 | Q55: 7.38 | R55: 8.18 | S55: 11.69 | T55: 6.53 | U55: 5.16 | V55: 4.91 | W55: 6.16 | X55: 4.79 | Y55: 9.39 | Z55: 6.69 | AA55: 7.99 | AB55: 7.68 | AC55: 9.64 | AD55: 9.08 | AE55: 6.06 | AF55: 8.89 | AG55: 6.9 | AH55: 8.27 | AI55: 6.1 | AJ55: 6.44 | AK55: 4.6 | AL55: 3.64 | AM55: 6.31 | AN55: 3.05 | AO55: 5.04 | AP55: 6.19 | AQ55: 3.7 | AR55: 3.73 | AS55: 2.49 | AT55: 5.91 | AU55: 3.73 | AV55: 1.24 | AW55: 0 | AX55: 0
A56: Motorbenzin | B56: Motor Gasoline | D56: 333.66 | G56: 353.16 | H56: 597.45 | I56: 351.98 | J56: 515.25 | K56: 475.15 | L56: 432.51 | M56: 300.87 | N56: 117.94 | O56: 237.18 | P56: 214.64 | Q56: 324.16 | R56: 242.53 | S56: 7.33 | T56: 348.31 | U56: 205.64 | V56: 0.99 | W56: 1.18 | X56: 0.99 | Y56: 0.56 | Z56: 0.53 | AA56: 0.33 | AB56: 0.33 | AC56: 0.3 | AD56: 0 | AE56: 32.47 | AF56: 0.89 | AG56: 0 | AH56: 0.07 | AI56: 3.97 | AJ56: 7.13 | AK56: 7.46 | AL56: 6.6 | AM56: 6.37 | AN56: 11.73 | AO56: 8.84 | AP56: 5.68 | AQ56: 0 | AR56: 1.51 | AS56: 3.61 | AT56: 2.99 | AU56: 1.91 | AV56: 2.1 | AW56: 1.68 | AX56: 1.81
A57: JP4 | B57: JP4 | D57: 7367.13 | G57: 7322.08 | H57: 7617.19 | I57: 7096.65 | J57: 7008.12 | K57: 9524.32 | L57: 7499.79 | M57: 7696.31 | N57: 7506.58 | O57: 7207.93 | P57: 5519.81 | Q57: 3845.24 | R57: 2668.11 | S57: 4300.3 | T57: 97.41 | U57: 0 | V57: 0 | W57: 0 | X57: 0 | Y57: 0 | Z57: 0 | AA57: 0 | AB57: 0 | AC57: 0 | AD57: 0 | AE57: 0 | AF57: 0 | AG57: 0 | AH57: 0 | AI57: 0 | AJ57: 0 | AK57: 0 | AL57: 0 | AM57: 0 | AN57: 0 | AO57: 0 | AP57: 0 | AQ57: 0 | AR57: 0 | AS57: 0 | AT57: 0 | AU57: 0 | AV57: 0 | AW57: 0 | AX57: 0
A58: JP1 | B58: JP1 | D58: 0 | G58: 14.99 | H58: 23.21 | I58: 17.37 | J58: 18.13 | K58: 17.68 | L58: 22.1 | M58: 18.51 | N58: 12.21 | O58: 10.61 | P58: 8.77 | Q58: 8.14 | R58: 13.75 | S58: 21.33 | T58: 2120.71 | U58: 1753.92 | V58: 1496.78 | W58: 2287.89 | X58: 927.07 | Y58: 2357.63 | Z58: 2686.87 | AA58: 1646.21 | AB58: 1693.16 | AC58: 1020.02 | AD58: 1278.38 | AE58: 1473.78 | AF58: 1146.45 | AG58: 429.08 | AH58: 777.81 | AI58: 665.24 | AJ58: 1853.62 | AK58: 2442.75 | AL58: 1096.86 | AM58: 1718.08 | AN58: 831.75 | AO58: 1078.52 | AP58: 861.82 | AQ58: 1603.34 | AR58: 697.98 | AS58: 1051.31 | AT58: 963.16 | AU58: 734.42 | AV58: 676.48 | AW58: 1336.22 | AX58: 629.64
A59: Gas/dieselolie | B59: Gas-/Diesel Oil | D59: 373.48 | G59: 335.38 | H59: 543.96 | I59: 816.65 | J59: 681.13 | K59: 792.4 | L59: 151.18 | M59: 544.33 | N59: 1556.35 | O59: 781.99 | P59: 1695.41 | Q59: 1361.51 | R59: 1407.78 | S59: 661.37 | T59: 142.25 | U59: 313.41 | V59: 146.16 | W59: 1640.89 | X59: 994.83 | Y59: 900.68 | Z59: 784.15 | AA59: 1794 | AB59: 722 | AC59: 1306.2 | AD59: 1504.34 | AE59: 992.25 | AF59: 368.51 | AG59: 884.79 | AH59: 434.68 | AI59: 585.8 | AJ59: 1413.09 | AK59: 1270.77 | AL59: 631.56 | AM59: 678.95 | AN59: 630.49 | AO59: 1099.03 | AP59: 596.34 | AQ59: 1044.91 | AR59: 879.7 | AS59: 872.49 | AT59: 838.13 | AU59: 609.66 | AV59: 799.46 | AW59: 1461.84 | AX59: 974.46

Sheet BF20 2015 (hidden)
A1: National energibalance - 2015
A2: Enhed: TJ
A3: year | C3: Kul & Koks | D3: Olie | E3: Olie | F3: Olie | G3: Olie | H3: Olie | I3: Olie | J3: Olie | K3: Olie | L3: Olie | M3: Olie | N3: Naturgas | O3: Affald, ikke bionedbrydeligt | P3: Vedvarende energi | Q3: Vedvarende energi | R3: Vedvarende energi | S3: Vedvarende energi | T3: Vedvarende energi | U3: Vedvarende energi | V3: Vedvarende energi | W3: Vedvarende energi | X3: Vedvarende energi | Y3: Vedvarende energi | Z3: Vedvarende energi | AA3: Vedvarende energi | AB3: Elektricitet | AC3: Fjernvarme | AD3: Bygas
C4: Kul & Koks | D4: Råolie | E4: Orimulsion | F4: Petrokoks | G4: Fuelolie og Spildolie | H4: Gas & Dieselolie | I4: Petroleum | J4: Benzin og LVN | K4: JP1 og JP4 | L4: LPG | M4: Raffinaderigas | N4: Naturgas | O4: Affald, ikke bionedbrydeligt | P4: Affald, bionedbrydeligt | Q4: Halm | R4: Træflis | S4: Træpiller | T4: Træ Øvrig | U4: Energiafgrøder | V4: Biogas | W4: Bionaturgas | X4: Solenergi | Y4: Omgivelsesvarme | Z4: Vindenergi | AA4: Anden VE | AB4: Elektricitet | AC4: Fjernvarme | AD4: Bygas
B5: Energiforbrug i alt | C5: 76458 | D5: 306358 | E5: 0 | F5: 7207 | G5: -39600 | H5: 1854 | I5: 351 | J5: -28455 | K5: 32674 | L5: -2999 | M5: 0 | N5: 120075 | O5: 17861 | P5: 21830 | Q5: 19788 | R5: 17553 | S5: 36940 | T5: 35641 | U5: 9612 | V5: 6285 | W5: 0 | X5: 3713 | Y5: 8141 | Z5: 50879 | AA5: 65 | AB5: 21282 | AC5: 151 | AD5: 0
B6: Primær produktion | C6: 0 | D6: 330662 | E6: 0 | F6: 0 | G6: 48 | H6: 0 | I6: 0 | J6: 0 | K6: 0 | L6: 0 | M6: 0 | N6: 173510 | O6: 15665 | P6: 19147 | Q6: 19788 | R6: 14744 | S6: 2697 | T6: 33094 | U6: 636 | V6: 6285 | W6: 0 | X6: 3713 | Y6: 8141 | Z6: 50879 | AA6: 65 | AB6: 0 | AC6: 0 | AD6: 0
B7: Nettoimport | C7: 64674 | D7: -24647 | E7: 0 | F7: 5465 | G7: -17363 | H7: 50327 | I7: 319 | J7: -29232 | K7: 36341 | L7: -3183 | M7: 0 | N7: -57606 | O7: 2196 | P7: 2684 | Q7: 0 | R7: 2808 | S7: 34243 | T7: 2547 | U7: 9219 | V7: 0 | W7: 0 | X7: 0 | Y7: 0 | Z7: 0 | AA7: 0 | AB7: 21282 | AC7: 151 | AD7: 0
B8: Grænsehandel | C8: 0 | D8: 0 | E8: 0 | F8: 628 | G8: 0 | H8: -10760 | I8: 0 | J8: 2300 | K8: 0 | L8: 0 | M8: 0 | N8: 0 | O8: 0 | P8: 0 | Q8: 0 | R8: 0 | S8: 0 | T8: 0 | U8: 0 | V8: 0 | W8: 0 | X8: 0 | Y8: 0 | Z8: 0 | AA8: 0 | AB8: 0 | AC8: 0 | AD8: 0
B9: Udenrigsbunkring | C9: 0 | D9: 0 | E9: 0 | F9: 0 | G9: -13699 | H9: -18580 | I9: 0 | J9: 0 | K9: 0 | L9: 0 | M9: 0 | N9: 0 | O9: 0 | P9: 0 | Q9: 0 | R9: 0 | S9: 0 | T9: 0 | U9: 0 | V9: 0 | W9: 0 | X9: 0 | Y9: 0 | Z9: 0 | AA9: 0 | AB9: 0 | AC9: 0 | AD9: 0
B10: Lagertræk og statistisk difference | C10: 11784 | D10: 343 | E10: 0 | F10: 1114 | G10: -8586 | H10: -19133 | I10: 32 | J10: -1523 | K10: -3666 | L10: 184 | M10: 0 | N10: 4172 | O10: 0 | P10: 0 | Q10: 0 | R10: 0 | S10: 0 | T10: 0 | U10: -244 | V10: 0 | W10: 0 | X10: 0 | Y10: 0 | Z10: 0 | AA10: 0 | AB10: 0 | AC10: 0 | AD10: 0
B11: Energisektor | C11: 0 | D11: -306358 | E11: 0 | F11: 0 | G11: 53454 | H11: 137795 | I11: 0 | J11: 86903 | K11: 6252 | L11: 5342 | M11: 1583 | N11: -24082 | O11: 0 | P11: 0 | Q11: 0 | R11: 0 | S11: 0 | T11: 0 | U11: 0 | V11: 0 | W11: 0 | X11: 0 | Y11: 0 | Z11: 0 | AA11: 0 | AB11: -3386 | AC11: -480 | AD11: 0
B12: Udvinding og forgasning | C12: 0 | D12: 0 | E12: 0 | F12: 0 | G12: 0 | H12: 0 | I12: 0 | J12: 0 | K12: 0 | L12: 0 | M12: 0 | N12: -24082 | O12: 0 | P12: 0 | Q12: 0 | R12: 0 | S12: 0 | T12: 0 | U12: 0 | V12: 0 | W12: 0 | X12: 0 | Y12: 0 | Z12: 0 | AA12: 0 | AB12: 0 | AC12: 0 | AD12: 0
B13: Raffinaderiproduktion | C13: 0 | D13: 0 | E13: 0 | F13: 0 | G13: 54056 | H13: 137795 | I13: 0 | J13: 86903 | K13: 6252 | L13: 5342 | M13: 16580 | N13: 0 | O13: 0 | P13: 0 | Q13: 0 | R13: 0 | S13: 0 | T13: 0 | U13: 0 | V13: 0 | W13: 0 | X13: 0 | Y13: 0 | Z13: 0 | AA13: 0 | AB13: 0 | AC13: 0 | AD13: 0
B14: Forbrug ved raffinaderiprod. | C14: 0 | D14: -306358 | E14: 0 | F14: 0 | G14: -603 | H14: 0 | I14: 0 | J14: 0 | K14: 0 | L14: 0 | M14: -14997 | N14: 0 | O14: 0 | P14: 0 | Q14: 0 | R14: 0 | S14: 0 | T14: 0 | U14: 0 | V14: 0 | W14: 0 | X14: 0 | Y14: 0 | Z14: 0 | AA14: 0 | AB14: -1139 | AC14: -480 | AD14: 0
B15: Forbrug ved distribution | C15: 0 | D15: 0 | E15: 0 | F15: 0 | G15: 0 | H15: 0 | I15: 0 | J15: 0 | K15: 0 | L15: 0 | M15: 0 | N15: 0 | O15: 0 | P15: 0 | Q15: 0 | R15: 0 | S15: 0 | T15: 0 | U15: 0 | V15: 0 | W15: 0 | X15: 0 | Y15: 0 | Z15: 0 | AA15: 0 | AB15: -2247 | AC15: 0 | AD15: 0
B16: Power2X | C16: 0 | D16: 0 | E16: 0 | F16: 0 | G16: 0 | H16: 0 | I16: 0 | J16: 0 | K16: 0 | L16: 0 | M16: 0 | N16: 0 | O16: 0 | P16: 0 | Q16: 0 | R16: 0 | S16: 0 | T16: 0 | U16: 0 | V16: 0 | W16: 0 | X16: 0 | Y16: 0 | Z16: 0 | AA16: 0 | AB16: 0 | AC16: 0 | AD16: 0
B17: Konverteringssektor | C17: -71527 | D17: 0 | E17: 0 | F17: 0 | G17: -1701 | H17: -840 | I17: 0 | J17: 0 | K17: 0 | L17: -39 | M17: -1583 | N17: -35040 | O17: -17061 | P17: -20852 | Q17: -14873 | R17: -17299 | S17: -21511 | T17: -5231 | U17: -636 | V17: -5758 | W17: 642 | X17: -3132 | Y17: -140 | Z17: -50879 | AA17: -65 | AB17: 99372 | AC17: 129413 | AD17: 687
B18: Centrale anlæg | C18: -71061 | D18: 0 | E18: 0 | F18: 0 | G18: -955 | H18: -220 | I18: 0 | J18: 0 | K18: 0 | L18: 0 | M18: 0 | N18: -9313 | O18: 0 | P18: 0 | Q18: -5697 | R18: -4929 | S18: -19062 | T18: -1254 | U18: 0 | V18: -9 | W18: -98 | X18: 0 | Y18: 0 | Z18: 0 | AA18: 0 | AB18: 37421 | AC18: 50098 | AD18: 0
B19: Vindmøller og vandkraftsanlæg | C19: 0 | D19: 0 | E19: 0 | F19: 0 | G19: 0 | H19: 0 | I19: 0 | J19: 0 | K19: 0 | L19: 0 | M19: 0 | N19: 0 | O19: 0 | P19: 0 | Q19: 0 | R19: 0 | S19: 0 | T19: 0 | U19: 0 | V19: 0 | W19: 0 | X19: 0 | Y19: 0 | Z19: -50879 | AA19: -65 | AB19: 50944 | AC19: 0 | AD19: 0
B20: Decentrale anlæg | C20: -349 | D20: 0 | E20: 0 | F20: 0 | G20: -1 | H20: -12 | I20: 0 | J20: 0 | K20: 0 | L20: 0 | M20: 0 | N20: -5450 | O20: -2622 | P20: -3204 | Q20: -2891 | R20: -2198 | S20: -417 | T20: -1705 | U20: 0 | V20: -3020 | W20: -57 | X20: 0 | Y20: 0 | Z20: 0 | AA20: 0 | AB20: 5765 | AC20: 13777 | AD20: 0
B21: Fjernvarmeanlæg | C21: -88 | D21: 0 | E21: 0 | F21: 0 | G21: -105 | H21: -515 | I21: 0 | J21: 0 | K21: 0 | L21: 0 | M21: 0 | N21: -16227 | O21: -225 | P21: -275 | Q21: -6259 | R21: -9683 | S21: -2031 | T21: -528 | U21: -529 | V21: -267 | W21: -171 | X21: -956 | Y21: -140 | Z21: 0 | AA21: 0 | AB21: -1073 | AC21: 38218 | AD21: 0
B22: Sekundære producenter | C22: -29 | D22: 0 | E22: 0 | F22: 0 | G22: -640 | H22: -79 | I22: 0 | J22: 0 | K22: 0 | L22: -39 | M22: -1583 | N22: -3450 | O22: -14215 | P22: -17374 | Q22: -26 | R22: -489 | S22: -1 | T22: -1743 | U22: -107 | V22: -1354 | W22: -36 | X22: -2175 | Y22: 0 | Z22: 0 | AA22: 0 | AB22: 9986 | AC22: 27943 | AD22: 0
B23: Bygasværker | C23: 0 | D23: 0 | E23: 0 | F23: 0 | G23: 0 | H23: -14 | I23: 0 | J23: 0 | K23: 0 | L23: 0 | M23: 0 | N23: -601 | O23: 0 | P23: 0 | Q23: 0 | R23: 0 | S23: 0 | T23: 0 | U23: 0 | V23: -1108 | W23: 1004 | X23: 0 | Y23: 0 | Z23: 0 | AA23: 0 | AB23: 0 | AC23: 0 | AD23: 687
B24: Egetforbrug ved produktion | C24: 0 | D24: 0 | E24: 0 | F24: 0 | G24: 0 | H24: 0 | I24: 0 | J24: 0 | K24: 0 | L24: 0 | M24: 0 | N24: 0 | O24: 0 | P24: 0 | Q24: 0 | R24: 0 | S24: 0 | T24: 0 | U24: 0 | V24: 0 | W24: 0 | X24: 0 | Y24: 0 | Z24: 0 | AA24: 0 | AB24: -3670 | AC24: -623 | AD24: 0
B25: Distributionstab m.m. | C25: 0 | D25: 0 | E25: 0 | F25: 0 | G25: 0 | H25: 0 | I25: 0 | J25: 0 | K25: 0 | L25: 0 | M25: 0 | N25: -118 | O25: 0 | P25: 0 | Q25: 0 | R25: 0 | S25: 0 | T25: 0 | U25: 0 | V25: 0 | W25: -1 | X25: 0 | Y25: 0 | Z25: 0 | AA25: 0 | AB25: -6355 | AC25: -25913 | AD25: -27
B26: Endeligt energiforbrug | C26: -4954 | D26: 0 | E26: 0 | F26: -7233 | G26: -12162 | H26: -139374 | I26: -351 | J26: -58448 | K26: -38927 | L26: -2337 | M26: 0 | N26: -62358 | O26: -806 | P26: -985 | Q26: -5099 | R26: -264 | S26: -16026 | T26: -31485 | U26: -8976 | V26: -539 | W26: -656 | X26: -581 | Y26: -8230 | Z26: 0 | AA26: 0 | AB26: -111218 | AC26: -107398 | AD26: -675
B27: Ikke energiformål | C27: 0 | D27: 0 | E27: 0 | F27: 0 | G27: -10210 | H27: 0 | I27: -319 | J27: 0 | K27: 0 | L27: 0 | M27: 0 | N27: 0 | O27: 0 | P27: 0 | Q27: 0 | R27: 0 | S27: 0 | T27: 0 | U27: 0 | V27: 0 | W27: 0 | X27: 0 | Y27: 0 | Z27: 0 | AA27: 0 | AB27: 0 | AC27: 0 | AD27: 0
B28: Transport | C28: 0 | D28: 0 | E28: 0 | F28: 0 | G28: -39 | H28: -102325 | I28: 0 | J28: -57500 | K28: -38927 | L28: 0 | M28: 0 | N28: -76 | O28: 0 | P28: 0 | Q28: 0 | R28: 0 | S28: 0 | T28: 0 | U28: -8969 | V28: 0 | W28: -1 | X28: 0 | Y28: 0 | Z28: 0 | AA28: 0 | AB28: -1429 | AC28: 0 | AD28: 0
B29: Landbrug, skovbrug, gartneri og fiskeri | C29: -761 | D29: 0 | E29: 0 | F29: -1 | G29: -69 | H29: -18947 | I29: 0 | J29: -60 | K29: 0 | L29: -198 | M29: 0 | N29: -1523 | O29: 0 | P29: 0 | Q29: -2028 | R29: -26 | S29: 0 | T29: -183 | U29: 0 | V29: -114 | W29: -16 | X29: 0 | Y29: -634 | Z29: 0 | AA29: 0 | AB29: -6444 | AC29: -1678 | AD29: 0
B30: Fremstillingsvirksomhed | C30: -4193 | D30: 0 | E30: 0 | F30: -6570 | G30: -1808 | H30: -2331 | I30: -18 | J30: -6 | K30: 0 | L30: -914 | M30: 0 | N30: -27155 | O30: -669 | P30: -817 | Q30: 0 | R30: 0 | S30: -1343 | T30: -5795 | U30: 0 | V30: -246 | W30: -286 | X30: 0 | Y30: -1843 | Z30: 0 | AA30: 0 | AB30: -28994 | AC30: -2437 | AD30: -208
B31: Byggeri- og anlægsvirksomhed | C31: 0 | D31: 0 | E31: 0 | F31: 0 | G31: 0 | H31: -4739 | I31: 0 | J31: -7 | K31: 0 | L31: -70 | M31: 0 | N31: -434 | O31: 0 | P31: 0 | Q31: 0 | R31: 0 | S31: 0 | T31: 0 | U31: 0 | V31: 0 | W31: -5 | X31: 0 | Y31: 0 | Z31: 0 | AA31: 0 | AB31: -1300 | AC31: 0 | AD31: 0
B32: Privat service inkl. engros- og detailhandel | C32: 0 | D32: 0 | E32: 0 | F32: -2 | G32: -9 | H32: -1073 | I32: -2 | J32: 0 | K32: 0 | L32: -224 | M32: 0 | N32: -5190 | O32: -137 | P32: -167 | Q32: 0 | R32: 0 | S32: 0 | T32: -1 | U32: 0 | V32: -178 | W32: -55 | X32: 0 | Y32: 0 | Z32: 0 | AA32: 0 | AB32: -27641 | AC32: -21942 | AD32: -15
B33: Offentlig service | C33: 0 | D33: 0 | E33: 0 | F33: -2 | G33: -12 | H33: -1186 | I33: -2 | J33: 0 | K33: 0 | L33: -158 | M33: 0 | N33: -2483 | O33: 0 | P33: 0 | Q33: 0 | R33: -153 | S33: -1145 | T33: 0 | U33: 0 | V33: 0 | W33: -26 | X33: -87 | Y33: 0 | Z33: 0 | AA33: 0 | AB33: -8555 | AC33: -10698 | AD33: -23
B34: Husholdninger | C34: 0 | D34: 0 | E34: 0 | F34: -658 | G34: -15 | H34: -8774 | I34: -10 | J34: -875 | K34: 0 | L34: -773 | M34: 0 | N34: -25497 | O34: 0 | P34: 0 | Q34: -3071 | R34: -85 | S34: -13538 | T34: -25506 | U34: -7 | V34: 0 | W34: -268 | X34: -494 | Y34: -5753 | Z34: 0 | AA34: 0 | AB34: -36855 | AC34: -70644 | AD34: -429
B35: Øvrige energirelatede aktiviteter (ikke inkluderet ovenfor) | C35: -31197 | D35: 0 | E35: 0 | F35: 0 | G35: -747 | H35: -227 | I35: 0 | J35: 0 | K35: 0 | L35: -7 | M35: 0 | N35: -13945 | O35: 0 | P35: 0 | Q35: 0 | R35: -1641 | S35: -4007 | T35: 0 | U35: -3 | V35: 0 | W35: -3 | X35: 0 | Y35: 0 | Z35: 0 | AA35: 0 | AB35: 0 | AC35: 0 | AD35: 0
B36: Elhandelskorrektion | C36: -31197 | D36: 0 | E36: 0 | F36: 0 | G36: -747 | H36: -227 | I36: 0 | J36: 0 | K36: 0 | L36: -7 | M36: 0 | N36: -10003 | O36: 0 | P36: 0 | Q36: 0 | R36: -1641 | S36: -4007 | T36: 0 | U36: -3 | V36: 0 | W36: -3 | X36: 0 | Y36: 0 | Z36: 0 | AA36: 0 | AB36: 0 | AC36: 0 | AD36: 0
B37: Flaring | C37: 0 | D37: 0 | E37: 0 | F37: 0 | G37: 0 | H37: 0 | I37: 0 | J37: 0 | K37: 0 | L37: 0 | M37: 0 | N37: -3942 | O37: 0 | P37: 0 | Q37: 0 | R37: 0 | S37: 0 | T37: 0 | U37: 0 | V37: 0 | W37: 0 | X37: 0 | Y37: 0 | Z37: 0 | AA37: 0 | AB37: 0 | AC37: 0 | AD37: 0

Sheet BF20 2018 (hidden)
A1: National energibalance - 2018
A2: Enhed: TJ
A3: year | C3: Kul & Koks | D3: Olie | E3: Olie | F3: Olie | G3: Olie | H3: Olie | I3: Olie | J3: Olie | K3: Olie | L3: Olie | M3: Olie | N3: Naturgas | O3: Affald, ikke bionedbrydeligt | P3: Vedvarende energi | Q3: Vedvarende energi | R3: Vedvarende energi | S3: Vedvarende energi | T3: Vedvarende energi | U3: Vedvarende energi | V3: Vedvarende energi | W3: Vedvarende energi | X3: Vedvarende energi | Y3: Vedvarende energi | Z3: Vedvarende energi | AA3: Vedvarende energi | AB3: Elektricitet | AC3: Fjernvarme | AD3: Bygas | AE3: El til varmepumpe
C4: Kul & Koks | D4: Råolie | E4: Orimulsion | F4: Petrokoks | G4: Fuelolie og Spildolie | H4: Gas & Dieselolie | I4: Petroleum | J4: Benzin og LVN | K4: JP1 og JP4 | L4: LPG | M4: Raffinaderigas | N4: Naturgas | O4: Affald, ikke bionedbrydeligt | P4: Affald, bionedbrydeligt | Q4: Halm | R4: Træflis | S4: Træpiller | T4: Træ Øvrig | U4: Energiafgrøder | V4: Biogas | W4: Bionaturgas | X4: Solenergi | Y4: Omgivelsesvarme | Z4: Vindenergi | AA4: Anden VE | AB4: Elektricitet | AC4: Fjernvarme | AD4: Bygas
B5: Energiforbrug i alt | C5: 67582 | D5: 299759 | E5: 0 | F5: 7544 | G5: -35273 | H5: 7488 | I5: 446 | J5: -30352 | K5: 39811 | L5: -2894 | M5: 0 | N5: 112785 | O5: 17297 | P5: 21141 | Q5: 17606 | R5: 28637 | S5: 55666 | T5: 33904 | U5: 9190 | V5: 13414 | W5: 0 | X5: 6195 | Y5: 10345 | Z5: 50036 | AA5: 54 | AB5: 18808 | AC5: 114 | AD5: 0 | AE5: =Y5/(3.5-1) -> 4138
B6: Primær produktion | C6: 0 | D6: 243629 | E6: 0 | F6: 0 | G6: 3 | H6: 0 | I6: 0 | J6: 0 | K6: 0 | L6: 0 | M6: 0 | N6: 155071 | O6: 15103 | P6: 18459 | Q6: 17606 | R6: 22375 | S6: 2728 | T6: 31326 | U6: 234 | V6: 13414 | W6: 0 | X6: 6195 | Y6: 10345 | Z6: 50036 | AA6: 54 | AB6: 0 | AC6: 0 | AD6: 0 | AE6: =Y6/(3.5-1) -> 4138
B7: Nettoimport | C7: 66940 | D7: 55620 | E7: 0 | F7: 5883 | G7: -32574 | H7: 28528 | I7: 262 | J7: -33058 | K7: 38495 | L7: -3074 | M7: 0 | N7: -43146 | O7: 2194 | P7: 2682 | Q7: 0 | R7: 6311 | S7: 52939 | T7: 2578 | U7: 9021 | V7: 0 | W7: 0 | X7: 0 | Y7: 0 | Z7: 0 | AA7: 0 | AB7: 18808 | AC7: 114 | AD7: 0 | AE7: 0
B8: Grænsehandel | C8: 0 | D8: 0 | E8: 0 | F8: 628 | G8: 0 | H8: -12195 | I8: 0 | J8: 1642 | K8: 0 | L8: 0 | M8: 0 | N8: 0 | O8: 0 | P8: 0 | Q8: 0 | R8: 0 | S8: 0 | T8: 0 | U8: 0 | V8: 0 | W8: 0 | X8: 0 | Y8: 0 | Z8: 0 | AA8: 0 | AB8: 0 | AC8: 0 | AD8: 0 | AE8: 0
B9: Udenrigsbunkring | C9: 0 | D9: 0 | E9: 0 | F9: 0 | G9: -9066 | H9: -15810 | I9: 0 | J9: 0 | K9: 0 | L9: 0 | M9: 0 | N9: 0 | O9: 0 | P9: 0 | Q9: 0 | R9: 0 | S9: 0 | T9: 0 | U9: 0 | V9: 0 | W9: 0 | X9: 0 | Y9: 0 | Z9: 0 | AA9: 0 | AB9: 0 | AC9: 0 | AD9: 0 | AE9: 0
B10: Lagertræk og statistisk difference | C10: 642 | D10: 510 | E10: 0 | F10: 1033 | G10: 6364 | H10: 6965 | I10: 184 | J10: 1064 | K10: 1316 | L10: 179 | M10: 0 | N10: 860 | O10: 0 | P10: 0 | Q10: 0 | R10: -49 | S10: 0 | T10: 0 | U10: -65 | V10: 0 | W10: 0 | X10: 0 | Y10: 0 | Z10: 0 | AA10: 0 | AB10: 0 | AC10: 0 | AD10: 0 | AE10: 0
B11: Energisektor | C11: 0 | D11: -299759 | E11: 0 | F11: 0 | G11: 47547 | H11: 138729 | I11: 0 | J11: 88089 | K11: 4915 | L11: 5555 | M11: 1566 | N11: -20987 | O11: 0 | P11: 0 | Q11: 0 | R11: 0 | S11: 0 | T11: 0 | U11: 0 | V11: 0 | W11: 0 | X11: 0 | Y11: 0 | Z11: 0 | AA11: 0 | AB11: -3415 | AC11: -612 | AD11: 0 | AE11: 0
B12: Udvinding og forgasning | C12: 0 | D12: 0 | E12: 0 | F12: 0 | G12: 0 | H12: 0 | I12: 0 | J12: 0 | K12: 0 | L12: 0 | M12: 0 | N12: -20987 | O12: 0 | P12: 0 | Q12: 0 | R12: 0 | S12: 0 | T12: 0 | U12: 0 | V12: 0 | W12: 0 | X12: 0 | Y12: 0 | Z12: 0 | AA12: 0 | AB12: 0 | AC12: 0 | AD12: 0 | AE12: 0
B13: Raffinaderiproduktion | C13: 0 | D13: 0 | E13: 0 | F13: 0 | G13: 47919 | H13: 138729 | I13: 0 | J13: 88089 | K13: 4915 | L13: 5555 | M13: 15662 | N13: 0 | O13: 0 | P13: 0 | Q13: 0 | R13: 0 | S13: 0 | T13: 0 | U13: 0 | V13: 0 | W13: 0 | X13: 0 | Y13: 0 | Z13: 0 | AA13: 0 | AB13: 0 | AC13: 0 | AD13: 0 | AE13: 0
B14: Forbrug ved raffinaderiprod. | C14: 0 | D14: -299759 | E14: 0 | F14: 0 | G14: -372 | H14: 0 | I14: 0 | J14: 0 | K14: 0 | L14: 0 | M14: -14096 | N14: 0 | O14: 0 | P14: 0 | Q14: 0 | R14: 0 | S14: 0 | T14: 0 | U14: 0 | V14: 0 | W14: 0 | X14: 0 | Y14: 0 | Z14: 0 | AA14: 0 | AB14: -1093 | AC14: -612 | AD14: 0 | AE14: 0
B15: Forbrug ved distribution | C15: 0 | D15: 0 | E15: 0 | F15: 0 | G15: 0 | H15: 0 | I15: 0 | J15: 0 | K15: 0 | L15: 0 | M15: 0 | N15: 0 | O15: 0 | P15: 0 | Q15: 0 | R15: 0 | S15: 0 | T15: 0 | U15: 0 | V15: 0 | W15: 0 | X15: 0 | Y15: 0 | Z15: 0 | AA15: 0 | AB15: -2322 | AC15: 0 | AD15: 0 | AE15: 0
B16: Power2X | C16: 0 | D16: 0 | E16: 0 | F16: 0 | G16: 0 | H16: 0 | I16: 0 | J16: 0 | K16: 0 | L16: 0 | M16: 0 | N16: 0 | O16: 0 | P16: 0 | Q16: 0 | R16: 0 | S16: 0 | T16: 0 | U16: 0 | V16: 0 | W16: 0 | X16: 0 | Y16: 0 | Z16: 0 | AA16: 0 | AB16: 0 | AC16: 0 | AD16: 0 | AE16: 0
B17: Konverteringssektor | C17: -61990 | D17: 0 | E17: 0 | F17: 0 | G17: -1237 | H17: -981 | I17: 0 | J17: 0 | K17: 0 | L17: -1 | M17: -1566 | N17: -31318 | O17: -16311 | P17: -19935 | Q17: -12693 | R17: -26766 | S17: -36611 | T17: -4120 | U17: -234 | V17: -12722 | W17: 4651 | X17: -5591 | Y17: -110 | Z17: -50036 | AA17: -54 | AB17: 104442 | AC17: 134078 | AD17: 632 | AE17: -44
B18: Centrale anlæg | C18: -61841 | D18: 0 | E18: 0 | F18: 0 | G18: -622 | H18: -209 | I18: 0 | J18: 0 | K18: 0 | L18: 0 | M18: 0 | N18: -3995 | O18: 0 | P18: 0 | Q18: -3386 | R18: -8690 | S18: -33819 | T18: -1604 | U18: 0 | V18: -8 | W18: -307 | X18: 0 | Y18: 0 | Z18: 0 | AA18: 0 | AB18: 38823 | AC18: 46930 | AD18: 0 | AE18: 0
B19: Vindmøller og vandkraftsanlæg | C19: 0 | D19: 0 | E19: 0 | F19: 0 | G19: 0 | H19: 0 | I19: 0 | J19: 0 | K19: 0 | L19: 0 | M19: 0 | N19: 0 | O19: 0 | P19: 0 | Q19: 0 | R19: 0 | S19: 0 | T19: 0 | U19: 0 | V19: 0 | W19: 0 | X19: 0 | Y19: 0 | Z19: -50036 | AA19: -54 | AB19: 50089 | AC19: 0 | AD19: 0 | AE19: 0
B20: Decentrale anlæg | C20: -39 | D20: 0 | E20: 0 | F20: 0 | G20: -1 | H20: -16 | I20: 0 | J20: 0 | K20: 0 | L20: 0 | M20: 0 | N20: -11107 | O20: -2421 | P20: -2960 | Q20: -3456 | R20: -5685 | S20: -451 | T20: -672 | U20: 0 | V20: -3344 | W20: -854 | X20: 0 | Y20: 0 | Z20: 0 | AA20: 0 | AB20: 9277 | AC20: 18820 | AD20: 0 | AE20: 0
B21: Fjernvarmeanlæg | C21: -110 | D21: 0 | E21: 0 | F21: 0 | G21: -164 | H21: -626 | I21: 0 | J21: 0 | K21: 0 | L21: 0 | M21: 0 | N21: -12675 | O21: -236 | P21: -288 | Q21: -5809 | R21: -11846 | S21: -2342 | T21: -756 | U21: -221 | V21: -62 | W21: -975 | X21: -2161 | Y21: -110 | Z21: 0 | AA21: 0 | AB21: -1059 | AC21: 38943 | AD21: 0 | AE21: -44
B22: Sekundære producenter | C22: 0 | D22: 0 | E22: 0 | F22: 0 | G22: -450 | H22: -131 | I22: 0 | J22: 0 | K22: 0 | L22: -1 | M22: -1566 | N22: -2998 | O22: -13653 | P22: -16687 | Q22: -42 | R22: -545 | S22: 0 | T22: -1088 | U22: -13 | V22: -2129 | W22: -231 | X22: -3431 | Y22: 0 | Z22: 0 | AA22: 0 | AB22: 11106 | AC22: 30240 | AD22: 0 | AE22: 0
B23: Bygasværker | C23: 0 | D23: 0 | E23: 0 | F23: 0 | G23: 0 | H23: 0 | I23: 0 | J23: 0 | K23: 0 | L23: 0 | M23: 0 | N23: -542 | O23: 0 | P23: 0 | Q23: 0 | R23: 0 | S23: 0 | T23: 0 | U23: 0 | V23: -7179 | W23: 7018 | X23: 0 | Y23: 0 | Z23: 0 | AA23: 0 | AB23: 0 | AC23: 0 | AD23: 632 | AE23: 0
B24: Egetforbrug ved produktion | C24: 0 | D24: 0 | E24: 0 | F24: 0 | G24: 0 | H24: 0 | I24: 0 | J24: 0 | K24: 0 | L24: 0 | M24: 0 | N24: 0 | O24: 0 | P24: 0 | Q24: 0 | R24: 0 | S24: 0 | T24: 0 | U24: 0 | V24: 0 | W24: 0 | X24: 0 | Y24: 0 | Z24: 0 | AA24: 0 | AB24: -3795 | AC24: -855 | AD24: 0 | AE24: 0
B25: Distributionstab m.m. | C25: 0 | D25: 0 | E25: 0 | F25: 0 | G25: 0 | H25: 0 | I25: 0 | J25: 0 | K25: 0 | L25: 0 | M25: 0 | N25: -110 | O25: 0 | P25: 0 | Q25: 0 | R25: 0 | S25: 0 | T25: 0 | U25: 0 | V25: 0 | W25: -8 | X25: 0 | Y25: 0 | Z25: 0 | AA25: 0 | AB25: -7931 | AC25: -26838 | AD25: -25 | AE25: 0
B26: Endeligt energiforbrug | C26: -5601 | D26: 0 | E26: 0 | F26: -7565 | G26: -11040 | H26: -145627 | I26: -451 | J26: -57737 | K26: -44726 | L26: -2689 | M26: 0 | N26: -61478 | O26: -996 | P26: -1218 | Q26: -5051 | R26: -1891 | S26: -19609 | T26: -30596 | U26: -8956 | V26: -703 | W26: -4728 | X26: -603 | Y26: -10460 | Z26: 0 | AA26: 0 | AB26: -112130 | AC26: -109993 | AD26: -617 | AE26: -4184
B27: Ikke energiformål | C27: 0 | D27: 0 | E27: 0 | F27: 0 | G27: -10007 | H27: 0 | I27: -262 | J27: 0 | K27: 0 | L27: 0 | M27: 0 | N27: 0 | O27: 0 | P27: 0 | Q27: 0 | R27: 0 | S27: 0 | T27: 0 | U27: 0 | V27: 0 | W27: 0 | X27: 0 | Y27: 0 | Z27: 0 | AA27: 0 | AB27: 0 | AC27: 0 | AD27: 0 | AE27: 0
B28: Transport | C28: 0 | D28: 0 | E28: 0 | F28: 0 | G28: -5 | H28: -110467 | I28: 0 | J28: -56807 | K28: -44726 | L28: 0 | M28: 0 | N28: -306 | O28: 0 | P28: 0 | Q28: 0 | R28: 0 | S28: 0 | T28: 0 | U28: -8956 | V28: 0 | W28: -23 | X28: 0 | Y28: 0 | Z28: 0 | AA28: 0 | AB28: -1451 | AC28: 0 | AD28: 0 | AE28: 0
B29: Landbrug, skovbrug, gartneri og fiskeri | C29: -369 | D29: 0 | E29: 0 | F29: 0 | G29: -39 | H29: -17285 | I29: -1 | J29: -65 | K29: 0 | L29: -208 | M29: 0 | N29: -1454 | O29: 0 | P29: 0 | Q29: -2012 | R29: -27 | S29: 0 | T29: -188 | U29: 0 | V29: -108 | W29: -112 | X29: 0 | Y29: -837 | Z29: 0 | AA29: 0 | AB29: -6280 | AC29: -1648 | AD29: 0 | AE29: -334.8
B30: Fremstillingsvirksomhed | C30: -5231 | D30: 0 | E30: 0 | F30: -6886 | G30: -977 | H30: -2574 | I30: -16 | J30: -31 | K30: 0 | L30: -1046 | M30: 0 | N30: -27540 | O30: -672 | P30: -821 | Q30: 0 | R30: -1606 | S30: -1535 | T30: -4594 | U30: 0 | V30: -365 | W30: -2118 | X30: 0 | Y30: -2138 | Z30: 0 | AA30: 0 | AB30: -29671 | AC30: -3429 | AD30: -207 | AE30: -855.2
B31: Byggeri- og anlægsvirksomhed | C31: 0 | D31: 0 | E31: 0 | F31: 0 | G31: 0 | H31: -5438 | I31: 0 | J31: -28 | K31: 0 | L31: -122 | M31: 0 | N31: -286 | O31: 0 | P31: 0 | Q31: 0 | R31: 0 | S31: 0 | T31: 0 | U31: 0 | V31: 0 | W31: -22 | X31: 0 | Y31: 0 | Z31: 0 | AA31: 0 | AB31: -1474 | AC31: 0 | AD31: 0 | AE31: 0
B32: Privat service inkl. engros- og detailhandel | C32: 0 | D32: 0 | E32: 0 | F32: -8 | G32: -13 | H32: -990 | I32: -26 | J32: 0 | K32: 0 | L32: -241 | M32: 0 | N32: -5038 | O32: -325 | P32: -397 | Q32: 0 | R32: -18 | S32: 0 | T32: -257 | U32: 0 | V32: -229 | W32: -387 | X32: 0 | Y32: 0 | Z32: 0 | AA32: 0 | AB32: -29252 | AC32: -22292 | AD32: -13 | AE32: 0
B33: Offentlig service | C33: 0 | D33: 0 | E33: 0 | F33: -8 | G33: 0 | H33: -1153 | I33: -27 | J33: 0 | K33: 0 | L33: -170 | M33: 0 | N33: -2554 | O33: 0 | P33: 0 | Q33: 0 | R33: -154 | S33: -1375 | T33: 0 | U33: 0 | V33: 0 | W33: -196 | X33: -91 | Y33: 0 | Z33: 0 | AA33: 0 | AB33: -8661 | AC33: -10866 | AD33: -20 | AE33: 0
B34: Husholdninger | C34: 0 | D34: 0 | E34: 0 | F34: -662 | G34: 0 | H34: -7719 | I34: -119 | J34: -806 | K34: 0 | L34: -901 | M34: 0 | N34: -24300 | O34: 0 | P34: 0 | Q34: -3039 | R34: -85 | S34: -16699 | T34: -25557 | U34: 0 | V34: 0 | W34: -1869 | X34: -513 | Y34: -7485 | Z34: 0 | AA34: 0 | AB34: -35342 | AC34: -71757 | AD34: -377 | AE34: -2994
B35: Øvrige energirelatede aktiviteter (ikke inkluderet ovenfor) | C35: -27443 | D35: 0 | E35: 0 | F35: 0 | G35: -513 | H35: -124 | I35: 0 | J35: 0 | K35: 0 | L35: -10 | M35: 0 | N35: -10276 | O35: 0 | P35: 0 | Q35: 0 | R35: -2032 | S35: -6429 | T35: 0 | U35: -14 | V35: 0 | W35: -108 | X35: 0 | Y35: 0 | Z35: 0 | AA35: 0 | AB35: 0 | AC35: 0 | AD35: 0
B36: Elhandelskorrektion | C36: -27443 | D36: 0 | E36: 0 | F36: 0 | G36: -513 | H36: -124 | I36: 0 | J36: 0 | K36: 0 | L36: -10 | M36: 0 | N36: -6280 | O36: 0 | P36: 0 | Q36: 0 | R36: -2032 | S36: -6429 | T36: 0 | U36: -14 | V36: 0 | W36: -108 | X36: 0 | Y36: 0 | Z36: 0 | AA36: 0 | AB36: 0 | AC36: 0 | AD36: 0
B37: Flaring | C37: 0 | D37: 0 | E37: 0 | F37: 0 | G37: 0 | H37: 0 | I37: 0 | J37: 0 | K37: 0 | L37: 0 | M37: 0 | N37: -3996 | O37: 0 | P37: 0 | Q37: 0 | R37: 0 | S37: 0 | T37: 0 | U37: 0 | V37: 0 | W37: 0 | X37: 0 | Y37: 0 | Z37: 0 | AA37: 0 | AB37: 0 | AC37: 0 | AD37: 0
AC39: =AC5+AC11+AC17+AC25+AC26 -> -3251

Sheet Indholdsfortegnelse

Sheet Oversigt - Introduktion

Sheet Oversigt - Danmark

Sheet Slutforbrug - elapparater
F17: ='Samlet Nøgletal'!G7 -> 0.07
Q19: 12500
Q20: 22913.98299 | R20: 0
F22: ='Samlet Nøgletal'!H7 -> 0.07
H36: 167000
E68: 3 | I68: 91.7246696 | M68: 5 | Q68: 0.2753303965
H102: 4475

Sheet elapparater - husholdning
P26: 255.2769712 | Q26: 240.5959841
O27: 496.6765478 | P27: 478.6750229 | Q27: 364.9576088
R31: ='Samlet Nøgletal'!K238 -> 23000
Q32: ='Samlet Nøgletal'!J239 -> 43594.0105 | R32: ='Samlet Nøgletal'!K239 -> 40609.80894
F35: =Elapparater!M4 -> 0.013 | H35: 360
H36: 181600
F40: =Elapparater!O4 -> 0.008
E68: =F68 -> 3 | F68: 3 | I68: 91.7246696 | M68: 5 | Q68: 0.2753303965
H72: 8
H109: 0

Sheet elapparater - offentlig
P26: 255.2769712 | Q26: 240.5959841
O27: 496.6765478 | P27: 478.6750229 | Q27: 364.9576088
O31: ='Samlet Nøgletal'!J238 -> 0 | P31: ='Samlet Nøgletal'!K238 -> 23000
O32: ='Samlet Nøgletal'!J239 -> 43594.0105 | P32: ='Samlet Nøgletal'!K239 -> 40609.80894
F35: =Elapparater!M5 -> -0.001 | H35: 360
H36: 181600
F40: =Elapparater!O5 -> -0.001
E68: =F68 -> 3 | F68: 3 | I68: 91.7246696 | M68: 5 | Q68: 0.2753303965
H72: 8
H109: 0

Sheet elapparater - erhverv
P26: 255.2769712 | Q26: 240.5959841
O27: 496.6765478 | P27: 478.6750229 | Q27: 364.9576088
N33: ='Samlet Nøgletal'!J238 -> 0 | O33: ='Samlet Nøgletal'!K238 -> 23000
N34: ='Samlet Nøgletal'!J239 -> 43594.0105 | O34: ='Samlet Nøgletal'!K239 -> 40609.80894
F35: =Elapparater!M6 -> 0.002 | H35: 360
H36: 181600
F40: =Elapparater!O6 -> 0.001
E68: =F68 -> 3 | F68: 3 | I68: 91.7246696 | M68: 5 | Q68: 0.2753303965
H72: 8
H109: 0

Sheet Slutforbrug - Fjernvarme
F17: ='Samlet Nøgletal'!G22 -> 0.23
Q19: 12500
Q20: 22913.98299 | R20: 0
F22: ='Samlet Nøgletal'!H22 -> 0.21
H36: 167000
E68: 3 | I68: 91.7246696 | M68: 5 | Q68: 0.2753303965
H102: 4475

Sheet Fjernvarme - husholdning
P26: 255.2769712 | Q26: 240.5959841
O27: 496.6765478 | P27: 478.6750229 | Q27: 364.9576088
O32: ='Samlet Nøgletal'!J238 -> 0 | P32: ='Samlet Nøgletal'!K238 -> 23000
O33: ='Samlet Nøgletal'!J239 -> 43594.0105 | P33: ='Samlet Nøgletal'!K239 -> 40609.80894
F35: =Fjernvarme!M4 -> -0.004 | H35: 360
H36: 181600
F40: =Fjernvarme!O4 -> -0.002
E68: =F68 -> 3 | F68: 3 | I68: 91.7246696 | M68: 5 | Q68: 0.2753303965
H72: 8
H109: 0

Sheet Fjernvarme - offentlig
P26: 255.2769712 | Q26: 240.5959841
O27: 496.6765478 | P27: 478.6750229 | Q27: 364.9576088
O31: ='Samlet Nøgletal'!J238 -> 0 | P31: ='Samlet Nøgletal'!K238 -> 23000
O32: ='Samlet Nøgletal'!J239 -> 43594.0105 | P32: ='Samlet Nøgletal'!K239 -> 40609.80894
F35: =Fjernvarme!M5 -> -0.012 | H35: 360
H36: 181600
F40: =Fjernvarme!O5 -> -0.007
E68: =F68 -> 3 | F68: 3 | I68: 91.7246696 | M68: 5 | Q68: 0.2753303965
H72: 8
H109: 0

Sheet Fjernvarme - erhverv
P26: 255.2769712 | Q26: 240.5959841
O27: 496.6765478 | P27: 478.6750229 | Q27: 364.9576088
O33: ='Samlet Nøgletal'!J238 -> 0 | P33: ='Samlet Nøgletal'!K238 -> 23000
O34: ='Samlet Nøgletal'!J239 -> 43594.0105 | P34: ='Samlet Nøgletal'!K239 -> 40609.80894
F35: =Fjernvarme!M6 -> -0.002 | H35: 360
H36: 181600
F40: =Fjernvarme!O6 -> -0.001
E68: =F68 -> 3 | F68: 3 | I68: 91.7246696 | M68: 5 | Q68: 0.2753303965
H72: 8
H109: 0

Sheet Slutforbrug - Opvarming&Proces
F17: 0.2
Q19: 12500
Q20: 22913.98299 | R20: 0
F22: 0.2
H36: 167000
E68: 3 | I68: 91.7246696 | M68: 5 | Q68: 0.2753303965
H102: 4475

Sheet Opvarming - husholdning
P26: 255.2769712 | Q26: 240.5959841
O27: 496.6765478 | P27: 478.6750229 | Q27: 364.9576088
M32: ='Samlet Nøgletal'!J238 -> 0 | N32: ='Samlet Nøgletal'!K238 -> 23000
M33: ='Samlet Nøgletal'!J239 -> 43594.0105 | N33: ='Samlet Nøgletal'!K239 -> 40609.80894
F35: ='Opvarmning og proces'!M4 -> -0.007 | H35: 360
H36: 181600
F40: ='Opvarmning og proces'!O4 -> -0.008
E68: =F68 -> 3 | F68: 3 | I68: 91.7246696 | M68: 5 | Q68: 0.2753303965
H72: 8
H109: 0

Sheet Husholdninger - Fordeling
O24: ='Samlet Nøgletal'!J238 -> 0 | P24: ='Samlet Nøgletal'!K238 -> 23000
O25: ='Samlet Nøgletal'!J239 -> 43594.0105 | P25: ='Samlet Nøgletal'!K239 -> 40609.80894
P26: 255.2769712 | Q26: 240.5959841
O27: 496.6765478 | P27: 478.6750229 | Q27: 364.9576088
F35: 0 | H35: 360
H36: 181600
F40: 0
B42: Naturgas | D42: ='Samlet Nøgletal'!G42 -> 0.28 | E42: ='Samlet Nøgletal'!H42 -> 0.24
B43: Kul | D43: ='Samlet Nøgletal'!G43 -> 0 | E43: ='Samlet Nøgletal'!H43 -> 0
B44: Affald | D44: ='Samlet Nøgletal'!G44 -> 0 | E44: ='Samlet Nøgletal'!H44 -> 0
B45: Bio | D45: ='Samlet Nøgletal'!G45 -> 0.55 | E45: ='Samlet Nøgletal'!H45 -> 0.52
B46: Sol | D46: ='Samlet Nøgletal'!G46 -> 0.01 | E46: ='Samlet Nøgletal'!H46 -> 0
B47: Syntetiske | D47: ='Samlet Nøgletal'!G47 -> 0 | E47: ='Samlet Nøgletal'!H47 -> 0.09
B48: Olieprod | D48: ='Samlet Nøgletal'!G48 -> 0.12 | E48: ='Samlet Nøgletal'!H48 -> 0.07
B49: El | D49: ='Samlet Nøgletal'!G49 -> 0.04 | E49: ='Samlet Nøgletal'!H49 -> 0.08
E68: =F68 -> 3 | F68: 3 | I68: 91.7246696 | M68: 5 | Q68: 0.2753303965
H72: 8
H109: 0

Sheet Opvarmning - offentlig
P26: 255.2769712 | Q26: 240.5959841
O27: 496.6765478 | P27: 478.6750229 | Q27: 364.9576088
N31: ='Samlet Nøgletal'!J238 -> 0 | O31: ='Samlet Nøgletal'!K238 -> 23000
N32: ='Samlet Nøgletal'!J239 -> 43594.0105 | O32: ='Samlet Nøgletal'!K239 -> 40609.80894
F35: ='Opvarmning og proces'!M5 -> 0.027 | H35: 360
H36: 181600
F40: ='Opvarmning og proces'!O5 -> 0.028
E68: =F68 -> 3 | F68: 3 | I68: 91.7246696 | M68: 5 | Q68: 0.2753303965
H72: 8
H109: 0

Sheet Offentlig - Fordeling
O24: ='Samlet Nøgletal'!J238 -> 0 | P24: ='Samlet Nøgletal'!K238 -> 23000
O25: ='Samlet Nøgletal'!J239 -> 43594.0105 | P25: ='Samlet Nøgletal'!K239 -> 40609.80894
P26: 255.2769712 | Q26: 240.5959841
O27: 496.6765478 | P27: 478.6750229 | Q27: 364.9576088
F35: 0 | H35: 360
H36: 181600
B42: Naturgas | D42: ='Samlet Nøgletal'!G51 -> 0.42 | E42: ='Samlet Nøgletal'!H51 -> 0.37
B43: Kul | D43: ='Samlet Nøgletal'!G52 -> 0 | E43: ='Samlet Nøgletal'!H52 -> 0
B44: Affald | D44: ='Samlet Nøgletal'!G53 -> 0 | E44: ='Samlet Nøgletal'!H53 -> 0
B45: Bio | D45: ='Samlet Nøgletal'!G54 -> 0.36 | E45: ='Samlet Nøgletal'!H54 -> 0.36
B46: Sol | D46: ='Samlet Nøgletal'!G55 -> 0.02 | E46: ='Samlet Nøgletal'!H55 -> 0.02
B47: Syntetiske | D47: ='Samlet Nøgletal'!G56 -> 0 | E47: ='Samlet Nøgletal'!H56 -> 0.15
B48: Olieprod | D48: ='Samlet Nøgletal'!G57 -> 0.14 | E48: ='Samlet Nøgletal'!H57 -> 0.06
B49: El | D49: ='Samlet Nøgletal'!G58 -> 0.06 | E49: ='Samlet Nøgletal'!H58 -> 0.04
E68: =F68 -> 3 | F68: 3 | I68: 91.7246696 | M68: 5 | Q68: 0.2753303965
H72: 8
H109: 0

Sheet Opvarmning - erhverv
P26: 255.2769712 | Q26: 240.5959841
O27: 496.6765478 | P27: 478.6750229 | Q27: 364.9576088
N31: ='Samlet Nøgletal'!J238 -> 0 | O31: ='Samlet Nøgletal'!K238 -> 23000
N32: ='Samlet Nøgletal'!J239 -> 43594.0105 | O32: ='Samlet Nøgletal'!K239 -> 40609.80894
F35: ='Opvarmning og proces'!M6 -> 0.002 | H35: 360
H36: 181600
F40: ='Opvarmning og proces'!O6 -> 0.003
E68: =F68 -> 3 | F68: 3 | I68: 91.7246696 | M68: 5 | Q68: 0.2753303965
H72: 8
H109: 0

Sheet erhverv - Fordeling
R24: ='Samlet Nøgletal'!J238 -> 0 | S24: ='Samlet Nøgletal'!K238 -> 23000
R25: ='Samlet Nøgletal'!J239 -> 43594.0105 | S25: ='Samlet Nøgletal'!K239 -> 40609.80894
P26: 255.2769712
O27: 496.6765478 | P27: 478.6750229 | Q27: 364.9576088
F35: 0 | H35: 360
H36: 181600
F40: 0
B42: Naturgas | D42: ='Samlet Nøgletal'!G60 -> 0.2 | E42: ='Samlet Nøgletal'!H60 -> 0.14
B43: Kul | D43: ='Samlet Nøgletal'!G61 -> 0.04 | E43: ='Samlet Nøgletal'!H61 -> 0.04
B44: Affald | D44: ='Samlet Nøgletal'!G62 -> 0.01 | E44: ='Samlet Nøgletal'!H62 -> 0.02
B45: Bio | D45: ='Samlet Nøgletal'!G63 -> 0.1 | E45: ='Samlet Nøgletal'!H63 -> 0.07
B46: Sol | D46: ='Samlet Nøgletal'!G64 -> 0 | E46: ='Samlet Nøgletal'!H64 -> 0
B47: Syntetiske | D47: ='Samlet Nøgletal'!G65 -> 0 | E47: ='Samlet Nøgletal'!H65 -> 0.06
B48: Olieprod | D48: ='Samlet Nøgletal'!G66 -> 0.21 | E48: ='Samlet Nøgletal'!H66 -> 0.19
B49: El | D49: ='Samlet Nøgletal'!G67 -> 0.44 | E49: ='Samlet Nøgletal'!H67 -> 0.48
E68: =F68 -> 3 | F68: 3 | I68: 91.7246696 | M68: 5 | Q68: 0.2753303965
H72: 8
H109: 0

Sheet Slutforbrug - Transport
F17: 0.2
Q19: 12500
Q20: 22913.98299 | R20: 0
F22: 0.2
H36: 167000
E68: 3 | I68: 91.7246696 | M68: 5 | Q68: 0.2753303965
H102: 4475

Sheet Transport - Vejtransport
P26: 255.2769712 | Q26: 240.5959841
O27: 496.6765478 | P27: 478.6750229 | Q27: 364.9576088
M31: ='Samlet Nøgletal'!J238 -> 0 | N31: ='Samlet Nøgletal'!K238 -> 23000
M32: ='Samlet Nøgletal'!J239 -> 43594.0105 | N32: ='Samlet Nøgletal'!K239 -> 40609.80894
F35: ='Transport modes'!M5 -> 0 | H35: 360
H36: 181600
F40: ='Transport modes'!O5 -> 0.001
E68: =F68 -> 3 | F68: 3 | I68: 91.7246696 | M68: 5 | Q68: 0.2753303965
H72: 8
H109: 0

Sheet Transport - Tog
O27: 496.6765478
Q28: ='Samlet Nøgletal'!J238 -> 0 | R28: ='Samlet Nøgletal'!K238 -> 23000
Q29: ='Samlet Nøgletal'!J239 -> 43594.0105 | R29: ='Samlet Nøgletal'!K239 -> 40609.80894
F35: ='Transport modes'!M6 -> 0.006 | H35: 360
H36: 181600
F40: ='Transport modes'!O6 -> 0.004
E68: =F68 -> 3 | F68: 3 | I68: 91.7246696 | M68: 5 | Q68: 0.2753303965
H72: 8
H109: 0

Sheet Transport - Fly
P26: 255.2769712 | Q26: 240.5959841
O27: 496.6765478 | P27: 478.6750229 | Q27: 364.9576088
O30: ='Samlet Nøgletal'!J238 -> 0 | P30: ='Samlet Nøgletal'!K238 -> 23000
O31: ='Samlet Nøgletal'!J239 -> 43594.0105 | P31: ='Samlet Nøgletal'!K239 -> 40609.80894
F35: ='Transport modes'!M7 -> 0.012 | H35: 360
H36: 181600
F40: ='Transport modes'!O7 -> 0.014
E68: =F68 -> 3 | F68: 3 | I68: 91.7246696 | M68: 5 | Q68: 0.2753303965
H72: 8
H109: 0

Sheet Transport - Sø
P26: 255.2769712 | Q26: 240.5959841
O27: 496.6765478 | P27: 478.6750229 | Q27: 364.9576088
O29: ='Samlet Nøgletal'!J238 -> 0 | P29: ='Samlet Nøgletal'!K238 -> 23000
O30: ='Samlet Nøgletal'!J239 -> 43594.0105 | P30: ='Samlet Nøgletal'!K239 -> 40609.80894
F35: ='Transport modes'!M8 -> 0 | H35: 360
H36: 181600
F40: ='Transport modes'!O8 -> -0.001
E68: =F68 -> 3 | F68: 3 | I68: 91.7246696 | M68: 5 | Q68: 0.2753303965
H72: 8
H109: 0

Sheet Transport - Forsvaret
P26: 255.2769712 | Q26: 240.5959841
O27: 496.6765478 | P27: 478.6750229 | Q27: 364.9576088
N32: ='Samlet Nøgletal'!J238 -> 0 | O32: ='Samlet Nøgletal'!K238 -> 23000
N33: ='Samlet Nøgletal'!J239 -> 43594.0105 | O33: ='Samlet Nøgletal'!K239 -> 40609.80894
F35: ='Transport modes'!M9 -> 0 | H35: 360
H36: 181600
F40: ='Transport modes'!O9 -> 0
E68: =F68 -> 3 | F68: 3 | I68: 91.7246696 | M68: 5 | Q68: 0.2753303965
H72: 8
H109: 0

Sheet Transport - Teknologivalg
F17: 0.2
Q19: 12500
Q20: 22913.98299 | R20: 0
F22: 0.2
H36: 167000
E68: 3 | I68: 91.7246696 | M68: 5 | Q68: 0.2753303965
H102: 4475

Sheet Vejtransport - Fordeling
R24: ='Samlet Nøgletal'!J238 -> 0 | S24: ='Samlet Nøgletal'!K238 -> 23000
R25: ='Samlet Nøgletal'!J239 -> 43594.0105 | S25: ='Samlet Nøgletal'!K239 -> 40609.80894
P26: 255.2769712 | Q26: 240.5959841
O27: 496.6765478 | P27: 478.6750229 | Q27: 364.9576088
F35: 0 | H35: 360
H36: 181600
B42: Naturgas | D42: ='Samlet Nøgletal'!G98 -> 0 | E42: ='Samlet Nøgletal'!H98 -> 0
B43: Bio | D43: ='Samlet Nøgletal'!G99 -> 0 | E43: ='Samlet Nøgletal'!H99 -> 0
B44: Synteteske | D44: ='Samlet Nøgletal'!G100 -> 0.05 | E44: ='Samlet Nøgletal'!H100 -> 0.05
B45: Olie | D45: ='Samlet Nøgletal'!G101 -> 0.94 | E45: ='Samlet Nøgletal'!H101 -> 0.92
B46: El | D46: ='Samlet Nøgletal'!G102 -> 0.01 | E46: ='Samlet Nøgletal'!H102 -> 0.03
E68: =F68 -> 3 | F68: 3 | I68: 91.7246696 | M68: 5 | Q68: 0.2753303965
H72: 8
H109: 0

Sheet Tog - Fordeling
R25: ='Samlet Nøgletal'!J238 -> 0 | S25: ='Samlet Nøgletal'!K238 -> 23000
P26: 255.2769712 | Q26: 240.5959841 | R26: ='Samlet Nøgletal'!J239 -> 43594.0105 | S26: ='Samlet Nøgletal'!K239 -> 40609.80894
O27: 496.6765478 | P27: 478.6750229 | Q27: 364.9576088
F35: 0 | H35: 360
H36: 181600
B42: Naturgas | D42: ='Samlet Nøgletal'!G104 -> 0 | E42: ='Samlet Nøgletal'!H104 -> 0
B43: Bio | D43: ='Samlet Nøgletal'!G105 -> 0 | E43: ='Samlet Nøgletal'!H105 -> 0
B44: Synteteske | D44: ='Samlet Nøgletal'!G106 -> 0 | E44: ='Samlet Nøgletal'!H106 -> 0
B45: Olie | D45: ='Samlet Nøgletal'!G107 -> 0.42 | E45: ='Samlet Nøgletal'!H107 -> 0.19
B46: El | D46: ='Samlet Nøgletal'!G108 -> 0.58 | E46: ='Samlet Nøgletal'!H108 -> 0.81
E68: =F68 -> 3 | F68: 3 | I68: 91.7246696 | M68: 5 | Q68: 0.2753303965
H72: 8
H109: 0

Sheet Fly - Fordeling
P26: 255.2769712 | Q26: 240.5959841 | R26: ='Samlet Nøgletal'!J238 -> 0 | S26: ='Samlet Nøgletal'!K238 -> 23000
O27: 496.6765478 | P27: 478.6750229 | Q27: 364.9576088 | R27: ='Samlet Nøgletal'!J239 -> 43594.0105 | S27: ='Samlet Nøgletal'!K239 -> 40609.80894
F35: 0 | H35: 360
H36: 181600
F40: 0
B44: Synteteske | D44: ='Samlet Nøgletal'!G110 -> 0 | E44: ='Samlet Nøgletal'!H110 -> 0
B45: Olie | D45: ='Samlet Nøgletal'!G111 -> 1 | E45: ='Samlet Nøgletal'!H111 -> 1
B46: El | D46: ='Samlet Nøgletal'!G112 -> 0 | E46: ='Samlet Nøgletal'!H112 -> 0
E68: =F68 -> 3 | F68: 3 | I68: 91.7246696 | M68: 5 | Q68: 0.2753303965
H72: 8
H109: 0

Sheet Sø - Fordeling
P26: 255.2769712 | Q26: 240.5959841
O27: 496.6765478 | P27: 478.6750229 | Q27: 364.9576088
O29: ='Samlet Nøgletal'!J238 -> 0 | P29: ='Samlet Nøgletal'!K238 -> 23000
O30: ='Samlet Nøgletal'!J239 -> 43594.0105 | P30: ='Samlet Nøgletal'!K239 -> 40609.80894
F35: 0 | H35: 360
H36: 181600
F40: 0
B44: Synteteske | D44: ='Samlet Nøgletal'!G114 -> 0 | E44: ='Samlet Nøgletal'!H114 -> 0
B45: Olie | D45: ='Samlet Nøgletal'!G115 -> 1 | E45: ='Samlet Nøgletal'!H115 -> 1
B46: El | D46: ='Samlet Nøgletal'!G116 -> 0 | E46: ='Samlet Nøgletal'!H116 -> 0
E68: =F68 -> 3 | F68: 3 | I68: 91.7246696 | M68: 5 | Q68: 0.2753303965
H72: 8
H109: 0

Sheet Forsvaret - Fordeling
P26: 255.2769712 | Q26: 240.5959841
O27: 496.6765478 | P27: 478.6750229 | Q27: 364.9576088
P28: ='Samlet Nøgletal'!J238 -> 0 | Q28: ='Samlet Nøgletal'!K238 -> 23000
P29: ='Samlet Nøgletal'!J239 -> 43594.0105 | Q29: ='Samlet Nøgletal'!K239 -> 40609.80894
F35: 0 | H35: 360
H36: 181600
F40: 0
B44: Synteteske | D44: ='Samlet Nøgletal'!G118 -> 0 | E44: ='Samlet Nøgletal'!H118 -> 0
B45: Olie | D45: ='Samlet Nøgletal'!G119 -> 1 | E45: ='Samlet Nøgletal'!H119 -> 1
B46: El | D46: ='Samlet Nøgletal'!G120 -> 0 | E46: ='Samlet Nøgletal'!H120 -> 0
E68: =F68 -> 3 | F68: 3 | I68: 91.7246696 | M68: 5 | Q68: 0.2753303965
H72: 8
H109: 0

Sheet Fjernvarme - Tranmission
P26: 255.2769712 | Q26: 240.5959841
O27: 496.6765478 | P27: 478.6750229 | Q27: 364.9576088
Q28: ='Samlet Nøgletal'!J238 -> 0 | R28: ='Samlet Nøgletal'!K238 -> 23000
Q29: ='Samlet Nøgletal'!J239 -> 43594.0105 | R29: ='Samlet Nøgletal'!K239 -> 40609.80894
F35: 0 | H35: 360
H36: 181600
B42: Netto | D42: ='Samlet Nøgletal'!G133 -> 0 | E42: ='Samlet Nøgletal'!H133 -> 0
B43: Kombi | D43: ='Samlet Nøgletal'!G134 -> 0.54 | E43: ='Samlet Nøgletal'!H134 -> 0.41
B44: kedler | D44: ='Samlet Nøgletal'!G135 -> 0.27 | E44: ='Samlet Nøgletal'!H135 -> 0.21
B45: Anden | D45: ='Samlet Nøgletal'!G136 -> 0.19 | E45: ='Samlet Nøgletal'!H136 -> 0.38
E68: =F68 -> 3 | F68: 3 | I68: 91.7246696 | M68: 5 | Q68: 0.2753303965
H72: 8
H109: 0

Sheet Fjernvarme - Brændsel
F17: 0.2
Q19: 12500
Q20: 22913.98299 | R20: 0
F22: 0.2
H36: 167000
E68: 3 | I68: 91.7246696 | M68: 5 | Q68: 0.2753303965
H102: 4475

Sheet Brændesel - Kombineret
P24: ='Samlet Nøgletal'!J238 -> 0 | Q24: ='Samlet Nøgletal'!K238 -> 23000
P25: ='Samlet Nøgletal'!J239 -> 43594.0105 | Q25: ='Samlet Nøgletal'!K239 -> 40609.80894
P26: 255.2769712 | Q26: 240.5959841
O27: 496.6765478 | P27: 478.6750229 | Q27: 364.9576088
F35: 0 | H35: 360
H36: 181600
F40: 0
B42: Naturgas | D42: ='Samlet Nøgletal'!G156 -> 0.12 | E42: ='Samlet Nøgletal'!H156 -> 0.05
B43: Kul | D43: ='Samlet Nøgletal'!G157 -> 0.12 | E43: ='Samlet Nøgletal'!H157 -> 0
B44: affald | D44: ='Samlet Nøgletal'!G158 -> 0.11 | E44: ='Samlet Nøgletal'!H158 -> 0.12
B45: Bio | D45: ='Samlet Nøgletal'!G159 -> 0.63 | E45: ='Samlet Nøgletal'!H159 -> 0.81
B46: Syntetesk | D46: ='Samlet Nøgletal'!G160 -> 0 | E46: ='Samlet Nøgletal'!H160 -> 0
B47: Olie | D47: ='Samlet Nøgletal'!G161 -> 0.02 | E47: ='Samlet Nøgletal'!H161 -> 0.02
D48: ='Samlet Nøgletal'!G188 -> -5160.394328 | E48: ='Samlet Nøgletal'!H188 -> -3384.836471
D49: ='Samlet Nøgletal'!G190 -> 6241.772238 | E49: ='Samlet Nøgletal'!H190 -> 5712.428262
E68: =F68 -> 3 | F68: 3 | I68: 91.7246696 | M68: 5 | Q68: 0.2753303965
H72: 8
H109: 0

Sheet Brændesel - Fjernvarmekedler
P25: ='Samlet Nøgletal'!J238 -> 0 | Q25: ='Samlet Nøgletal'!K238 -> 23000
P26: ='Samlet Nøgletal'!J239 -> 43594.0105 | Q26: ='Samlet Nøgletal'!K239 -> 40609.80894
O27: 496.6765478 | P27: 478.6750229 | Q27: 364.9576088
F35: 0 | H35: 360
H36: 181600
B42: Naturgas | D42: ='Samlet Nøgletal'!G163 -> 0.21 | E42: ='Samlet Nøgletal'!H163 -> 0.11
B43: Kul | D43: ='Samlet Nøgletal'!G164 -> 0 | E43: ='Samlet Nøgletal'!H164 -> 0
B44: affald | D44: ='Samlet Nøgletal'!G165 -> 0.01 | E44: ='Samlet Nøgletal'!H165 -> 0.01
B45: Bio | D45: ='Samlet Nøgletal'!G166 -> 0.75 | E45: ='Samlet Nøgletal'!H166 -> 0.85
B46: Syntetesk | D46: ='Samlet Nøgletal'!G167 -> 0.01 | E46: ='Samlet Nøgletal'!H167 -> 0.01
B47: Olie | D47: ='Samlet Nøgletal'!G168 -> 0.02 | E47: ='Samlet Nøgletal'!H168 -> 0.02
D56: ='Samlet Nøgletal'!G188 -> -5160.394328 | E56: ='Samlet Nøgletal'!H188 -> -3384.836471
D57: ='Samlet Nøgletal'!G190 -> 6241.772238 | E57: ='Samlet Nøgletal'!H190 -> 5712.428262
E68: =F68 -> 3 | F68: 3 | I68: 91.7246696 | M68: 5 | Q68: 0.2753303965
H72: 8
H109: 0

Sheet Brændesel - Anden varmeprodukti
P26: 255.2769712 | Q26: 240.5959841
O27: 496.6765478 | P27: 478.6750229 | Q27: 364.9576088
O30: ='Samlet Nøgletal'!J238 -> 0 | P30: ='Samlet Nøgletal'!K238 -> 23000
O31: ='Samlet Nøgletal'!J239 -> 43594.0105 | P31: ='Samlet Nøgletal'!K239 -> 40609.80894
F35: 0 | H35: 360
H36: 181600
F40: 0
B42: sol | D42: ='Samlet Nøgletal'!G170 -> 0.92 | E42: ='Samlet Nøgletal'!H170 -> 0.9
B43: pumpe | D43: ='Samlet Nøgletal'!G171 -> 0.08 | E43: ='Samlet Nøgletal'!H171 -> 0.1
B44: overskud | D44: ='Samlet Nøgletal'!G172 -> 0 | E44: ='Samlet Nøgletal'!H172 -> 0
B58: ='Samlet Nøgletal'!G188 -> -5160.394328 | C58: ='Samlet Nøgletal'!H188 -> -3384.836471
B59: ='Samlet Nøgletal'!G190 -> 6241.772238 | C59: ='Samlet Nøgletal'!H190 -> 5712.428262
E68: =F68 -> 3 | F68: 3 | I68: 91.7246696 | M68: 5 | Q68: 0.2753303965
H72: 8
H109: 0

Sheet PtX - produktion
P26: 255.2769712 | Q26: 240.5959841
P27: 478.6750229 | Q27: 364.9576088
P28: ='Samlet Nøgletal'!J238 -> 0 | Q28: ='Samlet Nøgletal'!K238 -> 23000
P29: ='Samlet Nøgletal'!J239 -> 43594.0105 | Q29: ='Samlet Nøgletal'!K239 -> 40609.80894
K32: Emissionsfaktorer for import/eksport af syntetiske brændsler år 2025 | R32: 74 | S32: ton/TJ
K33: Emissionsfaktorer for import/eksport af syntetiske brændsler år 2030 | R33: 74 | S33: ton/TJ
D44: ='Samlet Nøgletal'!G194 -> 0 | E44: ='Samlet Nøgletal'!H194 -> 0
E47: 0.01
H55: ='Samlet Nøgletal'!G197 -> 610.4605543 | I55: ='Samlet Nøgletal'!H197 -> 1945.784829
H56: ='Samlet Nøgletal'!G198 -> 0 | I56: ='Samlet Nøgletal'!H198 -> 0
H57: ='Samlet Nøgletal'!G199 -> -21673.65618 | I57: ='Samlet Nøgletal'!H199 -> -14216.31318
H58: ='Samlet Nøgletal'!G200 -> 187253.1671 | I58: ='Samlet Nøgletal'!H200 -> 171372.8479
E68: =F68 -> 3 | F68: 3 | I68: 91.7246696 | M68: 5 | Q68: 0.2753303965
H72: 8
H109: 0

Sheet Elektricitet - Produktion
P26: 255.2769712 | Q26: 240.5959841
O27: 496.6765478 | P27: 478.6750229 | Q27: ='Samlet Nøgletal'!J238 -> 0 | R27: ='Samlet Nøgletal'!K238 -> 23000
Q28: ='Samlet Nøgletal'!J239 -> 43594.0105 | R28: ='Samlet Nøgletal'!K239 -> 40609.80894
J33: ='Samlet Nøgletal'!G205 -> 11750 | K33: ='Samlet Nøgletal'!H205 -> 11750
J34: ='Samlet Nøgletal'!G206 -> 7500 | K34: ='Samlet Nøgletal'!H206 -> 7500
N38: ='Samlet Nøgletal'!G214 -> -1326.427758 | O38: ='Samlet Nøgletal'!H214 -> -204.7149098
N39: ='Samlet Nøgletal'!G199 -> -21673.65618 | O39: ='Samlet Nøgletal'!H199 -> -14216.31318
G47: ='Samlet Nøgletal'!G210 -> 0.017
G53: ='Samlet Nøgletal'!H210 -> 0.004
E68: =F68 -> 3 | F68: 3 | I68: 91.7246696 | M68: 5 | Q68: 0.2753303965
H72: 8
H109: 0

Sheet CO2-rensning - Fremskrivning
F17: 0.2
Q19: 12500
Q20: 22913.98299 | R20: 0
F22: 0.2
H36: 167000
E68: 3 | I68: 91.7246696 | M68: 5 | Q68: 0.2753303965
H102: 4475

Sheet CO2-rensning - Kombineret
P26: 255.2769712 | Q26: 240.5959841
O27: 496.6765478 | P27: 478.6750229 | Q27: 364.9576088
O29: ='Samlet Nøgletal'!J238 -> 0 | P29: ='Samlet Nøgletal'!K238 -> 23000
O30: ='Samlet Nøgletal'!J239 -> 43594.0105 | P30: ='Samlet Nøgletal'!K239 -> 40609.80894
B43: Rensning | D43: ='CO2-rensning '!L4 -> 0 | E43: =D44 -> 0
D44: ='CO2-rensning '!N4 -> 0
E68: =F68 -> 3 | F68: 3 | I68: 91.7246696 | M68: 5 | Q68: 0.2753303965
H72: 8
H109: 0

Sheet CO2-rensning - Fjernvarmekedler
P26: 255.2769712 | Q26: 240.5959841
O27: 496.6765478 | P27: 478.6750229 | Q27: 364.9576088
O28: ='Samlet Nøgletal'!J238 -> 0 | P28: ='Samlet Nøgletal'!K238 -> 23000
O29: ='Samlet Nøgletal'!J239 -> 43594.0105 | P29: ='Samlet Nøgletal'!K239 -> 40609.80894
F35: 0 | H35: 360
H36: 181600
F40: 0
B43: Rensning | D43: ='CO2-rensning '!L5 -> 0 | E43: ='CO2-rensning '!N5 -> 0
E68: =F68 -> 3 | F68: 3 | I68: 91.7246696 | M68: 5 | Q68: 0.2753303965
H72: 8
H109: 0

Sheet CO2-ækvivalent
F17: 0.2
Q19: 12500
Q20: 22913.98299 | R20: 0
F22: 0.2
H36: 167000
E68: 3 | I68: 91.7246696 | M68: 5 | Q68: 0.2753303965
H102: 4475

Sheet CO2-ækvivalent - Kemiske
P26: 255.2769712 | Q26: 240.5959841
O27: 496.6765478 | P27: 478.6750229 | Q27: 364.9576088
F35: 0 | H35: 360 | N35: ='Samlet Nøgletal'!J238 -> 0 | O35: ='Samlet Nøgletal'!K238 -> 23000
H36: 181600 | N36: ='Samlet Nøgletal'!J239 -> 43594.0105 | O36: ='Samlet Nøgletal'!K239 -> 40609.80894
F40: 0
B43: Rensning | D43: ='Andre drivhusgasser'!M4 -> -0.012 | E43: ='Andre drivhusgasser'!O4 -> -0.012
E68: =F68 -> 3 | F68: 3 | I68: 91.7246696 | M68: 5 | Q68: 0.2753303965
H72: 8
H109: 0

Sheet CO2-ækvivalent - Landbrug
P26: 255.2769712 | Q26: 240.5959841
O27: 496.6765478 | P27: 478.6750229 | Q27: 364.9576088
N32: ='Samlet Nøgletal'!J238 -> 0 | O32: ='Samlet Nøgletal'!K238 -> 23000
N33: ='Samlet Nøgletal'!J239 -> 43594.0105 | O33: ='Samlet Nøgletal'!K239 -> 40609.80894
F35: 0 | H35: 360
H36: 181600
F40: 0
B43: Rensning | D43: ='Andre drivhusgasser'!M6 -> -0.008 | E43: ='Andre drivhusgasser'!O6 -> -0.008
E68: =F68 -> 3 | F68: 3 | I68: 91.7246696 | M68: 5 | Q68: 0.2753303965
H72: 8
H109: 0

Sheet CO2-ækvivalent - Affald
P26: 255.2769712 | Q26: 240.5959841
O27: 496.6765478 | P27: 478.6750229 | Q27: 364.9576088
P28: ='Samlet Nøgletal'!J238 -> 0 | Q28: ='Samlet Nøgletal'!K238 -> 23000
P29: ='Samlet Nøgletal'!J239 -> 43594.0105 | Q29: ='Samlet Nøgletal'!K239 -> 40609.80894
F35: 0 | H35: 360
H36: 181600
F40: 0
B43: Rensning | D43: ='Andre drivhusgasser'!M8 -> -0.022 | E43: ='Andre drivhusgasser'!O8 -> -0.03
E68: =F68 -> 3 | F68: 3 | I68: 91.7246696 | M68: 5 | Q68: 0.2753303965
H72: 8
H109: 0

Sheet CO2-ækvivalent - Spildevand
P26: 255.2769712 | Q26: 240.5959841
O27: ='Samlet Nøgletal'!J238 -> 0 | P27: ='Samlet Nøgletal'!K238 -> 23000 | Q27: 364.9576088
O28: ='Samlet Nøgletal'!J239 -> 43594.0105 | P28: ='Samlet Nøgletal'!K239 -> 40609.80894
F35: 0 | H35: 360
H36: 181600
F40: 0
B43: Rensning | D43: ='Andre drivhusgasser'!M10 -> -0.024 | E43: ='Andre drivhusgasser'!O10 -> -0.03
E68: =F68 -> 3 | F68: 3 | I68: 91.7246696 | M68: 5 | Q68: 0.2753303965
H72: 8
H109: 0

Sheet Oversigt - Resultat

Sheet Overblik (hidden)
A3: Udvikling i slutforbrug
B4: 2005 | C4: 2010 | D4: 2015 | E4: 2018
A5: Samlet slutforbrug (TJ) | B5: ='2005'!$T$18*-1 -> 616839.97 | C5: ='2010'!$T$18*-1 -> 587987.15 | D5: ='2015'!$T$18*-1 -> 570916.47 | E5: ='2018'!$T$18*-1 -> 590608.15
A7: Udvikling i CO2
B8: 2005 | C8: 2010 | D8: 2015 | E8: 2018
A9: Samlet CO2-udledning (103 ton) | B9: =Elapparater!B1 -> 68365.798 | C9: =Elapparater!D1 -> 59748.77928 | D9: =Elapparater!F1 -> 50517.83812 | E9: =Elapparater!H1 -> 51593.64158 | G9: Mål 2030: | H9: 23000
A11: Fordeling af slutforbrug mellem sektorerne
B12: 2005 | C12: 2010 | D12: 2015 | E12: 2018
A13: Transport (TJ) | B13: ='2005'!$T$20*-1 -> 179465.97 | C13: ='2010'!$T$20*-1 -> 175759.15 | D13: ='2015'!$T$20*-1 -> 172303.47 | E13: ='2018'!$T$20*-1 -> 179774.15
A14: Husholdning (TJ) | B14: ='2005'!$T$30*-1 -> 194243 | C14: ='2010'!$T$30*-1 -> 191177 | D14: ='2015'!$T$30*-1 -> 192823 | E14: ='2018'!$T$30*-1 -> 196853
A15: Offentlig service (TJ) | B15: ='2005'!$T$31*-1 -> 25883 | C15: ='2010'!$T$31*-1 -> 24786 | D15: ='2015'!$T$31*-1 -> 24507 | E15: ='2018'!$T$31*-1 -> 25255
A16: Erhverv (TJ) | B16: =('2005'!$T$32)*-1 -> 217248 | C16: =('2010'!$T$32)*-1 -> 196265 | D16: =('2015'!$T$32)*-1 -> 181283 | E16: =('2018'!$T$32)*-1 -> 188726
A18: Forbrug af primær energi
B19: 2005 | C19: 2010 | D19: 2015 | E19: 2018
A20: Naturgas (TJ) | B20: ='2005'!$AB$5 -> 160343 | C20: ='2010'!$AB$5 -> 153375 | D20: ='2015'!$AB$5 -> 96798 | E20: ='2018'!$AB$5 -> 92253
A21: Kul (TJ) | B21: ='2005'!$AC$5 -> 155032 | C21: ='2010'!$AC$5 -> 163586 | D21: ='2015'!$AC$5 -> 76481 | E21: ='2018'!$AC$5 -> 67590
A22: Ikke-bionedbrydelig affald (TJ) | B22: ='2005'!$AD$5 -> 17026 | C22: ='2010'!$AD$5 -> 17129 | D22: ='2015'!$AD$5 -> 17868 | E22: ='2018'!$AD$5 -> 17307
A23: Biomasse (TJ) | B23: ='2005'!$AE$5 -> 93996 | C23: ='2010'!$AE$5 -> 125431 | D23: ='2015'!$AE$5 -> 139830 | E23: ='2018'!$AE$5 -> 171806
A24: Sol og vind (TJ) | B24: ='2005'!$AF$7+'2005'!$AF$17 -> 28046 | C24: ='2010'!$AF$7+'2010'!$AF$17 -> 34022 | D24: ='2015'!$AF$7+'2015'!$AF$17 -> 62821 | E24: ='2018'!$AF$7+'2018'!$AF$17 -> 66692

Sheet Samlet Nøgletal (hidden)
A1: Elapparater
A2: Årstal | B2: 2005 | C2: 2010 | D2: 2015 | E2: 2018 | F2: BF2030 | G2: 2025 | H2: 2030
A3: Husholdninger | B3: =Elapparater!B4 -> 36721.6 | C3: =Elapparater!D4 -> 35392.4 | D3: =Elapparater!F4 -> 34553.8 | E3: =Elapparater!H4 -> 32348 | F3: =Elapparater!J4 -> 35451.6 | G3: =Elapparater!L4 -> 35408.99104 | H3: =Elapparater!N4 -> 35593.75606 | J3: 1013 | K3: 1008
A4: Offentlig | B4: =Elapparater!B5 -> 9380 | C4: =Elapparater!D5 -> 9266 | D4: =Elapparater!F5 -> 8555 | E4: =Elapparater!H5 -> 8661 | F4: =Elapparater!J5 -> 8613.6 | G4: =Elapparater!L5 -> 8600.554578 | H4: =Elapparater!N5 -> 8557.637725 | J4: 999 | K4: 999
A5: Erhverv (eksklusiv Proces) | B5: =Elapparater!B6 -> 14438.2 | C5: =Elapparater!D6 -> 13446.8 | D5: =Elapparater!F6 -> 12875.8 | E5: =Elapparater!H6 -> 13335.4 | F5: =Elapparater!J6 -> 13557.91088 | G5: =Elapparater!L6 -> 13523.21951 | H5: =Elapparater!N6 -> 13496.30788 | J5: 1002 | K5: 1001
A7: Tab i elnet | B7: =Elapparater!B8 -> 0.04553070229 | C7: =Elapparater!D8 -> 0.08233275021 | D7: =Elapparater!F8 -> 0.05713992854 | E7: =Elapparater!H8 -> 0.07072973358 | F7: =Elapparater!J8 -> 0.0699236989 | G7: =J7/1000 -> 0.07 | H7: =K7/1000 -> 0.07 | J7: 70 | K7: 70
A9: Ekstra visning: | G9: =Elapparater!L10 -> -21673.65618 | H9: =Elapparater!N10 -> -14216.31318
A11: Ekstra visning:
A12: Apparater (TJ) | B12: =Elapparater!B13 -> 60539.8 | C12: =Elapparater!D13 -> 58105.2 | D12: =Elapparater!F13 -> 55984.6 | E12: =Elapparater!H13 -> 54344.4 | F12: =Elapparater!J13 -> 57623.11088 | G12: =Elapparater!L13 -> 57532.76513 | H12: =Elapparater!N13 -> 57647.70167
A13: Individuel opvarmning og proces (TJ) | B13: =Elapparater!B14 -> 58841.2 | C13: =Elapparater!D14 -> 55132.8 | D13: =Elapparater!F14 -> 53804.4 | E13: =Elapparater!H14 -> 56335.6 | F13: =Elapparater!J14 -> 80533.93253 | G13: =Elapparater!L14 -> 70523.82811 | H13: =Elapparater!N14 -> 81300.11119
A14: Transport (TJ) | B14: =Elapparater!B15 -> 1350.72 | C14: =Elapparater!D15 -> 1455.12 | D14: =Elapparater!F15 -> 1429.2 | E14: =Elapparater!H15 -> 1451.06 | F14: =Elapparater!J15 -> 7797.109506 | G14: =Elapparater!L15 -> 3768.94254 | H14: =Elapparater!N15 -> 7175.108683
A16: Fjernvarme
A17: Årstal | B17: 2005 | C17: 2010 | D17: 2015 | E17: 2018 | F17: BF2030 | G17: 2025 | H17: 2030
A18: Husholdninger | B18: =Fjernvarme!B4 -> 65536 | C18: =Fjernvarme!D4 -> 68612 | D18: =Fjernvarme!F4 -> 70644 | E18: =Fjernvarme!H4 -> 71757 | F18: =Fjernvarme!J4 -> 69806 | G18: =Fjernvarme!L4 -> 69771.75426 | H18: =Fjernvarme!N4 -> 70053.65012 | J18: 996 | K18: 998
A19: Offentlig | B19: =Fjernvarme!B5 -> 10303 | C19: =Fjernvarme!D5 -> 10495 | D19: =Fjernvarme!F5 -> 10698 | E19: =Fjernvarme!H5 -> 10866 | F19: =Fjernvarme!J5 -> 10032 | G19: =Fjernvarme!L5 -> 9985.465438 | H19: =Fjernvarme!N5 -> 9987.589466 | J19: 988 | K19: 993
A20: Erhverv | B20: =Fjernvarme!B6 -> 28765 | C20: =Fjernvarme!D6 -> 27618 | D20: =Fjernvarme!F6 -> 26057 | E20: =Fjernvarme!H6 -> 27369 | F20: =Fjernvarme!J6 -> 27060 | G20: =Fjernvarme!L6 -> 26988.12535 | H20: =Fjernvarme!N6 -> 27042.37235 | J20: 998 | K20: 999
A22: Tab i fjernvarmenet | B22: =Fjernvarmetransmission!B9 -> 0.243260296 | C22: =Fjernvarmetransmission!D9 -> 0.2798969314 | D22: =Fjernvarmetransmission!F9 -> 0.2412778517 | E22: =Fjernvarmetransmission!H9 -> 0.2439995636 | F22: =Fjernvarmetransmission!J9 -> 0.2048195025 | G22: =J22/100 -> 0.23 | H22: =K22/100 -> 0.21 | J22: 23 | K22: 21
A23: Ekstra visning: Forbrug af de forskellige energiformer til el- og fjernvarmeproduktion
A24: Naturgas | B24: =Fjernvarme!B10 -> 87956 | C24: =Fjernvarme!D10 -> 85683 | D24: =Fjernvarme!F10 -> 34440 | E24: =Fjernvarme!H10 -> 30775 | F24: =Fjernvarme!J10 -> 5383.814657 | G24: =Fjernvarme!L10 -> 25706.27089 | H24: =Fjernvarme!N10 -> 8768.737604
A25: Kul | B25: =Fjernvarme!B11 -> 144241 | C25: =Fjernvarme!D11 -> 157959 | D25: =Fjernvarme!F11 -> 71527 | E25: =Fjernvarme!H11 -> 61990 | F25: =Fjernvarme!J11 -> 0 | G25: =Fjernvarme!L11 -> 17434.5741 | H25: =Fjernvarme!N11 -> 0
A26: Ikke-bionedbrydeligt affald | B26: =Fjernvarme!B12 -> 15787 | C26: =Fjernvarme!D12 -> 16207 | D26: =Fjernvarme!F12 -> 17062 | E26: =Fjernvarme!H12 -> 16310 | F26: =Fjernvarme!J12 -> 9226.75466 | G26: =Fjernvarme!L12 -> 16375.58325 | H26: =Fjernvarme!N12 -> 13365.71888
A27: Biobrændsler | B27: =Fjernvarme!B13 -> 54955 | C27: =Fjernvarme!D13 -> 78739 | D27: =Fjernvarme!F13 -> 84778 | E27: =Fjernvarme!H13 -> 108036 | F27: =Fjernvarme!J13 -> 88655.39013 | G27: =Fjernvarme!L13 -> 121073.2883 | H27: =Fjernvarme!N13 -> 113876.1387
A28: Synteteske brændsler | B28: =Fjernvarme!B14 -> 761 | C28: =Fjernvarme!D14 -> 1949 | D28: =Fjernvarme!F14 -> 636 | E28: =Fjernvarme!H14 -> 234 | F28: =Fjernvarme!J14 -> 52.30785869 | G28: =Fjernvarme!L14 -> 393.8903232 | H28: =Fjernvarme!N14 -> 302.332731
A29: Olieprodukter | B29: =Fjernvarme!B15 -> 16188 | C29: =Fjernvarme!D15 -> 12641 | D29: =Fjernvarme!F15 -> 4149 | E29: =Fjernvarme!H15 -> 3786 | F29: =Fjernvarme!J15 -> 1714.387442 | G29: =Fjernvarme!L15 -> 3693.542997 | H29: =Fjernvarme!N15 -> 2781.896487
A30: Sol | B30: =Fjernvarme!B16 -> 53 | C30: =Fjernvarme!D16 -> 143 | D30: =Fjernvarme!F16 -> 956 | E30: =Fjernvarme!H16 -> 2161 | F30: =Fjernvarme!J16 -> 41756.05568 | G30: =Fjernvarme!L16 -> 22950.67617 | H30: =Fjernvarme!N16 -> 44313.34029
A31: Omgivelsesvarme | B31: =Fjernvarme!B17 -> 172 | C31: =Fjernvarme!D17 -> 212 | D31: =Fjernvarme!F17 -> 140 | E31: =Fjernvarme!H17 -> 110 | F31: =Fjernvarme!J17 -> 3516.103756 | G31: =Fjernvarme!L17 -> 1425.507836 | H31: =Fjernvarme!N17 -> 3516.931769
A32: Overskudsvarme | B32: =Fjernvarme!B18 -> 0 | C32: =Fjernvarme!D18 -> 0 | D32: =Fjernvarme!F18 -> 0 | E32: =Fjernvarme!H18 -> 0 | F32: =Fjernvarme!J18 -> 0 | G32: =Fjernvarme!L18 -> 0 | H32: =Fjernvarme!N18 -> 0
A33: El til varmepumpe | B33: =Fjernvarme!B19 -> 68.8 | C33: =Fjernvarme!D19 -> 84.8 | D33: =Fjernvarme!F19 -> 56 | E33: =Fjernvarme!H19 -> 44 | F33: =Fjernvarme!J19 -> 1406.441503 | G33: =Fjernvarme!L19 -> 570.2031346 | H33: =Fjernvarme!N19 -> 1406.772708
A35: Opvarmning og proces
A36: Årstal | B36: 2005 | C36: 2010 | D36: 2015 | E36: 2018 | F36: BF2030 | G36: 2025 | H36: 2030
A37: Husholdninger | B37: ='Opvarmning og proces'!B4 -> 91985.4 | C37: ='Opvarmning og proces'!D4 -> 87172.6 | D37: ='Opvarmning og proces'!F4 -> 87625.2 | E37: ='Opvarmning og proces'!H4 -> 92748 | F37: ='Opvarmning og proces'!J4 -> 84134.4 | G37: ='Opvarmning og proces'!L4 -> 88297.68001 | H37: ='Opvarmning og proces'!N4 -> 84225.69808 | J37: 993 | K37: 992
A38: Offentlig | B38: ='Opvarmning og proces'!B5 -> 6200 | C38: ='Opvarmning og proces'!D5 -> 5025 | D38: ='Opvarmning og proces'!F5 -> 5254 | E38: ='Opvarmning og proces'!H5 -> 5728 | F38: ='Opvarmning og proces'!J5 -> 7987.4 | G38: ='Opvarmning og proces'!L5 -> 6902.336285 | H38: ='Opvarmning og proces'!N5 -> 7978.484124 | J38: 1027 | K38: 1028
A39: Erhverv | B39: ='Opvarmning og proces'!B6 -> 174482.8 | C39: ='Opvarmning og proces'!D6 -> 155954.6 | D39: ='Opvarmning og proces'!F6 -> 143341 | E39: ='Opvarmning og proces'!H6 -> 149211.6 | F39: ='Opvarmning og proces'!J6 -> 154854.5918 | G39: ='Opvarmning og proces'!L6 -> 151313.138 | H39: ='Opvarmning og proces'!N6 -> 154672.7416 | J39: 1002 | K39: 1003
A41: Husholdninger
A42: Naturgas | B42: ='Opvarmning og proces'!B9 -> 0.3360018104 | C42: ='Opvarmning og proces'!D9 -> 0.3312428557 | D42: ='Opvarmning og proces'!F9 -> 0.3114243907 | E42: ='Opvarmning og proces'!H9 -> 0.2850005278 | F42: ='Opvarmning og proces'!J9 -> 0.2380241326 | G42: =J42/100 -> 0.28 | H42: =K42/100 -> 0.24 | J42: =100-SUM(J43:J49) -> 28 | K42: =100-SUM(K43:K49) -> 24
A43: Kul | B43: ='Opvarmning og proces'!B10 -> 8.962139442e-05 | C43: ='Opvarmning og proces'!D10 -> 0.0003340945917 | D43: ='Opvarmning og proces'!F10 -> 0 | E43: ='Opvarmning og proces'!H10 -> 0 | F43: ='Opvarmning og proces'!J10 -> 0 | G43: =J43/100 -> 0 | H43: =K43/100 -> 0 | J43: 0 | K43: 0
A44: Affald ikke bionedbrydelig | B44: ='Opvarmning og proces'!B11 -> 0 | C44: ='Opvarmning og proces'!D11 -> 0 | D44: ='Opvarmning og proces'!F11 -> 0 | E44: ='Opvarmning og proces'!H11 -> 0 | F44: ='Opvarmning og proces'!J11 -> 0 | G44: 0 | H44: 0 | J44: 0 | K44: 0
A45: Biobrændsler | B45: ='Opvarmning og proces'!B12 -> 0.3389257083 | C45: ='Opvarmning og proces'!D12 -> 0.4252427555 | D45: ='Opvarmning og proces'!F12 -> 0.5187108689 | E45: ='Opvarmning og proces'!H12 -> 0.5541559645 | F45: ='Opvarmning og proces'!J12 -> 0.5127612407 | G45: 0.55 | H45: 0.52 | J45: 55 | K45: 52
A46: Sol | B46: ='Opvarmning og proces'!B13 -> 0.003416815662 | C46: ='Opvarmning og proces'!D13 -> 0.004999486926 | D46: ='Opvarmning og proces'!F13 -> 0.006033794133 | E46: ='Opvarmning og proces'!H13 -> 0.006016677809 | F46: ='Opvarmning og proces'!J13 -> 0.00327358561 | G46: 0.01 | H46: 0 | J46: 1 | K46: 0
A47: Syntetiske brændsler | B47: ='Opvarmning og proces'!B14 -> 0 | C47: ='Opvarmning og proces'!D14 -> 0.0002625028935 | D47: ='Opvarmning og proces'!F14 -> 8.549910715e-05 | E47: ='Opvarmning og proces'!H14 -> 0 | F47: ='Opvarmning og proces'!J14 -> 0.1026154226 | G47: 0 | H47: 0.09 | J47: 0 | K47: 9
A48: Olieprodukter | B48: ='Opvarmning og proces'!B15 -> 0.3093730535 | C48: ='Opvarmning og proces'!D15 -> 0.2218626728 | D48: ='Opvarmning og proces'!F15 -> 0.1356382264 | E48: ='Opvarmning og proces'!H15 -> 0.1197119501 | F48: ='Opvarmning og proces'!J15 -> 0.06013059884 | G48: 0.12 | H48: 0.07 | J48: 12 | K48: 7
A49: El (elvarme og varmepumper) | B49: ='Opvarmning og proces'!B16 -> 0.01219299071 | C49: ='Opvarmning og proces'!D16 -> 0.01605563152 | D49: ='Opvarmning og proces'!F16 -> 0.02810722077 | E49: ='Opvarmning og proces'!H16 -> 0.03511487984 | F49: ='Opvarmning og proces'!J16 -> 0.08319501956 | G49: 0.04 | H49: 0.08 | J49: 4 | K49: 8
A50: Offentlig
A51: Naturgas | B51: ='Opvarmning og proces'!B18 -> 0.5 | C51: ='Opvarmning og proces'!D18 -> 0.568358209 | D51: ='Opvarmning og proces'!F18 -> 0.4725923106 | E51: ='Opvarmning og proces'!H18 -> 0.4458798883 | F51: ='Opvarmning og proces'!J18 -> 0.362507538 | G51: 0.42 | H51: 0.37 | J51: =100-SUM(J52:J58) -> 42 | K51: =100-SUM(K52:K58) -> 37
A52: Kul | B52: ='Opvarmning og proces'!B19 -> 0 | C52: ='Opvarmning og proces'!D19 -> 0 | D52: ='Opvarmning og proces'!F19 -> 0 | E52: ='Opvarmning og proces'!H19 -> 0 | F52: ='Opvarmning og proces'!J19 -> 0 | G52: 0 | H52: 0 | J52: 0 | K52: 0
A53: Affald ikke bionedbrydelig | B53: ='Opvarmning og proces'!B20 -> 0 | C53: ='Opvarmning og proces'!D20 -> 0 | D53: ='Opvarmning og proces'!F20 -> 0 | E53: ='Opvarmning og proces'!H20 -> 0 | F53: ='Opvarmning og proces'!J20 -> 0 | G53: 0 | H53: 0 | J53: 0 | K53: 0
A54: Biobrændsler | B54: ='Opvarmning og proces'!B21 -> 0.1359677419 | C54: ='Opvarmning og proces'!D21 -> 0.1743283582 | D54: ='Opvarmning og proces'!F21 -> 0.2519984774 | E54: ='Opvarmning og proces'!H21 -> 0.3011522346 | F54: ='Opvarmning og proces'!J21 -> 0.3583959213 | G54: 0.36 | H54: 0.36 | J54: 36 | K54: 36
A55: Sol | B55: ='Opvarmning og proces'!B22 -> 0.008709677419 | C55: ='Opvarmning og proces'!D22 -> 0.01472636816 | D55: ='Opvarmning og proces'!F22 -> 0.01655881233 | E55: ='Opvarmning og proces'!H22 -> 0.01588687151 | F55: ='Opvarmning og proces'!J22 -> 0.02727372403 | G55: 0.02 | H55: 0.02 | J55: 2 | K55: 2
A56: Syntetiske brændsler | B56: ='Opvarmning og proces'!B23 -> 0 | C56: ='Opvarmning og proces'!D23 -> 0 | D56: ='Opvarmning og proces'!F23 -> 0 | E56: ='Opvarmning og proces'!H23 -> 0 | F56: ='Opvarmning og proces'!J23 -> 0.1562414341 | G56: 0 | H56: 0.15 | J56: 0 | K56: 15
A57: Olieprodukter | B57: ='Opvarmning og proces'!B24 -> 0.3553225806 | C57: ='Opvarmning og proces'!D24 -> 0.2425870647 | D57: ='Opvarmning og proces'!F24 -> 0.2588503997 | E57: ='Opvarmning og proces'!H24 -> 0.2370810056 | F57: ='Opvarmning og proces'!J24 -> 0.05769968752 | G57: 0.14 | H57: 0.06 | J57: 14 | K57: 6
A58: El (elvarme og varmepumper) | B58: ='Opvarmning og proces'!B25 -> 0 | C58: ='Opvarmning og proces'!D25 -> 0 | D58: ='Opvarmning og proces'!F25 -> 0 | E58: ='Opvarmning og proces'!H25 -> 0 | F58: ='Opvarmning og proces'!J25 -> 0.03788169508 | G58: 0.06 | H58: 0.04 | J58: 6 | K58: 4
A59: Erhverv
A60: Naturgas | B60: ='Opvarmning og proces'!B27 -> 0.227198875 | C60: ='Opvarmning og proces'!D27 -> 0.2418236536 | D60: ='Opvarmning og proces'!F27 -> 0.2452363998 | E60: ='Opvarmning og proces'!H27 -> 0.2365998238 | F60: ='Opvarmning og proces'!J27 -> 0.1526031465 | G60: 0.2 | H60: 0.14 | J60: =100-SUM(J61:J67) -> 20 | K60: =100-SUM(K61:K67) -> 14
A61: Kul | B61: ='Opvarmning og proces'!B28 -> 0.06234757138 | C61: ='Opvarmning og proces'!D28 -> 0.03651977442 | D61: ='Opvarmning og proces'!F28 -> 0.03541779269 | E61: ='Opvarmning og proces'!H28 -> 0.03860828175 | F61: ='Opvarmning og proces'!J28 -> 0.03669774777 | G61: 0.04 | H61: 0.04 | J61: 4 | K61: 4
A62: Affald ikke bionedbrydelig | B62: ='Opvarmning og proces'!B29 -> 0.007163928493 | C62: ='Opvarmning og proces'!D29 -> 0.006013793895 | D62: ='Opvarmning og proces'!F29 -> 0.005762361911 | E62: ='Opvarmning og proces'!H29 -> 0.006873653019 | F62: ='Opvarmning og proces'!J29 -> 0.01100813939 | G62: 0.01 | H62: 0.02 | J62: 1 | K62: 2
A63: Biobrændsler | B63: ='Opvarmning og proces'!B30 -> 0.04593240351 | C63: ='Opvarmning og proces'!D30 -> 0.0663800222 | D63: ='Opvarmning og proces'!F30 -> 0.08050148277 | E63: ='Opvarmning og proces'!H30 -> 0.1020085959 | F63: ='Opvarmning og proces'!J30 -> 0.06409367701 | G63: 0.1 | H63: 0.07 | J63: 10 | K63: 7
A64: Sol | B64: ='Opvarmning og proces'!B31 -> 0 | C64: ='Opvarmning og proces'!D31 -> 0 | D64: ='Opvarmning og proces'!F31 -> 0 | E64: ='Opvarmning og proces'!H31 -> 0 | F64: ='Opvarmning og proces'!J31 -> 0.004182855978 | G64: 0 | H64: 0 | J64: 0 | K64: 0
A65: Syntetiske brændsler | B65: ='Opvarmning og proces'!B32 -> 0 | C65: ='Opvarmning og proces'!D32 -> 0 | D65: ='Opvarmning og proces'!F32 -> 0 | E65: ='Opvarmning og proces'!H32 -> 0 | F65: ='Opvarmning og proces'!J32 -> 0.06579407314 | G65: 0 | H65: 0.06 | J65: 0 | K65: 6
A66: Olieprodukter | B66: ='Opvarmning og proces'!B33 -> 0.3234291106 | C66: ='Opvarmning og proces'!D33 -> 0.2984328914 | D66: ='Opvarmning og proces'!F33 -> 0.2648684666 | E66: ='Opvarmning og proces'!H33 -> 0.248154731 | F66: ='Opvarmning og proces'!J33 -> 0.192713536 | G66: 0.21 | H66: 0.19 | J66: 21 | K66: 19
A67: El (proces og varmepumper) | B67: ='Opvarmning og proces'!B34 -> 0.3364606377 | C67: ='Opvarmning og proces'!D34 -> 0.3557504784 | D67: ='Opvarmning og proces'!F34 -> 0.3752970548 | E67: ='Opvarmning og proces'!H34 -> 0.3759591745 | F67: ='Opvarmning og proces'!J34 -> 0.4729068242 | G67: 0.44 | H67: 0.48 | J67: 44 | K67: 48
A69: Ekstra visning: Forbrug af energiformer til individuel opvarmning og proces
A70: Naturgas (TJ) | B70: ='Opvarmning og proces'!B37 -> 72387 | C70: ='Opvarmning og proces'!D37 -> 67692 | D70: ='Opvarmning og proces'!F37 -> 62282 | E70: ='Opvarmning og proces'!H37 -> 61172 | F70: ='Opvarmning og proces'!J37 -> 46552.80825 | G70: ='Opvarmning og proces'!L37 -> 57884.95925 | H70: ='Opvarmning og proces'!N37 -> 44820.39049
A71: Kul (TJ) | B71: ='Opvarmning og proces'!B38 -> 10791 | C71: ='Opvarmning og proces'!D38 -> 5627 | D71: ='Opvarmning og proces'!F38 -> 4954 | E71: ='Opvarmning og proces'!H38 -> 5600 | F71: ='Opvarmning og proces'!J38 -> 5682.814752 | G71: ='Opvarmning og proces'!L38 -> 6052.525521 | H71: ='Opvarmning og proces'!N38 -> 6186.909665
A72: Affald ikke bionedbrydelig (TJ) | B72: ='Opvarmning og proces'!B39 -> 1239 | C72: ='Opvarmning og proces'!D39 -> 922 | D72: ='Opvarmning og proces'!F39 -> 806 | E72: ='Opvarmning og proces'!H39 -> 997 | F72: ='Opvarmning og proces'!J39 -> 1704.660931 | G72: ='Opvarmning og proces'!L39 -> 1513.13138 | H72: ='Opvarmning og proces'!N39 -> 3093.454832
A73: Biobrændsler (TJ) | B73: ='Opvarmning og proces'!B40 -> 39041 | C73: ='Opvarmning og proces'!D40 -> 46692 | D73: ='Opvarmning og proces'!F40 -> 55052 | E73: ='Opvarmning og proces'!H40 -> 63770 | F73: ='Opvarmning og proces'!J40 -> 55928.71111 | G73: ='Opvarmning og proces'!L40 -> 66179.87887 | H73: ='Opvarmning og proces'!N40 -> 57496.7092
A74: Sol (TJ) | B74: ='Opvarmning og proces'!B41 -> 359 | C74: ='Opvarmning og proces'!D41 -> 493 | D74: ='Opvarmning og proces'!F41 -> 581 | E74: ='Opvarmning og proces'!H41 -> 604 | F74: ='Opvarmning og proces'!J41 -> 1141.00176 | G74: ='Opvarmning og proces'!L41 -> 1021.023526 | H74: ='Opvarmning og proces'!N41 -> 159.5696825
A75: Syntetiske brændsler (TJ) | B75: ='Opvarmning og proces'!B42 -> 0 | C75: ='Opvarmning og proces'!D42 -> 22 | D75: ='Opvarmning og proces'!F42 -> 7 | E75: ='Opvarmning og proces'!H42 -> 0 | F75: ='Opvarmning og proces'!J42 -> 20069.96418 | G75: ='Opvarmning og proces'!L42 -> 0 | H75: ='Opvarmning og proces'!N42 -> 18057.44994
A76: Olieprodukter (TJ) | B76: ='Opvarmning og proces'!B43 -> 85756 | C76: ='Opvarmning og proces'!D43 -> 65567 | D76: ='Opvarmning og proces'!F43 -> 49513 | E76: ='Opvarmning og proces'!H43 -> 47559 | F76: ='Opvarmning og proces'!J43 -> 35362.49829 | G76: ='Opvarmning og proces'!L43 -> 43337.80767 | H76: ='Opvarmning og proces'!N43 -> 35762.32882
A77: El (elvarme og varmepumper) (TJ) | B77: ='Opvarmning og proces'!B44 -> 1526.4 | C77: ='Opvarmning og proces'!D44 -> 2100 | D77: ='Opvarmning og proces'!F44 -> 3292 | E77: ='Opvarmning og proces'!H44 -> 4184 | F77: ='Opvarmning og proces'!J44 -> 7302.139305 | G77: ='Opvarmning og proces'!L44 -> 3946.047378 | H77: ='Opvarmning og proces'!N44 -> 7057.195211
A79: Transport modes
A80: Årstal | B80: 2005 | C80: 2010 | D80: 2015 | E80: 2018 | F80: BF2030 | G80: 2025 | H80: 2030
A81: Vejtransport | B81: ='Transport modes'!B5 -> 161923 | C81: ='Transport modes'!D5 -> 161215.25 | D81: ='Transport modes'!F5 -> 159244.66 | E81: ='Transport modes'!H5 -> 166096.65 | F81: ='Transport modes'!J5 -> 168936.1869 | G81: ='Transport modes'!L5 -> 164989.339 | H81: ='Transport modes'!N5 -> 164738.7926 | J81: 1000 | K81: 1001
A82: Tog | B82: ='Transport modes'!B6 -> 4487.51 | C82: ='Transport modes'!D6 -> 4728.03 | D82: ='Transport modes'!F6 -> 4784.7 | E82: ='Transport modes'!H6 -> 4478.67 | F82: ='Transport modes'!J6 -> 4696.250532 | G82: ='Transport modes'!L6 -> 3653.533018 | H82: ='Transport modes'!N6 -> 2756.722104 | J82: 1006 | K82: 1004
A83: Fly | B83: ='Transport modes'!B7 -> 1303.84 | C83: ='Transport modes'!D7 -> 1812.79 | D83: ='Transport modes'!F7 -> 1284.68 | E83: ='Transport modes'!H7 -> 1201.99 | F83: ='Transport modes'!J7 -> 1422.111721 | G83: ='Transport modes'!L7 -> 1306.665553 | H83: ='Transport modes'!N7 -> 1420.222257 | J83: 1012 | K83: 1014
A84: Søtransport | B84: ='Transport modes'!B8 -> 8026.04 | C84: ='Transport modes'!D8 -> 6533.05 | D84: ='Transport modes'!F8 -> 5639.71 | E84: ='Transport modes'!H8 -> 6390.93 | F84: ='Transport modes'!J8 -> 6305.953847 | G84: ='Transport modes'!L8 -> 6390.93 | H84: ='Transport modes'!N8 -> 6314.659239 | J84: 1000 | K84: 999
A85: Forsvaret | B85: ='Transport modes'!B9 -> 3725.58 | C85: ='Transport modes'!D9 -> 1470.03 | D85: ='Transport modes'!F9 -> 1349.72 | E85: ='Transport modes'!H9 -> 1605.91 | F85: ='Transport modes'!J9 -> 1605.91 | G85: ='Transport modes'!L9 -> 1605.91 | H85: ='Transport modes'!N9 -> 1605.91 | J85: 1000 | K85: 1000
A88: Ekstra visning: Energiforbrug til de forskellige transportformer
A89: Vejtransport (TJ) | B89: ='Transport modes'!B13 -> 161923 | C89: ='Transport modes'!D13 -> 161215.25 | D89: ='Transport modes'!F13 -> 159244.66 | E89: ='Transport modes'!H13 -> 166096.65 | F89: ='Transport modes'!J13 -> 168843.1604 | G89: ='Transport modes'!L13 -> 164989.339 | H89: ='Transport modes'!N13 -> 164738.7926
A90: Tog (TJ) | B90: ='Transport modes'!B14 -> 4487.51 | C90: ='Transport modes'!D14 -> 4728.03 | D90: ='Transport modes'!F14 -> 4784.7 | E90: ='Transport modes'!H14 -> 4478.67 | F90: ='Transport modes'!J14 -> 4696.250532 | G90: ='Transport modes'!L14 -> 3653.533018 | H90: ='Transport modes'!N14 -> 2756.722104
A91: Fly (TJ) | B91: ='Transport modes'!B15 -> 1303.84 | C91: ='Transport modes'!D15 -> 1812.79 | D91: ='Transport modes'!F15 -> 1284.68 | E91: ='Transport modes'!H15 -> 1201.99 | F91: ='Transport modes'!J15 -> 1422.111721 | G91: ='Transport modes'!L15 -> 1306.665553 | H91: ='Transport modes'!N15 -> 1420.222257
A92: Søtransport (TJ) | B92: ='Transport modes'!B16 -> 8026.04 | C92: ='Transport modes'!D16 -> 6533.05 | D92: ='Transport modes'!F16 -> 5639.71 | E92: ='Transport modes'!H16 -> 6390.93 | F92: ='Transport modes'!J16 -> 6305.953847 | G92: ='Transport modes'!L16 -> 6390.93 | H92: ='Transport modes'!N16 -> 6314.659239
A93: Forsvaret (TJ) | B93: ='Transport modes'!B17 -> 3725.58 | C93: ='Transport modes'!D17 -> 1470.03 | D93: ='Transport modes'!F17 -> 1349.72 | E93: ='Transport modes'!H17 -> 1605.91 | F93: ='Transport modes'!J17 -> 1605.91 | G93: ='Transport modes'!L17 -> 1605.91 | H93: ='Transport modes'!N17 -> 1605.91
A95: Teknologivalg til transport
A96: Årstal | B96: 2005 | C96: 2010 | D96: 2015 | E96: 2018 | F96: BF2030 | G96: 2025 | H96: 2030
A97: Vejtransport
A98: Naturgas | B98: ='Teknologi til transport'!B5 -> 0 | C98: ='Teknologi til transport'!D5 -> 0 | D98: ='Teknologi til transport'!F5 -> 0.000477253052 | E98: ='Teknologi til transport'!H5 -> 0.001842300853 | F98: ='Teknologi til transport'!J5 -> 0.002753303965 | G98: =J98/100 -> 0 | H98: =K98/100 -> 0 | J98: 0 | K98: 0
A99: Biobrændsler | B99: ='Teknologi til transport'!B6 -> 0 | C99: ='Teknologi til transport'!D6 -> 0 | D99: ='Teknologi til transport'!F6 -> 0 | E99: ='Teknologi til transport'!H6 -> 0 | F99: ='Teknologi til transport'!J6 -> 0.001101321586 | G99: =J99/100 -> 0 | H99: =K99/100 -> 0 | J99: 0 | K99: 0
A100: Synteteske brændsler | B100: ='Teknologi til transport'!B7 -> 0 | C100: ='Teknologi til transport'!D7 -> 0.00703407401 | D100: ='Teknologi til transport'!F7 -> 0.05632025589 | E100: ='Teknologi til transport'!H7 -> 0.05392119588 | F100: ='Teknologi til transport'!J7 -> 0.04460352423 | G100: 0.05 | H100: 0.05 | J100: 5 | K100: 5
A101: Olieprodukter | B101: ='Teknologi til transport'!B8 -> 1 | C101: ='Teknologi til transport'!D8 -> 0.992965926 | D101: ='Teknologi til transport'!F8 -> 0.9432024911 | E101: ='Teknologi til transport'!H8 -> 0.9442365033 | F101: ='Teknologi til transport'!J8 -> 0.9273127753 | G101: 0.94 | H101: 0.92 | J101: =100-SUM(J98:J100)-J102 -> 94 | K101: =100-SUM(K98:K100)-K102 -> 92
A102: El | B102: ='Teknologi til transport'!B9 -> 0 | C102: ='Teknologi til transport'!D9 -> 0 | D102: ='Teknologi til transport'!F9 -> 0 | E102: ='Teknologi til transport'!H9 -> 0 | F102: ='Teknologi til transport'!J9 -> 0.0236784141 | G102: 0.01 | H102: 0.03 | J102: 1 | K102: 3
A103: Tog
A104: Naturgas | B104: ='Teknologi til transport'!B11 -> 0 | C104: ='Teknologi til transport'!D11 -> 0 | D104: ='Teknologi til transport'!F11 -> 0 | E104: ='Teknologi til transport'!H11 -> 0 | F104: ='Teknologi til transport'!J11 -> 0 | G104: 0 | H104: 0 | J104: 0 | K104: 0
A105: Biobrændsler | B105: ='Teknologi til transport'!B12 -> 0 | C105: ='Teknologi til transport'!D12 -> 0 | D105: ='Teknologi til transport'!F12 -> 0 | E105: ='Teknologi til transport'!H12 -> 0 | F105: ='Teknologi til transport'!J12 -> 0 | G105: 0 | H105: 0 | J105: 0 | K105: 0
A106: Synteteske brændsler | B106: ='Teknologi til transport'!B13 -> 0 | C106: ='Teknologi til transport'!D13 -> 0 | D106: ='Teknologi til transport'!F13 -> 0 | E106: ='Teknologi til transport'!H13 -> 0 | F106: ='Teknologi til transport'!J13 -> 0 | G106: 0 | H106: 0 | J106: 0 | K106: 0
A107: Olieprodukter | B107: ='Teknologi til transport'!B14 -> 0.6990045705 | C107: ='Teknologi til transport'!D14 -> 0.6922354554 | D107: ='Teknologi til transport'!F14 -> 0.701297887 | E107: ='Teknologi til transport'!H14 -> 0.676006493 | F107: ='Teknologi til transport'!J14 -> 0.1914893617 | G107: 0.42 | H107: 0.19 | J107: =100-J108-J106-J105-J104 -> 42 | K107: =100-K108-K106-K105-K104 -> 19
A108: El | B108: ='Teknologi til transport'!B15 -> 0.3009954295 | C108: ='Teknologi til transport'!D15 -> 0.3077645446 | D108: ='Teknologi til transport'!F15 -> 0.298702113 | E108: ='Teknologi til transport'!H15 -> 0.323993507 | F108: ='Teknologi til transport'!J15 -> 0.8085106383 | G108: 0.58 | H108: 0.81 | J108: 58 | K108: 81
A109: Fly
A110: Synteteske brændsler | B110: ='Teknologi til transport'!B17 -> 0 | C110: ='Teknologi til transport'!D17 -> 0 | D110: ='Teknologi til transport'!F17 -> 0 | E110: ='Teknologi til transport'!H17 -> 0 | F110: ='Teknologi til transport'!J17 -> 0 | G110: 0 | H110: 0 | J110: 0 | K110: 0
A111: Olieprodukter | B111: ='Teknologi til transport'!B18 -> 1 | C111: ='Teknologi til transport'!D18 -> 1 | D111: ='Teknologi til transport'!F18 -> 1 | E111: ='Teknologi til transport'!H18 -> 1 | F111: ='Teknologi til transport'!J18 -> 1 | G111: 1 | H111: 1 | J111: =100-J112-J110 -> 100 | K111: =100-K112-K110 -> 100
A112: El | B112: ='Teknologi til transport'!B19 -> 0 | C112: ='Teknologi til transport'!D19 -> 0 | D112: ='Teknologi til transport'!F19 -> 0 | E112: ='Teknologi til transport'!H19 -> 0 | F112: ='Teknologi til transport'!J19 -> 0 | G112: 0 | H112: 0 | J112: 0 | K112: 0
A113: Søtransport
A114: Synteteske brændsler | B114: ='Teknologi til transport'!B21 -> 0 | C114: ='Teknologi til transport'!D21 -> 0 | D114: ='Teknologi til transport'!F21 -> 0 | E114: ='Teknologi til transport'!H21 -> 0 | F114: ='Teknologi til transport'!J21 -> 0 | G114: 0 | H114: 0 | J114: 0 | K114: 0
A115: Olieprodukter | B115: ='Teknologi til transport'!B22 -> 1 | C115: ='Teknologi til transport'!D22 -> 1 | D115: ='Teknologi til transport'!F22 -> 1 | E115: ='Teknologi til transport'!H22 -> 1 | F115: ='Teknologi til transport'!J22 -> 1 | G115: 1 | H115: 1 | J115: =100-J114-J116 -> 100 | K115: =100-K114-K116 -> 100
A116: El | B116: ='Teknologi til transport'!B23 -> 0 | C116: ='Teknologi til transport'!D23 -> 0 | D116: ='Teknologi til transport'!F23 -> 0 | E116: ='Teknologi til transport'!H23 -> 0 | F116: ='Teknologi til transport'!J23 -> 0 | G116: 0 | H116: 0 | J116: 0 | K116: 0
A117: Forsvaret
A118: Synteteske brændsler | B118: ='Teknologi til transport'!B25 -> 0 | C118: ='Teknologi til transport'!D25 -> 0 | D118: ='Teknologi til transport'!F25 -> 0 | E118: ='Teknologi til transport'!H25 -> 0 | F118: ='Teknologi til transport'!J25 -> 0 | G118: 0 | H118: 0 | J118: 0 | K118: 0
A119: Olieprodukter | B119: ='Teknologi til transport'!B26 -> 1 | C119: ='Teknologi til transport'!D26 -> 1 | D119: ='Teknologi til transport'!F26 -> 1 | E119: ='Teknologi til transport'!H26 -> 1 | F119: ='Teknologi til transport'!J26 -> 1 | G119: 1 | H119: 1 | J119: =100-J120-J118 -> 100 | K119: =100-K120-K118 -> 100
A120: El | B120: ='Teknologi til transport'!B27 -> 0 | C120: ='Teknologi til transport'!D27 -> 0 | D120: ='Teknologi til transport'!F27 -> 0 | E120: ='Teknologi til transport'!H27 -> 0 | F120: ='Teknologi til transport'!J27 -> 0 | G120: 0 | H120: 0 | J120: 0 | K120: 0
A122: Ekstra visning: Forbrug af de forskellige energiformer til transport
A123: Naturgas (TJ) | B123: ='Teknologi til transport'!B34 -> 0 | C123: ='Teknologi til transport'!D34 -> 0 | D123: ='Teknologi til transport'!F34 -> 76 | E123: ='Teknologi til transport'!H34 -> 306 | F123: ='Teknologi til transport'!J34 -> 465.1326733 | G123: ='Teknologi til transport'!L34 -> 0 | H123: ='Teknologi til transport'!N34 -> 0
A124: Biobrændsler (TJ) | B124: ='Teknologi til transport'!B35 -> 0 | C124: ='Teknologi til transport'!D35 -> 0 | D124: ='Teknologi til transport'!F35 -> 0 | E124: ='Teknologi til transport'!H35 -> 0 | F124: ='Teknologi til transport'!J35 -> 186.0530693 | G124: ='Teknologi til transport'!L35 -> 0 | H124: ='Teknologi til transport'!N35 -> 0
A125: Synteteske brændsler (TJ) | B125: ='Teknologi til transport'!B36 -> 0 | C125: ='Teknologi til transport'!D36 -> 1134 | D125: ='Teknologi til transport'!F36 -> 8968.7 | E125: ='Teknologi til transport'!H36 -> 8956.13 | F125: ='Teknologi til transport'!J36 -> 7535.149308 | G125: ='Teknologi til transport'!L36 -> 8249.46695 | H125: ='Teknologi til transport'!N36 -> 8236.939631
A126: Olieprodukter (TJ) | B126: ='Teknologi til transport'!B37 -> 178115.25 | C126: ='Teknologi til transport'!D37 -> 173170.03 | D126: ='Teknologi til transport'!F37 -> 161829.57 | E126: ='Teknologi til transport'!H37 -> 169060.96 | F126: ='Teknologi til transport'!J37 -> 166889.942 | G126: ='Teknologi til transport'!L37 -> 165927.9681 | H126: ='Teknologi til transport'!N37 -> 161424.2579
A127: El (TJ) | B127: ='Teknologi til transport'!B38 -> 1350.72 | C127: ='Teknologi til transport'!D38 -> 1455.12 | D127: ='Teknologi til transport'!F38 -> 1429.2 | E127: ='Teknologi til transport'!H38 -> 1451.06 | F127: ='Teknologi til transport'!J38 -> 7797.109506 | G127: ='Teknologi til transport'!L38 -> 3768.94254 | H127: ='Teknologi til transport'!N38 -> 7175.108683
A129: Ekstra visning: Eleksport/import til kommunen (GWh) | G129: ='Teknologi til transport'!L40 -> -21673.65618 | H129: ='Teknologi til transport'!N40 -> -14216.31318
A131: Fjernvarmetransmission
A132: Årstal | B132: 2005 | C132: 2010 | D132: 2015 | E132: 2018 | F132: BF2030 | G132: 2025 | H132: 2030
A133: Netto import/lager | B133: =Fjernvarmetransmission!B4 -> 0.001193904066 | C133: =Fjernvarmetransmission!D4 -> 0.001158162382 | D133: =Fjernvarmetransmission!F4 -> 0.001159870033 | E133: =Fjernvarmetransmission!H4 -> 0.000844150555 | F133: =Fjernvarmetransmission!J4 -> 0.002583065545 | G133: =J133/100 -> 0 | H133: =K133/100 -> 0 | J133: =100-SUM(J134:J136) -> 0 | K133: =100-SUM(K134:K136) -> 0
A134: Kombineret el og varmeproduktion | B134: =Fjernvarmetransmission!B5 -> 0.8690451108 | C134: =Fjernvarmetransmission!D5 -> 0.806893063 | D134: =Fjernvarmetransmission!F5 -> 0.6885710555 | E134: =Fjernvarmetransmission!H5 -> 0.6853836072 | F134: =Fjernvarmetransmission!J5 -> 0.4145435815 | G134: =J134/100 -> 0.54 | H134: =K134/100 -> 0.41 | J134: 54 | K134: 41
A135: Fjernvarmekedler | B135: =Fjernvarmetransmission!B6 -> 0.1274059508 | C135: =Fjernvarmetransmission!D6 -> 0.188874985 | D135: =Fjernvarmetransmission!F6 -> 0.2847135275 | E135: =Fjernvarmetransmission!H6 -> 0.2712240924 | F135: =Fjernvarmetransmission!J6 -> 0.2204492689 | G135: 0.27 | H135: 0.21 | J135: 27 | K135: 21
A136: Anden varmeproduktion | B136: =Fjernvarmetransmission!B7 -> 0.002355034295 | C136: =Fjernvarmetransmission!D7 -> 0.003073789587 | D136: =Fjernvarmetransmission!F7 -> 0.02555554702 | E136: =Fjernvarmetransmission!H7 -> 0.0425481499 | F136: =Fjernvarmetransmission!J7 -> 0.3624317717 | G136: 0.19 | H136: 0.38 | J136: 19 | K136: 38
A138: Tab i fjernvarmenet (%) | B138: =Fjernvarmetransmission!B9 -> 0.243260296 | C138: =Fjernvarmetransmission!D9 -> 0.2798969314 | D138: =Fjernvarmetransmission!F9 -> 0.2412778517 | E138: =Fjernvarmetransmission!H9 -> 0.2439995636 | F138: =Fjernvarmetransmission!J9 -> 0.2048195025 | G138: =Fjernvarmetransmission!L9 -> 0.23 | H138: =Fjernvarmetransmission!N9 -> 0.21
A141: Ekstra visning: Forbrug af de forskellige energiformer til el- og fjernvarmeproduktion
A142: Naturgas | B142: =Fjernvarmetransmission!B13 -> 87956 | C142: =Fjernvarmetransmission!D13 -> 85683 | D142: =Fjernvarmetransmission!F13 -> 34440 | E142: =Fjernvarmetransmission!H13 -> 30775 | F142: =Fjernvarmetransmission!J13 -> 5383.814657 | G142: =Fjernvarmetransmission!L13 -> 25706.27089 | H142: =Fjernvarmetransmission!N13 -> 8768.737604
A143: Kul | B143: =Fjernvarmetransmission!B14 -> 144241 | C143: =Fjernvarmetransmission!D14 -> 157959 | D143: =Fjernvarmetransmission!F14 -> 71527 | E143: =Fjernvarmetransmission!H14 -> 61990 | F143: =Fjernvarmetransmission!J14 -> 0 | G143: =Fjernvarmetransmission!L14 -> 17434.5741 | H143: =Fjernvarmetransmission!N14 -> 0
A144: Ikke-bionedbrydeligt affald | B144: =Fjernvarmetransmission!B15 -> 15787 | C144: =Fjernvarmetransmission!D15 -> 16207 | D144: =Fjernvarmetransmission!F15 -> 17062 | E144: =Fjernvarmetransmission!H15 -> 16310 | F144: =Fjernvarmetransmission!J15 -> 9226.75466 | G144: =Fjernvarmetransmission!L15 -> 16375.58325 | H144: =Fjernvarmetransmission!N15 -> 13365.71888
A145: Biobrændsler | B145: =Fjernvarmetransmission!B16 -> 54955 | C145: =Fjernvarmetransmission!D16 -> 78739 | D145: =Fjernvarmetransmission!F16 -> 84778 | E145: =Fjernvarmetransmission!H16 -> 108036 | F145: =Fjernvarmetransmission!J16 -> 88655.39013 | G145: =Fjernvarmetransmission!L16 -> 121073.2883 | H145: =Fjernvarmetransmission!N16 -> 113876.1387
A146: Synteteske brændsler | B146: =Fjernvarmetransmission!B17 -> 761 | C146: =Fjernvarmetransmission!D17 -> 1949 | D146: =Fjernvarmetransmission!F17 -> 636 | E146: =Fjernvarmetransmission!H17 -> 234 | F146: =Fjernvarmetransmission!J17 -> 52.30785869 | G146: =Fjernvarmetransmission!L17 -> 393.8903232 | H146: =Fjernvarmetransmission!N17 -> 302.332731
A147: Olieprodukter | B147: =Fjernvarmetransmission!B18 -> 16188 | C147: =Fjernvarmetransmission!D18 -> 12641 | D147: =Fjernvarmetransmission!F18 -> 4149 | E147: =Fjernvarmetransmission!H18 -> 3786 | F147: =Fjernvarmetransmission!J18 -> 1714.387442 | G147: =Fjernvarmetransmission!L18 -> 3693.542997 | H147: =Fjernvarmetransmission!N18 -> 2781.896487
A148: Sol | B148: =Fjernvarmetransmission!B19 -> 53 | C148: =Fjernvarmetransmission!D19 -> 143 | D148: =Fjernvarmetransmission!F19 -> 956 | E148: =Fjernvarmetransmission!H19 -> 2161 | F148: =Fjernvarmetransmission!J19 -> 41756.05568 | G148: =Fjernvarmetransmission!L19 -> 22950.67617 | H148: =Fjernvarmetransmission!N19 -> 44313.34029
A149: Omgivelsesvarme | B149: =Fjernvarmetransmission!B20 -> 172 | C149: =Fjernvarmetransmission!D20 -> 212 | D149: =Fjernvarmetransmission!F20 -> 140 | E149: =Fjernvarmetransmission!H20 -> 110 | F149: =Fjernvarmetransmission!J20 -> 3516.103756 | G149: =Fjernvarmetransmission!L20 -> 1425.507836 | H149: =Fjernvarmetransmission!N20 -> 3516.931769
A150: Overskudsvarme | B150: =Fjernvarmetransmission!B21 -> 0 | C150: =Fjernvarmetransmission!D21 -> 0 | D150: =Fjernvarmetransmission!F21 -> 0 | E150: =Fjernvarmetransmission!H21 -> 0 | F150: =Fjernvarmetransmission!J21 -> 0 | G150: =Fjernvarmetransmission!L21 -> 0 | H150: =Fjernvarmetransmission!N21 -> 0
A151: El til varmepumpe | B151: =Fjernvarmetransmission!B22 -> 68.8 | C151: =Fjernvarmetransmission!D22 -> 84.8 | D151: =Fjernvarmetransmission!F22 -> 56 | E151: =Fjernvarmetransmission!H22 -> 44 | F151: =Fjernvarmetransmission!J22 -> 1406.441503 | G151: =Fjernvarmetransmission!L22 -> 570.2031346 | H151: =Fjernvarmetransmission!N22 -> 1406.772708
A153: Fjernvarmeproduktion
A154: Årstal | B154: 2005 | C154: 2010 | D154: 2015 | E154: 2018 | F154: BF2030 | G154: 2025 | H154: 2030
A155: Kombineret el og varmeproduktion
A156: Naturgas | B156: =Fjernvarmeproduktion!B5 -> 0.2698769461 | C156: =Fjernvarmeproduktion!D5 -> 0.229629987 | D156: =Fjernvarmeproduktion!F5 -> 0.1011934527 | E156: =Fjernvarmeproduktion!H5 -> 0.0954283997 | F156: =Fjernvarmeproduktion!J5 -> 0.04686317086 | G156: =J156/100 -> 0.12 | H156: =K156/100 -> 0.05 | J156: =100-SUM(J157:J161) -> 12 | K156: =100-SUM(K157:K161) -> 5
A157: Kul | B157: =Fjernvarmeproduktion!B6 -> 0.4649702684 | C157: =Fjernvarmeproduktion!D6 -> 0.4758580974 | D157: =Fjernvarmeproduktion!F6 -> 0.3969230256 | E157: =Fjernvarmeproduktion!H6 -> 0.3262491367 | F157: =Fjernvarmeproduktion!J6 -> 0 | G157: =J157/100 -> 0.12 | H157: =K157/100 -> 0 | J157: 12 | K157: 0
A158: Ikke-bionedbrydeligt affald | B158: =Fjernvarmeproduktion!B7 -> 0.04959240007 | C158: =Fjernvarmeproduktion!D7 -> 0.04820541271 | D158: =Fjernvarmeproduktion!F7 -> 0.09354824371 | E158: =Fjernvarmeproduktion!H7 -> 0.08474674568 | F158: =Fjernvarmeproduktion!J7 -> 0.1178193193 | G158: 0.11 | H158: 0.12 | J158: 11 | K158: 12
A159: Biobrændsler | B159: =Fjernvarmeproduktion!B8 -> 0.1424955177 | C159: =Fjernvarmeproduktion!D8 -> 0.1927311978 | D159: =Fjernvarmeproduktion!F8 -> 0.3642808725 | E159: =Fjernvarmeproduktion!H8 -> 0.4531952697 | F159: =Fjernvarmeproduktion!J8 -> 0.8163409622 | G159: 0.63 | H159: 0.81 | J159: 63 | K159: 81
A160: Synteteske brændsler | B160: =Fjernvarmeproduktion!B9 -> 0 | C160: =Fjernvarmeproduktion!D9 -> 0 | D160: =Fjernvarmeproduktion!F9 -> 0.0005945038948 | E160: =Fjernvarmeproduktion!H9 -> 6.853973459e-05 | F160: =Fjernvarmeproduktion!J9 -> 0.0001081521784 | G160: 0 | H160: 0 | J160: 0 | K160: 0
A161: Olieprodukter | B161: =Fjernvarmeproduktion!B10 -> 0.04758342255 | C161: =Fjernvarmeproduktion!D10 -> 0.02835098172 | D161: =Fjernvarmeproduktion!F10 -> 0.01960751631 | E161: =Fjernvarmeproduktion!H10 -> 0.01579577268 | F161: =Fjernvarmeproduktion!J10 -> 0.01886839544 | G161: 0.02 | H161: 0.02 | J161: 2 | K161: 2
A162: Fjernvarmekedler
A163: Naturgas | B163: =Fjernvarmeproduktion!B12 -> 0.241205746 | C163: =Fjernvarmeproduktion!D12 -> 0.3175391797 | D163: =Fjernvarmeproduktion!F12 -> 0.4272961871 | E163: =Fjernvarmeproduktion!H12 -> 0.3410099814 | F163: =Fjernvarmeproduktion!J12 -> 0.06312292359 | G163: 0.21 | H163: 0.11 | J163: =100-SUM(J164:J168) -> 21 | K163: =100-SUM(K164:K168) -> 11
A164: Kul | B164: =Fjernvarmeproduktion!B13 -> 0.002827734419 | C164: =Fjernvarmeproduktion!D13 -> 0.004468156052 | D164: =Fjernvarmeproduktion!F13 -> 0.002317253002 | E164: =Fjernvarmeproduktion!H13 -> 0.00295945546 | F164: =Fjernvarmeproduktion!J13 -> 0 | G164: 0 | H164: 0 | J164: 0 | K164: 0
A165: Ikke-bionedbrydeligt affald | B165: =Fjernvarmeproduktion!B14 -> 0.02307431286 | C165: =Fjernvarmeproduktion!D14 -> 0.007302434145 | D165: =Fjernvarmeproduktion!F14 -> 0.005924794607 | E165: =Fjernvarmeproduktion!H14 -> 0.006349377169 | F165: =Fjernvarmeproduktion!J14 -> 0.006939830196 | G165: 0.01 | H165: 0.01 | J165: 1 | K165: 1
A166: Biobrændsler | B166: =Fjernvarmeproduktion!B15 -> 0.6088677751 | C166: =Fjernvarmeproduktion!D15 -> 0.4940646882 | D166: =Fjernvarmeproduktion!F15 -> 0.505951127 | E166: =Fjernvarmeproduktion!H15 -> 0.593989615 | F166: =Fjernvarmeproduktion!J15 -> 0.9189368771 | G166: 0.75 | H166: 0.85 | J166: 75 | K166: 85
A167: Synteteske brændsler | B167: =Fjernvarmeproduktion!B16 -> 0.04303811786 | C167: =Fjernvarmeproduktion!D16 -> 0.06498832944 | D167: =Fjernvarmeproduktion!F16 -> 0.01392985043 | E167: =Fjernvarmeproduktion!H16 -> 0.005945815061 | F167: =Fjernvarmeproduktion!J16 -> 0.001550387597 | G167: 0.01 | H167: 0.01 | J167: 1 | K167: 1
A168: Olieprodukter | B168: =Fjernvarmeproduktion!B17 -> 0.08098631377 | C168: =Fjernvarmeproduktion!D17 -> 0.1079693231 | D168: =Fjernvarmeproduktion!F17 -> 0.0163261007 | E168: =Fjernvarmeproduktion!H17 -> 0.02125427103 | F168: =Fjernvarmeproduktion!J17 -> 0.009449981543 | G168: 0.02 | H168: 0.02 | J168: 2 | K168: 2
A169: Anden varmeproduktion
A170: Sol | B170: =Fjernvarmeproduktion!B19 -> 0.1803948264 | C170: =Fjernvarmeproduktion!D19 -> 0.3251477945 | D170: =Fjernvarmeproduktion!F19 -> 0.8298611111 | E170: =Fjernvarmeproduktion!H19 -> 0.9334773218 | F170: =Fjernvarmeproduktion!J19 -> 0.8945438561 | G170: 0.92 | H170: 0.9 | J170: =100-SUM(J171:J172) -> 92 | K170: =100-SUM(K171:K172) -> 90
A171: Varmepumpe | B171: =Fjernvarmeproduktion!B20 -> 0.8196051736 | C171: =Fjernvarmeproduktion!D20 -> 0.6748522055 | D171: =Fjernvarmeproduktion!F20 -> 0.1701388889 | E171: =Fjernvarmeproduktion!H20 -> 0.06652267819 | F171: =Fjernvarmeproduktion!J20 -> 0.1054561439 | G171: 0.08 | H171: 0.1 | J171: 8 | K171: 10
A172: Overskudsvarme | B172: =Fjernvarmeproduktion!B21 -> 0 | C172: =Fjernvarmeproduktion!D21 -> 0 | D172: =Fjernvarmeproduktion!F21 -> 0 | E172: =Fjernvarmeproduktion!H21 -> 0 | F172: =Fjernvarmeproduktion!J21 -> 0 | G172: 0 | H172: 0 | J172: 0 | K172: 0
A174: Ekstra visning: Forbrug af de forskellige energiformer til el- og fjernvarmeproduktion
A175: Naturgas | B175: =Fjernvarmeproduktion!B29 -> 87956 | C175: =Fjernvarmeproduktion!D29 -> 85683 | D175: =Fjernvarmeproduktion!F29 -> 34440 | E175: =Fjernvarmeproduktion!H29 -> 30775 | F175: =Fjernvarmeproduktion!J29 -> 5383.814657 | G175: =Fjernvarmeproduktion!L29 -> 25706.27089 | H175: =Fjernvarmeproduktion!N29 -> 8768.737604
A176: Kul | B176: =Fjernvarmeproduktion!B30 -> 144241 | C176: =Fjernvarmeproduktion!D30 -> 157959 | D176: =Fjernvarmeproduktion!F30 -> 71527 | E176: =Fjernvarmeproduktion!H30 -> 61990 | F176: =Fjernvarmeproduktion!J30 -> 0 | G176: =Fjernvarmeproduktion!L30 -> 17434.5741 | H176: =Fjernvarmeproduktion!N30 -> 0
A177: Ikke-bionedbrydeligt affald | B177: =Fjernvarmeproduktion!B31 -> 15787 | C177: =Fjernvarmeproduktion!D31 -> 16207 | D177: =Fjernvarmeproduktion!F31 -> 17062 | E177: =Fjernvarmeproduktion!H31 -> 16310 | F177: =Fjernvarmeproduktion!J31 -> 9226.75466 | G177: =Fjernvarmeproduktion!L31 -> 16375.58325 | H177: =Fjernvarmeproduktion!N31 -> 13365.71888
A178: Biobrændsler | B178: =Fjernvarmeproduktion!B32 -> 54955 | C178: =Fjernvarmeproduktion!D32 -> 78739 | D178: =Fjernvarmeproduktion!F32 -> 84778 | E178: =Fjernvarmeproduktion!H32 -> 108036 | F178: =Fjernvarmeproduktion!J32 -> 88655.39013 | G178: =Fjernvarmeproduktion!L32 -> 121073.2883 | H178: =Fjernvarmeproduktion!N32 -> 113876.1387
A179: Synteteske brændsler | B179: =Fjernvarmeproduktion!B33 -> 761 | C179: =Fjernvarmeproduktion!D33 -> 1949 | D179: =Fjernvarmeproduktion!F33 -> 636 | E179: =Fjernvarmeproduktion!H33 -> 234 | F179: =Fjernvarmeproduktion!J33 -> 52.30785869 | G179: =Fjernvarmeproduktion!L33 -> 393.8903232 | H179: =Fjernvarmeproduktion!N33 -> 302.332731
A180: Olieprodukter | B180: =Fjernvarmeproduktion!B34 -> 16188 | C180: =Fjernvarmeproduktion!D34 -> 12641 | D180: =Fjernvarmeproduktion!F34 -> 4149 | E180: =Fjernvarmeproduktion!H34 -> 3786 | F180: =Fjernvarmeproduktion!J34 -> 1714.387442 | G180: =Fjernvarmeproduktion!L34 -> 3693.542997 | H180: =Fjernvarmeproduktion!N34 -> 2781.896487
A181: Sol | B181: =Fjernvarmeproduktion!B35 -> 53 | C181: =Fjernvarmeproduktion!D35 -> 143 | D181: =Fjernvarmeproduktion!F35 -> 956 | E181: =Fjernvarmeproduktion!H35 -> 2161 | F181: =Fjernvarmeproduktion!J35 -> 41756.05568 | G181: =Fjernvarmeproduktion!L35 -> 22950.67617 | H181: =Fjernvarmeproduktion!N35 -> 44313.34029
A182: Omgivelsesvarme | B182: =Fjernvarmeproduktion!B36 -> 172 | C182: =Fjernvarmeproduktion!D36 -> 212 | D182: =Fjernvarmeproduktion!F36 -> 140 | E182: =Fjernvarmeproduktion!H36 -> 110 | F182: =Fjernvarmeproduktion!J36 -> 3516.103756 | G182: =Fjernvarmeproduktion!L36 -> 1425.507836 | H182: =Fjernvarmeproduktion!N36 -> 3516.931769
A183: Overskudsvarme | B183: =Fjernvarmeproduktion!B37 -> 0 | C183: =Fjernvarmeproduktion!D37 -> 0 | D183: =Fjernvarmeproduktion!F37 -> 0 | E183: =Fjernvarmeproduktion!H37 -> 0 | F183: =Fjernvarmeproduktion!J37 -> 0 | G183: =Fjernvarmeproduktion!L37 -> 0 | H183: =Fjernvarmeproduktion!N37 -> 0
A184: El til varmepumpe | B184: =Fjernvarmeproduktion!B38 -> 68.8 | C184: =Fjernvarmeproduktion!D38 -> 84.8 | D184: =Fjernvarmeproduktion!F38 -> 56 | E184: =Fjernvarmeproduktion!H38 -> 44 | F184: =Fjernvarmeproduktion!J38 -> 1406.441503 | G184: =Fjernvarmeproduktion!L38 -> 570.2031346 | H184: =Fjernvarmeproduktion!N38 -> 1406.772708
B185: =Fjernvarmeproduktion!B39 -> 320181.8 | C185: =Fjernvarmeproduktion!D39 -> 353617.8 | D185: =Fjernvarmeproduktion!F39 -> 213744 | E185: =Fjernvarmeproduktion!H39 -> 223446 | F185: =Fjernvarmeproduktion!J39 -> 151711.2557 | G185: =Fjernvarmeproduktion!L39 -> 209623.537 | H185: =Fjernvarmeproduktion!N39 -> 188331.8691
A186: Ekstra visninger
A187: Import/eksport af el (GWh) | G187: =Fjernvarmeproduktion!L42 -> -21673.65618 | H187: =Fjernvarmeproduktion!N42 -> -14216.31318
A188: Import/eksport af el svarer til MW havmøller | G188: =Fjernvarmeproduktion!L43 -> -5160.394328 | H188: =Fjernvarmeproduktion!N43 -> -3384.836471
A189: Årligt biomasseforbrug (TJ) | G189: =Fjernvarmeproduktion!L44 -> 187253.1671 | H189: =Fjernvarmeproduktion!N44 -> 171372.8479
A190: Årligt biomasseforbrug målt i fodboldbaner | G190: =Fjernvarmeproduktion!L45 -> 6241.772238 | H190: =Fjernvarmeproduktion!N45 -> 5712.428262
A192: PtX
A193: Årstal | B193: 2005 | C193: 2010 | D193: 2015 | E193: 2018 | F193: BF2030 | G193: 2025 | H193: 2030
A194: Produktion af syntetiske brændsler (målt i TJ) | B194: =PtX!B3 -> 0 | C194: =PtX!D3 -> 0 | D194: =PtX!F3 -> 0 | E194: =PtX!H3 -> 0 | F194: =PtX!J3 -> 0 | G194: =J194*10 -> 0 | H194: =K194*10 -> 0 | J194: 0 | K194: 0
A196: Ekstra visninger
A197: CO2-udledning ved eksport/import af el og syntetiske brændsler (tusinde ton) | G197: =PtX!L13 -> 610.4605543 | H197: =PtX!N13 -> 1945.784829
A198: Reduceret CO2-udledning ved eksport af syntetiske brændsler (tusinde ton) | G198: =PtX!L14 -> 0 | H198: =PtX!N14 -> 0
A199: Eksport/import af el til kommunen (GWh) | G199: =PtX!L15 -> -21673.65618 | H199: =PtX!N15 -> -14216.31318
A200: Samlet biomasseforbrug (TJ) | G200: =PtX!L16 -> 187253.1671 | H200: =PtX!N16 -> 171372.8479
A202: elproduktion
A203: Årstal | B203: 2005 | C203: 2010 | D203: 2015 | E203: 2018 | F203: BF2030 | G203: 2025 | H203: 2030
A204: Netto import/eksport (GWh) | B204: =Elproduktion!B4 -> 1370 | C204: =Elproduktion!D4 -> -1135 | D204: =Elproduktion!F4 -> 5911.666667 | E204: =Elproduktion!H4 -> 5224.444444 | F204: =Elproduktion!J4 -> -10349.91099 | G204: =Elproduktion!L4 -> -21673.65618 | H204: =Elproduktion!N4 -> -14216.31318
A205: Vindmøller (MW) | B205: =Elproduktion!B5 -> 1896.111111 | C205: =Elproduktion!D5 -> 2237.142857 | D205: =Elproduktion!F5 -> 4043.174603 | E205: =Elproduktion!H5 -> 3975.31746 | F205: =Elproduktion!J5 -> 11713.26702 | G205: =J205*10 -> 11750 | H205: =K205*10 -> 11750 | J205: 1175 | K205: 1175
A206: Solceller (MW) | B206: =Elproduktion!B6 -> 2.02020202 | C206: =Elproduktion!D6 -> 5.555555556 | D206: =Elproduktion!F6 -> 549.2424242 | E206: =Elproduktion!H6 -> 866.4141414 | F206: =Elproduktion!J6 -> 7528.535354 | G206: =J206*10 -> 7500 | H206: =K206*10 -> 7500 | J206: 750 | K206: 750
A208: Areal solceller (hektar) | G208: =Elproduktion!M6 -> 8426.966292 | H208: =Elproduktion!O6 -> 8426.966292
A210: Emissionsfaktor eksport/import | F210: =Elproduktion!J10 -> 0.004 | G210: =J210/1000 -> 0.017 | H210: =K210/1000 -> 0.004 | J210: 17 | K210: 4
A213: Ekstra visninger
A214: CO2-udledning som skyldes import/eksport af el (103 ton) | G214: =Elproduktion!L14 -> -1326.427758 | H214: =Elproduktion!N14 -> -204.7149098
A216: CO2-rensing
A217: Årstal | B217: 2005 | C217: 2010 | D217: 2015 | E217: 2018 | F217: BF2030 | G217: 2025 | H217: 2030
A218: Kombineret el og varmeproduktion | B218: ='CO2-rensning '!B4 -> 0 | C218: ='CO2-rensning '!D4 -> 0 | D218: ='CO2-rensning '!F4 -> 0 | E218: ='CO2-rensning '!H4 -> 0 | F218: ='CO2-rensning '!J4 -> 0 | G218: =J218/100 -> 0 | H218: =K218/100 -> 0 | J218: 0 | K218: 0
A219: Fjernvarmekedler | B219: ='CO2-rensning '!B5 -> 0 | C219: ='CO2-rensning '!D5 -> 0 | D219: ='CO2-rensning '!F5 -> 0 | E219: ='CO2-rensning '!H5 -> 0 | F219: ='CO2-rensning '!J5 -> 0 | G219: =J219/100 -> 0 | H219: =K219/100 -> 0 | J219: 0 | K219: 0
A222: Ekstra visninger
A223: Faktisk CO2-udledning fra el- og kraftvarmeproduktion (ton) | G223: ='CO2-rensning '!L9 -> 13238.65327 | H223: ='CO2-rensning '!N9 -> 10286.32798
A224: CO2-udledning fra el- og kraftvarmeproduktion hvor biomasse er CO2-neutral (ton) | G224: ='CO2-rensning '!L10 -> 4085.501864 | H224: ='CO2-rensning '!N10 -> 1468.542326
A225: Faktisk CO2-udledning fra fjernvarmeproduktion (ton) | G225: ='CO2-rensning '!L11 -> 3515.471135 | H225: ='CO2-rensning '!N11 -> 2828.322699
A226: CO2-udledning fra fjernvarmeproduktion hvor biomasse er CO2-neutral (ton) | G226: ='CO2-rensning '!L12 -> 561.2937106 | H226: ='CO2-rensning '!N12 -> 258.494485
A228: Andre Drivhusgasser
A229: Årstal | B229: 2005 | C229: 2010 | D229: 2015 | E229: 2018 | F229: BF2030 | G229: 2025 | H229: 2030
A230: Kemiske processer | B230: ='Andre drivhusgasser'!B4 -> 2770 | C230: ='Andre drivhusgasser'!D4 -> 1900 | D230: ='Andre drivhusgasser'!F4 -> 1820 | E230: ='Andre drivhusgasser'!H4 -> 2050 | F230: ='Andre drivhusgasser'!J4 -> 1770 | G230: ='Andre drivhusgasser'!L4 -> 1883.876693 | H230: ='Andre drivhusgasser'!N4 -> 1773.524515 | J230: 988 | K230: 988
A232: Landbrug | B232: ='Andre drivhusgasser'!B6 -> 17220 | C232: ='Andre drivhusgasser'!D6 -> 11460 | D232: ='Andre drivhusgasser'!F6 -> 16060 | E232: ='Andre drivhusgasser'!H6 -> 17640 | F232: ='Andre drivhusgasser'!J6 -> 16090 | G232: ='Andre drivhusgasser'!L6 -> 16675.55457 | H232: ='Andre drivhusgasser'!N6 -> 16019.1197 | J232: 992 | K232: 992
... 4 more rows

Sheet Elapparater (hidden)
A1: CO2-udledning (103 ton) | B1: ='2005'!$AT$8+'2005'!$AT$18+'Andre drivhusgasser'!B4+'Andre drivhusgasser'!B6+'Andre drivhusgasser'!B8+'Andre drivhusgasser'!B10 -> 68365.798 | D1: ='2010'!$AT$8+'2010'!$AT$18+'Andre drivhusgasser'!D4+'Andre drivhusgasser'!D6+'Andre drivhusgasser'!D8+'Andre drivhusgasser'!D10 -> 59748.77928 | F1: ='2015'!$AT$8+'2015'!$AT$18+'Andre drivhusgasser'!F4+'Andre drivhusgasser'!F6+'Andre drivhusgasser'!F8+'Andre drivhusgasser'!F10 -> 50517.83812 | H1: ='2018'!$AT$8+'2018'!$AT$18+'Andre drivhusgasser'!H4+'Andre drivhusgasser'!H6+'Andre drivhusgasser'!H8+'Andre drivhusgasser'!H10 -> 51593.64158 | J1: ='BF 2030'!AT8+'BF 2030'!AT18+'Andre drivhusgasser'!J4+'Andre drivhusgasser'!J6+'Andre drivhusgasser'!J8+'Andre drivhusgasser'!J10 -> 40602.77364 | L1: ='2025'!AT8+'2025'!AT18+'Andre drivhusgasser'!L4+'Andre drivhusgasser'!L6+'Andre drivhusgasser'!L8+'Andre drivhusgasser'!L10 -> 43594.0105 | N1: ='2030'!AT8+'2030'!AT18+'Andre drivhusgasser'!N4+'Andre drivhusgasser'!N6+'Andre drivhusgasser'!N8+'Andre drivhusgasser'!N10 -> 40609.80894 | P1: 23000
B2: 2005 | D2: 2010 | F2: 2015 | H2: 2018 | J2: BF 2030 | L2: 2025 | N2: 2030 | P2: Mål 2030
B3: Absolut (TJ) | C3: Stigning | D3: Absolut (TJ) | E3: Stigning | F3: Absolut (TJ) | G3: Stigning | H3: Absolut (TJ) | I3: Stigning | J3: Absolut (TJ) | K3: Stigning | L3: Absolut (TJ) | M3: Stigning | N3: Absolut (TJ) | O3: Stigning
A4: Husholdninger | B4: =('2005'!$O$30-'2005'!$L$30/(Fjernvarmeproduktion!B$24-1))*-1 -> 36721.6 | D4: =('2010'!$O$30-'2010'!$L$30/(Fjernvarmeproduktion!D$24-1))*-1 -> 35392.4 | F4: =('2015'!$O$30-'2015'!$L$30/(Fjernvarmeproduktion!F$24-1))*-1 -> 34553.8 | H4: =('2018'!$O$30-'2018'!$L$30/(Fjernvarmeproduktion!H$24-1))*-1 -> 32348 | J4: =H4*(1+K4)^(2030-$H$2) -> 35451.6 | K4: =(('BF20 2030'!AB34-'BF20 2030'!AE34)/('BF20 2018'!AB34-'BF20 2018'!AE34))^(1/12)-1 -> 0.007663901059 | L4: =H4*(1+M4)^($L$2-$H$2) -> 35408.99104 | M4: ='Samlet Nøgletal'!J3/1000-1 -> 0.013 | N4: =H4*(1+O4)^($N$2-$H$2) -> 35593.75606 | O4: ='Samlet Nøgletal'!K3/1000-1 -> 0.008
A5: Offentlig | B5: =('2005'!$O$31-'2005'!$L$31/(Fjernvarmeproduktion!B$24-1))*-1 -> 9380 | D5: =('2010'!$O$31-'2010'!$L$31/(Fjernvarmeproduktion!D$24-1))*-1 -> 9266 | F5: =('2015'!$O$31-'2015'!$L$31/(Fjernvarmeproduktion!F$24-1))*-1 -> 8555 | H5: =('2018'!$O$31-'2018'!$L$31/(Fjernvarmeproduktion!H$24-1))*-1 -> 8661 | J5: =H5*(1+K5)^(2030-$H$2) -> 8613.6 | K5: =(('BF20 2030'!AB33-'BF20 2030'!AE33)/('BF20 2018'!AB33-'BF20 2018'!AE33))^(1/12)-1 -> -0.0004572154309 | L5: =H5*(1+M5)^($L$2-$H$2) -> 8600.554578 | M5: ='Samlet Nøgletal'!J4/1000-1 -> -0.001 | N5: =H5*(1+O5)^($N$2-$H$2) -> 8557.637725 | O5: ='Samlet Nøgletal'!K4/1000-1 -> -0.001
A6: Erhverv (eksklusiv Proces) | B6: ='2005'!$O$32*Elapparater!B$18*-1 -> 14438.2 | D6: ='2010'!$O$32*Elapparater!D$18*-1 -> 13446.8 | F6: ='2015'!$O$32*Elapparater!F$18*-1 -> 12875.8 | H6: ='2018'!$O$32*Elapparater!H$18*-1 -> 13335.4 | J6: =H6*(1+K6)^(2030-$H$2) -> 13557.91088 | K6: =((SUM('BF20 2030'!AB29,AJ31,AJ32)-SUM('BF20 2030'!AE29,AM31,AM32))/(SUM('BF20 2018'!AB29,AJ31,AJ32)-SUM('BF20 2018'!AE29,AM31,AM32)))^(1/12)-1 -> 0.001379955619 | L6: =H6*(1+M6)^($L$2-$H$2) -> 13523.21951 | M6: ='Samlet Nøgletal'!J5/1000-1 -> 0.002 | N6: =H6*(1+O6)^($N$2-$H$2) -> 13496.30788 | O6: ='Samlet Nøgletal'!K5/1000-1 -> 0.001
A8: Tab i elnet | B8: =('2005'!$O$16+'2005'!$AN$16)/'2005'!$AN$16*-1 -> 0.04553070229 | D8: =('2010'!$O$16+'2010'!$AN$16)/'2010'!$AN$16*-1 -> 0.08233275021 | F8: =('2015'!$O$16+'2015'!$AN$16)/'2015'!$AN$16*-1 -> 0.05713992854 | H8: =('2018'!$O$16+'2018'!$AN$16)/'2018'!$AN$16*-1 -> 0.07072973358 | J8: ='BF20 2030'!AB25/'BF20 2030'!AB26 -> 0.0699236989 | L8: ='Samlet Nøgletal'!G7 -> 0.07 | N8: ='Samlet Nøgletal'!H7 -> 0.07
A10: Ekstra visning: Eleksport/import til kommunen (GWh) | L10: =Elproduktion!L4 -> -21673.65618 | N10: =Elproduktion!N4 -> -14216.31318
A12: Ekstra visning: Elforbrug til "Apparater", "Individuel opvarmning og proces" og "Transport"
A13: Apparater (TJ) | B13: =B4+B5+B6 -> 60539.8 | D13: =D4+D5+D6 -> 58105.2 | F13: =F4+F5+F6 -> 55984.6 | H13: =H4+H5+H6 -> 54344.4 | J13: =J4+J5+J6 -> 57623.11088 | L13: =L4+L5+L6 -> 57532.76513 | N13: =N4+N5+N6 -> 57647.70167
A14: Individuel opvarmning og proces (TJ) | B14: =('2005'!$L$30/(Fjernvarmeproduktion!B$24-1)+'2005'!$L$31/(Fjernvarmeproduktion!B$24-1)+'2005'!$O$32*(1-Elapparater!B$18))*-1 -> 58841.2 | D14: =('2010'!$L$30/(Fjernvarmeproduktion!D$24-1)+'2010'!$L$31/(Fjernvarmeproduktion!D$24-1)+'2010'!$O$32*(1-Elapparater!D$18))*-1 -> 55132.8 | F14: =('2015'!$L$30/(Fjernvarmeproduktion!F$24-1)+'2015'!$L$31/(Fjernvarmeproduktion!F$24-1)+'2015'!$O$32*(1-Elapparater!F$18))*-1 -> 53804.4 | H14: =('2018'!$L$30/(Fjernvarmeproduktion!H$24-1)+'2018'!$L$31/(Fjernvarmeproduktion!H$24-1)+'2018'!$O$32*(1-Elapparater!H$18))*-1 -> 56335.6 | J14: =(('BF 2030'!O30+'BF 2030'!O31+'BF 2030'!O32)+J13)*-1 -> 80533.93253 | L14: =(('2025'!O30+'2025'!O31+'2025'!O32)+L13)*-1 -> 70523.82811 | N14: =(('2030'!O30+'2030'!O31+'2030'!O32)+N13)*-1 -> 81300.11119
A15: Transport (TJ) | B15: ='2005'!$O$20*-1 -> 1350.72 | D15: ='2010'!$O$20*-1 -> 1455.12 | F15: ='2015'!$O$20*-1 -> 1429.2 | H15: ='2018'!$O$20*-1 -> 1451.06 | J15: ='BF 2030'!$O$20*-1 -> 7797.109506 | L15: ='2025'!$O$20*-1 -> 3768.94254 | N15: ='2030'!$O$20*-1 -> 7175.108683
A18: Andele af elforbrug til elapparater (Erhverv) | B18: 0.2 | D18: 0.2 | F18: 0.2 | H18: 0.2

Sheet Fjernvarme (hidden)
A1: CO2-udledning (103 ton) | B1: ='2005'!$AT$8+'2005'!$AT$18+'Andre drivhusgasser'!B4+'Andre drivhusgasser'!B6+'Andre drivhusgasser'!B8+'Andre drivhusgasser'!B10 -> 68365.798 | D1: ='2010'!$AT$8+'2010'!$AT$18+'Andre drivhusgasser'!D4+'Andre drivhusgasser'!D6+'Andre drivhusgasser'!D8+'Andre drivhusgasser'!D10 -> 59748.77928 | F1: ='2015'!$AT$8+'2015'!$AT$18+'Andre drivhusgasser'!F4+'Andre drivhusgasser'!F6+'Andre drivhusgasser'!F8+'Andre drivhusgasser'!F10 -> 50517.83812 | H1: ='2018'!$AT$8+'2018'!$AT$18+'Andre drivhusgasser'!H4+'Andre drivhusgasser'!H6+'Andre drivhusgasser'!H8+'Andre drivhusgasser'!H10 -> 51593.64158 | J1: ='BF 2030'!AT8+'BF 2030'!AT18+'Andre drivhusgasser'!J4+'Andre drivhusgasser'!J6+'Andre drivhusgasser'!J8+'Andre drivhusgasser'!J10 -> 40602.77364 | L1: ='2025'!AT8+'2025'!AT18+'Andre drivhusgasser'!L4+'Andre drivhusgasser'!L6+'Andre drivhusgasser'!L8+'Andre drivhusgasser'!L10 -> 43594.0105 | N1: ='2030'!AT8+'2030'!AT18+'Andre drivhusgasser'!N4+'Andre drivhusgasser'!N6+'Andre drivhusgasser'!N8+'Andre drivhusgasser'!N10 -> 40609.80894 | P1: 23000
B2: 2005 | D2: 2010 | F2: 2015 | H2: 2018 | J2: BF 2030 | L2: 2025 | N2: 2030 | P2: Mål 2030
B3: Absolut (TJ) | C3: Stigning | D3: Absolut (TJ) | E3: Stigning | F3: Absolut (TJ) | G3: Stigning | H3: Absolut (TJ) | I3: Stigning | J3: Absolut (TJ) | K3: Stigning | L3: Absolut (TJ) | M3: Stigning | N3: Absolut (TJ) | O3: Stigning
A4: Husholdninger | B4: ='2005'!$P$30*-1 -> 65536 | D4: ='2010'!$P$30*-1 -> 68612 | F4: ='2015'!$P$30*-1 -> 70644 | H4: ='2018'!$P$30*-1 -> 71757 | J4: =H4*(1+K4)^(2030-$H$2) -> 69806 | K4: =(('BF20 2030'!AC34)/('BF20 2018'!AC34))^(1/12)-1 -> -0.002294484046 | L4: =H4*(1+M4)^($L$2-$H$2) -> 69771.75426 | M4: ='Samlet Nøgletal'!J18/1000-1 -> -0.004 | N4: =H4*(1+O4)^($N$2-$H$2) -> 70053.65012 | O4: ='Samlet Nøgletal'!K18/1000-1 -> -0.002
A5: Offentlig | B5: ='2005'!$P$31*-1 -> 10303 | D5: ='2010'!$P$31*-1 -> 10495 | F5: ='2015'!$P$31*-1 -> 10698 | H5: ='2018'!$P$31*-1 -> 10866 | J5: =H5*(1+K5)^(2030-$H$2) -> 10032 | K5: =(('BF20 2030'!AC33)/('BF20 2018'!AC33))^(1/12)-1 -> -0.006632793955 | L5: =H5*(1+M5)^($L$2-$H$2) -> 9985.465438 | M5: ='Samlet Nøgletal'!J19/1000-1 -> -0.012 | N5: =H5*(1+O5)^($N$2-$H$2) -> 9987.589466 | O5: ='Samlet Nøgletal'!K19/1000-1 -> -0.007
A6: Erhverv | B6: ='2005'!$P$32*-1 -> 28765 | D6: ='2010'!$P$32*-1 -> 27618 | F6: ='2015'!$P$32*-1 -> 26057 | H6: ='2018'!$P$32*-1 -> 27369 | J6: 27060 | K6: =((SUM('BF20 2030'!AC29:AC32))/(SUM('BF20 2018'!AC29:AC32)))^(1/12)-1 -> -0.0009457494376 | L6: 26988.12535 | M6: ='Samlet Nøgletal'!J20/1000-1 -> -0.002 | N6: 27042.37235 | O6: ='Samlet Nøgletal'!K20/1000-1 -> -0.001
A9: Ekstra visning: Forbrug af de forskellige energiformer til el- og fjernvarmeproduktion
A10: Naturgas | B10: =('2005'!$C$10+'2005'!$C$13+'2005'!$C$14)*-1 -> 87956 | D10: =('2010'!$C$10+'2010'!$C$13+'2010'!$C$14)*-1 -> 85683 | F10: =('2015'!$C$10+'2015'!$C$13+'2015'!$C$14)*-1 -> 34440 | H10: =('2018'!$C$10+'2018'!$C$13+'2018'!$C$14)*-1 -> 30775 | J10: =('BF 2030'!$C$10+'BF 2030'!$C$13+'BF 2030'!$C$14)*-1 -> 5383.814657 | L10: =('2025'!$C$10+'2025'!$C$13+'2025'!$C$14)*-1 -> 25706.27089 | N10: =('2030'!$C$10+'2030'!$C$13+'2030'!$C$14)*-1 -> 8768.737604
A11: Kul | B11: =('2005'!$D$10+'2005'!$D$13+'2005'!$D$14)*-1 -> 144241 | D11: =('2010'!$D$10+'2010'!$D$13+'2010'!$D$14)*-1 -> 157959 | F11: =('2015'!$D$10+'2015'!$D$13+'2015'!$D$14)*-1 -> 71527 | H11: =('2018'!$D$10+'2018'!$D$13+'2018'!$D$14)*-1 -> 61990 | J11: =('BF 2030'!$D$10+'BF 2030'!$D$13+'BF 2030'!$D$14)*-1 -> 0 | L11: =('2025'!$D$10+'2025'!$D$13+'2025'!$D$14)*-1 -> 17434.5741 | N11: =('2030'!$D$10+'2030'!$D$13+'2030'!$D$14)*-1 -> 0
A12: Ikke-bionedbrydeligt affald | B12: =('2005'!$E$10+'2005'!$E$13+'2005'!$E$14)*-1 -> 15787 | D12: =('2010'!$E$10+'2010'!$E$13+'2010'!$E$14)*-1 -> 16207 | F12: =('2015'!$E$10+'2015'!$E$13+'2015'!$E$14)*-1 -> 17062 | H12: =('2018'!$E$10+'2018'!$E$13+'2018'!$E$14)*-1 -> 16310 | J12: =('BF 2030'!$E$10+'BF 2030'!$E$13+'BF 2030'!$E$14)*-1 -> 9226.75466 | L12: =('2025'!$E$10+'2025'!$E$13+'2025'!$E$14)*-1 -> 16375.58325 | N12: =('2030'!$E$10+'2030'!$E$13+'2030'!$E$14)*-1 -> 13365.71888
A13: Biobrændsler | B13: =('2005'!$F$10+'2005'!$F$13+'2005'!$F$14)*-1 -> 54955 | D13: =('2010'!$F$10+'2010'!$F$13+'2010'!$F$14)*-1 -> 78739 | F13: =('2015'!$F$10+'2015'!$F$13+'2015'!$F$14)*-1 -> 84778 | H13: =('2018'!$F$10+'2018'!$F$13+'2018'!$F$14)*-1 -> 108036 | J13: =('BF 2030'!$F$10+'BF 2030'!$F$13+'BF 2030'!$F$14)*-1 -> 88655.39013 | L13: =('2025'!$F$10+'2025'!$F$13+'2025'!$F$14)*-1 -> 121073.2883 | N13: =('2030'!$F$10+'2030'!$F$13+'2030'!$F$14)*-1 -> 113876.1387
A14: Synteteske brændsler | B14: =('2005'!$M$10+'2005'!$M$13+'2005'!$M$14)*-1 -> 761 | D14: =('2010'!$M$10+'2010'!$M$13+'2010'!$M$14)*-1 -> 1949 | F14: =('2015'!$M$10+'2015'!$M$13+'2015'!$M$14)*-1 -> 636 | H14: =('2018'!$M$10+'2018'!$M$13+'2018'!$M$14)*-1 -> 234 | J14: =('BF 2030'!$M$10+'BF 2030'!$M$13+'BF 2030'!$M$14)*-1 -> 52.30785869 | L14: =('2025'!$M$10+'2025'!$M$13+'2025'!$M$14)*-1 -> 393.8903232 | N14: =('2030'!$M$10+'2030'!$M$13+'2030'!$M$14)*-1 -> 302.332731
A15: Olieprodukter | B15: =('2005'!$N$10+'2005'!$N$13+'2005'!$N$14)*-1 -> 16188 | D15: =('2010'!$N$10+'2010'!$N$13+'2010'!$N$14)*-1 -> 12641 | F15: =('2015'!$N$10+'2015'!$N$13+'2015'!$N$14)*-1 -> 4149 | H15: =('2018'!$N$10+'2018'!$N$13+'2018'!$N$14)*-1 -> 3786 | J15: =('BF 2030'!$N$10+'BF 2030'!$N$13+'BF 2030'!$N$14)*-1 -> 1714.387442 | L15: =('2025'!$N$10+'2025'!$N$13+'2025'!$N$14)*-1 -> 3693.542997 | N15: =('2030'!$N$10+'2030'!$N$13+'2030'!$N$14)*-1 -> 2781.896487
A16: Sol | B16: =('2005'!$H$10+'2005'!$H$13+'2005'!$H$14)*-1 -> 53 | D16: =('2010'!$H$10+'2010'!$H$13+'2010'!$H$14)*-1 -> 143 | F16: =('2015'!$H$10+'2015'!$H$13+'2015'!$H$14)*-1 -> 956 | H16: =('2018'!$H$10+'2018'!$H$13+'2018'!$H$14)*-1 -> 2161 | J16: =('BF 2030'!$H$10+'BF 2030'!$H$13+'BF 2030'!$H$14)*-1 -> 41756.05568 | L16: =('2025'!$H$10+'2025'!$H$13+'2025'!$H$14)*-1 -> 22950.67617 | N16: =('2030'!$H$10+'2030'!$H$13+'2030'!$H$14)*-1 -> 44313.34029
A17: Omgivelsesvarme | B17: =('2005'!$L$10+'2005'!$L$13+'2005'!$L$14)*-1 -> 172 | D17: =('2010'!$L$10+'2010'!$L$13+'2010'!$L$14)*-1 -> 212 | F17: =('2015'!$L$10+'2015'!$L$13+'2015'!$L$14)*-1 -> 140 | H17: =('2018'!$L$10+'2018'!$L$13+'2018'!$L$14)*-1 -> 110 | J17: =('BF 2030'!$L$10+'BF 2030'!$L$13+'BF 2030'!$L$14)*-1 -> 3516.103756 | L17: =('2025'!$L$10+'2025'!$L$13+'2025'!$L$14)*-1 -> 1425.507836 | N17: =('2030'!$L$10+'2030'!$L$13+'2030'!$L$14)*-1 -> 3516.931769
A18: Overskudsvarme | B18: =('2005'!$Q$10+'2005'!$Q$13+'2005'!$Q$14)*-1 -> 0 | D18: =('2010'!$Q$10+'2010'!$Q$13+'2010'!$Q$14)*-1 -> 0 | F18: =('2015'!$Q$10+'2015'!$Q$13+'2015'!$Q$14)*-1 -> 0 | H18: =('2018'!$Q$10+'2018'!$Q$13+'2018'!$Q$14)*-1 -> 0 | J18: =('BF 2030'!$Q$10+'BF 2030'!$Q$13+'BF 2030'!$Q$14)*-1 -> 0 | L18: =('2025'!$Q$10+'2025'!$Q$13+'2025'!$Q$14)*-1 -> 0 | N18: =('2030'!$Q$10+'2030'!$Q$13+'2030'!$Q$14)*-1 -> 0
A19: El til varmepumpe | B19: =B17/(Fjernvarmeproduktion!B24-1) -> 68.8 | D19: =D17/(Fjernvarmeproduktion!D24-1) -> 84.8 | F19: =F17/(Fjernvarmeproduktion!F24-1) -> 56 | H19: =H17/(Fjernvarmeproduktion!H24-1) -> 44 | J19: =J17/(Fjernvarmeproduktion!J24-1) -> 1406.441503 | L19: =L17/(Fjernvarmeproduktion!L24-1) -> 570.2031346 | N19: =N17/(Fjernvarmeproduktion!N24-1) -> 1406.772708
B20: =SUM(B10:B19) -> 320181.8 | D20: =SUM(D10:D19) -> 353617.8 | F20: =SUM(F10:F19) -> 213744 | H20: =SUM(H10:H19) -> 223446 | J20: =SUM(J10:J19) -> 151711.2557 | L20: =SUM(L10:L19) -> 209623.537 | N20: =SUM(N10:N19) -> 188331.8691

Sheet Opvarmning og proces (hidden)
A1: CO2-udledning (103 ton) | B1: ='2005'!$AT$8+'2005'!$AT$18+'Andre drivhusgasser'!B4+'Andre drivhusgasser'!B6+'Andre drivhusgasser'!B8+'Andre drivhusgasser'!B10 -> 68365.798 | D1: ='2010'!$AT$8+'2010'!$AT$18+'Andre drivhusgasser'!D4+'Andre drivhusgasser'!D6+'Andre drivhusgasser'!D8+'Andre drivhusgasser'!D10 -> 59748.77928 | F1: ='2015'!$AT$8+'2015'!$AT$18+'Andre drivhusgasser'!F4+'Andre drivhusgasser'!F6+'Andre drivhusgasser'!F8+'Andre drivhusgasser'!F10 -> 50517.83812 | H1: ='2018'!$AT$8+'2018'!$AT$18+'Andre drivhusgasser'!H4+'Andre drivhusgasser'!H6+'Andre drivhusgasser'!H8+'Andre drivhusgasser'!H10 -> 51593.64158 | J1: ='BF 2030'!AT8+'BF 2030'!AT18+'Andre drivhusgasser'!J4+'Andre drivhusgasser'!J6+'Andre drivhusgasser'!J8+'Andre drivhusgasser'!J10 -> 40602.77364 | L1: ='2025'!AT8+'2025'!AT18+'Andre drivhusgasser'!L4+'Andre drivhusgasser'!L6+'Andre drivhusgasser'!L8+'Andre drivhusgasser'!L10 -> 43594.0105 | N1: ='2030'!AT8+'2030'!AT18+'Andre drivhusgasser'!N4+'Andre drivhusgasser'!N6+'Andre drivhusgasser'!N8+'Andre drivhusgasser'!N10 -> 40609.80894 | P1: 23000
B2: 2005 | D2: 2010 | F2: 2015 | H2: 2018 | J2: BF 2030 | L2: 2025 | N2: 2030 | P2: Mål 2030
B3: Absolut (TJ) | C3: Stigning | D3: Absolut (TJ) | E3: Stigning | F3: Absolut (TJ) | G3: Stigning | H3: Absolut (TJ) | I3: Stigning | J3: Absolut (TJ) | K3: Stigning | L3: Absolut (TJ) | M3: Stigning | N3: Absolut (TJ) | O3: Stigning
A4: Husholdninger | B4: =('2005'!$T$30-'2005'!$P$30-'2005'!$O$30+('2005'!$K$30+'2005'!$L$30)/(Fjernvarmeproduktion!B$24-1))*-1 -> 91985.4 | D4: =('2010'!$T$30-'2010'!$P$30-'2010'!$O$30+('2010'!$K$30+'2010'!$L$30)/(Fjernvarmeproduktion!D$24-1))*-1 -> 87172.6 | F4: =('2015'!$T$30-'2015'!$P$30-'2015'!$O$30+('2015'!$K$30+'2015'!$L$30)/(Fjernvarmeproduktion!F$24-1))*-1 -> 87625.2 | H4: =('2018'!$T$30-'2018'!$P$30-'2018'!$O$30+('2018'!$K$30+'2018'!$L$30)/(Fjernvarmeproduktion!H$24-1))*-1 -> 92748 | J4: =H4*(1+K4)^(2030-$H$2) -> 84134.4 | K4: =((SUM('BF20 2030'!C34:AA34)+'BF20 2030'!AE34)/(SUM('BF20 2018'!C34:AA34)+'BF20 2018'!AE34))^(1/12)-1 -> -0.008089652689 | L4: =H4*(1+M4)^($L$2-$H$2) -> 88297.68001 | M4: ='Samlet Nøgletal'!J37/1000-1 -> -0.007 | N4: =H4*(1+O4)^($N$2-$H$2) -> 84225.69808 | O4: ='Samlet Nøgletal'!K37/1000-1 -> -0.008
A5: Offentlig | B5: =('2005'!$T$31-'2005'!$P$31-'2005'!$O$31+('2005'!$K$31+'2005'!$L$31)/(Fjernvarmeproduktion!B$24-1))*-1 -> 6200 | D5: =('2010'!$T$31-'2010'!$P$31-'2010'!$O$31+('2010'!$K$31+'2010'!$L$31)/(Fjernvarmeproduktion!D$24-1))*-1 -> 5025 | F5: =('2015'!$T$31-'2015'!$P$31-'2015'!$O$31+('2015'!$K$31+'2015'!$L$31)/(Fjernvarmeproduktion!F$24-1))*-1 -> 5254 | H5: =('2018'!$T$31-'2018'!$P$31-'2018'!$O$31+('2018'!$K$31+'2018'!$L$31)/(Fjernvarmeproduktion!H$24-1))*-1 -> 5728 | J5: =H5*(1+K5)^(2030-$H$2) -> 7987.4 | K5: =((SUM('BF20 2030'!C33:AA33)+'BF20 2030'!AE33)/(SUM('BF20 2018'!C33:AA33)+'BF20 2018'!AE33))^(1/12)-1 -> 0.02809568264 | L5: =H5*(1+M5)^($L$2-$H$2) -> 6902.336285 | M5: ='Samlet Nøgletal'!J38/1000-1 -> 0.027 | N5: =H5*(1+O5)^($N$2-$H$2) -> 7978.484124 | O5: ='Samlet Nøgletal'!K38/1000-1 -> 0.028
A6: Erhverv | B6: =('2005'!$T$32-'2005'!$P$32-'2005'!$O$32*Elapparater!B18+('2005'!$K$32+'2005'!$L$32)/(Fjernvarmeproduktion!B$24-1))*-1 -> 174482.8 | D6: =('2010'!$T$32-'2010'!$P$32-'2010'!$O$32*Elapparater!D18+('2010'!$K$32+'2010'!$L$32)/(Fjernvarmeproduktion!D$24-1))*-1 -> 155954.6 | F6: =('2015'!$T$32-'2015'!$P$32-'2015'!$O$32*Elapparater!F18+('2015'!$K$32+'2015'!$L$32)/(Fjernvarmeproduktion!F$24-1))*-1 -> 143341 | H6: =('2018'!$T$32-'2018'!$P$32-'2018'!$O$32*Elapparater!H18+('2018'!$K$32+'2018'!$L$32)/(Fjernvarmeproduktion!H$24-1))*-1 -> 149211.6 | J6: 154854.5918 | K6: =((SUM('BF20 2030'!C29:AA32)+SUM('BF20 2030'!AE29:AE32)+'BF20 2030'!AB30)/(SUM('BF20 2018'!C29:AA32)+SUM('BF20 2018'!AE29:AE32)+'BF20 2018'!AB30))^(1/12)-1 -> 0.003098216792 | L6: 151313.138 | M6: ='Samlet Nøgletal'!J39/1000-1 -> 0.002 | N6: 154672.7416 | O6: ='Samlet Nøgletal'!K39/1000-1 -> 0.003
B7: Fordeling mellem energiformer | D7: Fordeling mellem energiformer | F7: Fordeling mellem energiformer | H7: Fordeling mellem energiformer | J7: Fordeling mellem energiformer | L7: Fordeling mellem energiformer | N7: Fordeling mellem energiformer
A8: Husholdninger
A9: Naturgas | B9: ='2005'!$C$30/('2005'!$T$30-'2005'!$P$30-'2005'!$O$30+('2005'!$K$30+'2005'!$L$30)/(Fjernvarmeproduktion!B$24-1)-'2005'!$K$30-'2005'!$L$30) -> 0.3360018104 | D9: ='2010'!$C$30/('2010'!$T$30-'2010'!$P$30-'2010'!$O$30+('2010'!$K$30+'2010'!$L$30)/(Fjernvarmeproduktion!D$24-1)-'2010'!$K$30-'2010'!$L$30) -> 0.3312428557 | F9: ='2015'!$C$30/('2015'!$T$30-'2015'!$P$30-'2015'!$O$30+('2015'!$K$30+'2015'!$L$30)/(Fjernvarmeproduktion!F$24-1)-'2015'!$K$30-'2015'!$L$30) -> 0.3114243907 | H9: ='2018'!$C$30/('2018'!$T$30-'2018'!$P$30-'2018'!$O$30+('2018'!$K$30+'2018'!$L$30)/(Fjernvarmeproduktion!H$24-1)-'2018'!$K$30-'2018'!$L$30) -> 0.2850005278 | J9: ='BF20 2030'!N$34/(SUM('BF20 2030'!C$34:AA$34)+'BF20 2030'!AE$34-'BF20 2030'!$Y$34) -> 0.2380241326 | L9: ='Samlet Nøgletal'!G42 -> 0.28 | N9: ='Samlet Nøgletal'!H42 -> 0.24
A10: Kul | B10: ='2005'!$D$30/('2005'!$T$30-'2005'!$P$30-'2005'!$O$30+('2005'!$K$30+'2005'!$L$30)/(Fjernvarmeproduktion!B$24-1)-'2005'!$K$30-'2005'!$L$30) -> 8.962139442e-05 | D10: ='2010'!$D$30/('2010'!$T$30-'2010'!$P$30-'2010'!$O$30+('2010'!$K$30+'2010'!$L$30)/(Fjernvarmeproduktion!D$24-1)-'2010'!$K$30-'2010'!$L$30) -> 0.0003340945917 | F10: ='2015'!$D$30/('2015'!$T$30-'2015'!$P$30-'2015'!$O$30+('2015'!$K$30+'2015'!$L$30)/(Fjernvarmeproduktion!F$24-1)-'2015'!$K$30-'2015'!$L$30) -> 0 | H10: ='2018'!$D$30/('2018'!$T$30-'2018'!$P$30-'2018'!$O$30+('2018'!$K$30+'2018'!$L$30)/(Fjernvarmeproduktion!H$24-1)-'2018'!$K$30-'2018'!$L$30) -> 0 | J10: ='BF20 2030'!C$34/(SUM('BF20 2030'!C$34:AA$34)+'BF20 2030'!AE$34-'BF20 2030'!$Y$34) -> 0 | L10: ='Samlet Nøgletal'!G43 -> 0 | N10: ='Samlet Nøgletal'!H43 -> 0
A11: Affald ikke bionedbrydelig | B11: ='2005'!$E$30/('2005'!$T$30-'2005'!$P$30-'2005'!$O$30+('2005'!$K$30+'2005'!$L$30)/(Fjernvarmeproduktion!B$24-1)-'2005'!$K$30-'2005'!$L$30) -> 0 | D11: ='2010'!$E$30/('2010'!$T$30-'2010'!$P$30-'2010'!$O$30+('2010'!$K$30+'2010'!$L$30)/(Fjernvarmeproduktion!D$24-1)-'2010'!$K$30-'2010'!$L$30) -> 0 | F11: ='2015'!$E$30/('2015'!$T$30-'2015'!$P$30-'2015'!$O$30+('2015'!$K$30+'2015'!$L$30)/(Fjernvarmeproduktion!F$24-1)-'2015'!$K$30-'2015'!$L$30) -> 0 | H11: ='2018'!$E$30/('2018'!$T$30-'2018'!$P$30-'2018'!$O$30+('2018'!$K$30+'2018'!$L$30)/(Fjernvarmeproduktion!H$24-1)-'2018'!$K$30-'2018'!$L$30) -> 0 | J11: ='BF20 2030'!O$34/(SUM('BF20 2030'!C$34:AA$34)+'BF20 2030'!AE$34-'BF20 2030'!$Y$34) -> 0 | L11: ='Samlet Nøgletal'!G44 -> 0 | N11: ='Samlet Nøgletal'!H44 -> 0
A12: Biobrændsler | B12: ='2005'!$F$30/('2005'!$T$30-'2005'!$P$30-'2005'!$O$30+('2005'!$K$30+'2005'!$L$30)/(Fjernvarmeproduktion!B$24-1)-'2005'!$K$30-'2005'!$L$30) -> 0.3389257083 | D12: ='2010'!$F$30/('2010'!$T$30-'2010'!$P$30-'2010'!$O$30+('2010'!$K$30+'2010'!$L$30)/(Fjernvarmeproduktion!D$24-1)-'2010'!$K$30-'2010'!$L$30) -> 0.4252427555 | F12: ='2015'!$F$30/('2015'!$T$30-'2015'!$P$30-'2015'!$O$30+('2015'!$K$30+'2015'!$L$30)/(Fjernvarmeproduktion!F$24-1)-'2015'!$K$30-'2015'!$L$30) -> 0.5187108689 | H12: ='2018'!$F$30/('2018'!$T$30-'2018'!$P$30-'2018'!$O$30+('2018'!$K$30+'2018'!$L$30)/(Fjernvarmeproduktion!H$24-1)-'2018'!$K$30-'2018'!$L$30) -> 0.5541559645 | J12: =SUM('BF20 2030'!P$34:V$34)/(SUM('BF20 2030'!C$34:AA$34)+'BF20 2030'!AE$34-'BF20 2030'!$Y$34) -> 0.5127612407 | L12: ='Samlet Nøgletal'!G45 -> 0.55 | N12: ='Samlet Nøgletal'!H45 -> 0.52
A13: Sol | B13: ='2005'!$H$30/('2005'!$T$30-'2005'!$P$30-'2005'!$O$30+('2005'!$K$30+'2005'!$L$30)/(Fjernvarmeproduktion!B$24-1)-'2005'!$K$30-'2005'!$L$30) -> 0.003416815662 | D13: ='2010'!$H$30/('2010'!$T$30-'2010'!$P$30-'2010'!$O$30+('2010'!$K$30+'2010'!$L$30)/(Fjernvarmeproduktion!D$24-1)-'2010'!$K$30-'2010'!$L$30) -> 0.004999486926 | F13: ='2015'!$H$30/('2015'!$T$30-'2015'!$P$30-'2015'!$O$30+('2015'!$K$30+'2015'!$L$30)/(Fjernvarmeproduktion!F$24-1)-'2015'!$K$30-'2015'!$L$30) -> 0.006033794133 | H13: ='2018'!$H$30/('2018'!$T$30-'2018'!$P$30-'2018'!$O$30+('2018'!$K$30+'2018'!$L$30)/(Fjernvarmeproduktion!H$24-1)-'2018'!$K$30-'2018'!$L$30) -> 0.006016677809 | J13: ='BF20 2030'!X$34/(SUM('BF20 2030'!C$34:AA$34)+'BF20 2030'!AE$34-'BF20 2030'!$Y$34) -> 0.00327358561 | L13: ='Samlet Nøgletal'!G46 -> 0.01 | N13: ='Samlet Nøgletal'!H46 -> 0
A14: Syntetiske brændsler | B14: ='2005'!$M$30/('2005'!$T$30-'2005'!$P$30-'2005'!$O$30+('2005'!$K$30+'2005'!$L$30)/(Fjernvarmeproduktion!B$24-1)-'2005'!$K$30-'2005'!$L$30) -> 0 | D14: ='2010'!$M$30/('2010'!$T$30-'2010'!$P$30-'2010'!$O$30+('2010'!$K$30+'2010'!$L$30)/(Fjernvarmeproduktion!D$24-1)-'2010'!$K$30-'2010'!$L$30) -> 0.0002625028935 | F14: ='2015'!$M$30/('2015'!$T$30-'2015'!$P$30-'2015'!$O$30+('2015'!$K$30+'2015'!$L$30)/(Fjernvarmeproduktion!F$24-1)-'2015'!$K$30-'2015'!$L$30) -> 8.549910715e-05 | H14: ='2018'!$M$30/('2018'!$T$30-'2018'!$P$30-'2018'!$O$30+('2018'!$K$30+'2018'!$L$30)/(Fjernvarmeproduktion!H$24-1)-'2018'!$K$30-'2018'!$L$30) -> 0 | J14: ='BF20 2030'!W$34/(SUM('BF20 2030'!C$34:AA$34)+'BF20 2030'!AE$34-'BF20 2030'!$Y$34) -> 0.1026154226 | L14: ='Samlet Nøgletal'!G47 -> 0 | N14: ='Samlet Nøgletal'!H47 -> 0.09
A15: Olieprodukter | B15: ='2005'!$N$30/('2005'!$T$30-'2005'!$P$30-'2005'!$O$30+('2005'!$K$30+'2005'!$L$30)/(Fjernvarmeproduktion!B$24-1)-'2005'!$K$30-'2005'!$L$30) -> 0.3093730535 | D15: ='2010'!$N$30/('2010'!$T$30-'2010'!$P$30-'2010'!$O$30+('2010'!$K$30+'2010'!$L$30)/(Fjernvarmeproduktion!D$24-1)-'2010'!$K$30-'2010'!$L$30) -> 0.2218626728 | F15: ='2015'!$N$30/('2015'!$T$30-'2015'!$P$30-'2015'!$O$30+('2015'!$K$30+'2015'!$L$30)/(Fjernvarmeproduktion!F$24-1)-'2015'!$K$30-'2015'!$L$30) -> 0.1356382264 | H15: ='2018'!$N$30/('2018'!$T$30-'2018'!$P$30-'2018'!$O$30+('2018'!$K$30+'2018'!$L$30)/(Fjernvarmeproduktion!H$24-1)-'2018'!$K$30-'2018'!$L$30) -> 0.1197119501 | J15: =SUM('BF20 2030'!D$34:M$34)/(SUM('BF20 2030'!C$34:AA$34)+'BF20 2030'!AE$34-'BF20 2030'!$Y$34) -> 0.06013059884 | L15: ='Samlet Nøgletal'!G48 -> 0.12 | N15: ='Samlet Nøgletal'!H48 -> 0.07
A16: El (elvarme og varmepumper) | B16: =('2005'!$K$30+'2005'!$L$30)/(Fjernvarmeproduktion!B24-1)/('2005'!$T$30-'2005'!$P$30-'2005'!$O$30+('2005'!$K$30+'2005'!$L$30)/(Fjernvarmeproduktion!B$24-1)-'2005'!$K$30-'2005'!$L$30) -> 0.01219299071 | D16: =('2010'!$K$30+'2010'!$L$30)/(Fjernvarmeproduktion!D24-1)/('2010'!$T$30-'2010'!$P$30-'2010'!$O$30+('2010'!$K$30+'2010'!$L$30)/(Fjernvarmeproduktion!D$24-1)-'2010'!$K$30-'2010'!$L$30) -> 0.01605563152 | F16: =('2015'!$K$30+'2015'!$L$30)/(Fjernvarmeproduktion!F24-1)/('2015'!$T$30-'2015'!$P$30-'2015'!$O$30+('2015'!$K$30+'2015'!$L$30)/(Fjernvarmeproduktion!F$24-1)-'2015'!$K$30-'2015'!$L$30) -> 0.02810722077 | H16: =('2018'!$K$30+'2018'!$L$30)/(Fjernvarmeproduktion!H24-1)/('2018'!$T$30-'2018'!$P$30-'2018'!$O$30+('2018'!$K$30+'2018'!$L$30)/(Fjernvarmeproduktion!H$24-1)-'2018'!$K$30-'2018'!$L$30) -> 0.03511487984 | J16: ='BF20 2030'!AE$34/(SUM('BF20 2030'!C$34:AA$34)+'BF20 2030'!AE$34-'BF20 2030'!$Y$34) -> 0.08319501956 | L16: ='Samlet Nøgletal'!G49 -> 0.04 | N16: ='Samlet Nøgletal'!H49 -> 0.08
A17: Offentlig
A18: Naturgas | B18: ='2005'!$C$31/IF(('2005'!$T$31-'2005'!$P$31-'2005'!$O$31+('2005'!$K$31+'2005'!$L$31)/(Fjernvarmeproduktion!B$24-1)-'2005'!$K$31-'2005'!$L$31)=0,1,('2005'!$T$31-'2005'!$P$31-'2005'!$O$31+('2005'!$K$31+'2005'!$L$31)/(Fjernvarmeproduktion!B$24-1)-'2005'!$K$31-'2005'!$L$31)) -> 0.5 | D18: ='2010'!$C$31/IF(('2010'!$T$31-'2010'!$P$31-'2010'!$O$31+('2010'!$K$31+'2010'!$L$31)/(Fjernvarmeproduktion!D$24-1)-'2010'!$K$31-'2010'!$L$31)=0,1,('2010'!$T$31-'2010'!$P$31-'2010'!$O$31+('2010'!$K$31+'2010'!$L$31)/(Fjernvarmeproduktion!D$24-1)-'2010'!$K$31-'2010'!$L$31)) -> 0.568358209 | F18: ='2015'!$C$31/IF(('2015'!$T$31-'2015'!$P$31-'2015'!$O$31+('2015'!$K$31+'2015'!$L$31)/(Fjernvarmeproduktion!F$24-1)-'2015'!$K$31-'2015'!$L$31)=0,1,('2015'!$T$31-'2015'!$P$31-'2015'!$O$31+('2015'!$K$31+'2015'!$L$31)/(Fjernvarmeproduktion!F$24-1)-'2015'!$K$31-'2015'!$L$31)) -> 0.4725923106 | H18: ='2018'!$C$31/IF(('2018'!$T$31-'2018'!$P$31-'2018'!$O$31+('2018'!$K$31+'2018'!$L$31)/(Fjernvarmeproduktion!H$24-1)-'2018'!$K$31-'2018'!$L$31)=0,1,('2018'!$T$31-'2018'!$P$31-'2018'!$O$31+('2018'!$K$31+'2018'!$L$31)/(Fjernvarmeproduktion!H$24-1)-'2018'!$K$31-'2018'!$L$31)) -> 0.4458798883 | J18: ='BF20 2030'!N$33/(SUM('BF20 2030'!C$33:AA$33)+'BF20 2030'!AE$33-'BF20 2030'!$Y$33) -> 0.362507538 | L18: ='Samlet Nøgletal'!G51 -> 0.42 | N18: ='Samlet Nøgletal'!H51 -> 0.37
A19: Kul | B19: ='2005'!$D$31/IF(('2005'!$T$31-'2005'!$P$31-'2005'!$O$31+('2005'!$K$31+'2005'!$L$31)/(Fjernvarmeproduktion!B$24-1)-'2005'!$K$31-'2005'!$L$31)=0,1,('2005'!$T$31-'2005'!$P$31-'2005'!$O$31+('2005'!$K$31+'2005'!$L$31)/(Fjernvarmeproduktion!B$24-1)-'2005'!$K$31-'2005'!$L$31)) -> 0 | D19: ='2010'!$D$31/IF(('2010'!$T$31-'2010'!$P$31-'2010'!$O$31+('2010'!$K$31+'2010'!$L$31)/(Fjernvarmeproduktion!D$24-1)-'2010'!$K$31-'2010'!$L$31)=0,1,('2010'!$T$31-'2010'!$P$31-'2010'!$O$31+('2010'!$K$31+'2010'!$L$31)/(Fjernvarmeproduktion!D$24-1)-'2010'!$K$31-'2010'!$L$31)) -> 0 | F19: ='2015'!$D$31/IF(('2015'!$T$31-'2015'!$P$31-'2015'!$O$31+('2015'!$K$31+'2015'!$L$31)/(Fjernvarmeproduktion!F$24-1)-'2015'!$K$31-'2015'!$L$31)=0,1,('2015'!$T$31-'2015'!$P$31-'2015'!$O$31+('2015'!$K$31+'2015'!$L$31)/(Fjernvarmeproduktion!F$24-1)-'2015'!$K$31-'2015'!$L$31)) -> 0 | H19: ='2018'!$D$31/IF(('2018'!$T$31-'2018'!$P$31-'2018'!$O$31+('2018'!$K$31+'2018'!$L$31)/(Fjernvarmeproduktion!H$24-1)-'2018'!$K$31-'2018'!$L$31)=0,1,('2018'!$T$31-'2018'!$P$31-'2018'!$O$31+('2018'!$K$31+'2018'!$L$31)/(Fjernvarmeproduktion!H$24-1)-'2018'!$K$31-'2018'!$L$31)) -> 0 | J19: ='BF20 2030'!C$33/(SUM('BF20 2030'!C$33:AA$33)+'BF20 2030'!AE$33-'BF20 2030'!$Y$33) -> 0 | L19: ='Samlet Nøgletal'!G52 -> 0 | N19: ='Samlet Nøgletal'!H52 -> 0
A20: Affald ikke bionedbrydelig | B20: ='2005'!$E$31/IF(('2005'!$T$31-'2005'!$P$31-'2005'!$O$31+('2005'!$K$31+'2005'!$L$31)/(Fjernvarmeproduktion!B$24-1)-'2005'!$K$31-'2005'!$L$31)=0,1,('2005'!$T$31-'2005'!$P$31-'2005'!$O$31+('2005'!$K$31+'2005'!$L$31)/(Fjernvarmeproduktion!B$24-1)-'2005'!$K$31-'2005'!$L$31)) -> 0 | D20: ='2010'!$E$31/IF(('2010'!$T$31-'2010'!$P$31-'2010'!$O$31+('2010'!$K$31+'2010'!$L$31)/(Fjernvarmeproduktion!D$24-1)-'2010'!$K$31-'2010'!$L$31)=0,1,('2010'!$T$31-'2010'!$P$31-'2010'!$O$31+('2010'!$K$31+'2010'!$L$31)/(Fjernvarmeproduktion!D$24-1)-'2010'!$K$31-'2010'!$L$31)) -> 0 | F20: ='2015'!$E$31/IF(('2015'!$T$31-'2015'!$P$31-'2015'!$O$31+('2015'!$K$31+'2015'!$L$31)/(Fjernvarmeproduktion!F$24-1)-'2015'!$K$31-'2015'!$L$31)=0,1,('2015'!$T$31-'2015'!$P$31-'2015'!$O$31+('2015'!$K$31+'2015'!$L$31)/(Fjernvarmeproduktion!F$24-1)-'2015'!$K$31-'2015'!$L$31)) -> 0 | H20: ='2018'!$E$31/IF(('2018'!$T$31-'2018'!$P$31-'2018'!$O$31+('2018'!$K$31+'2018'!$L$31)/(Fjernvarmeproduktion!H$24-1)-'2018'!$K$31-'2018'!$L$31)=0,1,('2018'!$T$31-'2018'!$P$31-'2018'!$O$31+('2018'!$K$31+'2018'!$L$31)/(Fjernvarmeproduktion!H$24-1)-'2018'!$K$31-'2018'!$L$31)) -> 0 | J20: ='BF20 2030'!O$33/(SUM('BF20 2030'!C$33:AA$33)+'BF20 2030'!AE$33-'BF20 2030'!$Y$33) -> 0 | L20: ='Samlet Nøgletal'!G53 -> 0 | N20: ='Samlet Nøgletal'!H53 -> 0
A21: Biobrændsler | B21: ='2005'!$F$31/IF(('2005'!$T$31-'2005'!$P$31-'2005'!$O$31+('2005'!$K$31+'2005'!$L$31)/(Fjernvarmeproduktion!B$24-1)-'2005'!$K$31-'2005'!$L$31)=0,1,('2005'!$T$31-'2005'!$P$31-'2005'!$O$31+('2005'!$K$31+'2005'!$L$31)/(Fjernvarmeproduktion!B$24-1)-'2005'!$K$31-'2005'!$L$31)) -> 0.1359677419 | D21: ='2010'!$F$31/IF(('2010'!$T$31-'2010'!$P$31-'2010'!$O$31+('2010'!$K$31+'2010'!$L$31)/(Fjernvarmeproduktion!D$24-1)-'2010'!$K$31-'2010'!$L$31)=0,1,('2010'!$T$31-'2010'!$P$31-'2010'!$O$31+('2010'!$K$31+'2010'!$L$31)/(Fjernvarmeproduktion!D$24-1)-'2010'!$K$31-'2010'!$L$31)) -> 0.1743283582 | F21: ='2015'!$F$31/IF(('2015'!$T$31-'2015'!$P$31-'2015'!$O$31+('2015'!$K$31+'2015'!$L$31)/(Fjernvarmeproduktion!F$24-1)-'2015'!$K$31-'2015'!$L$31)=0,1,('2015'!$T$31-'2015'!$P$31-'2015'!$O$31+('2015'!$K$31+'2015'!$L$31)/(Fjernvarmeproduktion!F$24-1)-'2015'!$K$31-'2015'!$L$31)) -> 0.2519984774 | H21: ='2018'!$F$31/IF(('2018'!$T$31-'2018'!$P$31-'2018'!$O$31+('2018'!$K$31+'2018'!$L$31)/(Fjernvarmeproduktion!H$24-1)-'2018'!$K$31-'2018'!$L$31)=0,1,('2018'!$T$31-'2018'!$P$31-'2018'!$O$31+('2018'!$K$31+'2018'!$L$31)/(Fjernvarmeproduktion!H$24-1)-'2018'!$K$31-'2018'!$L$31)) -> 0.3011522346 | J21: =SUM('BF20 2030'!P$33:V$33)/(SUM('BF20 2030'!C$33:AA$33)+'BF20 2030'!AE$33-'BF20 2030'!$Y$33) -> 0.3583959213 | L21: ='Samlet Nøgletal'!G54 -> 0.36 | N21: ='Samlet Nøgletal'!H54 -> 0.36
A22: Sol | B22: ='2005'!$H$31/IF(('2005'!$T$31-'2005'!$P$31-'2005'!$O$31+('2005'!$K$31+'2005'!$L$31)/(Fjernvarmeproduktion!B$24-1)-'2005'!$K$31-'2005'!$L$31)=0,1,('2005'!$T$31-'2005'!$P$31-'2005'!$O$31+('2005'!$K$31+'2005'!$L$31)/(Fjernvarmeproduktion!B$24-1)-'2005'!$K$31-'2005'!$L$31)) -> 0.008709677419 | D22: ='2010'!$H$31/IF(('2010'!$T$31-'2010'!$P$31-'2010'!$O$31+('2010'!$K$31+'2010'!$L$31)/(Fjernvarmeproduktion!D$24-1)-'2010'!$K$31-'2010'!$L$31)=0,1,('2010'!$T$31-'2010'!$P$31-'2010'!$O$31+('2010'!$K$31+'2010'!$L$31)/(Fjernvarmeproduktion!D$24-1)-'2010'!$K$31-'2010'!$L$31)) -> 0.01472636816 | F22: ='2015'!$H$31/IF(('2015'!$T$31-'2015'!$P$31-'2015'!$O$31+('2015'!$K$31+'2015'!$L$31)/(Fjernvarmeproduktion!F$24-1)-'2015'!$K$31-'2015'!$L$31)=0,1,('2015'!$T$31-'2015'!$P$31-'2015'!$O$31+('2015'!$K$31+'2015'!$L$31)/(Fjernvarmeproduktion!F$24-1)-'2015'!$K$31-'2015'!$L$31)) -> 0.01655881233 | H22: ='2018'!$H$31/IF(('2018'!$T$31-'2018'!$P$31-'2018'!$O$31+('2018'!$K$31+'2018'!$L$31)/(Fjernvarmeproduktion!H$24-1)-'2018'!$K$31-'2018'!$L$31)=0,1,('2018'!$T$31-'2018'!$P$31-'2018'!$O$31+('2018'!$K$31+'2018'!$L$31)/(Fjernvarmeproduktion!H$24-1)-'2018'!$K$31-'2018'!$L$31)) -> 0.01588687151 | J22: ='BF20 2030'!X$33/(SUM('BF20 2030'!C$33:AA$33)+'BF20 2030'!AE$33-'BF20 2030'!$Y$33) -> 0.02727372403 | L22: ='Samlet Nøgletal'!G55 -> 0.02 | N22: ='Samlet Nøgletal'!H55 -> 0.02
A23: Syntetiske brændsler | B23: ='2005'!$M$31/IF(('2005'!$T$31-'2005'!$P$31-'2005'!$O$31+('2005'!$K$31+'2005'!$L$31)/(Fjernvarmeproduktion!B$24-1)-'2005'!$K$31-'2005'!$L$31)=0,1,('2005'!$T$31-'2005'!$P$31-'2005'!$O$31+('2005'!$K$31+'2005'!$L$31)/(Fjernvarmeproduktion!B$24-1)-'2005'!$K$31-'2005'!$L$31)) -> 0 | D23: ='2010'!$M$31/IF(('2010'!$T$31-'2010'!$P$31-'2010'!$O$31+('2010'!$K$31+'2010'!$L$31)/(Fjernvarmeproduktion!D$24-1)-'2010'!$K$31-'2010'!$L$31)=0,1,('2010'!$T$31-'2010'!$P$31-'2010'!$O$31+('2010'!$K$31+'2010'!$L$31)/(Fjernvarmeproduktion!D$24-1)-'2010'!$K$31-'2010'!$L$31)) -> 0 | F23: ='2015'!$M$31/IF(('2015'!$T$31-'2015'!$P$31-'2015'!$O$31+('2015'!$K$31+'2015'!$L$31)/(Fjernvarmeproduktion!F$24-1)-'2015'!$K$31-'2015'!$L$31)=0,1,('2015'!$T$31-'2015'!$P$31-'2015'!$O$31+('2015'!$K$31+'2015'!$L$31)/(Fjernvarmeproduktion!F$24-1)-'2015'!$K$31-'2015'!$L$31)) -> 0 | H23: ='2018'!$M$31/IF(('2018'!$T$31-'2018'!$P$31-'2018'!$O$31+('2018'!$K$31+'2018'!$L$31)/(Fjernvarmeproduktion!H$24-1)-'2018'!$K$31-'2018'!$L$31)=0,1,('2018'!$T$31-'2018'!$P$31-'2018'!$O$31+('2018'!$K$31+'2018'!$L$31)/(Fjernvarmeproduktion!H$24-1)-'2018'!$K$31-'2018'!$L$31)) -> 0 | J23: ='BF20 2030'!W$33/(SUM('BF20 2030'!C$33:AA$33)+'BF20 2030'!AE$33-'BF20 2030'!$Y$33) -> 0.1562414341 | L23: ='Samlet Nøgletal'!G56 -> 0 | N23: ='Samlet Nøgletal'!H56 -> 0.15
A24: Olieprodukter | B24: ='2005'!$N$31/IF(('2005'!$T$31-'2005'!$P$31-'2005'!$O$31+('2005'!$K$31+'2005'!$L$31)/(Fjernvarmeproduktion!B$24-1)-'2005'!$K$31-'2005'!$L$31)=0,1,('2005'!$T$31-'2005'!$P$31-'2005'!$O$31+('2005'!$K$31+'2005'!$L$31)/(Fjernvarmeproduktion!B$24-1)-'2005'!$K$31-'2005'!$L$31)) -> 0.3553225806 | D24: ='2010'!$N$31/IF(('2010'!$T$31-'2010'!$P$31-'2010'!$O$31+('2010'!$K$31+'2010'!$L$31)/(Fjernvarmeproduktion!D$24-1)-'2010'!$K$31-'2010'!$L$31)=0,1,('2010'!$T$31-'2010'!$P$31-'2010'!$O$31+('2010'!$K$31+'2010'!$L$31)/(Fjernvarmeproduktion!D$24-1)-'2010'!$K$31-'2010'!$L$31)) -> 0.2425870647 | F24: ='2015'!$N$31/IF(('2015'!$T$31-'2015'!$P$31-'2015'!$O$31+('2015'!$K$31+'2015'!$L$31)/(Fjernvarmeproduktion!F$24-1)-'2015'!$K$31-'2015'!$L$31)=0,1,('2015'!$T$31-'2015'!$P$31-'2015'!$O$31+('2015'!$K$31+'2015'!$L$31)/(Fjernvarmeproduktion!F$24-1)-'2015'!$K$31-'2015'!$L$31)) -> 0.2588503997 | H24: ='2018'!$N$31/IF(('2018'!$T$31-'2018'!$P$31-'2018'!$O$31+('2018'!$K$31+'2018'!$L$31)/(Fjernvarmeproduktion!H$24-1)-'2018'!$K$31-'2018'!$L$31)=0,1,('2018'!$T$31-'2018'!$P$31-'2018'!$O$31+('2018'!$K$31+'2018'!$L$31)/(Fjernvarmeproduktion!H$24-1)-'2018'!$K$31-'2018'!$L$31)) -> 0.2370810056 | J24: =SUM('BF20 2030'!D$33:M$33)/(SUM('BF20 2030'!C$33:AA$33)+'BF20 2030'!AE$33-'BF20 2030'!$Y$33) -> 0.05769968752 | L24: ='Samlet Nøgletal'!G57 -> 0.14 | N24: ='Samlet Nøgletal'!H57 -> 0.06
A25: El (elvarme og varmepumper) | B25: =('2005'!$K$31+'2005'!$L$31)/(Fjernvarmeproduktion!B$24-1)/IF(('2005'!$T$31-'2005'!$P$31-'2005'!$O$31+('2005'!$K$31+'2005'!$L$31)/(Fjernvarmeproduktion!B$24-1)-'2005'!$K$31-'2005'!$L$31)=0,1,('2005'!$T$31-'2005'!$P$31-'2005'!$O$31+('2005'!$K$31+'2005'!$L$31)/(Fjernvarmeproduktion!B$24-1)-'2005'!$K$31-'2005'!$L$31)) -> 0 | D25: =('2010'!$K$31+'2010'!$L$31)/(Fjernvarmeproduktion!D$24-1)/IF(('2010'!$T$31-'2010'!$P$31-'2010'!$O$31+('2010'!$K$31+'2010'!$L$31)/(Fjernvarmeproduktion!D$24-1)-'2010'!$K$31-'2010'!$L$31)=0,1,('2010'!$T$31-'2010'!$P$31-'2010'!$O$31+('2010'!$K$31+'2010'!$L$31)/(Fjernvarmeproduktion!D$24-1)-'2010'!$K$31-'2010'!$L$31)) -> 0 | F25: =('2015'!$K$31+'2015'!$L$31)/(Fjernvarmeproduktion!F$24-1)/IF(('2015'!$T$31-'2015'!$P$31-'2015'!$O$31+('2015'!$K$31+'2015'!$L$31)/(Fjernvarmeproduktion!F$24-1)-'2015'!$K$31-'2015'!$L$31)=0,1,('2015'!$T$31-'2015'!$P$31-'2015'!$O$31+('2015'!$K$31+'2015'!$L$31)/(Fjernvarmeproduktion!F$24-1)-'2015'!$K$31-'2015'!$L$31)) -> 0 | H25: =('2018'!$K$31+'2018'!$L$31)/(Fjernvarmeproduktion!H$24-1)/IF(('2018'!$T$31-'2018'!$P$31-'2018'!$O$31+('2018'!$K$31+'2018'!$L$31)/(Fjernvarmeproduktion!H$24-1)-'2018'!$K$31-'2018'!$L$31)=0,1,('2018'!$T$31-'2018'!$P$31-'2018'!$O$31+('2018'!$K$31+'2018'!$L$31)/(Fjernvarmeproduktion!H$24-1)-'2018'!$K$31-'2018'!$L$31)) -> 0 | J25: ='BF20 2030'!AE$33/(SUM('BF20 2030'!C$33:AA$33)+'BF20 2030'!AE$33-'BF20 2030'!$Y$33) -> 0.03788169508 | L25: ='Samlet Nøgletal'!G58 -> 0.06 | N25: ='Samlet Nøgletal'!H58 -> 0.04
A26: Erhverv
A27: Naturgas | B27: =('2005'!$C$32)/('2005'!$C$32+'2005'!$D$32+'2005'!$E$32+'2005'!$F$32+'2005'!$H$32+'2005'!$M$32+'2005'!$N$32+'2005'!$O$32*(1-Elapparater!B$18)) -> 0.227198875 | D27: =('2010'!$C$32)/('2010'!$C$32+'2010'!$D$32+'2010'!$E$32+'2010'!$F$32+'2010'!$H$32+'2010'!$M$32+'2010'!$N$32+'2010'!$O$32*(1-Elapparater!D$18)) -> 0.2418236536 | F27: =('2015'!$C$32)/('2015'!$C$32+'2015'!$D$32+'2015'!$E$32+'2015'!$F$32+'2015'!$H$32+'2015'!$M$32+'2015'!$N$32+'2015'!$O$32*(1-Elapparater!F$18)) -> 0.2452363998 | H27: =('2018'!$C$32)/('2018'!$C$32+'2018'!$D$32+'2018'!$E$32+'2018'!$F$32+'2018'!$H$32+'2018'!$M$32+'2018'!$N$32+'2018'!$O$32*(1-Elapparater!H$18)) -> 0.2365998238 | J27: =SUM('BF20 2030'!N$29:N$32)/(SUM('BF20 2030'!C29:X32)+SUM('BF20 2030'!Z29:AC32)-SUM('BF20 2030'!AB29:AB32)*Elapparater!H18-SUM('BF20 2030'!AC29:AC32)) -> 0.1526031465 | L27: ='Samlet Nøgletal'!G60 -> 0.2 | N27: ='Samlet Nøgletal'!H60 -> 0.14
A28: Kul | B28: =('2005'!$D$32)/('2005'!$C$32+'2005'!$D$32+'2005'!$E$32+'2005'!$F$32+'2005'!$H$32+'2005'!$M$32+'2005'!$N$32+'2005'!$O$32*(1-Elapparater!B$18)) -> 0.06234757138 | D28: =('2010'!$D$32)/('2010'!$C$32+'2010'!$D$32+'2010'!$E$32+'2010'!$F$32+'2010'!$H$32+'2010'!$M$32+'2010'!$N$32+'2010'!$O$32*(1-Elapparater!D$18)) -> 0.03651977442 | F28: =('2015'!$D$32)/('2015'!$C$32+'2015'!$D$32+'2015'!$E$32+'2015'!$F$32+'2015'!$H$32+'2015'!$M$32+'2015'!$N$32+'2015'!$O$32*(1-Elapparater!F$18)) -> 0.03541779269 | H28: =('2018'!$D$32)/('2018'!$C$32+'2018'!$D$32+'2018'!$E$32+'2018'!$F$32+'2018'!$H$32+'2018'!$M$32+'2018'!$N$32+'2018'!$O$32*(1-Elapparater!H$18)) -> 0.03860828175 | J28: =SUM('BF20 2030'!C$29:C$32)/(SUM('BF20 2030'!C29:X32)+SUM('BF20 2030'!Z29:AC32)-SUM('BF20 2030'!AB29:AB32)*Elapparater!H18-SUM('BF20 2030'!AC29:AC32)) -> 0.03669774777 | L28: ='Samlet Nøgletal'!G61 -> 0.04 | N28: ='Samlet Nøgletal'!H61 -> 0.04
A29: Affald ikke bionedbrydelig | B29: =('2005'!$E$32)/('2005'!$C$32+'2005'!$D$32+'2005'!$E$32+'2005'!$F$32+'2005'!$H$32+'2005'!$M$32+'2005'!$N$32+'2005'!$O$32*(1-Elapparater!B$18)) -> 0.007163928493 | D29: =('2010'!$E$32)/('2010'!$C$32+'2010'!$D$32+'2010'!$E$32+'2010'!$F$32+'2010'!$H$32+'2010'!$M$32+'2010'!$N$32+'2010'!$O$32*(1-Elapparater!D$18)) -> 0.006013793895 | F29: =('2015'!$E$32)/('2015'!$C$32+'2015'!$D$32+'2015'!$E$32+'2015'!$F$32+'2015'!$H$32+'2015'!$M$32+'2015'!$N$32+'2015'!$O$32*(1-Elapparater!F$18)) -> 0.005762361911 | H29: =('2018'!$E$32)/('2018'!$C$32+'2018'!$D$32+'2018'!$E$32+'2018'!$F$32+'2018'!$H$32+'2018'!$M$32+'2018'!$N$32+'2018'!$O$32*(1-Elapparater!H$18)) -> 0.006873653019 | J29: =SUM('BF20 2030'!O$29:O$32)/(SUM('BF20 2030'!C29:X32)+SUM('BF20 2030'!Z29:AC32)-SUM('BF20 2030'!AB29:AB32)*Elapparater!H18-SUM('BF20 2030'!AC29:AC32)) -> 0.01100813939 | L29: ='Samlet Nøgletal'!G62 -> 0.01 | N29: ='Samlet Nøgletal'!H62 -> 0.02
A30: Biobrændsler | B30: =('2005'!$F$32)/('2005'!$C$32+'2005'!$D$32+'2005'!$E$32+'2005'!$F$32+'2005'!$H$32+'2005'!$M$32+'2005'!$N$32+'2005'!$O$32*(1-Elapparater!B$18)) -> 0.04593240351 | D30: =('2010'!$F$32)/('2010'!$C$32+'2010'!$D$32+'2010'!$E$32+'2010'!$F$32+'2010'!$H$32+'2010'!$M$32+'2010'!$N$32+'2010'!$O$32*(1-Elapparater!D$18)) -> 0.0663800222 | F30: =('2015'!$F$32)/('2015'!$C$32+'2015'!$D$32+'2015'!$E$32+'2015'!$F$32+'2015'!$H$32+'2015'!$M$32+'2015'!$N$32+'2015'!$O$32*(1-Elapparater!F$18)) -> 0.08050148277 | H30: =('2018'!$F$32)/('2018'!$C$32+'2018'!$D$32+'2018'!$E$32+'2018'!$F$32+'2018'!$H$32+'2018'!$M$32+'2018'!$N$32+'2018'!$O$32*(1-Elapparater!H$18)) -> 0.1020085959 | J30: =SUM('BF20 2030'!P$29:V$32)/(SUM('BF20 2030'!C29:X32)+SUM('BF20 2030'!Z29:AC32)-SUM('BF20 2030'!AB29:AB32)*Elapparater!H18-SUM('BF20 2030'!AC29:AC32)) -> 0.06409367701 | L30: ='Samlet Nøgletal'!G63 -> 0.1 | N30: ='Samlet Nøgletal'!H63 -> 0.07
A31: Sol | B31: =('2005'!$H$32)/('2005'!$C$32+'2005'!$D$32+'2005'!$E$32+'2005'!$F$32+'2005'!$H$32+'2005'!$M$32+'2005'!$N$32+'2005'!$O$32*(1-Elapparater!B$18)) -> 0 | D31: =('2010'!$H$32)/('2010'!$C$32+'2010'!$D$32+'2010'!$E$32+'2010'!$F$32+'2010'!$H$32+'2010'!$M$32+'2010'!$N$32+'2010'!$O$32*(1-Elapparater!D$18)) -> 0 | F31: =('2015'!$H$32)/('2015'!$C$32+'2015'!$D$32+'2015'!$E$32+'2015'!$F$32+'2015'!$H$32+'2015'!$M$32+'2015'!$N$32+'2015'!$O$32*(1-Elapparater!F$18)) -> 0 | H31: =('2018'!$H$32)/('2018'!$C$32+'2018'!$D$32+'2018'!$E$32+'2018'!$F$32+'2018'!$H$32+'2018'!$M$32+'2018'!$N$32+'2018'!$O$32*(1-Elapparater!H$18)) -> 0 | J31: =SUM('BF20 2030'!X$29:X$32)/(SUM('BF20 2030'!C29:X32)+SUM('BF20 2030'!Z29:AC32)-SUM('BF20 2030'!AB29:AB32)*Elapparater!H18-SUM('BF20 2030'!AC29:AC32)) -> 0.004182855978 | L31: ='Samlet Nøgletal'!G64 -> 0 | N31: ='Samlet Nøgletal'!H64 -> 0
A32: Syntetiske brændsler | B32: =('2005'!$M$32)/('2005'!$C$32+'2005'!$D$32+'2005'!$E$32+'2005'!$F$32+'2005'!$H$32+'2005'!$M$32+'2005'!$N$32+'2005'!$O$32*(1-Elapparater!B$18)) -> 0 | D32: =('2010'!$M$32)/('2010'!$C$32+'2010'!$D$32+'2010'!$E$32+'2010'!$F$32+'2010'!$H$32+'2010'!$M$32+'2010'!$N$32+'2010'!$O$32*(1-Elapparater!D$18)) -> 0 | F32: =('2015'!$M$32)/('2015'!$C$32+'2015'!$D$32+'2015'!$E$32+'2015'!$F$32+'2015'!$H$32+'2015'!$M$32+'2015'!$N$32+'2015'!$O$32*(1-Elapparater!F$18)) -> 0 | H32: =('2018'!$M$32)/('2018'!$C$32+'2018'!$D$32+'2018'!$E$32+'2018'!$F$32+'2018'!$H$32+'2018'!$M$32+'2018'!$N$32+'2018'!$O$32*(1-Elapparater!H$18)) -> 0 | J32: =SUM('BF20 2030'!W$29:W$32)/(SUM('BF20 2030'!C29:X32)+SUM('BF20 2030'!Z29:AC32)-SUM('BF20 2030'!AB29:AB32)*Elapparater!H18-SUM('BF20 2030'!AC29:AC32)) -> 0.06579407314 | L32: ='Samlet Nøgletal'!G65 -> 0 | N32: ='Samlet Nøgletal'!H65 -> 0.06
A33: Olieprodukter | B33: =('2005'!$N$32)/('2005'!$C$32+'2005'!$D$32+'2005'!$E$32+'2005'!$F$32+'2005'!$H$32+'2005'!$M$32+'2005'!$N$32+'2005'!$O$32*(1-Elapparater!B$18)) -> 0.3234291106 | D33: =('2010'!$N$32)/('2010'!$C$32+'2010'!$D$32+'2010'!$E$32+'2010'!$F$32+'2010'!$H$32+'2010'!$M$32+'2010'!$N$32+'2010'!$O$32*(1-Elapparater!D$18)) -> 0.2984328914 | F33: =('2015'!$N$32)/('2015'!$C$32+'2015'!$D$32+'2015'!$E$32+'2015'!$F$32+'2015'!$H$32+'2015'!$M$32+'2015'!$N$32+'2015'!$O$32*(1-Elapparater!F$18)) -> 0.2648684666 | H33: =('2018'!$N$32)/('2018'!$C$32+'2018'!$D$32+'2018'!$E$32+'2018'!$F$32+'2018'!$H$32+'2018'!$M$32+'2018'!$N$32+'2018'!$O$32*(1-Elapparater!H$18)) -> 0.248154731 | J33: =SUM('BF20 2030'!D$29:M$32)/(SUM('BF20 2030'!C29:X32)+SUM('BF20 2030'!Z29:AC32)-SUM('BF20 2030'!AB29:AB32)*Elapparater!H18-SUM('BF20 2030'!AC29:AC32)) -> 0.192713536 | L33: ='Samlet Nøgletal'!G66 -> 0.21 | N33: ='Samlet Nøgletal'!H66 -> 0.19
A34: El (proces og varmepumper) | B34: =(('2005'!$K$32+'2005'!$L$32)/(Fjernvarmeproduktion!B$24-1)+'2005'!$O$32*(1-Elapparater!B18))/('2005'!$C$32+'2005'!$D$32+'2005'!$E$32+'2005'!$F$32+'2005'!$H$32+'2005'!$M$32+'2005'!$N$32+'2005'!$O$32*(1-Elapparater!B$18)) -> 0.3364606377 | D34: =(('2010'!$K$32+'2010'!$L$32)/(Fjernvarmeproduktion!D$24-1)+'2010'!$O$32*(1-Elapparater!D18))/('2010'!$C$32+'2010'!$D$32+'2010'!$E$32+'2010'!$F$32+'2010'!$H$32+'2010'!$M$32+'2010'!$N$32+'2010'!$O$32*(1-Elapparater!D$18)) -> 0.3557504784 | F34: =(('2015'!$K$32+'2015'!$L$32)/(Fjernvarmeproduktion!F$24-1)+'2015'!$O$32*(1-Elapparater!F18))/('2015'!$C$32+'2015'!$D$32+'2015'!$E$32+'2015'!$F$32+'2015'!$H$32+'2015'!$M$32+'2015'!$N$32+'2015'!$O$32*(1-Elapparater!F$18)) -> 0.3752970548 | H34: =(('2018'!$K$32+'2018'!$L$32)/(Fjernvarmeproduktion!H$24-1)+'2018'!$O$32*(1-Elapparater!H18))/('2018'!$C$32+'2018'!$D$32+'2018'!$E$32+'2018'!$F$32+'2018'!$H$32+'2018'!$M$32+'2018'!$N$32+'2018'!$O$32*(1-Elapparater!H$18)) -> 0.3759591745 | J34: =SUM('BF20 2030'!AB$29:AB$32)*(1-Elapparater!H18)/(SUM('BF20 2030'!C29:X32)+SUM('BF20 2030'!Z29:AC32)-SUM('BF20 2030'!AB29:AB32)*Elapparater!H18-SUM('BF20 2030'!AC29:AC32)) -> 0.4729068242 | L34: ='Samlet Nøgletal'!G67 -> 0.44 | N34: ='Samlet Nøgletal'!H67 -> 0.48
A36: Ekstra visning: Forbrug af energiformer til individuel opvarmning og proces
A37: Naturgas (TJ) | B37: =('2005'!$C$30+'2005'!$C$31+'2005'!$C$32+'2005'!$C$33)*-1 -> 72387 | D37: =('2010'!$C$30+'2010'!$C$31+'2010'!$C$32+'2010'!$C$33)*-1 -> 67692 | F37: =('2015'!$C$30+'2015'!$C$31+'2015'!$C$32+'2015'!$C$33)*-1 -> 62282 | H37: =('2018'!$C$30+'2018'!$C$31+'2018'!$C$32+'2018'!$C$33)*-1 -> 61172 | J37: =('BF 2030'!$C$30+'BF 2030'!$C$31+'BF 2030'!$C$32)*-1 -> 46552.80825 | L37: =('2025'!$C$30+'2025'!$C$31+'2025'!$C$32)*-1 -> 57884.95925 | N37: =('2030'!$C$30+'2030'!$C$31+'2030'!$C$32)*-1 -> 44820.39049
A38: Kul (TJ) | B38: =('2005'!$D$30+'2005'!$D$31+'2005'!$D$32+'2005'!$D$33)*-1 -> 10791 | D38: =('2010'!$D$30+'2010'!$D$31+'2010'!$D$32+'2010'!$D$33)*-1 -> 5627 | F38: =('2015'!$D$30+'2015'!$D$31+'2015'!$D$32+'2015'!$D$33)*-1 -> 4954 | H38: =('2018'!$D$30+'2018'!$D$31+'2018'!$D$32+'2018'!$D$33)*-1 -> 5600 | J38: =('BF 2030'!$D$30+'BF 2030'!$D$31+'BF 2030'!$D$32)*-1 -> 5682.814752 | L38: =('2025'!$D$30+'2025'!$D$31+'2025'!$D$32)*-1 -> 6052.525521 | N38: =('2030'!$D$30+'2030'!$D$31+'2030'!$D$32)*-1 -> 6186.909665
A39: Affald ikke bionedbrydelig (TJ) | B39: =('2005'!$E$30+'2005'!$E$31+'2005'!$E$32+'2005'!$E$33)*-1 -> 1239 | D39: =('2010'!$E$30+'2010'!$E$31+'2010'!$E$32+'2010'!$E$33)*-1 -> 922 | F39: =('2015'!$E$30+'2015'!$E$31+'2015'!$E$32+'2015'!$E$33)*-1 -> 806 | H39: =('2018'!$E$30+'2018'!$E$31+'2018'!$E$32+'2018'!$E$33)*-1 -> 997 | J39: =('BF 2030'!$E$30+'BF 2030'!$E$31+'BF 2030'!$E$32)*-1 -> 1704.660931 | L39: =('2025'!$E$30+'2025'!$E$31+'2025'!$E$32)*-1 -> 1513.13138 | N39: =('2030'!$E$30+'2030'!$E$31+'2030'!$E$32)*-1 -> 3093.454832
A40: Biobrændsler (TJ) | B40: =('2005'!$F$30+'2005'!$F$31+'2005'!$F$32+'2005'!$F$33)*-1 -> 39041 | D40: =('2010'!$F$30+'2010'!$F$31+'2010'!$F$32+'2010'!$F$33)*-1 -> 46692 | F40: =('2015'!$F$30+'2015'!$F$31+'2015'!$F$32+'2015'!$F$33)*-1 -> 55052 | H40: =('2018'!$F$30+'2018'!$F$31+'2018'!$F$32+'2018'!$F$33)*-1 -> 63770 | J40: =('BF 2030'!$F$30+'BF 2030'!$F$31+'BF 2030'!$F$32)*-1 -> 55928.71111 | L40: =('2025'!$F$30+'2025'!$F$31+'2025'!$F$32)*-1 -> 66179.87887 | N40: =('2030'!$F$30+'2030'!$F$31+'2030'!$F$32)*-1 -> 57496.7092
A41: Sol (TJ) | B41: =('2005'!$H$30+'2005'!$H$31+'2005'!$H$32+'2005'!$H$33)*-1 -> 359 | D41: =('2010'!$H$30+'2010'!$H$31+'2010'!$H$32+'2010'!$H$33)*-1 -> 493 | F41: =('2015'!$H$30+'2015'!$H$31+'2015'!$H$32+'2015'!$H$33)*-1 -> 581 | H41: =('2018'!$H$30+'2018'!$H$31+'2018'!$H$32+'2018'!$H$33)*-1 -> 604 | J41: =('BF 2030'!$H$30+'BF 2030'!$H$31+'BF 2030'!$H$32)*-1 -> 1141.00176 | L41: =('2025'!$H$30+'2025'!$H$31+'2025'!$H$32)*-1 -> 1021.023526 | N41: =('2030'!$H$30+'2030'!$H$31+'2030'!$H$32)*-1 -> 159.5696825
A42: Syntetiske brændsler (TJ) | B42: =('2005'!$M$30+'2005'!$M$31+'2005'!$M$32+'2005'!$M$33)*-1 -> 0 | D42: =('2010'!$M$30+'2010'!$M$31+'2010'!$M$32+'2010'!$M$33)*-1 -> 22 | F42: =('2015'!$M$30+'2015'!$M$31+'2015'!$M$32+'2015'!$M$33)*-1 -> 7 | H42: =('2018'!$M$30+'2018'!$M$31+'2018'!$M$32+'2018'!$M$33)*-1 -> 0 | J42: =('BF 2030'!$M$30+'BF 2030'!$M$31+'BF 2030'!$M$32)*-1 -> 20069.96418 | L42: =('2025'!$M$30+'2025'!$M$31+'2025'!$M$32)*-1 -> 0 | N42: =('2030'!$M$30+'2030'!$M$31+'2030'!$M$32)*-1 -> 18057.44994
A43: Olieprodukter (TJ) | B43: =('2005'!$N$30+'2005'!$N$31+'2005'!$N$32+'2005'!$N$33)*-1 -> 85756 | D43: =('2010'!$N$30+'2010'!$N$31+'2010'!$N$32+'2010'!$N$33)*-1 -> 65567 | F43: =('2015'!$N$30+'2015'!$N$31+'2015'!$N$32+'2015'!$N$33)*-1 -> 49513 | H43: =('2018'!$N$30+'2018'!$N$31+'2018'!$N$32+'2018'!$N$33)*-1 -> 47559 | J43: =('BF 2030'!$N$30+'BF 2030'!$N$31+'BF 2030'!$N$32)*-1 -> 35362.49829 | L43: =('2025'!$N$30+'2025'!$N$31+'2025'!$N$32)*-1 -> 43337.80767 | N43: =('2030'!$N$30+'2030'!$N$31+'2030'!$N$32)*-1 -> 35762.32882
A44: El (elvarme og varmepumper) (TJ) | B44: =('2005'!$L$30+'2005'!$L$31+'2005'!$L$32+'2005'!$L$33)/(Fjernvarmeproduktion!B$24-1)*-1 -> 1526.4 | D44: =('2010'!$L$30+'2010'!$L$31+'2010'!$L$32+'2010'!$L$33)/(Fjernvarmeproduktion!D$24-1)*-1 -> 2100 | F44: =('2015'!$L$30+'2015'!$L$31+'2015'!$L$32+'2015'!$L$33)/(Fjernvarmeproduktion!F$24-1)*-1 -> 3292 | H44: =('2018'!$L$30+'2018'!$L$31+'2018'!$L$32+'2018'!$L$33)/(Fjernvarmeproduktion!H$24-1)*-1 -> 4184 | J44: =('BF 2030'!$L$30+'BF 2030'!$L$31+'BF 2030'!$L$32)/(Fjernvarmeproduktion!$J$24-1)*-1 -> 7302.139305 | L44: =('2025'!$L$30+'2025'!$L$31+'2025'!$L$32)/(Fjernvarmeproduktion!L$24-1)*-1 -> 3946.047378 | N44: =('2030'!$L$30+'2030'!$L$31+'2030'!$L$32)/(Fjernvarmeproduktion!N$24-1)*-1 -> 7057.195211

Sheet Transport modes (hidden)
A1: CO2-udledning (103 ton) | B1: ='2005'!$AT$8+'2005'!$AT$18+'Andre drivhusgasser'!B4+'Andre drivhusgasser'!B6+'Andre drivhusgasser'!B8+'Andre drivhusgasser'!B10 -> 68365.798 | D1: ='2010'!$AT$8+'2010'!$AT$18+'Andre drivhusgasser'!D4+'Andre drivhusgasser'!D6+'Andre drivhusgasser'!D8+'Andre drivhusgasser'!D10 -> 59748.77928 | F1: ='2015'!$AT$8+'2015'!$AT$18+'Andre drivhusgasser'!F4+'Andre drivhusgasser'!F6+'Andre drivhusgasser'!F8+'Andre drivhusgasser'!F10 -> 50517.83812 | H1: ='2018'!$AT$8+'2018'!$AT$18+'Andre drivhusgasser'!H4+'Andre drivhusgasser'!H6+'Andre drivhusgasser'!H8+'Andre drivhusgasser'!H10 -> 51593.64158 | J1: ='BF 2030'!AT8+'BF 2030'!AT18+'Andre drivhusgasser'!J4+'Andre drivhusgasser'!J6+'Andre drivhusgasser'!J8+'Andre drivhusgasser'!J10 -> 40602.77364 | L1: ='2025'!AT8+'2025'!AT18+'Andre drivhusgasser'!L4+'Andre drivhusgasser'!L6+'Andre drivhusgasser'!L8+'Andre drivhusgasser'!L10 -> 43594.0105 | N1: ='2030'!AT8+'2030'!AT18+'Andre drivhusgasser'!N4+'Andre drivhusgasser'!N6+'Andre drivhusgasser'!N8+'Andre drivhusgasser'!N10 -> 40609.80894 | P1: 23000
B2: 2005 | D2: 2010 | F2: 2015 | H2: 2018 | J2: BF 2030 | L2: 2025 | N2: 2030 | P2: Mål 2030
B3: Absolut (TJ) | C3: Stigning | D3: Absolut (TJ) | E3: Stigning | F3: Absolut (TJ) | G3: Stigning | H3: Absolut (TJ) | I3: Stigning | J3: Absolut (TJ) | K3: Stigning | L3: Absolut (TJ) | M3: Stigning | N3: Absolut (TJ) | O3: Stigning
A4: Transport | P4: Hjælpe | Q4: Hjælpe
A5: Vejtransport | B5: ='2005'!$T$21*-1 -> 161923 | D5: ='2010'!$T$21*-1 -> 161215.25 | F5: ='2015'!$T$21*-1 -> 159244.66 | H5: ='2018'!$T$21*-1 -> 166096.65 | J5: =H5*(1+K5)^(2030-$H$2) -> 168936.1869 | K5: =(('BF20 Transport'!P$3+'BF20 Transport'!P12+'BF20 Transport'!P20+'BF20 Transport'!P28+'BF20 Transport'!P36)/('BF20 Transport'!E$3+'BF20 Transport'!E12+'BF20 Transport'!E20+'BF20 Transport'!E28+'BF20 Transport'!E36))^(1/11)-1 -> 0.001413598501 | L5: =$P$5*((SUM('Teknologi til transport'!$L$5:$L$8)/'Teknologi til transport'!$L$30+'Teknologi til transport'!$L$9/'Teknologi til transport'!$L$31)/(SUM('Teknologi til transport'!$H$5:$H$8)/'Teknologi til transport'!$H$30+'Teknologi til transport'!$H$9/'Teknologi til transport'!$H$31)) -> 164989.339 | M5: ='Samlet Nøgletal'!J81/1000-1 -> 0 | N5: =$Q$5*((SUM('Teknologi til transport'!$N$5:$N$8)/'Teknologi til transport'!$N$30+'Teknologi til transport'!$N$9/'Teknologi til transport'!$N$31)/(SUM('Teknologi til transport'!$H$5:$H$8)/'Teknologi til transport'!$H$30+'Teknologi til transport'!$H$9/'Teknologi til transport'!$H$31)) -> 164738.7926 | O5: ='Samlet Nøgletal'!K81/1000-1 -> 0.001 | P5: =H5*(1+M5)^($L$2-$H$2) -> 166096.65 | Q5: =H5*(1+O5)^($N$2-$H$2) -> 168100.8088
A6: Tog | B6: ='2005'!$T$26*-1 -> 4487.51 | D6: ='2010'!$T$26*-1 -> 4728.03 | F6: ='2015'!$T$26*-1 -> 4784.7 | H6: ='2018'!$T$26*-1 -> 4478.67 | J6: =H6*(1+K6)^(2030-$H$2) -> 4696.250532 | K6: =('BF20 Transport'!P45/'BF20 Transport'!E45)^(1/11)-1 -> 0.003961016165 | L6: =$P$6*((SUM('Teknologi til transport'!$L$11:$L$14)/'Teknologi til transport'!$L$30+'Teknologi til transport'!$L$15/'Teknologi til transport'!$L$31)/(SUM('Teknologi til transport'!$H$11:$H$14)/'Teknologi til transport'!$H$30+'Teknologi til transport'!$H$15/'Teknologi til transport'!$H$31)) -> 3653.533018 | M6: ='Samlet Nøgletal'!J82/1000-1 -> 0.006 | N6: =$Q$6*((SUM('Teknologi til transport'!$N$11:$N$14)/'Teknologi til transport'!$N$30+'Teknologi til transport'!$N$15/'Teknologi til transport'!$N$31)/(SUM('Teknologi til transport'!$H$11:$H$14)/'Teknologi til transport'!$H$30+'Teknologi til transport'!$H$15/'Teknologi til transport'!$H$31)) -> 2756.722104 | O6: ='Samlet Nøgletal'!K82/1000-1 -> 0.004 | P6: 4670.194077 | Q6: 4698.439266
A7: Fly | B7: ='2005'!$T$27*-1 -> 1303.84 | D7: ='2010'!$T$27*-1 -> 1812.79 | F7: ='2015'!$T$27*-1 -> 1284.68 | H7: ='2018'!$T$27*-1 -> 1201.99 | J7: 1422.111721 | K7: =('BF20 Transport'!P$50/'BF20 Transport'!E$50)^(1/11)-1 -> 0.01411235032 | L7: =$P$7*((SUM('Teknologi til transport'!$L$17:$L$18)/'Teknologi til transport'!$L$30+'Teknologi til transport'!L19/'Teknologi til transport'!$L$31)/(SUM('Teknologi til transport'!$H$17:$H$18)/'Teknologi til transport'!$H$30+'Teknologi til transport'!H19/'Teknologi til transport'!$H$31)) -> 1306.665553 | M7: ='Samlet Nøgletal'!J83/1000-1 -> 0.012 | N7: =$Q$7*((SUM('Teknologi til transport'!$N$17:$N$18)/'Teknologi til transport'!$N$30+'Teknologi til transport'!N19/'Teknologi til transport'!$N$31)/(SUM('Teknologi til transport'!$H$17:$H$18)/'Teknologi til transport'!$H$30+'Teknologi til transport'!H19/'Teknologi til transport'!$H$31)) -> 1420.222257 | O7: ='Samlet Nøgletal'!K83/1000-1 -> 0.014 | P7: 1306.665553 | Q7: 1420.222257
A8: Søtransport | B8: ='2005'!$T$28*-1 -> 8026.04 | D8: ='2010'!$T$28*-1 -> 6533.05 | F8: ='2015'!$T$28*-1 -> 5639.71 | H8: ='2018'!$T$28*-1 -> 6390.93 | J8: =IF(H8>0,H8*(1+K8)^(2030-$H$2),'BF20 Transport'!P40*1000/#REF!*#REF!) -> 6305.953847 | K8: =('BF20 Transport'!P$40/'BF20 Transport'!E$40)^(1/11)-1 -> -0.001114841065 | L8: =$P$8*((SUM('Teknologi til transport'!$L$21:$L$22)/'Teknologi til transport'!$L$30+'Teknologi til transport'!$L$23/'Teknologi til transport'!$L$31)/(SUM('Teknologi til transport'!$H$21:$H$22)/'Teknologi til transport'!$H$30+'Teknologi til transport'!$H$23/'Teknologi til transport'!$H$31)) -> 6390.93 | M8: ='Samlet Nøgletal'!J84/1000-1 -> 0 | N8: =$Q$8*((SUM('Teknologi til transport'!$N$21:$N$22)/'Teknologi til transport'!$N$30+'Teknologi til transport'!$N$23/'Teknologi til transport'!$N$31)/(SUM('Teknologi til transport'!$H$21:$H$22)/'Teknologi til transport'!$H$30+'Teknologi til transport'!$H$23/'Teknologi til transport'!$H$31)) -> 6314.659239 | O8: ='Samlet Nøgletal'!K84/1000-1 -> -0.001 | P8: 6390.93 | Q8: 6314.659239
A9: Forsvaret | B9: ='2005'!$T$29*-1 -> 3725.58 | D9: ='2010'!$T$29*-1 -> 1470.03 | F9: ='2015'!$T$29*-1 -> 1349.72 | H9: ='2018'!$T$29*-1 -> 1605.91 | J9: 1605.91 | K9: =('BF20 Transport'!P$54/'BF20 Transport'!E$54)^(1/11)-1 -> 0 | L9: =$P$9*((SUM('Teknologi til transport'!$L25:$L$26)/'Teknologi til transport'!$L$30+'Teknologi til transport'!$L$27/'Teknologi til transport'!$L$31)/(SUM('Teknologi til transport'!$H$25:$H$26)/'Teknologi til transport'!$H$30+'Teknologi til transport'!$H$27/'Teknologi til transport'!$H$31)) -> 1605.91 | M9: ='Samlet Nøgletal'!J85/1000-1 -> 0 | N9: =$Q$9*((SUM('Teknologi til transport'!$N25:$N$26)/'Teknologi til transport'!$N$30+'Teknologi til transport'!$N$27/'Teknologi til transport'!$N$31)/(SUM('Teknologi til transport'!$H$25:$H$26)/'Teknologi til transport'!$H$30+'Teknologi til transport'!$H$27/'Teknologi til transport'!$H$31)) -> 1605.91 | O9: ='Samlet Nøgletal'!K85/1000-1 -> 0 | P9: 1605.91 | Q9: 1605.91
A12: Ekstra visning: Energiforbrug til de forskellige transportformer
A13: Vejtransport (TJ) | B13: ='2005'!$T$21*-1 -> 161923 | D13: ='2010'!$T$21*-1 -> 161215.25 | F13: ='2015'!$T$21*-1 -> 159244.66 | H13: ='2018'!$T$21*-1 -> 166096.65 | J13: ='BF 2030'!$T$21*-1 -> 168843.1604 | L13: ='2025'!$T$21*-1 -> 164989.339 | N13: ='2030'!$T$21*-1 -> 164738.7926
A14: Tog (TJ) | B14: ='2005'!$T$26*-1 -> 4487.51 | D14: ='2010'!$T$26*-1 -> 4728.03 | F14: ='2015'!$T$26*-1 -> 4784.7 | H14: ='2018'!$T$26*-1 -> 4478.67 | J14: ='BF 2030'!$T$26*-1 -> 4696.250532 | L14: ='2025'!$T$26*-1 -> 3653.533018 | N14: ='2030'!$T$26*-1 -> 2756.722104
A15: Fly (TJ) | B15: ='2005'!$T$27*-1 -> 1303.84 | D15: ='2010'!$T$27*-1 -> 1812.79 | F15: ='2015'!$T$27*-1 -> 1284.68 | H15: ='2018'!$T$27*-1 -> 1201.99 | J15: ='BF 2030'!$T$27*-1 -> 1422.111721 | L15: ='2025'!$T$27*-1 -> 1306.665553 | N15: ='2030'!$T$27*-1 -> 1420.222257
A16: Søtransport (TJ) | B16: ='2005'!$T$28*-1 -> 8026.04 | D16: ='2010'!$T$28*-1 -> 6533.05 | F16: ='2015'!$T$28*-1 -> 5639.71 | H16: ='2018'!$T$28*-1 -> 6390.93 | J16: ='BF 2030'!$T$28*-1 -> 6305.953847 | L16: ='2025'!$T$28*-1 -> 6390.93 | N16: ='2030'!$T$28*-1 -> 6314.659239
A17: Forsvaret (TJ) | B17: ='2005'!$T$29*-1 -> 3725.58 | D17: ='2010'!$T$29*-1 -> 1470.03 | F17: ='2015'!$T$29*-1 -> 1349.72 | H17: ='2018'!$T$29*-1 -> 1605.91 | J17: ='BF 2030'!$T$29*-1 -> 1605.91 | L17: ='2025'!$T$29*-1 -> 1605.91 | N17: ='2030'!$T$29*-1 -> 1605.91

Sheet BF20 Transport (hidden)
A1: Energiforbrug angivet i PJ
D2: 2018 | E2: 2019 | F2: 2020 | G2: 2021 | H2: 2022 | I2: 2023 | J2: 2024 | K2: 2025 | L2: 2026 | M2: 2027 | N2: 2028 | O2: 2029 | P2: 2030
B3: Personbiler | D3: - | E3: 102.5 | F3: 103.6 | G3: 104 | H3: 104.9 | I3: 105.8 | J3: 106.7 | K3: 107.6 | L3: 108.3 | M3: 108.8 | N3: 109.2 | O3: 109.1 | P3: 108.7
C4: Anden VE | D4: - | E4: 0 | F4: 0 | G4: 0 | H4: 0 | I4: 0 | J4: 0 | K4: 0 | L4: 0 | M4: 0 | N4: 0 | O4: 0 | P4: 0
C5: Benzin og LVN | D5: - | E5: 52.5 | F5: 51.4 | G5: 52.1 | H5: 53 | I5: 53.9 | J5: 54.8 | K5: 55.8 | L5: 56.8 | M5: 57.6 | N5: 58.3 | O5: 58.8 | P5: 58.8
C6: Bionaturgas | D6: - | E6: 0 | F6: 0 | G6: 0 | H6: 0 | I6: 0 | J6: 0 | K6: 0 | L6: 0 | M6: 0 | N6: 0 | O6: 0 | P6: 0
C7: Elektricitet | D7: - | E7: 0.3 | F7: 0.4 | G7: 0.4 | H7: 0.5 | I7: 0.5 | J7: 0.6 | K7: 0.8 | L7: 1 | M7: 1.3 | N7: 1.8 | O7: 2.5 | P7: 3.3
C8: Energiafgrøder | D8: - | E8: 5.8 | F8: 7.7 | G8: 5.7 | H8: 5.7 | I8: 5.8 | J8: 5.9 | K8: 5.9 | L8: 6 | M8: 6 | N8: 6 | O8: 6 | P8: 6
C9: Gas & Dieselolie | D9: - | E9: 43.9 | F9: 44.1 | G9: 45.7 | H9: 45.7 | I9: 45.6 | J9: 45.4 | K9: 45.1 | L9: 44.5 | M9: 43.8 | N9: 43 | O9: 41.9 | P9: 40.5
C10: Naturgas | D10: - | E10: 0 | F10: 0 | G10: 0 | H10: 0 | I10: 0 | J10: 0 | K10: 0 | L10: 0 | M10: 0 | N10: 0 | O10: 0 | P10: 0
B12: Varebiler | D12: - | E12: 31 | F12: 31.3 | G12: 31.5 | H12: 31.6 | I12: 31.7 | J12: 31.7 | K12: 31.6 | L12: 31.5 | M12: 31.3 | N12: 31 | O12: 30.7 | P12: 30.2
C13: Benzin og LVN | D13: - | E13: 1.7 | F13: 1.5 | G13: 1.4 | H13: 1.3 | I13: 1.2 | J13: 1.2 | K13: 1.1 | L13: 1.1 | M13: 1 | N13: 1 | O13: 1 | P13: 0.9
C14: Bionaturgas | D14: - | E14: 0 | F14: 0 | G14: 0 | H14: 0 | I14: 0 | J14: 0 | K14: 0 | L14: 0 | M14: 0 | N14: 0 | O14: 0 | P14: 0
C15: Elektricitet | D15: - | E15: 0 | F15: 0 | G15: 0.1 | H15: 0.1 | I15: 0.1 | J15: 0.1 | K15: 0.1 | L15: 0.2 | M15: 0.3 | N15: 0.4 | O15: 0.5 | P15: 0.7
C16: Energiafgrøder | D16: - | E16: 2 | F16: 2.1 | G16: 1.1 | H16: 1.1 | I16: 1.1 | J16: 1.1 | K16: 1.1 | L16: 1.1 | M16: 1.1 | N16: 1 | O16: 1 | P16: 1
C17: Gas & Dieselolie | D17: - | E17: 27.2 | F17: 27.6 | G17: 28.9 | H17: 29.1 | I17: 29.3 | J17: 29.3 | K17: 29.3 | L17: 29.1 | M17: 28.9 | N17: 28.6 | O17: 28.1 | P17: 27.6
C18: Naturgas | D18: - | E18: 0 | F18: 0 | G18: 0 | H18: 0 | I18: 0 | J18: 0 | K18: 0 | L18: 0 | M18: 0 | N18: 0 | O18: 0 | P18: 0
B20: Lastbiler | D20: - | E20: 36.2 | F20: 36.4 | G20: 36.9 | H20: 36.9 | I20: 36.9 | J20: 36.7 | K20: 36.6 | L20: 36.3 | M20: 36 | N20: 35.7 | O20: 35.3 | P20: 34.8
C21: Anden VE | D21: - | E21: 0 | F21: 0 | G21: 0 | H21: 0 | I21: 0 | J21: 0 | K21: 0 | L21: 0 | M21: 0 | N21: 0 | O21: 0 | P21: 0
C22: Bionaturgas | D22: - | E22: 0 | F22: 0 | G22: 0 | H22: 0 | I22: 0 | J22: 0 | K22: 0 | L22: 0 | M22: 0 | N22: 0 | O22: 0 | P22: 0
C23: Elektricitet | D23: - | E23: 0 | F23: 0 | G23: 0 | H23: 0 | I23: 0 | J23: 0 | K23: 0 | L23: 0 | M23: 0 | N23: 0 | O23: 0 | P23: 0
C24: Energiafgrøder | D24: - | E24: 1.7 | F24: 1.7 | G24: 0.8 | H24: 0.8 | I24: 0.8 | J24: 0.8 | K24: 0.8 | L24: 0.8 | M24: 0.8 | N24: 0.8 | O24: 0.8 | P24: 0.8
C25: Gas & Dieselolie | D25: - | E25: 34.4 | F25: 34.6 | G25: 36 | H25: 36 | I25: 36 | J25: 35.9 | K25: 35.7 | L25: 35.5 | M25: 35.2 | N25: 34.8 | O25: 34.4 | P25: 34
C26: Naturgas | D26: - | E26: 0.1 | F26: 0.1 | G26: 0.1 | H26: 0.1 | I26: 0 | J26: 0 | K26: 0 | L26: 0 | M26: 0 | N26: 0 | O26: 0 | P26: 0
B28: Busser | D28: - | E28: 8.3 | F28: 8.2 | G28: 8.2 | H28: 8.1 | I28: 8 | J28: 7.9 | K28: 7.8 | L28: 7.6 | M28: 7.5 | N28: 7.4 | O28: 7.3 | P28: 7.1
C29: Anden VE | D29: - | E29: 0 | F29: 0 | G29: 0 | H29: 0 | I29: 0 | J29: 0 | K29: 0 | L29: 0 | M29: 0 | N29: 0 | O29: 0 | P29: 0
C30: Bionaturgas | D30: - | E30: 0 | F30: 0 | G30: 0.1 | H30: 0.1 | I30: 0.1 | J30: 0.1 | K30: 0.1 | L30: 0.1 | M30: 0.2 | N30: 0.2 | O30: 0.2 | P30: 0.2
C31: Elektricitet | D31: - | E31: 0 | F31: 0 | G31: 0.1 | H31: 0.1 | I31: 0.1 | J31: 0.1 | K31: 0.1 | L31: 0.2 | M31: 0.2 | N31: 0.2 | O31: 0.3 | P31: 0.3
C32: Energiafgrøder | D32: - | E32: 0.6 | F32: 0.5 | G32: 0.3 | H32: 0.3 | I32: 0.2 | J32: 0.2 | K32: 0.2 | L32: 0.2 | M32: 0.2 | N32: 0.2 | O32: 0.2 | P32: 0.2
C33: Gas & Dieselolie | D33: - | E33: 7.6 | F33: 7.4 | G33: 7.6 | H33: 7.5 | I33: 7.3 | J33: 7.1 | K33: 6.9 | L33: 6.7 | M33: 6.5 | N33: 6.3 | O33: 6.1 | P33: 5.9
C34: Naturgas | D34: - | E34: 0.2 | F34: 0.2 | G34: 0.2 | H34: 0.2 | I34: 0.2 | J34: 0.3 | K34: 0.3 | L34: 0.4 | M34: 0.4 | N34: 0.4 | O34: 0.5 | P34: 0.5
B36: Motorcykler | D36: - | E36: 0.8 | F36: 0.8 | G36: 0.8 | H36: 0.8 | I36: 0.8 | J36: 0.8 | K36: 0.8 | L36: 0.8 | M36: 0.8 | N36: 0.8 | O36: 0.8 | P36: 0.8
C37: Benzin og LVN | D37: - | E37: 0.8 | F37: 0.7 | G37: 0.7 | H37: 0.7 | I37: 0.7 | J37: 0.7 | K37: 0.7 | L37: 0.7 | M37: 0.7 | N37: 0.7 | O37: 0.7 | P37: 0.7
C38: Energiafgrøder | D38: - | E38: 0 | F38: 0.1 | G38: 0.1 | H38: 0.1 | I38: 0.1 | J38: 0.1 | K38: 0.1 | L38: 0.1 | M38: 0.1 | N38: 0.1 | O38: 0.1 | P38: 0.1
B40: Søfart | D40: - | E40: 8.2 | F40: 8.2 | G40: 8.1 | H40: 8.1 | I40: 8.1 | J40: 8.1 | K40: 8.1 | L40: 8.1 | M40: 8.1 | N40: 8.1 | O40: 8.1 | P40: 8.1
C41: Elektricitet | D41: - | E41: 0 | F41: 0 | G41: 0 | H41: 0 | I41: 0 | J41: 0 | K41: 0 | L41: 0 | M41: 0 | N41: 0 | O41: 0 | P41: 0
C42: Fuelolie og Spildolie | D42: - | E42: 1.4 | F42: 1.4 | G42: 1.4 | H42: 1.4 | I42: 1.4 | J42: 1.4 | K42: 1.4 | L42: 1.4 | M42: 1.4 | N42: 1.4 | O42: 1.4 | P42: 1.4
C43: Gas & Dieselolie | D43: - | E43: 6.8 | F43: 6.8 | G43: 6.8 | H43: 6.8 | I43: 6.7 | J43: 6.7 | K43: 6.7 | L43: 6.7 | M43: 6.7 | N43: 6.7 | O43: 6.7 | P43: 6.6
B45: Banetransport | D45: - | E45: 4.5 | F45: 4.6 | G45: 4.6 | H45: 4.6 | I45: 4.6 | J45: 4.6 | K45: 4.6 | L45: 4.6 | M45: 4.5 | N45: 4.6 | O45: 4.6 | P45: 4.7
C46: Elektricitet | D46: - | E46: 1.5 | F46: 1.5 | G46: 1.5 | H46: 1.5 | I46: 1.5 | J46: 1.9 | K46: 1.9 | L46: 1.9 | M46: 3.5 | N46: 3.6 | O46: 3.7 | P46: 3.8
C47: Energiafgrøder | D47: - | E47: 0.2 | F47: 0.2 | G47: 0.1 | H47: 0.1 | I47: 0.1 | J47: 0.1 | K47: 0.1 | L47: 0.1 | M47: 0 | N47: 0 | O47: 0 | P47: 0
C48: Gas & Dieselolie | D48: - | E48: 2.8 | F48: 2.8 | G48: 2.9 | H48: 2.9 | I48: 3 | J48: 2.6 | K48: 2.6 | L48: 2.6 | M48: 1 | N48: 1 | O48: 0.9 | P48: 0.9
B50: Indenrigsluftfart | D50: - | E50: 1.2 | F50: 1.2 | G50: 1.2 | H50: 1.2 | I50: 1.3 | J50: 1.3 | K50: 1.3 | L50: 1.3 | M50: 1.3 | N50: 1.3 | O50: 1.4 | P50: 1.4
C51: Benzin og LVN | D51: - | E51: 0 | F51: 0 | G51: 0 | H51: 0 | I51: 0 | J51: 0 | K51: 0 | L51: 0 | M51: 0 | N51: 0 | O51: 0 | P51: 0
C52: JP1 og JP4 | D52: - | E52: 1.2 | F52: 1.2 | G52: 1.2 | H52: 1.2 | I52: 1.2 | J52: 1.2 | K52: 1.2 | L52: 1.3 | M52: 1.3 | N52: 1.3 | O52: 1.3 | P52: 1.3
B54: Øvrig transport | D54: - | E54: 2.9 | F54: 2.9 | G54: 2.9 | H54: 2.9 | I54: 2.9 | J54: 2.9 | K54: 2.9 | L54: 2.9 | M54: 2.9 | N54: 2.9 | O54: 2.9 | P54: 2.9
C55: Benzin og LVN | D55: - | E55: 0.3 | F55: 0.3 | G55: 0.3 | H55: 0.3 | I55: 0.3 | J55: 0.3 | K55: 0.3 | L55: 0.3 | M55: 0.3 | N55: 0.3 | O55: 0.3 | P55: 0.3
C56: Gas & Dieselolie | D56: - | E56: 2 | F56: 2 | G56: 2 | H56: 2 | I56: 2 | J56: 2 | K56: 2 | L56: 2 | M56: 2 | N56: 2 | O56: 2 | P56: 2
C57: JP1 og JP4 | D57: - | E57: 0.6 | F57: 0.6 | G57: 0.6 | H57: 0.6 | I57: 0.6 | J57: 0.6 | K57: 0.6 | L57: 0.6 | M57: 0.6 | N57: 0.6 | O57: 0.6 | P57: 0.6

Sheet BF 2030 (hidden)
B1: Forbrug | C1: Naturgas | D1: Kul | E1: Affald (ikke-bionedbrydeligt) | F1: Biobrændsler | G1: Ikke-brændsel VE | H1: Sol | I1: Vind | J1: Vand | K1: Geotermisk | L1: Varmepumpe - omgivelsesvarme | M1: Bioolie, biodiesel og bioethanol | N1: Olieprodukter | O1: El | P1: Fjernvarme | Q1: Overskudsvarme | R1: Energitjenester | S1: Total energiforbrug | T1: Brutto brændsel | U1: =#REF! ->  | X1: Faktor | Y1: Brutto produktion | Z1: Virkningsgrad | AA1: Produktion | AB1: Naturgas | AC1: Kul | AD1: Affald (ikke-bionedbrydeligt) | AE1: Biobrændsler | AF1: Ikke-brændsel VE | AG1: Sol | AH1: Vind | AI1: Vand | AJ1: Geotermisk | AK1: Varmepumpe - omgivelsesvarme | AL1: Bioolie, biodiesel og bioethanol | AM1: Olieprodukter | AN1: El | AO1: Fjernvarme | AP1: Nyttiggjort overskudsvarme | AQ1: Energitjenester | AR1: Total energiforbrug | AS1: Tab | AT1: CO2-udledning
A2: ID | B2: F | C2: FN | D2: FK | E2: FMA | F2: FVB | G2: FLVE | H2: FLVE1 | I2: FLVE2 | J2: FLVE3 | K2: FLVE4 | L2: FLVE5 | M2: FS | N2: FOO | O2: FE | P2: FF | Q2: FOV | R2: FWEN | S2: FTOTAL | T2: fbrbr | V2: ID | W2: ID Parent | X2: factor | Y2: pbrpr | Z2: pvrkg | AA2: P | AB2: PN | AC2: PK | AD2: PMA | AE2: PVB | AF2: PLVE | AG2: PLVE1 | AH2: PLVE2 | AI2: PLVE3 | AJ2: PLVE4 | AK2: PLVE5 | AL2: PS | AM2: POO | AN2: PE | AO2: PF | AP2: POV | AQ2: PWEN | AR2: PTOTAL | AS2: PTAB | AT2: PCO2
A3: ID Parent | C3: F | D3: F | E3: F | F3: F | G3: F | H3: FLVE | I3: FLVE | J3: FLVE | K3: FLVE | L3: FLVE | M3: F | N3: F | O3: F | P3: F | Q3: F | R3: F | S3: F | U3: Structures | AB3: P | AC3: P | AD3: P | AE3: P | AF3: P | AG3: PLVE | AH3: PLVE | AI3: PLVE | AJ3: PLVE | AK3: PLVE | AL3: P | AM3: P | AN3: P | AO3: P | AP3: P | AQ3: P | AR3: P
S5: 0 | T5: =SUM(C5:F5,G5,M5,N5,O5:Q5) -> 0 | U5: Indgang for brændsler (bio, kul mv.) | V5: TP | Y5: =SUM(AB5:AE5,AF5,AL5,AM5,AN5:AQ5) -> 213786.1402 | AB5: =-C6 -> 52401.75559 | AC5: =-D6 -> 5682.814752 | AD5: =-E6 -> 10931.41559 | AE5: =-F6 -> 144770.1543 | AF5: =AG5+AH5+AI5+AJ5+AK5 -> 0
C6: =-AB6 -> -52401.75559 | D6: =-AC6 -> -5682.814752 | E6: =-AD6 -> -10931.41559 | F6: =-AE6 -> -144770.1543 | G6: =H6+I6+J6+K6+L6 -> 0 | S6: 0 | T6: -213786.1402 | U6: Transport af brændsler | V6: TRAP | Y6: 213786.1402 | AB6: =-1*(C8+C18) -> 52401.75559 | AC6: =-1*(D8+D18) -> 5682.814752 | AD6: =-1*(E8+E18) -> 10931.41559 | AE6: =-1*(F8+F18) -> 144770.1543 | AF6: 0
S7: 0 | T7: 0 | U7: Indgang nettilsluttet VE | V7: TLP1 | Y7: 218328.0812 | AF7: 218328.0812 | AG7: =H8*-1 -> 70740.91679 | AH7: =I11*-1 -> 147587.1644
C8: =SUM(C9:C11,C12:C15) -> -5383.814657 | D8: =SUM(D9:D11,D12:D15) -> 0 | E8: =SUM(E9:E11,E12:E15) -> -9226.75466 | F8: =SUM(F9:F11,F12:F15) -> -88655.39013 | G8: =H8+I8+J8+K8+L8 -> -221844.185 | H8: =SUM(H9:H11,H12:H15) -> -70740.91679 | I8: -147587.1644 | J8: 0 | K8: 0 | L8: -3516.103756 | M8: -52.30785869 | N8: -1714.387442 | O8: -1406.441503 | P8: 0 | Q8: 0 | R8: 0 | S8: 0 | T8: -328283.2812 | U8: Indgang el, varme og olieprodukter | V8: TS | Y8: 517930.985 | AB8: =SUM(AB9:AB11,AB12:AB15) -> 0 | AC8: =SUM(AC9:AC11,AC12:AC15) -> 0 | AD8: =SUM(AD9:AD11,AD12:AD15) -> 0 | AF8: 0 | AG8: =SUM(AG9:AG11,AG12:AG15) -> 0 | AI8: =SUM(AI9:AI11,AI12:AI15) -> 0 | AJ8: =SUM(AJ9:AJ11,AJ12:AJ15) -> 0 | AK8: =SUM(AK9:AK11,AK12:AK15) -> 0 | AL8: =-M18 -> 27605.11349 | AM8: =(N16+N8)*-1 -> 203966.8277 | AN8: =(O16+O8)*-1 -> 157566.2487 | AO8: =P16*-1 -> 128792.7952 | AP8: =SUM(AP9:AP11,AP12:AP15) -> 0 | AQ8: =SUM(AQ9:AQ11,AQ12:AQ15) -> 0 | AR8: =SUM(AR9:AR11,AR12:AR15) -> 0 | AS8: =SUM(AS9:AS11,AS12:AS15) -> 4996.247917 | AT8: =SUM(AT9:AT11,AT12:AT15) -> 3181.182634
S9: 0 | T9: 0 | U9: Netto import/lager | V9: IMP | W9: TS | Y9: 231904.6214 | AF9: 0 | AL9: =IF(AL15-AL8<0,(AL15-AL8)*-1,0) -> 27605.11349 | AM9: =IF(AM8-AM15>0,AM8-AM15,0) -> 203966.8277 | AN9: =IF(AN8-AN10-AN11-AN12>0,AN8-AN10-AN11-AN12,0) -> 0 | AO9: =(AO8-AO15)*Fjernvarmetransmission!J4 -> 332.6802317 | AT9: =AN9*Elproduktion!J10+AL9*PtX!J9/1000 -> 2042.778398
C10: =$Y$10/Fjernvarmeproduktion!$J$25*Fjernvarmeproduktion!$J$5*-1 -> -3591.611092 | D10: =$Y$10/Fjernvarmeproduktion!$J$25*Fjernvarmeproduktion!$J$6*-1 -> 0 | E10: =$Y$10/Fjernvarmeproduktion!$J$25*Fjernvarmeproduktion!$J$7*-1 -> -9029.717075 | F10: =$Y$10/Fjernvarmeproduktion!$J$25*Fjernvarmeproduktion!$J$8*-1 -> -62564.67928 | G10: =H10+I10+J10+K10+L10 -> 0 | M10: =$Y$10/Fjernvarmeproduktion!$J$25*Fjernvarmeproduktion!$J$9*-1 -> -8.288823752 | N10: =$Y$10/Fjernvarmeproduktion!$J$25*Fjernvarmeproduktion!$J$10*-1 -> -1446.080944 | S10: 0 | T10: -76640.37722 | U10: El og varmeproduktion | V10: ELOGVARME | W10: TS | Y10: 71644.1293 | AF10: 0 | AN10: =AO10*Fjernvarmeproduktion!J22 -> 18253.90271 | AO10: =('BF 2030'!AO8-AO15)*Fjernvarmetransmission!J5 -> 53390.22659 | AS10: =(Y10+T10)*-1 -> 4996.247917 | AT10: =-(C10*Emissionsfaktorer!$B$5+D10*Emissionsfaktorer!$B$7+E10*Emissionsfaktorer!$B$8+N10*Emissionsfaktorer!$B$6)*(1-'CO2-rensning '!J4)+F10*Emissionsfaktorer!B10*'CO2-rensning '!J4 -> 1000.882482
C11: 0 | D11: 0 | E11: 0 | F11: 0 | G11: -147587.1644 | H11: 0 | I11: =AN11*-1 -> -147587.1644 | J11: 0 | K11: 0 | L11: 0 | M11: 0 | N11: 0 | O11: 0 | P11: 0 | Q11: 0 | R11: 0 | S11: 0 | T11: -147587.1644 | U11: Vindmøller | V11: VIND | W11: TS | Y11: 147587.1644 | AF11: 0 | AN11: =Elproduktion!J5*3.5*3.6 -> 147587.1644 | AS11: 0 | AT11: =-('BF 2030'!C11*Emissionsfaktorer!$B$5+'BF 2030'!D11*Emissionsfaktorer!$B$7+'BF 2030'!E11*Emissionsfaktorer!$B$8+N11*Emissionsfaktorer!$B$6) -> 0
G12: -28984.86111 | H12: =AN12*-1 -> -28984.86111 | S12: 0 | T12: -28984.86111 | U12: Solceller | V12: SOLSTR | W12: TS | Y12: 28984.86111 | AF12: =AG12+AH12+AI12+AJ12+AK12 -> 0 | AN12: =Elproduktion!J6*3.5*1.1 -> 28984.86111 | AS12: =(Y12+T12)*-1 -> 0 | AT12: =-('BF 2030'!C12*Emissionsfaktorer!$B$5+'BF 2030'!D12*Emissionsfaktorer!$B$7+'BF 2030'!E12*Emissionsfaktorer!$B$8+N12*Emissionsfaktorer!$B$6) -> 0
C13: =$Y$13/Fjernvarmeproduktion!$J$26*Fjernvarmeproduktion!$J$12*-1 -> -1792.203565 | D13: =$Y$13/Fjernvarmeproduktion!$J$26*Fjernvarmeproduktion!$J$13*-1 -> 0 | E13: =$Y$13/Fjernvarmeproduktion!$J$26*Fjernvarmeproduktion!$J$14*-1 -> -197.037585 | F13: =$Y$13/Fjernvarmeproduktion!$J$26*Fjernvarmeproduktion!$J$15*-1 -> -26090.71085 | G13: 0 | M13: =$Y$13/Fjernvarmeproduktion!$J$26*Fjernvarmeproduktion!$J$16*-1 -> -44.01903494 | N13: =$Y$13/Fjernvarmeproduktion!$J$26*Fjernvarmeproduktion!$J$17*-1 -> -268.3064987 | S13: 0 | T13: -28392.27754 | U13: Fjernvarmekedler | V13: KEDLER | W13: TS | Y13: 28392.27754 | AF13: 0 | AO13: =(AO8-AO15)*Fjernvarmetransmission!J6 -> 28392.27754 | AS13: =(Y13+T13)*-1 -> 0 | AT13: =-(C13*Emissionsfaktorer!$B$5+D13*Emissionsfaktorer!$B$7+E13*Emissionsfaktorer!$B$8+N13*Emissionsfaktorer!$B$6)*(1-'CO2-rensning '!J5)+'CO2-rensning '!J5*Emissionsfaktorer!B10*F13 -> 137.5217536
G14: -45272.15944 | H14: =AO14*Fjernvarmeproduktion!J19*-1 -> -41756.05568 | L14: =AO14*Fjernvarmeproduktion!J20*(1-1/Fjernvarmeproduktion!J24)*-1 -> -3516.103756 | O14: =AO14/Fjernvarmeproduktion!J24*Fjernvarmeproduktion!J20*-1 -> -1406.441503 | Q14: =AO14*Fjernvarmeproduktion!J21*-1 -> 0 | S14: 0 | T14: -46678.60094 | U14: Anden varmeproduktion | V14: ANDENV | W14: TS | Y14: 46678.60094 | AF14: 0 | AO14: =(AO8-AO15)*Fjernvarmetransmission!J7 -> 46678.60094 | AS14: =(Y14+T14)*-1 -> 0 | AT14: =-('BF 2030'!C14*Emissionsfaktorer!$B$5+'BF 2030'!D14*Emissionsfaktorer!$B$7+'BF 2030'!E14*Emissionsfaktorer!$B$8+N14*Emissionsfaktorer!$B$6) -> 0
F15: =(AL15+AO15)/PtX!J5*PtX!J6*-1 -> 0 | G15: 0 | O15: =(AL15+AO15)/PtX!J5*PtX!J7*-1 -> 0 | S15: 0 | T15: 0 | U15: Raffinaderi og PtX | V15: RAF | W15: TS | Y15: 0 | AF15: 0 | AL15: =PtX!J3 -> 0 | AO15: =AL15*PtX!J8 -> 0 | AS15: =(Y15+T15)*-1 -> 0 | AT15: =-('BF 2030'!C15*Emissionsfaktorer!$B$5+'BF 2030'!D15*Emissionsfaktorer!$B$7+'BF 2030'!E15*Emissionsfaktorer!$B$8+N15*Emissionsfaktorer!$B$6) -> 0
N16: =AM16*-1 -> -202252.4402 | O16: =AN16*-1*(1+Elapparater!J8) -> -156159.8072 | P16: =-AO16*(1+Fjernvarmetransmission!J9) -> -128792.7952 | S16: 0 | T16: -487205.0426 | U16: Transport af el, fjernvarme, mv. | V16: TRAS | Y16: 455104.5932 | AF16: 0 | AM16: =N18*-1 -> 202252.4402 | AN16: =O18*-1 -> 145954.1529 | AO16: =P18*-1 -> 106898 | AS16: =(Y16+T16)*-1 -> 32100.44942
S17: 0 | T17: 0 | U17: Indgang ikke-nettilsluttet VE | V17: TLP2 | Y17: 19396.35002 | AF17: 19396.35002 | AG17: =H18*-1 -> 1141.00176 | AH17: =I18*-1 -> 0 | AI17: 0 | AJ17: 0 | AK17: 18255.34826
C18: =C19+C20+C30+C31+C32 -> -47017.94093 | D18: -5682.814752 | E18: -1704.660931 | F18: -56114.76418 | G18: -19396.35002 | H18: -1141.00176 | J18: =J19+J20+J30+J31+J32 -> 0 | K18: =K19+K20+K30+K31+K32 -> 0 | L18: =L19+L20+L30+L31+L32 -> -18255.34826 | M18: =M20+M30+M31+M32 -> -27605.11349 | N18: =N20+N30+N31+N32 -> -202252.4402 | O18: =O20+O30+O31+O32 -> -145954.1529 | P18: =P19+P20+P30+P31+P32 -> -106898 | Q18: =Q19+Q20+Q30+Q31+Q32 -> 0 | R18: =R19+R20+R30+R31+R32 -> 0 | S18: 0 | T18: -612626.2375 | U18: Afgang fra energisystemet | V18: A | Y18: 482297.5852 | AB18: =SUM(AB19:AB20,AB30,AB31,AB32) -> 0 | AC18: 0 | AD18: 0 | AE18: 0 | AF18: 0 | AG18: 0 | AH18: 0 | AI18: 0 | AJ18: 0 | AK18: 0 | AL18: 0 | AM18: 0 | AN18: 0 | AO18: 0 | AP18: 0 | AQ18: 482297.5852 | AR18: 0 | AS18: 167588.3318 | AT18: 18571.59101
G19: =H19+I19+J19+K19+L19 -> 0 | M19: =IF(M20+M30+M31+M32+AL15>0,(M20+M30+M31+M32+AL15)*-1,0) -> 0 | N19: =IF(AM8-AM15<0,AM8-AM15,0) -> 0 | O19: =IF(AN8-AN10-AN11-AN12<0,AN8-AN10-AN11-AN12,0) -> -37259.67958 | S19: 0 | T19: -37259.67958 | U19: Netto eksport/lager | V19: AES | W19: A | Y19: 0 | AF19: =AG19+AH19+AI19+AJ19+AK19 -> 0 | AS19: =(Y19+T19)*-1 -> 37259.67958 | AT19: =O19*Elproduktion!J10+M19*PtX!J9/1000 -> -149.0387183
C20: =C21+SUM(C26:C29) -> -465.1326733 | D20: =D21+SUM(D26:D29) -> 0 | E20: 0 | F20: -186.0530693 | G20: 0 | H20: 0 | I20: 0 | J20: 0 | K20: 0 | L20: 0 | M20: =M21+SUM(M26:M29) -> -7535.149308 | N20: -166889.942 | O20: -7797.109506 | P20: 0 | Q20: 0 | R20: 0 | S20: 0 | T20: -182873.3865 | U20: Transport | V20: AT | W20: A | Y20: 52544.73428 | Z20: 0.3 | AB20: =AB21+SUM(AB26:AB29) -> 0 | AC20: 0 | AD20: 0 | AE20: 0 | AF20: 0 | AG20: 0 | AH20: 0 | AI20: 0 | AJ20: 0 | AK20: 0 | AL20: 0 | AM20: 0 | AN20: 0 | AO20: 0 | AP20: 0 | AQ20: 52544.73428 | AR20: 0 | AS20: 130328.6522 | AT20: =-('BF 2030'!C20*Emissionsfaktorer!$B$5+'BF 2030'!D20*Emissionsfaktorer!$B$7+'BF 2030'!E20*Emissionsfaktorer!$B$8+N20*Emissionsfaktorer!$B$6) -> 12710.14815
C21: ='Transport modes'!$J$5*'Teknologi til transport'!$J5*-1 -> -465.1326733 | D21: =SUM(D22:D25) -> 0 | E21: 0 | F21: ='Transport modes'!$J$5*'Teknologi til transport'!$J6*-1 -> -186.0530693 | G21: 0 | H21: 0 | J21: =SUM(J22:J25) -> 0 | K21: 0 | L21: 0 | M21: ='Transport modes'!$J$5*'Teknologi til transport'!$J7*-1 -> -7535.149308 | N21: ='Transport modes'!$J$5*'Teknologi til transport'!$J8*-1 -> -156656.6844 | O21: ='Transport modes'!$J$5*'Teknologi til transport'!$J9*-1 -> -4000.14099 | P21: 0 | Q21: 0 | R21: 0 | S21: 0 | T21: -168843.1604 | U21: Vejtrafik | V21: ATV | W21: AT | Y21: 50652.94812 | Z21: 0.3 | AB21: =SUM(AB22:AB25) -> 0 | AC21: =SUM(AC22:AC25) -> 0 | AD21: =SUM(AD22:AD25) -> 0 | AE21: =SUM(AE22:AE25) -> 0 | AF21: 0 | AG21: =SUM(AG22:AG25) -> 0 | AH21: 0 | AI21: 0 | AJ21: 0 | AK21: 0 | AL21: 0 | AN21: =SUM(AN22:AN25) -> 0 | AO21: =SUM(AO22:AO25) -> 0 | AP21: =SUM(AP22:AP25) -> 0 | AQ21: =T21*Z21*-1 -> 50652.94812 | AR21: =SUM(AR22:AR25) -> 0 | AS21: 118190.2123 | AT21: =-('BF 2030'!C21*Emissionsfaktorer!$B$5+'BF 2030'!D21*Emissionsfaktorer!$B$7+'BF 2030'!E21*Emissionsfaktorer!$B$8+N21*Emissionsfaktorer!$B$6) -> 11932.42057
S22: 0 | T22: 0 | U22: Personbil | V22: PERSON | W22: ATV | Y22: 0 | Z22: 0.3 | AF22: 0 | AQ22: 0 | AS22: 0 | AT22: =-('BF 2030'!C22*Emissionsfaktorer!$B$5+'BF 2030'!D22*Emissionsfaktorer!$B$7+'BF 2030'!E22*Emissionsfaktorer!$B$8+N22*Emissionsfaktorer!$B$6) -> 0
S23: 0 | T23: 0 | U23: Lastbil | V23: LAST | W23: ATV | Y23: 0 | Z23: 0.3 | AF23: 0 | AQ23: 0 | AS23: 0 | AT23: =-('BF 2030'!C23*Emissionsfaktorer!$B$5+'BF 2030'!D23*Emissionsfaktorer!$B$7+'BF 2030'!E23*Emissionsfaktorer!$B$8+N23*Emissionsfaktorer!$B$6) -> 0
S24: 0 | T24: 0 | U24: Varebil | V24: VARE | W24: ATV | Y24: 0 | Z24: 0.3 | AF24: 0 | AQ24: 0 | AS24: 0 | AT24: =-('BF 2030'!C24*Emissionsfaktorer!$B$5+'BF 2030'!D24*Emissionsfaktorer!$B$7+'BF 2030'!E24*Emissionsfaktorer!$B$8+N24*Emissionsfaktorer!$B$6) -> 0
S25: 0 | T25: 0 | U25: Bus | V25: BUS | W25: ATV | Y25: 0 | Z25: 0.3 | AF25: 0 | AQ25: 0 | AS25: 0 | AT25: =-('BF 2030'!C25*Emissionsfaktorer!$B$5+'BF 2030'!D25*Emissionsfaktorer!$B$7+'BF 2030'!E25*Emissionsfaktorer!$B$8+N25*Emissionsfaktorer!$B$6) -> 0
C26: ='Transport modes'!J6*'Teknologi til transport'!J11*-1 -> 0 | F26: ='Transport modes'!J6*'Teknologi til transport'!J12*-1 -> 0 | G26: 0 | M26: ='Transport modes'!J6*'Teknologi til transport'!J13*-1 -> 0 | N26: ='Transport modes'!J6*'Teknologi til transport'!J14*-1 -> -899.2820169 | O26: ='Transport modes'!J6*'Teknologi til transport'!J15*-1 -> -3796.968516 | S26: 0 | T26: -4696.250532 | U26: Tog | V26: ATT | W26: AT | Y26: 0 | Z26: 0.3 | AB26: 0 | AC26: 0 | AD26: 0 | AE26: 0 | AF26: 0 | AG26: 0 | AH26: 0 | AI26: 0 | AJ26: 0 | AK26: 0 | AL26: 0 | AM26: 0 | AN26: 0 | AO26: 0 | AP26: 0 | AQ26: 0 | AR26: 0 | AS26: 4696.250532 | AT26: =-('BF 2030'!C26*Emissionsfaktorer!$B$5+'BF 2030'!D26*Emissionsfaktorer!$B$7+'BF 2030'!E26*Emissionsfaktorer!$B$8+N26*Emissionsfaktorer!$B$6) -> 68.34543328
G27: 0 | M27: ='Transport modes'!J7*'Teknologi til transport'!J17*-1 -> 0 | N27: ='Transport modes'!J7*'Teknologi til transport'!J18*-1 -> -1422.111721 | O27: ='Transport modes'!J7*'Teknologi til transport'!J19*-1 -> 0 | S27: 0 | T27: -1422.111721 | U27: Fly | V27: ATF | W27: AT | Y27: 0 | Z27: 0.3 | AB27: 0 | AC27: 0 | AD27: 0 | AE27: 0 | AF27: 0 | AG27: 0 | AH27: 0 | AI27: 0 | AJ27: 0 | AK27: 0 | AL27: 0 | AM27: 0 | AN27: 0 | AO27: 0 | AP27: 0 | AQ27: 0 | AR27: 0 | AS27: 1422.111721 | AT27: =-('BF 2030'!C27*Emissionsfaktorer!$B$5+'BF 2030'!D27*Emissionsfaktorer!$B$7+'BF 2030'!E27*Emissionsfaktorer!$B$8+N27*Emissionsfaktorer!$B$6) -> 108.0804908
G28: =H28+I28+J28+K28+L28 -> 0 | M28: =-'Transport modes'!J8*'Teknologi til transport'!J21 -> 0 | N28: =-'Transport modes'!J8*'Teknologi til transport'!J22 -> -6305.953847 | O28: =-'Transport modes'!J8*'Teknologi til transport'!J23 -> 0 | S28: 0 | T28: -6305.953847 | U28: Færge | V28: ATFÆRGE | W28: AT | Y28: 1891.786154 | Z28: 0.3 | AF28: 0 | AQ28: 1891.786154 | AS28: 4414.167693 | AT28: =-('BF 2030'!C28*Emissionsfaktorer!$B$5+'BF 2030'!D28*Emissionsfaktorer!$B$7+'BF 2030'!E28*Emissionsfaktorer!$B$8+N28*Emissionsfaktorer!$B$6) -> 479.2524924
G29: =H29+I29+J29+K29+L29 -> 0 | M29: ='Transport modes'!J9*'Teknologi til transport'!J25*-1 -> 0 | N29: =-'Transport modes'!J9*'Teknologi til transport'!J26 -> -1605.91 | O29: ='Transport modes'!J9*'Teknologi til transport'!J27*-1 -> 0 | S29: 0 | T29: -1605.91 | U29: Non-Road (landbrug) | V29: ATNONR | W29: AT | Y29: 0 | Z29: 0.3 | AB29: 0 | AC29: 0 | AD29: 0 | AE29: 0 | AF29: 0 | AG29: 0 | AH29: 0 | AI29: 0 | AJ29: 0 | AK29: 0 | AL29: 0 | AM29: 0 | AN29: 0 | AO29: 0 | AP29: 0 | AQ29: 0 | AR29: 0 | AS29: 1605.91 | AT29: =-('BF 2030'!C29*Emissionsfaktorer!$B$5+'BF 2030'!D29*Emissionsfaktorer!$B$7+'BF 2030'!E29*Emissionsfaktorer!$B$8+N29*Emissionsfaktorer!$B$6) -> 122.04916
C30: ='Opvarmning og proces'!$J$4*'Opvarmning og proces'!$J$9*-1 -> -20026.01759 | D30: ='Opvarmning og proces'!$J$4*'Opvarmning og proces'!$J$10*-1 -> 0 | E30: ='Opvarmning og proces'!$J$4*'Opvarmning og proces'!$J$11*-1 -> 0 | F30: ='Opvarmning og proces'!$J$4*'Opvarmning og proces'!$J$12*-1 -> -43140.85933 | G30: =H30+I30+J30+K30+L30 -> -17774.32879 | H30: ='Opvarmning og proces'!$J$4*'Opvarmning og proces'!$J$13*-1 -> -275.4211611 | L30: ='Opvarmning og proces'!J4*'Opvarmning og proces'!J16*(Fjernvarmeproduktion!J24-1)*-1 -> -17498.90763 | M30: ='Opvarmning og proces'!$J$4*'Opvarmning og proces'!$J$14*-1 -> -8633.487012 | N30: ='Opvarmning og proces'!$J$4*'Opvarmning og proces'!$J$15*-1 -> -5059.051855 | O30: =('Opvarmning og proces'!$J$4*'Opvarmning og proces'!$J$16+Elapparater!J4)*-1 -> -42451.16305 | P30: =Fjernvarme!J4*-1 -> -69806 | S30: 0 | T30: -206890.9076 | U30: Husholdninger | V30: AH | W30: A | Y30: 206890.9076 | Z30: 1 | AQ30: =T30/Z30*-1 -> 206890.9076 | AS30: 0 | AT30: =-('BF 2030'!C30*Emissionsfaktorer!$B$5+'BF 2030'!D30*Emissionsfaktorer!$B$7+'BF 2030'!E30*Emissionsfaktorer!$B$8+N30*Emissionsfaktorer!$B$6) -> 1525.970943
C31: ='Opvarmning og proces'!$J$5*'Opvarmning og proces'!$J$18*-1 -> -2895.492709 | D31: ='Opvarmning og proces'!$J$5*'Opvarmning og proces'!$J$19*-1 -> 0 | E31: ='Opvarmning og proces'!$J$5*'Opvarmning og proces'!$J$20*-1 -> 0 | F31: ='Opvarmning og proces'!$J$5*'Opvarmning og proces'!$J$21*-1 -> -2862.651582 | G31: -974.2867716 | H31: ='Opvarmning og proces'!$J$5*'Opvarmning og proces'!$J$22*-1 -> -217.8461433 | L31: ='Opvarmning og proces'!J5*'Opvarmning og proces'!J25*(Fjernvarmeproduktion!J24-1)*-1 -> -756.4406283 | M31: ='Opvarmning og proces'!$J$5*'Opvarmning og proces'!$J$23*-1 -> -1247.962831 | N31: ='Opvarmning og proces'!$J$5*'Opvarmning og proces'!$J$24*-1 -> -460.8704841 | O31: =('Opvarmning og proces'!$J$5*'Opvarmning og proces'!$J$25+Elapparater!J5)*-1 -> -8916.176251 | P31: =Fjernvarme!J5*-1 -> -10032 | S31: 0 | T31: -27389.44063 | U31: Offentlig | V31: AO | W31: A | Y31: 27389.44063 | Z31: 1 | AQ31: =T31/Z31*-1 -> 27389.44063 | AS31: 0 | AT31: =-('BF 2030'!C31*Emissionsfaktorer!$B$5+'BF 2030'!D31*Emissionsfaktorer!$B$7+'BF 2030'!E31*Emissionsfaktorer!$B$8+N31*Emissionsfaktorer!$B$6) -> 200.0692412
C32: ='Opvarmning og proces'!$J$6*'Opvarmning og proces'!$J$27*-1 -> -23631.29796 | D32: ='Opvarmning og proces'!$J$6*'Opvarmning og proces'!$J$28*-1 -> -5682.814752 | E32: ='Opvarmning og proces'!$J$6*'Opvarmning og proces'!$J$29*-1 -> -1704.660931 | F32: ='Opvarmning og proces'!$J$6*'Opvarmning og proces'!$J$30*-1 -> -9925.200192 | G32: -647.7344551 | H32: ='Opvarmning og proces'!$J$6*'Opvarmning og proces'!$J$31*-1 -> -647.7344551 | M32: ='Opvarmning og proces'!$J$6*'Opvarmning og proces'!$J$32*-1 -> -10188.51434 | N32: ='Opvarmning og proces'!$J$6*'Opvarmning og proces'!$J$33*-1 -> -29842.57595 | O32: =('Opvarmning og proces'!$J$6*'Opvarmning og proces'!$J$34+Elapparater!J6)*-1 -> -86789.70411 | P32: =Fjernvarme!J6*-1 -> -27060 | S32: 0 | T32: -195472.5027 | U32: Erhverv | V32: AE | W32: A | Y32: 195472.5027 | Z32: 1 | AQ32: =T32/Z32*-1 -> 195472.5027 | AS32: 0 | AT32: =-('BF 2030'!C32*Emissionsfaktorer!$B$5+'BF 2030'!D32*Emissionsfaktorer!$B$7+'BF 2030'!E32*Emissionsfaktorer!$B$8+N32*Emissionsfaktorer!$B$6) -> 4284.441388
U33: Energitjenester | V33: EN

Sheet 2005 (hidden)
B1: Forbrug | C1: Naturgas | D1: Kul | E1: Affald (ikke-bionedbrydeligt) | F1: Biobrændsler | G1: Ikke-brændsel VE | H1: Sol | I1: Vind | J1: Vand | K1: Geotermisk | L1: Varmepumpe - omgivelsesvarme | M1: Bioolie, biodiesel og bioethanol | N1: Olieprodukter | O1: El | P1: Fjernvarme | Q1: Overskudsvarme | R1: Energitjenester | S1: Total energiforbrug | T1: Brutto brændsel | U1: =#REF! ->  | X1: Faktor | Y1: Brutto produktion | Z1: Virkningsgrad | AA1: Produktion | AB1: Naturgas | AC1: Kul | AD1: Affald (ikke-bionedbrydeligt) | AE1: Biobrændsler | AF1: Ikke-brændsel VE | AG1: Sol | AH1: Vind | AI1: Vand | AJ1: Geotermisk | AK1: Varmepumpe - omgivelsesvarme | AL1: Bioolie, biodiesel og bioethanol | AM1: Olieprodukter | AN1: El | AO1: Fjernvarme | AP1: Nyttiggjort overskudsvarme | AQ1: Energitjenester | AR1: Total energiforbrug | AS1: Tab | AT1: CO2-udledning
A2: ID | B2: F | C2: FN | D2: FK | E2: FMA | F2: FVB | G2: FLVE | H2: FLVE1 | I2: FLVE2 | J2: FLVE3 | K2: FLVE4 | L2: FLVE5 | M2: FS | N2: FOO | O2: FE | P2: FF | Q2: FOV | R2: FWEN | S2: FTOTAL | T2: fbrbr | V2: ID | W2: ID Parent | X2: factor | Y2: pbrpr | Z2: pvrkg | AA2: P | AB2: PN | AC2: PK | AD2: PMA | AE2: PVB | AF2: PLVE | AG2: PLVE1 | AH2: PLVE2 | AI2: PLVE3 | AJ2: PLVE4 | AK2: PLVE5 | AL2: PS | AM2: POO | AN2: PE | AO2: PF | AP2: POV | AQ2: PWEN | AR2: PTOTAL | AS2: PTAB | AT2: PCO2
A3: ID Parent | C3: F | D3: F | E3: F | F3: F | G3: F | H3: FLVE | I3: FLVE | J3: FLVE | K3: FLVE | L3: FLVE | M3: F | N3: F | O3: F | P3: F | Q3: F | R3: F | S3: F | U3: Structures | AB3: P | AC3: P | AD3: P | AE3: P | AF3: P | AG3: PLVE | AH3: PLVE | AI3: PLVE | AJ3: PLVE | AK3: PLVE | AL3: P | AM3: P | AN3: P | AO3: P | AP3: P | AQ3: P | AR3: P
S5: 0 | T5: =SUM(C5:F5,G5,M5,N5,O5:Q5) -> 0 | U5: Indgang for brændsler (bio, kul mv.) | V5: TP | Y5: =SUM(AB5:AE5,AF5,AL5,AM5,AN5:AQ5) -> 426397 | AB5: =-C6 -> 160343 | AC5: =-D6 -> 155032 | AD5: =-E6 -> 17026 | AE5: =-F6 -> 93996 | AF5: =AG5+AH5+AI5+AJ5+AK5 -> 0
C6: =-AB6 -> -160343 | D6: =-AC6 -> -155032 | E6: =-AD6 -> -17026 | F6: =-AE6 -> -93996 | G6: =H6+I6+J6+K6+L6 -> 0 | S6: 0 | T6: -426397 | U6: Transport af brændsler | V6: TRAP | Y6: 426397 | AB6: =-1*(C8+C18) -> 160343 | AC6: =-1*(D8+D18) -> 155032 | AD6: =-1*(E8+E18) -> 17026 | AE6: =-1*(F8+F18) -> 93996 | AF6: 0
S7: 0 | T7: 0 | U7: Indgang nettilsluttet VE | V7: TLP1 | Y7: 23871 | AF7: 23871 | AG7: =H8*-1 -> 61 | AH7: =I11*-1 -> 23810
C8: =SUM(C9:C11,C12:C15) -> -87956 | D8: =SUM(D9:D11,D12:D15) -> -144241 | E8: =SUM(E9:E11,E12:E15) -> -15787 | F8: =SUM(F9:F11,F12:F15) -> -54955 | G8: =H8+I8+J8+K8+L8 -> -24043 | H8: =SUM(H9:H11,H12:H15) -> -61 | I8: -23810 | J8: 0 | K8: 0 | L8: -172 | M8: -761 | N8: -30644 | O8: -8805.8 | P8: -1303 | Q8: 0 | R8: 0 | S8: 0 | T8: -368495.8 | U8: Indgang el, varme og olieprodukter | V8: TS | Y8: 557700.77 | AB8: =SUM(AB9:AB11,AB12:AB15) -> 0 | AC8: =SUM(AC9:AC11,AC12:AC15) -> 0 | AD8: =SUM(AD9:AD11,AD12:AD15) -> 0 | AF8: 0 | AG8: =SUM(AG9:AG11,AG12:AG15) -> 0 | AI8: =SUM(AI9:AI11,AI12:AI15) -> 0 | AJ8: =SUM(AJ9:AJ11,AJ12:AJ15) -> 0 | AK8: =SUM(AK9:AK11,AK12:AK15) -> 0 | AL8: =-M18 -> 0 | AM8: =(N16+N8)*-1 -> 294515.25 | AN8: =(O16+O8)*-1 -> 135034.52 | AO8: =SUM(AO9:AO15) -> 128151 | AP8: =SUM(AP9:AP11,AP12:AP15) -> 0 | AQ8: =SUM(AQ9:AQ11,AQ12:AQ15) -> 0 | AR8: =SUM(AR9:AR11,AR12:AR15) -> 0 | AS8: =SUM(AS9:AS11,AS12:AS15) -> -212931.2 | AT8: =SUM(AT9:AT11,AT12:AT15) -> 21166.215
G9: =H9+I9+J9+K9+L9 -> 0 | S9: 0 | T9: 0 | U9: Netto import/lager | V9: IMP | W9: TS | Y9: 5085 | AF9: 0 | AL9: =IF(AL15-AL8<0,(AL15-AL8)*-1,0) -> 0 | AM9: =IF(AM8-AM15>0,AM8-AM15,0) -> 0 | AN9: =IF('BF20 2005'!AB7>0,'BF20 2005'!AB7,0) -> 4932 | AO9: =IF('BF20 2005'!AC7>0,'BF20 2005'!AC7,0) -> 153 | AT9: =AN9*Elproduktion!J10+AL9*PtX!J9/1000 -> 19.728
C10: ='BF20 2005'!N18+'BF20 2005'!N20+'BF20 2005'!N22 -> -83691 | D10: ='BF20 2005'!C18+'BF20 2005'!C20+'BF20 2005'!C22 -> -144191 | E10: ='BF20 2005'!O18+'BF20 2005'!O20+'BF20 2005'!O22 -> -15379 | F10: =SUM('BF20 2005'!P18:T18)+SUM('BF20 2005'!V18:W18)+SUM('BF20 2005'!P20:T20)+SUM('BF20 2005'!V20:W20)+SUM('BF20 2005'!P22:T22)+SUM('BF20 2005'!V22:W22) -> -44189 | G10: 0 | M10: ='BF20 2005'!U18+'BF20 2005'!U20+'BF20 2005'!U22 -> 0 | N10: =SUM('BF20 2005'!E18:M18)+SUM('BF20 2005'!E20:M20)+SUM('BF20 2005'!E22:M22) -> -14756 | O10: ='BF20 2005'!AB24 -> -6599 | P10: ='BF20 2005'!AC24 -> -1303 | S10: 0 | T10: -310108 | U10: El og varmeproduktion | V10: ELOGVARME | W10: TS | Y10: 217862 | AF10: 0 | AN10: ='BF20 2005'!AB18+'BF20 2005'!AB20+'BF20 2005'!AB22+'BF20 2005'!X22 -> 106493 | AO10: ='BF20 2005'!AC18+'BF20 2005'!AC20+'BF20 2005'!AC22+'BF20 2005'!X22 -> 111369 | AS10: =(Y10+T10)*-1 -> 92246 | AT10: =-(C10*Emissionsfaktorer!$B$5+D10*Emissionsfaktorer!$B$7+E10*Emissionsfaktorer!$B$8+N10*Emissionsfaktorer!$B$6)*(1-'CO2-rensning '!J4)+F10*Emissionsfaktorer!B10*'CO2-rensning '!J4 -> 20758.792
G11: -23810 | I11: ='BF20 2005'!Z19 -> -23810 | S11: 0 | T11: -23810 | U11: Vindmøller | V11: VIND | W11: TS | Y11: 23891 | AF11: 0 | AN11: ='BF20 2005'!AB19 -> 23891 | AS11: 0 | AT11: =-('2005'!C11*Emissionsfaktorer!$B$5+'2005'!D11*Emissionsfaktorer!$B$7+'2005'!E11*Emissionsfaktorer!$B$8+N11*Emissionsfaktorer!$B$6) -> 0
G12: -8 | H12: ='BF20 2005'!X22 -> -8 | S12: 0 | T12: -8 | U12: Solceller | V12: SOLSTR | W12: TS | Y12: 8 | AF12: =AG12+AH12+AI12+AJ12+AK12 -> 0 | AN12: ='BF20 2005'!X22*-1 -> 8 | AS12: =(Y12+T12)*-1 -> 0 | AT12: =-('2005'!C12*Emissionsfaktorer!$B$5+'2005'!D12*Emissionsfaktorer!$B$7+'2005'!E12*Emissionsfaktorer!$B$8+N12*Emissionsfaktorer!$B$6) -> 0
C13: ='BF20 2005'!N21 -> -4265 | D13: ='BF20 2005'!C21 -> -50 | E13: ='BF20 2005'!O21 -> -408 | F13: =SUM('BF20 2005'!P21:T21)+'BF20 2005'!V21+'BF20 2005'!W21 -> -10766 | G13: 0 | M13: ='BF20 2005'!U21 -> -761 | N13: =SUM('BF20 2005'!F21:M21) -> -1432 | O13: ='BF20 2005'!AB21 -> 0 | S13: 0 | T13: -17682 | U13: Fjernvarmekedler | V13: KEDLER | W13: TS | Y13: 16327.2 | AF13: 0 | AO13: ='BF20 2005'!AC21+('BF20 2005'!Y21*(1+1/(Fjernvarmeproduktion!B24-1))+'BF20 2005'!X21) -> 16327.2 | AS13: =(Y13+T13)*-1 -> 1354.8 | AT13: =-(C13*Emissionsfaktorer!$B$5+D13*Emissionsfaktorer!$B$7+E13*Emissionsfaktorer!$B$8+N13*Emissionsfaktorer!$B$6)*(1-'CO2-rensning '!J5)+'CO2-rensning '!J5*Emissionsfaktorer!B10*F13 -> 387.695
G14: -225 | H14: ='BF20 2005'!X21 -> -53 | L14: ='BF20 2005'!Y21 -> -172 | O14: ='BF20 2005'!Y21/(Fjernvarmeproduktion!B24-1) -> -68.8 | S14: 0 | T14: -293.8 | U14: Anden varmeproduktion | V14: ANDENV | W14: TS | Y14: 301.8 | AF14: 0 | AO14: =('BF20 2005'!Y21*(1+1/(Fjernvarmeproduktion!B24-1))+'BF20 2005'!X21+'BF20 2005'!X22)*-1 -> 301.8 | AS14: =(Y14+T14)*-1 -> -8 | AT14: =-('2005'!C14*Emissionsfaktorer!$B$5+'2005'!D14*Emissionsfaktorer!$B$7+'2005'!E14*Emissionsfaktorer!$B$8+N14*Emissionsfaktorer!$B$6) -> 0
F15: ='BF20 2005'!AA16 -> 0 | G15: 0 | N15: =SUM('BF20 2005'!G14:M14) -> -14456 | O15: ='BF20 2005'!AB16+'BF20 2005'!AB14+'BF20 2005'!AB14 -> -2138 | S15: 0 | T15: -16594 | U15: Raffinaderi og PtX | V15: RAF | W15: TS | Y15: 323118 | AF15: 0 | AL15: =PtX!J3 -> 0 | AM15: =SUM('BF20 2005'!F13:M13) -> 323118 | AO15: ='BF20 2005'!AC16 -> 0 | AS15: =(Y15+T15)*-1 -> -306524
N16: =AM16*-1 -> -263871.25 | O16: =-AN16+'BF20 2005'!AB25 -> -126228.72 | P16: =-AO16+'BF20 2005'!AC25 -> -130050 | S16: 0 | T16: -520149.97 | U16: Transport af el, fjernvarme, mv. | V16: TRAS | Y16: 489206.97 | AF16: 0 | AM16: =N18*-1 -> 263871.25 | AN16: =O18*-1 -> 120731.72 | AO16: =P18*-1 -> 104604 | AS16: =(Y16+T16)*-1 -> 30943
S17: 0 | T17: 0 | U17: Indgang ikke-nettilsluttet VE | V17: TLP2 | Y17: 4175 | AF17: 4175 | AG17: =H18*-1 -> 359 | AH17: =I18*-1 -> 0 | AI17: 0 | AJ17: 0 | AK17: 3816
C18: =C19+C20+C30+C31+C32 -> -72387 | D18: -10791 | E18: -1239 | F18: -39041 | G18: -4175 | H18: -359 | J18: =J19+J20+J30+J31+J32 -> 0 | K18: =K19+K20+K30+K31+K32 -> 0 | L18: =L19+L20+L30+L31+L32 -> -3816 | M18: =M20+M30+M31+M32 -> 0 | N18: =N20+N30+N31+N32 -> -263871.25 | O18: =O20+O30+O31+O32 -> -120731.72 | P18: =P19+P20+P30+P31+P32 -> -104604 | Q18: =Q19+Q20+Q30+Q31+Q32 -> 0 | R18: =R19+R20+R30+R31+R32 -> 0 | S18: 0 | T18: -616839.97 | U18: Afgang fra energisystemet | V18: A | Y18: 491213.791 | AB18: =SUM(AB19:AB20,AB30,AB31,AB32) -> 0 | AC18: 0 | AD18: 0 | AE18: 0 | AF18: 0 | AG18: 0 | AH18: 0 | AI18: 0 | AJ18: 0 | AK18: 0 | AL18: 0 | AM18: 0 | AN18: 0 | AO18: 0 | AP18: 0 | AQ18: 491213.791 | AR18: 0 | AS18: 154228.929 | AT18: 25299.583
G19: =H19+I19+J19+K19+L19 -> 0 | M19: =IF(M20+M30+M31+M32+AL15>0,(M20+M30+M31+M32+AL15)*-1,0) -> 0 | N19: =IF(AM8-AM15<0,AM8-AM15,0) -> -28602.75 | O19: =IF('BF20 2005'!AB7<0,'BF20 2005'!AB7,0) -> 0 | P19: =IF('BF20 2005'!AC7<0,'BF20 2005'!AC7,0) -> 0 | S19: 0 | T19: -28602.75 | U19: Netto eksport/lager | V19: AES | W19: A | Y19: 0 | AF19: =AG19+AH19+AI19+AJ19+AK19 -> 0 | AS19: =(Y19+T19)*-1 -> 28602.75 | AT19: =O19*Elproduktion!J10+M19*PtX!J9/1000 -> 0
C20: =C21+SUM(C26:C29) -> 0 | D20: =D21+SUM(D26:D29) -> 0 | E20: 0 | F20: 0 | G20: 0 | H20: 0 | I20: 0 | J20: 0 | K20: 0 | L20: 0 | M20: 0 | N20: -178115.25 | O20: -1350.72 | P20: 0 | Q20: 0 | R20: 0 | S20: 0 | T20: -179465.97 | U20: Transport | V20: AT | W20: A | Y20: 53839.791 | Z20: 0.3 | AB20: =AB21+SUM(AB26:AB29) -> 0 | AC20: 0 | AD20: 0 | AE20: 0 | AF20: 0 | AG20: 0 | AH20: 0 | AI20: 0 | AJ20: 0 | AK20: 0 | AL20: 0 | AM20: 0 | AN20: 0 | AO20: 0 | AP20: 0 | AQ20: 53839.791 | AR20: 0 | AS20: 125626.179 | AT20: =-('2005'!C20*Emissionsfaktorer!$B$5+'2005'!D20*Emissionsfaktorer!$B$7+'2005'!E20*Emissionsfaktorer!$B$8+N20*Emissionsfaktorer!$B$6) -> 13536.759
C21: ='BF20 2005'!N28 -> 0 | G21: =SUM(G22:G25) -> 0 | M21: =('ENS Transport'!AK28+'ENS Transport'!AK29)*-1 -> 0 | N21: =SUM('ENS Transport'!AK21:AK24)*-1 -> -161923 | S21: 0 | T21: -161923 | U21: Vejtrafik | V21: ATV | W21: AT | Y21: 48576.9 | Z21: 0.3 | AB21: =SUM(AB22:AB25) -> 0 | AC21: =SUM(AC22:AC25) -> 0 | AD21: =SUM(AD22:AD25) -> 0 | AE21: =SUM(AE22:AE25) -> 0 | AF21: 0 | AG21: =SUM(AG22:AG25) -> 0 | AH21: 0 | AI21: 0 | AJ21: 0 | AK21: 0 | AL21: 0 | AN21: =SUM(AN22:AN25) -> 0 | AO21: =SUM(AO22:AO25) -> 0 | AP21: =SUM(AP22:AP25) -> 0 | AQ21: =T21*Z21*-1 -> 48576.9 | AR21: =SUM(AR22:AR25) -> 0 | AS21: 113346.1 | AT21: =-('2005'!C21*Emissionsfaktorer!$B$5+'2005'!D21*Emissionsfaktorer!$B$7+'2005'!E21*Emissionsfaktorer!$B$8+N21*Emissionsfaktorer!$B$6) -> 12306.148
G22: =SUM(H22:L22) -> 0 | S22: 0 | T22: 0 | U22: Personbil | V22: PERSON | W22: ATV | Y22: 0 | Z22: 0.3 | AF22: 0 | AQ22: 0 | AS22: 0 | AT22: =-('2005'!C22*Emissionsfaktorer!$B$5+'2005'!D22*Emissionsfaktorer!$B$7+'2005'!E22*Emissionsfaktorer!$B$8+N22*Emissionsfaktorer!$B$6) -> 0
G23: =SUM(H23:L23) -> 0 | S23: 0 | T23: 0 | U23: Lastbil | V23: LAST | W23: ATV | Y23: 0 | Z23: 0.3 | AF23: 0 | AQ23: 0 | AS23: 0 | AT23: =-('2005'!C23*Emissionsfaktorer!$B$5+'2005'!D23*Emissionsfaktorer!$B$7+'2005'!E23*Emissionsfaktorer!$B$8+N23*Emissionsfaktorer!$B$6) -> 0
G24: 0 | S24: 0 | T24: 0 | U24: Varebil | V24: VARE | W24: ATV | Y24: 0 | Z24: 0.3 | AF24: 0 | AQ24: 0 | AS24: 0 | AT24: =-('2005'!C24*Emissionsfaktorer!$B$5+'2005'!D24*Emissionsfaktorer!$B$7+'2005'!E24*Emissionsfaktorer!$B$8+N24*Emissionsfaktorer!$B$6) -> 0
G25: 0 | S25: 0 | T25: 0 | U25: Bus | V25: BUS | W25: ATV | Y25: 0 | Z25: 0.3 | AF25: 0 | AQ25: 0 | AS25: 0 | AT25: =-('2005'!C25*Emissionsfaktorer!$B$5+'2005'!D25*Emissionsfaktorer!$B$7+'2005'!E25*Emissionsfaktorer!$B$8+N25*Emissionsfaktorer!$B$6) -> 0
G26: =SUM(H26:L26) -> 0 | N26: =SUM('ENS Transport'!AK32:AK34)*-1 -> -3136.79 | O26: ='ENS Transport'!AK35*-1 -> -1350.72 | S26: 0 | T26: -4487.51 | U26: Tog | V26: ATT | W26: AT | Y26: 1346.253 | Z26: 0.3 | AB26: 0 | AC26: 0 | AD26: 0 | AE26: 0 | AF26: 0 | AG26: 0 | AH26: 0 | AI26: 0 | AJ26: 0 | AK26: 0 | AL26: 0 | AM26: 0 | AN26: 0 | AO26: 0 | AP26: 0 | AQ26: 1346.253 | AR26: 0 | AS26: 3141.257 | AT26: =-('2005'!C26*Emissionsfaktorer!$B$5+'2005'!D26*Emissionsfaktorer!$B$7+'2005'!E26*Emissionsfaktorer!$B$8+N26*Emissionsfaktorer!$B$6) -> 238.39604
G27: =SUM(H27:L27) -> 0 | N27: =SUM('ENS Transport'!AK44:AK48)*-1 -> -1303.84 | S27: 0 | T27: -1303.84 | U27: Fly (indenrigs) | V27: ATF | W27: AT | Y27: 391.152 | Z27: 0.3 | AB27: 0 | AC27: 0 | AD27: 0 | AE27: 0 | AF27: 0 | AG27: 0 | AH27: 0 | AI27: 0 | AJ27: 0 | AK27: 0 | AL27: 0 | AM27: 0 | AN27: 0 | AO27: 0 | AP27: 0 | AQ27: 391.152 | AR27: 0 | AS27: 912.688 | AT27: =-('2005'!C27*Emissionsfaktorer!$B$5+'2005'!D27*Emissionsfaktorer!$B$7+'2005'!E27*Emissionsfaktorer!$B$8+N27*Emissionsfaktorer!$B$6) -> 99.09184
G28: 0 | N28: =SUM('ENS Transport'!AK38:AK41)*-1 -> -8026.04 | S28: 0 | T28: -8026.04 | U28: Søtransport | V28: ATFÆRGE | W28: AT | Y28: 2407.812 | Z28: 0.3 | AF28: 0 | AQ28: 2407.812 | AS28: 5618.228 | AT28: =-('2005'!C28*Emissionsfaktorer!$B$5+'2005'!D28*Emissionsfaktorer!$B$7+'2005'!E28*Emissionsfaktorer!$B$8+N28*Emissionsfaktorer!$B$6) -> 609.97904
G29: 0 | N29: =SUM('ENS Transport'!AK55:AK59)*-1 -> -3725.58 | S29: 0 | T29: -3725.58 | U29: Forsvaret | V29: ATNONR | W29: AT | Y29: 1117.674 | Z29: 0.3 | AB29: 0 | AC29: 0 | AD29: 0 | AE29: 0 | AF29: 0 | AG29: 0 | AH29: 0 | AI29: 0 | AJ29: 0 | AK29: 0 | AL29: 0 | AM29: 0 | AN29: 0 | AO29: 0 | AP29: 0 | AQ29: 1117.674 | AR29: 0 | AS29: 2607.906 | AT29: =-('2005'!C29*Emissionsfaktorer!$B$5+'2005'!D29*Emissionsfaktorer!$B$7+'2005'!E29*Emissionsfaktorer!$B$8+N29*Emissionsfaktorer!$B$6) -> 283.14408
C30: ='BF20 2005'!N34 -> -29993 | D30: ='BF20 2005'!C34 -> -8 | E30: ='BF20 2005'!O34 -> 0 | F30: =SUM('BF20 2005'!P34:T34)+'BF20 2005'!V34+'BF20 2005'!W34 -> -30254 | G30: =H30+I30+J30+K30+L30 -> -3026 | H30: ='BF20 2005'!X34 -> -305 | L30: ='BF20 2005'!Y34 -> -2721 | M30: ='BF20 2005'!U34 -> 0 | N30: =SUM('BF20 2005'!D34:M34) -> -27616 | O30: ='BF20 2005'!AB34 -> -37810 | P30: ='BF20 2005'!AC34 -> -65536 | S30: 0 | T30: -194243 | U30: Husholdninger | V30: AH | W30: A | Y30: 194243 | Z30: 1 | AQ30: =T30/Z30*-1 -> 194243 | AS30: 0 | AT30: =-('2005'!C30*Emissionsfaktorer!$B$5+'2005'!D30*Emissionsfaktorer!$B$7+'2005'!E30*Emissionsfaktorer!$B$8+N30*Emissionsfaktorer!$B$6) -> 3809.177
C31: ='BF20 2005'!N33 -> -3100 | D31: ='BF20 2005'!C33 -> 0 | E31: ='BF20 2005'!O33 -> 0 | F31: =SUM('BF20 2005'!P33:T33)+'BF20 2005'!V33+'BF20 2005'!W33 -> -843 | G31: =H31+I31+J31+K31+L31 -> -54 | H31: ='BF20 2005'!X33 -> -54 | L31: ='BF20 2005'!Y33 -> 0 | M31: ='BF20 2005'!U33 -> 0 | N31: =SUM('BF20 2005'!D33:M33) -> -2203 | O31: ='BF20 2005'!AB33 -> -9380 | P31: ='BF20 2005'!AC33 -> -10303 | S31: 0 | T31: -25883 | U31: Offentlig | V31: AO | W31: A | Y31: 25883 | Z31: 1 | AQ31: =T31/Z31*-1 -> 25883 | AS31: 0 | AT31: =-('2005'!C31*Emissionsfaktorer!$B$5+'2005'!D31*Emissionsfaktorer!$B$7+'2005'!E31*Emissionsfaktorer!$B$8+N31*Emissionsfaktorer!$B$6) -> 344.128
C32: =SUM('BF20 2005'!N29:N32) -> -39294 | D32: =SUM('BF20 2005'!C29:C32) -> -10783 | E32: =SUM('BF20 2005'!O29:O32) -> -1239 | F32: =SUM('BF20 2005'!P29:T32)+SUM('BF20 2005'!V29:W32) -> -7944 | G32: -1095 | H32: =SUM('BF20 2005'!X29:X32) -> 0 | I32: =SUM('BF20 2005'!Z29:Z32) -> 0 | L32: =SUM('BF20 2005'!Y29:Y32) -> -1095 | M32: =SUM('BF20 2005'!U29:U32) -> 0 | N32: =SUM('BF20 2005'!E29:M32) -> -55937 | O32: =SUM('BF20 2005'!AB29:AB32) -> -72191 | P32: =SUM('BF20 2005'!AC29:AC32) -> -28765 | S32: 0 | T32: -217248 | U32: Erhverv | V32: AE | W32: A | Y32: 217248 | Z32: 1 | AQ32: =T32/Z32*-1 -> 217248 | AS32: 0 | AT32: =-('2005'!C32*Emissionsfaktorer!$B$5+'2005'!D32*Emissionsfaktorer!$B$7+'2005'!E32*Emissionsfaktorer!$B$8+N32*Emissionsfaktorer!$B$6) -> 7609.519
U33: Energitjenester | V33: EN
C34: =C18-'BF20 2005'!N26 -> 0 | D34: =D6-'BF20 2005'!C17-'BF20 2005'!C26 -> 0 | E34: =E6-'BF20 2005'!O17-'BF20 2005'!O26 -> 0 | F34: =F18-SUM('BF20 2005'!P26:T26)-'BF20 2005'!V26-'BF20 2005'!W26 -> -1 | H34: =H8+H18-'BF20 2005'!X17-'BF20 2005'!X26 -> 0 | I34: =I8+I18-'BF20 2005'!Z17-'BF20 2005'!Z26 -> 0 | L34: =L8+L18-'BF20 2005'!Y17-'BF20 2005'!Y26 -> 0 | M34: =M8+M18-'BF20 2005'!U17-'BF20 2005'!U26 -> 0 | N34: =N8+N20+N30+N31+N32-SUM('BF20 2005'!D17:M17)-SUM('BF20 2005'!D26:M26)-SUM('BF20 2005'!G14:M14)-'ENS Transport'!AX50 -> 5454.87 | O34: =O20+O30+O31+O32-'BF20 2005'!AB26 -> 1.28 | P34: =P18-'BF20 2005'!AC26 -> 0
